Workbook

Sheet README

Sheet TotalNaturalFlow
A1: =InterveningNaturalFlow!A1 -> Natural flows are ALWAYS SUBJECT TO CHANGE in future updates -- Last Updated 11/15/2022
A2: Corresponding USGS gauge number | B2: 09072500 | C2: 09095500 | D2: 09109000 | E2: 09124700 | F2: 09127800 | G2: 09152500 | H2: 09180000 | I2: 09180500 | J2: 09211200 | K2: 09217000 | L2: 09234500 | M2: 09251000 | N2: 09260000 | O2: 09302000 | P2: 09306500 | Q2: 09315000 | R2: 09328500 | S2: 09355500 | T2: 09379500 | U2: 09380000 | W2: 09382000 | X2: 09402000 | Y2: 09402500 | Z2: 09415000 | AA2: 09421500 | AB2: 09423000 | AC2: 09426000 | AD2: 09427520 | AE2: 09429490
A3: USGS gauge name | B3: Colorado River At Glenwood Springs, CO | C3: Colorado River Near Cameo, CO | D3: Taylor River Below Taylor Park Reservoir, CO | E3: Gunnision River Above Blue Mesa Reservoir,CO | F3: Gunnison River At Crystal Reservoir,CO | G3: Gunnison River Near Grand Junction, CO | H3: Dolores River Near Cisco, UT | I3: Colorado River Near Cisco UT | J3: Green R Bel Fontenelle Res WY | K3: Green R. Nr Green River, WyY | L3: Green River Near Greendale, UT | M3: Yampa River Near Maybell, CO\ | N3: Little Snake River Near Lily, CO | O3: Duchesne River Near Randlett, UT | P3: White River Near Watson, UT | Q3: Green River At Green River, UT | R3: San Rafael River Near Green River, UT | S3: San Juan River Near Archuleta,NM | T3: San Juan River Near Bluff, UT | U3: Colorado R At Lees Ferry, AZ | W3: Paria R At Lees Ferry, AZ | X3: Little Colorado River Near Cameron, AZ | Y3: Colorado River Near Grand Canyon, AZ | Z3: Virgin River At Littlefield, AZ | AA3: Colorado River Below Hoover Dam, AZ-NV | AB3: Colorado River Below Davis Dam, AZ-NV | AC3: Bill Williams River Below Alamo Dam, AZ | AD3: Colorado River Below Parker Dam, AZ-CA | AE3: Colorado River Above Imperial Dam, AZ
A4: Natural Flow And Salt Calc model Object.Slot | B4: UpperColoradoReach.Total Inflow | C4: ColoRAbv09095500:GainsAbvCameo.Total Inflow | D4: TaylorRiver.Total Inflow | E4: TaylorAboveBlueMesa:GainsAboveBlueMesa.Total Inflow | F4: GunnisonRiverAboveCrystal:GainsAboveCrystal.Total Inflow | G4: GunnisonRiverAboveGrandJunction:GainsGunnisonRiverAbvGrandJunction.Total Inflow | H4: DoloresRiver.Total Inflow | I4: GrandValleyReach:GainsAboveCisco.Total Inflow | J4: GreenRAboveGage09211200.Total Inflow | K4: Gage09211200ToGage09217000:GainsAbv09217000.Total Inflow | L4: Gage09217000ToGage09234500:GainsAbv09234500.Total Inflow | M4: YampaRAbv09251000.Total Inflow | N4: LittleSnakeRAbv09260000.Total Inflow | O4: DuchesneAbv09302000.Total Inflow | P4: WhiteRiverAbv09306500.Total Inflow | Q4: GreenRAbvGage09315000:GainsAbvGreenRUtah.Total Inflow | R4: SanRafaelRiver.Total Inflow | S4: SJAboveNavajo.Total Inflow | T4: SJBelowNavajo:GainsAboveBluff.Total Inflow | U4: ColoradoRAbvPowell:GainsAboveLeesFerry.Total Inflow | W4: CoRivPowellToVirgin:PariaGains.Total Inflow | X4: CoRivPowellToVirgin:LittleCoR.Total Inflow | Y4: CoRivPowellToVirgin:GainsAboveGC.Total Inflow | Z4: VirginRiver.Total Inflow | AA4: CoRivVirginToMead:GainsAboveHoover.Total Inflow | AB4: CoRivMeadToMohave:GainsAboveDavis.Total Inflow | AC4: CoRivMohaveToHavasu:BillWilliamsRiver.Total Inflow | AD4: CoRivMohaveToHavasu:GainsAboveParker.Total Inflow | AE4: AboveImperialDamColoradoR:GainsOnColoRAboveImperialDam.Total Inflow
B5: (ac-ft/month) | C5: (ac-ft/month) | D5: (ac-ft/month) | E5: (ac-ft/month) | F5: (ac-ft/month) | G5: (ac-ft/month) | H5: (ac-ft/month) | I5: (ac-ft/month) | J5: (ac-ft/month) | K5: (ac-ft/month) | L5: (ac-ft/month) | M5: (ac-ft/month) | N5: (ac-ft/month) | O5: (ac-ft/month) | P5: (ac-ft/month) | Q5: (ac-ft/month) | R5: (ac-ft/month) | S5: (ac-ft/month) | T5: (ac-ft/month) | U5: (ac-ft/month) | W5: (ac-ft/month) | X5: (ac-ft/month) | Y5: (ac-ft/month) | Z5: (ac-ft/month) | AA5: (ac-ft/month) | AB5: (ac-ft/month) | AC5: (ac-ft/month) | AD5: (ac-ft/month) | AE5: (ac-ft/month)
A6: 1905-10-31 | B6: =InterveningNaturalFlow!B6 -> 66,982 | C6: =InterveningNaturalFlow!C6+TotalNaturalFlow!B6 -> 112,068 | D6: =InterveningNaturalFlow!D6 -> 6,375 | E6: =InterveningNaturalFlow!E6+TotalNaturalFlow!D6 -> 28,000 | F6: =InterveningNaturalFlow!F6+TotalNaturalFlow!E6 -> 31,900 | G6: =InterveningNaturalFlow!G6+TotalNaturalFlow!F6 -> 74,372 | H6: =InterveningNaturalFlow!H6 -> 23,495 | I6: =InterveningNaturalFlow!I6+TotalNaturalFlow!H6+TotalNaturalFlow!G6+TotalNaturalFlow!C6 -> 205,760 | J6: =InterveningNaturalFlow!J6 -> 28,000 | K6: =InterveningNaturalFlow!K6+TotalNaturalFlow!J6 -> 30,010 | L6: =InterveningNaturalFlow!L6+TotalNaturalFlow!K6 -> 26,999 | M6: =InterveningNaturalFlow!M6 -> 19,218 | N6: =InterveningNaturalFlow!N6 -> 8,865 | O6: =InterveningNaturalFlow!O6 -> 46,532 | P6: =InterveningNaturalFlow!P6 -> 27,243 | Q6: =InterveningNaturalFlow!Q6+TotalNaturalFlow!P6+TotalNaturalFlow!O6+TotalNaturalFlow!N6+TotalNaturalFlow!M6+TotalNaturalFlow!L6 -> 152,766 | R6: =InterveningNaturalFlow!R6 -> 4,979 | S6: =InterveningNaturalFlow!S6 -> 47,313 | T6: =InterveningNaturalFlow!T6+TotalNaturalFlow!S6 -> 98,939 | U6: =InterveningNaturalFlow!U6+TotalNaturalFlow!T6+TotalNaturalFlow!R6+TotalNaturalFlow!Q6+TotalNaturalFlow!I6 -> 458,528 | W6: =InterveningNaturalFlow!W6 -> 4,398 | X6: =InterveningNaturalFlow!X6 -> 8,058 | Y6: =InterveningNaturalFlow!Y6+TotalNaturalFlow!X6+TotalNaturalFlow!W6+TotalNaturalFlow!U6 -> 472,513 | Z6: =InterveningNaturalFlow!Z6 -> 5,279 | AA6: =InterveningNaturalFlow!AA6+TotalNaturalFlow!Z6+Y6 -> 506,629 | AB6: =InterveningNaturalFlow!AB6+TotalNaturalFlow!AA6 -> 495,311 | AC6: =InterveningNaturalFlow!AC6 -> 133 | AD6: =InterveningNaturalFlow!AD6+TotalNaturalFlow!AC6+AB6 -> 538,265 | AE6: =InterveningNaturalFlow!AE6+TotalNaturalFlow!AD6 -> 478,846
A7: 1905-11-30 | B7: =InterveningNaturalFlow!B7 -> 60,131 | C7: =InterveningNaturalFlow!C7+TotalNaturalFlow!B7 -> 102,837 | D7: =InterveningNaturalFlow!D7 -> 4,097 | E7: =InterveningNaturalFlow!E7+TotalNaturalFlow!D7 -> 25,000 | F7: =InterveningNaturalFlow!F7+TotalNaturalFlow!E7 -> 29,200 | G7: =InterveningNaturalFlow!G7+TotalNaturalFlow!F7 -> 59,214 | H7: =InterveningNaturalFlow!H7 -> 6,836 | I7: =InterveningNaturalFlow!I7+TotalNaturalFlow!H7+TotalNaturalFlow!G7+TotalNaturalFlow!C7 -> 183,990 | J7: =InterveningNaturalFlow!J7 -> 24,000 | K7: =InterveningNaturalFlow!K7+TotalNaturalFlow!J7 -> 25,441 | L7: =InterveningNaturalFlow!L7+TotalNaturalFlow!K7 -> 10,500 | M7: =InterveningNaturalFlow!M7 -> 19,388 | N7: =InterveningNaturalFlow!N7 -> 6,294 | O7: =InterveningNaturalFlow!O7 -> 30,021 | P7: =InterveningNaturalFlow!P7 -> 29,341 | Q7: =InterveningNaturalFlow!Q7+TotalNaturalFlow!P7+TotalNaturalFlow!O7+TotalNaturalFlow!N7+TotalNaturalFlow!M7+TotalNaturalFlow!L7 -> 122,183 | R7: =InterveningNaturalFlow!R7 -> 5,136 | S7: =InterveningNaturalFlow!S7 -> 33,552 | T7: =InterveningNaturalFlow!T7+TotalNaturalFlow!S7 -> 66,885 | U7: =InterveningNaturalFlow!U7+TotalNaturalFlow!T7+TotalNaturalFlow!R7+TotalNaturalFlow!Q7+TotalNaturalFlow!I7 -> 401,644 | W7: =InterveningNaturalFlow!W7 -> 2,746 | X7: =InterveningNaturalFlow!X7 -> 812 | Y7: =InterveningNaturalFlow!Y7+TotalNaturalFlow!X7+TotalNaturalFlow!W7+TotalNaturalFlow!U7 -> 411,033 | Z7: =InterveningNaturalFlow!Z7 -> 6,857 | AA7: =InterveningNaturalFlow!AA7+TotalNaturalFlow!Z7+Y7 -> 452,569 | AB7: =InterveningNaturalFlow!AB7+TotalNaturalFlow!AA7 -> 459,361 | AC7: =InterveningNaturalFlow!AC7 -> 265 | AD7: =InterveningNaturalFlow!AD7+TotalNaturalFlow!AC7+AB7 -> 460,352 | AE7: =InterveningNaturalFlow!AE7+TotalNaturalFlow!AD7 -> 439,244
A8: 1905-12-31 | B8: =InterveningNaturalFlow!B8 -> 37,105 | C8: =InterveningNaturalFlow!C8+TotalNaturalFlow!B8 -> 66,812 | D8: =InterveningNaturalFlow!D8 -> 3,981 | E8: =InterveningNaturalFlow!E8+TotalNaturalFlow!D8 -> 27,000 | F8: =InterveningNaturalFlow!F8+TotalNaturalFlow!E8 -> 29,200 | G8: =InterveningNaturalFlow!G8+TotalNaturalFlow!F8 -> 39,757 | H8: =InterveningNaturalFlow!H8 -> 2,001 | I8: =InterveningNaturalFlow!I8+TotalNaturalFlow!H8+TotalNaturalFlow!G8+TotalNaturalFlow!C8 -> 113,520 | J8: =InterveningNaturalFlow!J8 -> 18,000 | K8: =InterveningNaturalFlow!K8+TotalNaturalFlow!J8 -> 19,513 | L8: =InterveningNaturalFlow!L8+TotalNaturalFlow!K8 -> 14,376 | M8: =InterveningNaturalFlow!M8 -> 12,566 | N8: =InterveningNaturalFlow!N8 -> 3,264 | O8: =InterveningNaturalFlow!O8 -> 25,211 | P8: =InterveningNaturalFlow!P8 -> 22,084 | Q8: =InterveningNaturalFlow!Q8+TotalNaturalFlow!P8+TotalNaturalFlow!O8+TotalNaturalFlow!N8+TotalNaturalFlow!M8+TotalNaturalFlow!L8 -> 81,046 | R8: =InterveningNaturalFlow!R8 -> 681 | S8: =InterveningNaturalFlow!S8 -> 25,801 | T8: =InterveningNaturalFlow!T8+TotalNaturalFlow!S8 -> 40,222 | U8: =InterveningNaturalFlow!U8+TotalNaturalFlow!T8+TotalNaturalFlow!R8+TotalNaturalFlow!Q8+TotalNaturalFlow!I8 -> 226,871 | W8: =InterveningNaturalFlow!W8 -> 1,445 | X8: =InterveningNaturalFlow!X8 -> 23 | Y8: =InterveningNaturalFlow!Y8+TotalNaturalFlow!X8+TotalNaturalFlow!W8+TotalNaturalFlow!U8 -> 232,409 | Z8: =InterveningNaturalFlow!Z8 -> 10,396 | AA8: =InterveningNaturalFlow!AA8+TotalNaturalFlow!Z8+Y8 -> 244,835 | AB8: =InterveningNaturalFlow!AB8+TotalNaturalFlow!AA8 -> 252,565 | AC8: =InterveningNaturalFlow!AC8 -> 528 | AD8: =InterveningNaturalFlow!AD8+TotalNaturalFlow!AC8+AB8 -> 256,420 | AE8: =InterveningNaturalFlow!AE8+TotalNaturalFlow!AD8 -> 251,623
A9: 1906-01-31 | B9: =InterveningNaturalFlow!B9 -> 37,525 | C9: =InterveningNaturalFlow!C9+TotalNaturalFlow!B9 -> 69,218 | D9: =InterveningNaturalFlow!D9 -> 3,770 | E9: =InterveningNaturalFlow!E9+TotalNaturalFlow!D9 -> 26,000 | F9: =InterveningNaturalFlow!F9+TotalNaturalFlow!E9 -> 28,600 | G9: =InterveningNaturalFlow!G9+TotalNaturalFlow!F9 -> 33,917 | H9: =InterveningNaturalFlow!H9 -> 2,929 | I9: =InterveningNaturalFlow!I9+TotalNaturalFlow!H9+TotalNaturalFlow!G9+TotalNaturalFlow!C9 -> 107,850 | J9: =InterveningNaturalFlow!J9 -> 18,000 | K9: =InterveningNaturalFlow!K9+TotalNaturalFlow!J9 -> 20,435 | L9: =InterveningNaturalFlow!L9+TotalNaturalFlow!K9 -> 25,831 | M9: =InterveningNaturalFlow!M9 -> 11,213 | N9: =InterveningNaturalFlow!N9 -> 3,905 | O9: =InterveningNaturalFlow!O9 -> 29,285 | P9: =InterveningNaturalFlow!P9 -> 17,735 | Q9: =InterveningNaturalFlow!Q9+TotalNaturalFlow!P9+TotalNaturalFlow!O9+TotalNaturalFlow!N9+TotalNaturalFlow!M9+TotalNaturalFlow!L9 -> 86,083 | R9: =InterveningNaturalFlow!R9 -> 2,187 | S9: =InterveningNaturalFlow!S9 -> 24,238 | T9: =InterveningNaturalFlow!T9+TotalNaturalFlow!S9 -> 47,374 | U9: =InterveningNaturalFlow!U9+TotalNaturalFlow!T9+TotalNaturalFlow!R9+TotalNaturalFlow!Q9+TotalNaturalFlow!I9 -> 244,314 | W9: =InterveningNaturalFlow!W9 -> 2,717 | X9: =InterveningNaturalFlow!X9 -> 72 | Y9: =InterveningNaturalFlow!Y9+TotalNaturalFlow!X9+TotalNaturalFlow!W9+TotalNaturalFlow!U9 -> 250,253 | Z9: =InterveningNaturalFlow!Z9 -> 11,961 | AA9: =InterveningNaturalFlow!AA9+TotalNaturalFlow!Z9+Y9 -> 297,006 | AB9: =InterveningNaturalFlow!AB9+TotalNaturalFlow!AA9 -> 255,029 | AC9: =InterveningNaturalFlow!AC9 -> 398 | AD9: =InterveningNaturalFlow!AD9+TotalNaturalFlow!AC9+AB9 -> 243,273 | AE9: =InterveningNaturalFlow!AE9+TotalNaturalFlow!AD9 -> 183,870
A10: 1906-02-28 | B10: =InterveningNaturalFlow!B10 -> 38,047 | C10: =InterveningNaturalFlow!C10+TotalNaturalFlow!B10 -> 59,853 | D10: =InterveningNaturalFlow!D10 -> 3,898 | E10: =InterveningNaturalFlow!E10+TotalNaturalFlow!D10 -> 22,000 | F10: =InterveningNaturalFlow!F10+TotalNaturalFlow!E10 -> 25,500 | G10: =InterveningNaturalFlow!G10+TotalNaturalFlow!F10 -> 41,675 | H10: =InterveningNaturalFlow!H10 -> 4,306 | I10: =InterveningNaturalFlow!I10+TotalNaturalFlow!H10+TotalNaturalFlow!G10+TotalNaturalFlow!C10 -> 109,340 | J10: =InterveningNaturalFlow!J10 -> 17,000 | K10: =InterveningNaturalFlow!K10+TotalNaturalFlow!J10 -> 15,798 | L10: =InterveningNaturalFlow!L10+TotalNaturalFlow!K10 -> 32,970 | M10: =InterveningNaturalFlow!M10 -> 13,950 | N10: =InterveningNaturalFlow!N10 -> 8,672 | O10: =InterveningNaturalFlow!O10 -> 21,687 | P10: =InterveningNaturalFlow!P10 -> 16,968 | Q10: =InterveningNaturalFlow!Q10+TotalNaturalFlow!P10+TotalNaturalFlow!O10+TotalNaturalFlow!N10+TotalNaturalFlow!M10+TotalNaturalFlow!L10 -> 89,773 | R10: =InterveningNaturalFlow!R10 -> 3,066 | S10: =InterveningNaturalFlow!S10 -> 23,185 | T10: =InterveningNaturalFlow!T10+TotalNaturalFlow!S10 -> 65,771 | U10: =InterveningNaturalFlow!U10+TotalNaturalFlow!T10+TotalNaturalFlow!R10+TotalNaturalFlow!Q10+TotalNaturalFlow!I10 -> 292,534 | W10: =InterveningNaturalFlow!W10 -> 2,848 | X10: =InterveningNaturalFlow!X10 -> 7,259 | Y10: =InterveningNaturalFlow!Y10+TotalNaturalFlow!X10+TotalNaturalFlow!W10+TotalNaturalFlow!U10 -> 304,608 | Z10: =InterveningNaturalFlow!Z10 -> 15,361 | AA10: =InterveningNaturalFlow!AA10+TotalNaturalFlow!Z10+Y10 -> 389,804 | AB10: =InterveningNaturalFlow!AB10+TotalNaturalFlow!AA10 -> 346,159 | AC10: =InterveningNaturalFlow!AC10 -> 5,304 | AD10: =InterveningNaturalFlow!AD10+TotalNaturalFlow!AC10+AB10 -> 365,774 | AE10: =InterveningNaturalFlow!AE10+TotalNaturalFlow!AD10 -> 386,365
A11: 1906-03-31 | B11: =InterveningNaturalFlow!B11 -> 64,812 | C11: =InterveningNaturalFlow!C11+TotalNaturalFlow!B11 -> 102,636 | D11: =InterveningNaturalFlow!D11 -> 4,327 | E11: =InterveningNaturalFlow!E11+TotalNaturalFlow!D11 -> 39,000 | F11: =InterveningNaturalFlow!F11+TotalNaturalFlow!E11 -> 46,100 | G11: =InterveningNaturalFlow!G11+TotalNaturalFlow!F11 -> 65,439 | H11: =InterveningNaturalFlow!H11 -> 13,712 | I11: =InterveningNaturalFlow!I11+TotalNaturalFlow!H11+TotalNaturalFlow!G11+TotalNaturalFlow!C11 -> 186,240 | J11: =InterveningNaturalFlow!J11 -> 29,000 | K11: =InterveningNaturalFlow!K11+TotalNaturalFlow!J11 -> 41,659 | L11: =InterveningNaturalFlow!L11+TotalNaturalFlow!K11 -> 76,977 | M11: =InterveningNaturalFlow!M11 -> 78,151 | N11: =InterveningNaturalFlow!N11 -> 37,674 | O11: =InterveningNaturalFlow!O11 -> 54,433 | P11: =InterveningNaturalFlow!P11 -> 55,176 | Q11: =InterveningNaturalFlow!Q11+TotalNaturalFlow!P11+TotalNaturalFlow!O11+TotalNaturalFlow!N11+TotalNaturalFlow!M11+TotalNaturalFlow!L11 -> 375,471 | R11: =InterveningNaturalFlow!R11 -> 8,013 | S11: =InterveningNaturalFlow!S11 -> 32,935 | T11: =InterveningNaturalFlow!T11+TotalNaturalFlow!S11 -> 132,117 | U11: =InterveningNaturalFlow!U11+TotalNaturalFlow!T11+TotalNaturalFlow!R11+TotalNaturalFlow!Q11+TotalNaturalFlow!I11 -> 678,174 | W11: =InterveningNaturalFlow!W11 -> 3,349 | X11: =InterveningNaturalFlow!X11 -> 147,600 | Y11: =InterveningNaturalFlow!Y11+TotalNaturalFlow!X11+TotalNaturalFlow!W11+TotalNaturalFlow!U11 -> 831,493 | Z11: =InterveningNaturalFlow!Z11 -> 14,885 | AA11: =InterveningNaturalFlow!AA11+TotalNaturalFlow!Z11+Y11 -> 907,403 | AB11: =InterveningNaturalFlow!AB11+TotalNaturalFlow!AA11 -> 934,426 | AC11: =InterveningNaturalFlow!AC11 -> 7,656 | AD11: =InterveningNaturalFlow!AD11+TotalNaturalFlow!AC11+AB11 -> 928,677 | AE11: =InterveningNaturalFlow!AE11+TotalNaturalFlow!AD11 -> 953,488
A12: 1906-04-30 | B12: =InterveningNaturalFlow!B12 -> 166,869 | C12: =InterveningNaturalFlow!C12+TotalNaturalFlow!B12 -> 256,333 | D12: =InterveningNaturalFlow!D12 -> 7,688 | E12: =InterveningNaturalFlow!E12+TotalNaturalFlow!D12 -> 107,000 | F12: =InterveningNaturalFlow!F12+TotalNaturalFlow!E12 -> 135,000 | G12: =InterveningNaturalFlow!G12+TotalNaturalFlow!F12 -> 168,978 | H12: =InterveningNaturalFlow!H12 -> 76,052 | I12: =InterveningNaturalFlow!I12+TotalNaturalFlow!H12+TotalNaturalFlow!G12+TotalNaturalFlow!C12 -> 482,330 | J12: =InterveningNaturalFlow!J12 -> 104,000 | K12: =InterveningNaturalFlow!K12+TotalNaturalFlow!J12 -> 132,958 | L12: =InterveningNaturalFlow!L12+TotalNaturalFlow!K12 -> 222,578 | M12: =InterveningNaturalFlow!M12 -> 200,724 | N12: =InterveningNaturalFlow!N12 -> 49,721 | O12: =InterveningNaturalFlow!O12 -> 57,166 | P12: =InterveningNaturalFlow!P12 -> 53,490 | Q12: =InterveningNaturalFlow!Q12+TotalNaturalFlow!P12+TotalNaturalFlow!O12+TotalNaturalFlow!N12+TotalNaturalFlow!M12+TotalNaturalFlow!L12 -> 570,610 | R12: =InterveningNaturalFlow!R12 -> 10,216 | S12: =InterveningNaturalFlow!S12 -> 166,627 | T12: =InterveningNaturalFlow!T12+TotalNaturalFlow!S12 -> 278,432 | U12: =InterveningNaturalFlow!U12+TotalNaturalFlow!T12+TotalNaturalFlow!R12+TotalNaturalFlow!Q12+TotalNaturalFlow!I12 -> 1,204,640 | W12: =InterveningNaturalFlow!W12 -> 1,670 | X12: =InterveningNaturalFlow!X12 -> 59,273 | Y12: =InterveningNaturalFlow!Y12+TotalNaturalFlow!X12+TotalNaturalFlow!W12+TotalNaturalFlow!U12 -> 1,263,157 | Z12: =InterveningNaturalFlow!Z12 -> 12,841 | AA12: =InterveningNaturalFlow!AA12+TotalNaturalFlow!Z12+Y12 -> 1,334,457 | AB12: =InterveningNaturalFlow!AB12+TotalNaturalFlow!AA12 -> 1,360,366 | AC12: =InterveningNaturalFlow!AC12 -> 2,809 | AD12: =InterveningNaturalFlow!AD12+TotalNaturalFlow!AC12+AB12 -> 1,367,645 | AE12: =InterveningNaturalFlow!AE12+TotalNaturalFlow!AD12 -> 1,407,726
A13: 1906-05-31 | B13: =InterveningNaturalFlow!B13 -> 603,358 | C13: =InterveningNaturalFlow!C13+TotalNaturalFlow!B13 -> 928,661 | D13: =InterveningNaturalFlow!D13 -> 36,123 | E13: =InterveningNaturalFlow!E13+TotalNaturalFlow!D13 -> 334,010 | F13: =InterveningNaturalFlow!F13+TotalNaturalFlow!E13 -> 407,010 | G13: =InterveningNaturalFlow!G13+TotalNaturalFlow!F13 -> 649,637 | H13: =InterveningNaturalFlow!H13 -> 178,047 | I13: =InterveningNaturalFlow!I13+TotalNaturalFlow!H13+TotalNaturalFlow!G13+TotalNaturalFlow!C13 -> 1,748,455 | J13: =InterveningNaturalFlow!J13 -> 316,000 | K13: =InterveningNaturalFlow!K13+TotalNaturalFlow!J13 -> 324,591 | L13: =InterveningNaturalFlow!L13+TotalNaturalFlow!K13 -> 480,495 | M13: =InterveningNaturalFlow!M13 -> 550,294 | N13: =InterveningNaturalFlow!N13 -> 162,605 | O13: =InterveningNaturalFlow!O13 -> 205,534 | P13: =InterveningNaturalFlow!P13 -> 122,383 | Q13: =InterveningNaturalFlow!Q13+TotalNaturalFlow!P13+TotalNaturalFlow!O13+TotalNaturalFlow!N13+TotalNaturalFlow!M13+TotalNaturalFlow!L13 -> 1,548,175 | R13: =InterveningNaturalFlow!R13 -> 49,937 | S13: =InterveningNaturalFlow!S13 -> 464,408 | T13: =InterveningNaturalFlow!T13+TotalNaturalFlow!S13 -> 491,766 | U13: =InterveningNaturalFlow!U13+TotalNaturalFlow!T13+TotalNaturalFlow!R13+TotalNaturalFlow!Q13+TotalNaturalFlow!I13 -> 3,635,101 | W13: =InterveningNaturalFlow!W13 -> 1,004 | X13: =InterveningNaturalFlow!X13 -> 174 | Y13: =InterveningNaturalFlow!Y13+TotalNaturalFlow!X13+TotalNaturalFlow!W13+TotalNaturalFlow!U13 -> 3,623,920 | Z13: =InterveningNaturalFlow!Z13 -> 14,616 | AA13: =InterveningNaturalFlow!AA13+TotalNaturalFlow!Z13+Y13 -> 3,575,242 | AB13: =InterveningNaturalFlow!AB13+TotalNaturalFlow!AA13 -> 3,581,547 | AC13: =InterveningNaturalFlow!AC13 -> 101 | AD13: =InterveningNaturalFlow!AD13+TotalNaturalFlow!AC13+AB13 -> 3,559,534 | AE13: =InterveningNaturalFlow!AE13+TotalNaturalFlow!AD13 -> 3,531,553
A14: 1906-06-30 | B14: =InterveningNaturalFlow!B14 -> 809,692 | C14: =InterveningNaturalFlow!C14+TotalNaturalFlow!B14 -> 1,308,992 | D14: =InterveningNaturalFlow!D14 -> 56,665 | E14: =InterveningNaturalFlow!E14+TotalNaturalFlow!D14 -> 454,428 | F14: =InterveningNaturalFlow!F14+TotalNaturalFlow!E14 -> 534,428 | G14: =InterveningNaturalFlow!G14+TotalNaturalFlow!F14 -> 811,976 | H14: =InterveningNaturalFlow!H14 -> 169,388 | I14: =InterveningNaturalFlow!I14+TotalNaturalFlow!H14+TotalNaturalFlow!G14+TotalNaturalFlow!C14 -> 2,381,791 | J14: =InterveningNaturalFlow!J14 -> 395,400 | K14: =InterveningNaturalFlow!K14+TotalNaturalFlow!J14 -> 416,816 | L14: =InterveningNaturalFlow!L14+TotalNaturalFlow!K14 -> 614,863 | M14: =InterveningNaturalFlow!M14 -> 454,467 | N14: =InterveningNaturalFlow!N14 -> 157,492 | O14: =InterveningNaturalFlow!O14 -> 304,580 | P14: =InterveningNaturalFlow!P14 -> 167,681 | Q14: =InterveningNaturalFlow!Q14+TotalNaturalFlow!P14+TotalNaturalFlow!O14+TotalNaturalFlow!N14+TotalNaturalFlow!M14+TotalNaturalFlow!L14 -> 1,807,795 | R14: =InterveningNaturalFlow!R14 -> 105,769 | S14: =InterveningNaturalFlow!S14 -> 431,139 | T14: =InterveningNaturalFlow!T14+TotalNaturalFlow!S14 -> 579,498 | U14: =InterveningNaturalFlow!U14+TotalNaturalFlow!T14+TotalNaturalFlow!R14+TotalNaturalFlow!Q14+TotalNaturalFlow!I14 -> 5,014,167 | W14: =InterveningNaturalFlow!W14 -> 744 | X14: =InterveningNaturalFlow!X14 -> 19 | Y14: =InterveningNaturalFlow!Y14+TotalNaturalFlow!X14+TotalNaturalFlow!W14+TotalNaturalFlow!U14 -> 5,015,687 | Z14: =InterveningNaturalFlow!Z14 -> 5,827 | AA14: =InterveningNaturalFlow!AA14+TotalNaturalFlow!Z14+Y14 -> 5,045,427 | AB14: =InterveningNaturalFlow!AB14+TotalNaturalFlow!AA14 -> 4,998,203 | AC14: =InterveningNaturalFlow!AC14 -> 100 | AD14: =InterveningNaturalFlow!AD14+TotalNaturalFlow!AC14+AB14 -> 4,982,147 | AE14: =InterveningNaturalFlow!AE14+TotalNaturalFlow!AD14 -> 4,883,779
A15: 1906-07-31 | B15: =InterveningNaturalFlow!B15 -> 417,092 | C15: =InterveningNaturalFlow!C15+TotalNaturalFlow!B15 -> 743,055 | D15: =InterveningNaturalFlow!D15 -> 35,836 | E15: =InterveningNaturalFlow!E15+TotalNaturalFlow!D15 -> 213,582 | F15: =InterveningNaturalFlow!F15+TotalNaturalFlow!E15 -> 234,582 | G15: =InterveningNaturalFlow!G15+TotalNaturalFlow!F15 -> 418,774 | H15: =InterveningNaturalFlow!H15 -> 73,336 | I15: =InterveningNaturalFlow!I15+TotalNaturalFlow!H15+TotalNaturalFlow!G15+TotalNaturalFlow!C15 -> 1,288,196 | J15: =InterveningNaturalFlow!J15 -> 313,900 | K15: =InterveningNaturalFlow!K15+TotalNaturalFlow!J15 -> 342,377 | L15: =InterveningNaturalFlow!L15+TotalNaturalFlow!K15 -> 424,452 | M15: =InterveningNaturalFlow!M15 -> 179,997 | N15: =InterveningNaturalFlow!N15 -> 64,669 | O15: =InterveningNaturalFlow!O15 -> 139,196 | P15: =InterveningNaturalFlow!P15 -> 99,269 | Q15: =InterveningNaturalFlow!Q15+TotalNaturalFlow!P15+TotalNaturalFlow!O15+TotalNaturalFlow!N15+TotalNaturalFlow!M15+TotalNaturalFlow!L15 -> 991,018 | R15: =InterveningNaturalFlow!R15 -> 39,943 | S15: =InterveningNaturalFlow!S15 -> 131,339 | T15: =InterveningNaturalFlow!T15+TotalNaturalFlow!S15 -> 296,458 | U15: =InterveningNaturalFlow!U15+TotalNaturalFlow!T15+TotalNaturalFlow!R15+TotalNaturalFlow!Q15+TotalNaturalFlow!I15 -> 2,950,460 | W15: =InterveningNaturalFlow!W15 -> 1,441 | X15: =InterveningNaturalFlow!X15 -> 25 | Y15: =InterveningNaturalFlow!Y15+TotalNaturalFlow!X15+TotalNaturalFlow!W15+TotalNaturalFlow!U15 -> 2,952,467 | Z15: =InterveningNaturalFlow!Z15 -> 5,432 | AA15: =InterveningNaturalFlow!AA15+TotalNaturalFlow!Z15+Y15 -> 3,008,566 | AB15: =InterveningNaturalFlow!AB15+TotalNaturalFlow!AA15 -> 2,999,167 | AC15: =InterveningNaturalFlow!AC15 -> 125 | AD15: =InterveningNaturalFlow!AD15+TotalNaturalFlow!AC15+AB15 -> 3,005,381 | AE15: =InterveningNaturalFlow!AE15+TotalNaturalFlow!AD15 -> 2,941,159
A16: 1906-08-31 | B16: =InterveningNaturalFlow!B16 -> 193,160 | C16: =InterveningNaturalFlow!C16+TotalNaturalFlow!B16 -> 341,255 | D16: =InterveningNaturalFlow!D16 -> 13,887 | E16: =InterveningNaturalFlow!E16+TotalNaturalFlow!D16 -> 99,970 | F16: =InterveningNaturalFlow!F16+TotalNaturalFlow!E16 -> 106,370 | G16: =InterveningNaturalFlow!G16+TotalNaturalFlow!F16 -> 207,826 | H16: =InterveningNaturalFlow!H16 -> 47,813 | I16: =InterveningNaturalFlow!I16+TotalNaturalFlow!H16+TotalNaturalFlow!G16+TotalNaturalFlow!C16 -> 610,854 | J16: =InterveningNaturalFlow!J16 -> 148,200 | K16: =InterveningNaturalFlow!K16+TotalNaturalFlow!J16 -> 163,214 | L16: =InterveningNaturalFlow!L16+TotalNaturalFlow!K16 -> 220,334 | M16: =InterveningNaturalFlow!M16 -> 55,512 | N16: =InterveningNaturalFlow!N16 -> 34,265 | O16: =InterveningNaturalFlow!O16 -> 62,315 | P16: =InterveningNaturalFlow!P16 -> 60,456 | Q16: =InterveningNaturalFlow!Q16+TotalNaturalFlow!P16+TotalNaturalFlow!O16+TotalNaturalFlow!N16+TotalNaturalFlow!M16+TotalNaturalFlow!L16 -> 478,312 | R16: =InterveningNaturalFlow!R16 -> 21,031 | S16: =InterveningNaturalFlow!S16 -> 59,225 | T16: =InterveningNaturalFlow!T16+TotalNaturalFlow!S16 -> 259,613 | U16: =InterveningNaturalFlow!U16+TotalNaturalFlow!T16+TotalNaturalFlow!R16+TotalNaturalFlow!Q16+TotalNaturalFlow!I16 -> 1,605,086 | W16: =InterveningNaturalFlow!W16 -> 3,097 | X16: =InterveningNaturalFlow!X16 -> 1,266 | Y16: =InterveningNaturalFlow!Y16+TotalNaturalFlow!X16+TotalNaturalFlow!W16+TotalNaturalFlow!U16 -> 1,608,034 | Z16: =InterveningNaturalFlow!Z16 -> 6,792 | AA16: =InterveningNaturalFlow!AA16+TotalNaturalFlow!Z16+Y16 -> 1,642,399 | AB16: =InterveningNaturalFlow!AB16+TotalNaturalFlow!AA16 -> 1,634,978 | AC16: =InterveningNaturalFlow!AC16 -> 925 | AD16: =InterveningNaturalFlow!AD16+TotalNaturalFlow!AC16+AB16 -> 1,663,679 | AE16: =InterveningNaturalFlow!AE16+TotalNaturalFlow!AD16 -> 1,598,993
A17: 1906-09-30 | B17: =InterveningNaturalFlow!B17 -> 210,126 | C17: =InterveningNaturalFlow!C17+TotalNaturalFlow!B17 -> 328,114 | D17: =InterveningNaturalFlow!D17 -> 14,838 | E17: =InterveningNaturalFlow!E17+TotalNaturalFlow!D17 -> 61,938 | F17: =InterveningNaturalFlow!F17+TotalNaturalFlow!E17 -> 66,038 | G17: =InterveningNaturalFlow!G17+TotalNaturalFlow!F17 -> 214,603 | H17: =InterveningNaturalFlow!H17 -> 48,778 | I17: =InterveningNaturalFlow!I17+TotalNaturalFlow!H17+TotalNaturalFlow!G17+TotalNaturalFlow!C17 -> 624,088 | J17: =InterveningNaturalFlow!J17 -> 80,700 | K17: =InterveningNaturalFlow!K17+TotalNaturalFlow!J17 -> 86,699 | L17: =InterveningNaturalFlow!L17+TotalNaturalFlow!K17 -> 114,431 | M17: =InterveningNaturalFlow!M17 -> 47,841 | N17: =InterveningNaturalFlow!N17 -> 16,663 | O17: =InterveningNaturalFlow!O17 -> 56,374 | P17: =InterveningNaturalFlow!P17 -> 54,942 | Q17: =InterveningNaturalFlow!Q17+TotalNaturalFlow!P17+TotalNaturalFlow!O17+TotalNaturalFlow!N17+TotalNaturalFlow!M17+TotalNaturalFlow!L17 -> 340,311 | R17: =InterveningNaturalFlow!R17 -> 14,606 | S17: =InterveningNaturalFlow!S17 -> 53,740 | T17: =InterveningNaturalFlow!T17+TotalNaturalFlow!S17 -> 248,640 | U17: =InterveningNaturalFlow!U17+TotalNaturalFlow!T17+TotalNaturalFlow!R17+TotalNaturalFlow!Q17+TotalNaturalFlow!I17 -> 1,503,159 | W17: =InterveningNaturalFlow!W17 -> 2,412 | X17: =InterveningNaturalFlow!X17 -> 26,033 | Y17: =InterveningNaturalFlow!Y17+TotalNaturalFlow!X17+TotalNaturalFlow!W17+TotalNaturalFlow!U17 -> 1,527,069 | Z17: =InterveningNaturalFlow!Z17 -> 6,725 | AA17: =InterveningNaturalFlow!AA17+TotalNaturalFlow!Z17+Y17 -> 1,506,117 | AB17: =InterveningNaturalFlow!AB17+TotalNaturalFlow!AA17 -> 1,509,660 | AC17: =InterveningNaturalFlow!AC17 -> 475 | AD17: =InterveningNaturalFlow!AD17+TotalNaturalFlow!AC17+AB17 -> 1,539,542 | AE17: =InterveningNaturalFlow!AE17+TotalNaturalFlow!AD17 -> 1,523,571
A18: 1906-10-31 | B18: =InterveningNaturalFlow!B18 -> 108,379 | C18: =InterveningNaturalFlow!C18+TotalNaturalFlow!B18 -> 179,585 | D18: =InterveningNaturalFlow!D18 -> 8,766 | E18: =InterveningNaturalFlow!E18+TotalNaturalFlow!D18 -> 51,000 | F18: =InterveningNaturalFlow!F18+TotalNaturalFlow!E18 -> 55,600 | G18: =InterveningNaturalFlow!G18+TotalNaturalFlow!F18 -> 105,085 | H18: =InterveningNaturalFlow!H18 -> 22,429 | I18: =InterveningNaturalFlow!I18+TotalNaturalFlow!H18+TotalNaturalFlow!G18+TotalNaturalFlow!C18 -> 314,696 | J18: =InterveningNaturalFlow!J18 -> 37,400 | K18: =InterveningNaturalFlow!K18+TotalNaturalFlow!J18 -> 43,109 | L18: =InterveningNaturalFlow!L18+TotalNaturalFlow!K18 -> 49,203 | M18: =InterveningNaturalFlow!M18 -> 37,298 | N18: =InterveningNaturalFlow!N18 -> 18,071 | O18: =InterveningNaturalFlow!O18 -> 35,897 | P18: =InterveningNaturalFlow!P18 -> 29,477 | Q18: =InterveningNaturalFlow!Q18+TotalNaturalFlow!P18+TotalNaturalFlow!O18+TotalNaturalFlow!N18+TotalNaturalFlow!M18+TotalNaturalFlow!L18 -> 190,247 | R18: =InterveningNaturalFlow!R18 -> 4,239 | S18: =InterveningNaturalFlow!S18 -> 37,553 | T18: =InterveningNaturalFlow!T18+TotalNaturalFlow!S18 -> 92,835 | U18: =InterveningNaturalFlow!U18+TotalNaturalFlow!T18+TotalNaturalFlow!R18+TotalNaturalFlow!Q18+TotalNaturalFlow!I18 -> 739,807 | W18: =InterveningNaturalFlow!W18 -> 1,352 | X18: =InterveningNaturalFlow!X18 -> 1,443 | Y18: =InterveningNaturalFlow!Y18+TotalNaturalFlow!X18+TotalNaturalFlow!W18+TotalNaturalFlow!U18 -> 753,994 | Z18: =InterveningNaturalFlow!Z18 -> 5,188 | AA18: =InterveningNaturalFlow!AA18+TotalNaturalFlow!Z18+Y18 -> 654,521 | AB18: =InterveningNaturalFlow!AB18+TotalNaturalFlow!AA18 -> 681,791 | AC18: =InterveningNaturalFlow!AC18 -> 227 | AD18: =InterveningNaturalFlow!AD18+TotalNaturalFlow!AC18+AB18 -> 719,622 | AE18: =InterveningNaturalFlow!AE18+TotalNaturalFlow!AD18 -> 682,578
A19: 1906-11-30 | B19: =InterveningNaturalFlow!B19 -> 64,733 | C19: =InterveningNaturalFlow!C19+TotalNaturalFlow!B19 -> 101,111 | D19: =InterveningNaturalFlow!D19 -> 4,863 | E19: =InterveningNaturalFlow!E19+TotalNaturalFlow!D19 -> 32,000 | F19: =InterveningNaturalFlow!F19+TotalNaturalFlow!E19 -> 36,900 | G19: =InterveningNaturalFlow!G19+TotalNaturalFlow!F19 -> 67,718 | H19: =InterveningNaturalFlow!H19 -> 5,354 | I19: =InterveningNaturalFlow!I19+TotalNaturalFlow!H19+TotalNaturalFlow!G19+TotalNaturalFlow!C19 -> 186,010 | J19: =InterveningNaturalFlow!J19 -> 40,000 | K19: =InterveningNaturalFlow!K19+TotalNaturalFlow!J19 -> 47,102 | L19: =InterveningNaturalFlow!L19+TotalNaturalFlow!K19 -> 44,439 | M19: =InterveningNaturalFlow!M19 -> 32,195 | N19: =InterveningNaturalFlow!N19 -> 13,263 | O19: =InterveningNaturalFlow!O19 -> 38,722 | P19: =InterveningNaturalFlow!P19 -> 30,569 | Q19: =InterveningNaturalFlow!Q19+TotalNaturalFlow!P19+TotalNaturalFlow!O19+TotalNaturalFlow!N19+TotalNaturalFlow!M19+TotalNaturalFlow!L19 -> 193,863 | R19: =InterveningNaturalFlow!R19 -> 6,421 | S19: =InterveningNaturalFlow!S19 -> 21,532 | T19: =InterveningNaturalFlow!T19+TotalNaturalFlow!S19 -> 44,287 | U19: =InterveningNaturalFlow!U19+TotalNaturalFlow!T19+TotalNaturalFlow!R19+TotalNaturalFlow!Q19+TotalNaturalFlow!I19 -> 503,006 | W19: =InterveningNaturalFlow!W19 -> 1,016 | X19: =InterveningNaturalFlow!X19 -> 8,051 | Y19: =InterveningNaturalFlow!Y19+TotalNaturalFlow!X19+TotalNaturalFlow!W19+TotalNaturalFlow!U19 -> 542,888 | Z19: =InterveningNaturalFlow!Z19 -> 6,739 | AA19: =InterveningNaturalFlow!AA19+TotalNaturalFlow!Z19+Y19 -> 526,763 | AB19: =InterveningNaturalFlow!AB19+TotalNaturalFlow!AA19 -> 531,279 | AC19: =InterveningNaturalFlow!AC19 -> 243 | AD19: =InterveningNaturalFlow!AD19+TotalNaturalFlow!AC19+AB19 -> 526,498 | AE19: =InterveningNaturalFlow!AE19+TotalNaturalFlow!AD19 -> 507,441
A20: 1906-12-31 | B20: =InterveningNaturalFlow!B20 -> 49,279 | C20: =InterveningNaturalFlow!C20+TotalNaturalFlow!B20 -> 88,086 | D20: =InterveningNaturalFlow!D20 -> 5,813 | E20: =InterveningNaturalFlow!E20+TotalNaturalFlow!D20 -> 27,000 | F20: =InterveningNaturalFlow!F20+TotalNaturalFlow!E20 -> 29,200 | G20: =InterveningNaturalFlow!G20+TotalNaturalFlow!F20 -> 46,429 | H20: =InterveningNaturalFlow!H20 -> 2,884 | I20: =InterveningNaturalFlow!I20+TotalNaturalFlow!H20+TotalNaturalFlow!G20+TotalNaturalFlow!C20 -> 141,620 | J20: =InterveningNaturalFlow!J20 -> 31,000 | K20: =InterveningNaturalFlow!K20+TotalNaturalFlow!J20 -> 39,291 | L20: =InterveningNaturalFlow!L20+TotalNaturalFlow!K20 -> 45,949 | M20: =InterveningNaturalFlow!M20 -> 24,881 | N20: =InterveningNaturalFlow!N20 -> 11,134 | O20: =InterveningNaturalFlow!O20 -> 34,315 | P20: =InterveningNaturalFlow!P20 -> 27,086 | Q20: =InterveningNaturalFlow!Q20+TotalNaturalFlow!P20+TotalNaturalFlow!O20+TotalNaturalFlow!N20+TotalNaturalFlow!M20+TotalNaturalFlow!L20 -> 149,395 | R20: =InterveningNaturalFlow!R20 -> 2,078 | S20: =InterveningNaturalFlow!S20 -> 14,707 | T20: =InterveningNaturalFlow!T20+TotalNaturalFlow!S20 -> 30,505 | U20: =InterveningNaturalFlow!U20+TotalNaturalFlow!T20+TotalNaturalFlow!R20+TotalNaturalFlow!Q20+TotalNaturalFlow!I20 -> 353,312 | W20: =InterveningNaturalFlow!W20 -> 783 | X20: =InterveningNaturalFlow!X20 -> 12 | Y20: =InterveningNaturalFlow!Y20+TotalNaturalFlow!X20+TotalNaturalFlow!W20+TotalNaturalFlow!U20 -> 392,112 | Z20: =InterveningNaturalFlow!Z20 -> 10,217 | AA20: =InterveningNaturalFlow!AA20+TotalNaturalFlow!Z20+Y20 -> 414,043 | AB20: =InterveningNaturalFlow!AB20+TotalNaturalFlow!AA20 -> 422,156 | AC20: =InterveningNaturalFlow!AC20 -> 570 | AD20: =InterveningNaturalFlow!AD20+TotalNaturalFlow!AC20+AB20 -> 424,320 | AE20: =InterveningNaturalFlow!AE20+TotalNaturalFlow!AD20 -> 424,808
A21: 1907-01-31 | B21: =InterveningNaturalFlow!B21 -> 42,194 | C21: =InterveningNaturalFlow!C21+TotalNaturalFlow!B21 -> 72,748 | D21: =InterveningNaturalFlow!D21 -> 4,338 | E21: =InterveningNaturalFlow!E21+TotalNaturalFlow!D21 -> 26,000 | F21: =InterveningNaturalFlow!F21+TotalNaturalFlow!E21 -> 28,900 | G21: =InterveningNaturalFlow!G21+TotalNaturalFlow!F21 -> 37,201 | H21: =InterveningNaturalFlow!H21 -> 3,073 | I21: =InterveningNaturalFlow!I21+TotalNaturalFlow!H21+TotalNaturalFlow!G21+TotalNaturalFlow!C21 -> 111,660 | J21: =InterveningNaturalFlow!J21 -> 33,000 | K21: =InterveningNaturalFlow!K21+TotalNaturalFlow!J21 -> 38,846 | L21: =InterveningNaturalFlow!L21+TotalNaturalFlow!K21 -> 58,879 | M21: =InterveningNaturalFlow!M21 -> 19,402 | N21: =InterveningNaturalFlow!N21 -> 10,984 | O21: =InterveningNaturalFlow!O21 -> 34,968 | P21: =InterveningNaturalFlow!P21 -> 17,687 | Q21: =InterveningNaturalFlow!Q21+TotalNaturalFlow!P21+TotalNaturalFlow!O21+TotalNaturalFlow!N21+TotalNaturalFlow!M21+TotalNaturalFlow!L21 -> 150,030 | R21: =InterveningNaturalFlow!R21 -> 2,764 | S21: =InterveningNaturalFlow!S21 -> 8,101 | T21: =InterveningNaturalFlow!T21+TotalNaturalFlow!S21 -> 25,846 | U21: =InterveningNaturalFlow!U21+TotalNaturalFlow!T21+TotalNaturalFlow!R21+TotalNaturalFlow!Q21+TotalNaturalFlow!I21 -> 356,760 | W21: =InterveningNaturalFlow!W21 -> 1,026 | X21: =InterveningNaturalFlow!X21 -> 288 | Y21: =InterveningNaturalFlow!Y21+TotalNaturalFlow!X21+TotalNaturalFlow!W21+TotalNaturalFlow!U21 -> 385,594 | Z21: =InterveningNaturalFlow!Z21 -> 11,754 | AA21: =InterveningNaturalFlow!AA21+TotalNaturalFlow!Z21+Y21 -> 457,326 | AB21: =InterveningNaturalFlow!AB21+TotalNaturalFlow!AA21 -> 457,923 | AC21: =InterveningNaturalFlow!AC21 -> 473 | AD21: =InterveningNaturalFlow!AD21+TotalNaturalFlow!AC21+AB21 -> 444,302 | AE21: =InterveningNaturalFlow!AE21+TotalNaturalFlow!AD21 -> 421,167
A22: 1907-02-28 | B22: =InterveningNaturalFlow!B22 -> 50,071 | C22: =InterveningNaturalFlow!C22+TotalNaturalFlow!B22 -> 78,026 | D22: =InterveningNaturalFlow!D22 -> 2,989 | E22: =InterveningNaturalFlow!E22+TotalNaturalFlow!D22 -> 21,000 | F22: =InterveningNaturalFlow!F22+TotalNaturalFlow!E22 -> 25,500 | G22: =InterveningNaturalFlow!G22+TotalNaturalFlow!F22 -> 46,079 | H22: =InterveningNaturalFlow!H22 -> 6,255 | I22: =InterveningNaturalFlow!I22+TotalNaturalFlow!H22+TotalNaturalFlow!G22+TotalNaturalFlow!C22 -> 132,510 | J22: =InterveningNaturalFlow!J22 -> 42,000 | K22: =InterveningNaturalFlow!K22+TotalNaturalFlow!J22 -> 46,260 | L22: =InterveningNaturalFlow!L22+TotalNaturalFlow!K22 -> 72,457 | M22: =InterveningNaturalFlow!M22 -> 25,734 | N22: =InterveningNaturalFlow!N22 -> 20,750 | O22: =InterveningNaturalFlow!O22 -> 48,963 | P22: =InterveningNaturalFlow!P22 -> 29,196 | Q22: =InterveningNaturalFlow!Q22+TotalNaturalFlow!P22+TotalNaturalFlow!O22+TotalNaturalFlow!N22+TotalNaturalFlow!M22+TotalNaturalFlow!L22 -> 210,704 | R22: =InterveningNaturalFlow!R22 -> 3,939 | S22: =InterveningNaturalFlow!S22 -> 11,830 | T22: =InterveningNaturalFlow!T22+TotalNaturalFlow!S22 -> 27,514 | U22: =InterveningNaturalFlow!U22+TotalNaturalFlow!T22+TotalNaturalFlow!R22+TotalNaturalFlow!Q22+TotalNaturalFlow!I22 -> 377,349 | W22: =InterveningNaturalFlow!W22 -> 1,529 | X22: =InterveningNaturalFlow!X22 -> 2,776 | Y22: =InterveningNaturalFlow!Y22+TotalNaturalFlow!X22+TotalNaturalFlow!W22+TotalNaturalFlow!U22 -> 400,621 | Z22: =InterveningNaturalFlow!Z22 -> 15,078 | AA22: =InterveningNaturalFlow!AA22+TotalNaturalFlow!Z22+Y22 -> 389,994 | AB22: =InterveningNaturalFlow!AB22+TotalNaturalFlow!AA22 -> 391,921 | AC22: =InterveningNaturalFlow!AC22 -> 7,579 | AD22: =InterveningNaturalFlow!AD22+TotalNaturalFlow!AC22+AB22 -> 379,401 | AE22: =InterveningNaturalFlow!AE22+TotalNaturalFlow!AD22 -> 403,158
A23: 1907-03-31 | B23: =InterveningNaturalFlow!B23 -> 96,240 | C23: =InterveningNaturalFlow!C23+TotalNaturalFlow!B23 -> 139,232 | D23: =InterveningNaturalFlow!D23 -> 3,609 | E23: =InterveningNaturalFlow!E23+TotalNaturalFlow!D23 -> 51,000 | F23: =InterveningNaturalFlow!F23+TotalNaturalFlow!E23 -> 60,900 | G23: =InterveningNaturalFlow!G23+TotalNaturalFlow!F23 -> 87,800 | H23: =InterveningNaturalFlow!H23 -> 22,834 | I23: =InterveningNaturalFlow!I23+TotalNaturalFlow!H23+TotalNaturalFlow!G23+TotalNaturalFlow!C23 -> 255,610 | J23: =InterveningNaturalFlow!J23 -> 75,000 | K23: =InterveningNaturalFlow!K23+TotalNaturalFlow!J23 -> 92,609 | L23: =InterveningNaturalFlow!L23+TotalNaturalFlow!K23 -> 196,583 | M23: =InterveningNaturalFlow!M23 -> 73,995 | N23: =InterveningNaturalFlow!N23 -> 37,306 | O23: =InterveningNaturalFlow!O23 -> 47,342 | P23: =InterveningNaturalFlow!P23 -> 42,326 | Q23: =InterveningNaturalFlow!Q23+TotalNaturalFlow!P23+TotalNaturalFlow!O23+TotalNaturalFlow!N23+TotalNaturalFlow!M23+TotalNaturalFlow!L23 -> 415,458 | R23: =InterveningNaturalFlow!R23 -> 6,019 | S23: =InterveningNaturalFlow!S23 -> 30,445 | T23: =InterveningNaturalFlow!T23+TotalNaturalFlow!S23 -> 56,727 | U23: =InterveningNaturalFlow!U23+TotalNaturalFlow!T23+TotalNaturalFlow!R23+TotalNaturalFlow!Q23+TotalNaturalFlow!I23 -> 789,130 | W23: =InterveningNaturalFlow!W23 -> 1,647 | X23: =InterveningNaturalFlow!X23 -> 186,825 | Y23: =InterveningNaturalFlow!Y23+TotalNaturalFlow!X23+TotalNaturalFlow!W23+TotalNaturalFlow!U23 -> 994,073 | Z23: =InterveningNaturalFlow!Z23 -> 14,116 | AA23: =InterveningNaturalFlow!AA23+TotalNaturalFlow!Z23+Y23 -> 1,058,419 | AB23: =InterveningNaturalFlow!AB23+TotalNaturalFlow!AA23 -> 1,055,774 | AC23: =InterveningNaturalFlow!AC23 -> 42,454 | AD23: =InterveningNaturalFlow!AD23+TotalNaturalFlow!AC23+AB23 -> 1,088,376 | AE23: =InterveningNaturalFlow!AE23+TotalNaturalFlow!AD23 -> 1,105,283
A24: 1907-04-30 | B24: =InterveningNaturalFlow!B24 -> 196,106 | C24: =InterveningNaturalFlow!C24+TotalNaturalFlow!B24 -> 275,589 | D24: =InterveningNaturalFlow!D24 -> 13,100 | E24: =InterveningNaturalFlow!E24+TotalNaturalFlow!D24 -> 119,000 | F24: =InterveningNaturalFlow!F24+TotalNaturalFlow!E24 -> 149,000 | G24: =InterveningNaturalFlow!G24+TotalNaturalFlow!F24 -> 195,920 | H24: =InterveningNaturalFlow!H24 -> 76,103 | I24: =InterveningNaturalFlow!I24+TotalNaturalFlow!H24+TotalNaturalFlow!G24+TotalNaturalFlow!C24 -> 532,736 | J24: =InterveningNaturalFlow!J24 -> 180,000 | K24: =InterveningNaturalFlow!K24+TotalNaturalFlow!J24 -> 202,985 | L24: =InterveningNaturalFlow!L24+TotalNaturalFlow!K24 -> 351,613 | M24: =InterveningNaturalFlow!M24 -> 256,164 | N24: =InterveningNaturalFlow!N24 -> 79,940 | O24: =InterveningNaturalFlow!O24 -> 92,401 | P24: =InterveningNaturalFlow!P24 -> 62,492 | Q24: =InterveningNaturalFlow!Q24+TotalNaturalFlow!P24+TotalNaturalFlow!O24+TotalNaturalFlow!N24+TotalNaturalFlow!M24+TotalNaturalFlow!L24 -> 833,506 | R24: =InterveningNaturalFlow!R24 -> 10,036 | S24: =InterveningNaturalFlow!S24 -> 73,753 | T24: =InterveningNaturalFlow!T24+TotalNaturalFlow!S24 -> 122,209 | U24: =InterveningNaturalFlow!U24+TotalNaturalFlow!T24+TotalNaturalFlow!R24+TotalNaturalFlow!Q24+TotalNaturalFlow!I24 -> 1,465,838 | W24: =InterveningNaturalFlow!W24 -> 808 | X24: =InterveningNaturalFlow!X24 -> 173,782 | Y24: =InterveningNaturalFlow!Y24+TotalNaturalFlow!X24+TotalNaturalFlow!W24+TotalNaturalFlow!U24 -> 1,652,802 | Z24: =InterveningNaturalFlow!Z24 -> 12,400 | AA24: =InterveningNaturalFlow!AA24+TotalNaturalFlow!Z24+Y24 -> 1,678,217 | AB24: =InterveningNaturalFlow!AB24+TotalNaturalFlow!AA24 -> 1,668,216 | AC24: =InterveningNaturalFlow!AC24 -> 29,520 | AD24: =InterveningNaturalFlow!AD24+TotalNaturalFlow!AC24+AB24 -> 1,733,516 | AE24: =InterveningNaturalFlow!AE24+TotalNaturalFlow!AD24 -> 1,709,952
A25: 1907-05-31 | B25: =InterveningNaturalFlow!B25 -> 433,066 | C25: =InterveningNaturalFlow!C25+TotalNaturalFlow!B25 -> 602,312 | D25: =InterveningNaturalFlow!D25 -> 22,232 | E25: =InterveningNaturalFlow!E25+TotalNaturalFlow!D25 -> 222,010 | F25: =InterveningNaturalFlow!F25+TotalNaturalFlow!E25 -> 271,010 | G25: =InterveningNaturalFlow!G25+TotalNaturalFlow!F25 -> 433,765 | H25: =InterveningNaturalFlow!H25 -> 148,870 | I25: =InterveningNaturalFlow!I25+TotalNaturalFlow!H25+TotalNaturalFlow!G25+TotalNaturalFlow!C25 -> 1,155,837 | J25: =InterveningNaturalFlow!J25 -> 398,000 | K25: =InterveningNaturalFlow!K25+TotalNaturalFlow!J25 -> 394,594 | L25: =InterveningNaturalFlow!L25+TotalNaturalFlow!K25 -> 604,293 | M25: =InterveningNaturalFlow!M25 -> 481,820 | N25: =InterveningNaturalFlow!N25 -> 185,283 | O25: =InterveningNaturalFlow!O25 -> 170,954 | P25: =InterveningNaturalFlow!P25 -> 105,193 | Q25: =InterveningNaturalFlow!Q25+TotalNaturalFlow!P25+TotalNaturalFlow!O25+TotalNaturalFlow!N25+TotalNaturalFlow!M25+TotalNaturalFlow!L25 -> 1,529,429 | R25: =InterveningNaturalFlow!R25 -> 38,518 | S25: =InterveningNaturalFlow!S25 -> 161,990 | T25: =InterveningNaturalFlow!T25+TotalNaturalFlow!S25 -> 284,171 | U25: =InterveningNaturalFlow!U25+TotalNaturalFlow!T25+TotalNaturalFlow!R25+TotalNaturalFlow!Q25+TotalNaturalFlow!I25 -> 2,702,179 | W25: =InterveningNaturalFlow!W25 -> 485 | X25: =InterveningNaturalFlow!X25 -> 0 | Y25: =InterveningNaturalFlow!Y25+TotalNaturalFlow!X25+TotalNaturalFlow!W25+TotalNaturalFlow!U25 -> 2,677,834 | Z25: =InterveningNaturalFlow!Z25 -> 13,895 | AA25: =InterveningNaturalFlow!AA25+TotalNaturalFlow!Z25+Y25 -> 2,714,813 | AB25: =InterveningNaturalFlow!AB25+TotalNaturalFlow!AA25 -> 2,699,437 | AC25: =InterveningNaturalFlow!AC25 -> 0 | AD25: =InterveningNaturalFlow!AD25+TotalNaturalFlow!AC25+AB25 -> 2,716,301 | AE25: =InterveningNaturalFlow!AE25+TotalNaturalFlow!AD25 -> 2,673,500
A26: 1907-06-30 | B26: =InterveningNaturalFlow!B26 -> 1,001,772 | C26: =InterveningNaturalFlow!C26+TotalNaturalFlow!B26 -> 1,524,994 | D26: =InterveningNaturalFlow!D26 -> 74,941 | E26: =InterveningNaturalFlow!E26+TotalNaturalFlow!D26 -> 533,828 | F26: =InterveningNaturalFlow!F26+TotalNaturalFlow!E26 -> 628,828 | G26: =InterveningNaturalFlow!G26+TotalNaturalFlow!F26 -> 938,940 | H26: =InterveningNaturalFlow!H26 -> 195,277 | I26: =InterveningNaturalFlow!I26+TotalNaturalFlow!H26+TotalNaturalFlow!G26+TotalNaturalFlow!C26 -> 2,705,250 | J26: =InterveningNaturalFlow!J26 -> 507,600 | K26: =InterveningNaturalFlow!K26+TotalNaturalFlow!J26 -> 534,845 | L26: =InterveningNaturalFlow!L26+TotalNaturalFlow!K26 -> 834,114 | M26: =InterveningNaturalFlow!M26 -> 599,420 | N26: =InterveningNaturalFlow!N26 -> 175,690 | O26: =InterveningNaturalFlow!O26 -> 466,440 | P26: =InterveningNaturalFlow!P26 -> 205,098 | Q26: =InterveningNaturalFlow!Q26+TotalNaturalFlow!P26+TotalNaturalFlow!O26+TotalNaturalFlow!N26+TotalNaturalFlow!M26+TotalNaturalFlow!L26 -> 2,379,769 | R26: =InterveningNaturalFlow!R26 -> 115,164 | S26: =InterveningNaturalFlow!S26 -> 359,413 | T26: =InterveningNaturalFlow!T26+TotalNaturalFlow!S26 -> 618,365 | U26: =InterveningNaturalFlow!U26+TotalNaturalFlow!T26+TotalNaturalFlow!R26+TotalNaturalFlow!Q26+TotalNaturalFlow!I26 -> 5,967,232 | W26: =InterveningNaturalFlow!W26 -> 435 | X26: =InterveningNaturalFlow!X26 -> 0 | Y26: =InterveningNaturalFlow!Y26+TotalNaturalFlow!X26+TotalNaturalFlow!W26+TotalNaturalFlow!U26 -> 5,983,472 | Z26: =InterveningNaturalFlow!Z26 -> 5,507 | AA26: =InterveningNaturalFlow!AA26+TotalNaturalFlow!Z26+Y26 -> 6,014,580 | AB26: =InterveningNaturalFlow!AB26+TotalNaturalFlow!AA26 -> 6,028,300 | AC26: =InterveningNaturalFlow!AC26 -> 0 | AD26: =InterveningNaturalFlow!AD26+TotalNaturalFlow!AC26+AB26 -> 6,005,971 | AE26: =InterveningNaturalFlow!AE26+TotalNaturalFlow!AD26 -> 5,948,317
A27: 1907-07-31 | B27: =InterveningNaturalFlow!B27 -> 718,018 | C27: =InterveningNaturalFlow!C27+TotalNaturalFlow!B27 -> 1,200,439 | D27: =InterveningNaturalFlow!D27 -> 54,853 | E27: =InterveningNaturalFlow!E27+TotalNaturalFlow!D27 -> 391,282 | F27: =InterveningNaturalFlow!F27+TotalNaturalFlow!E27 -> 428,282 | G27: =InterveningNaturalFlow!G27+TotalNaturalFlow!F27 -> 598,884 | H27: =InterveningNaturalFlow!H27 -> 108,749 | I27: =InterveningNaturalFlow!I27+TotalNaturalFlow!H27+TotalNaturalFlow!G27+TotalNaturalFlow!C27 -> 2,001,681 | J27: =InterveningNaturalFlow!J27 -> 430,900 | K27: =InterveningNaturalFlow!K27+TotalNaturalFlow!J27 -> 464,484 | L27: =InterveningNaturalFlow!L27+TotalNaturalFlow!K27 -> 755,305 | M27: =InterveningNaturalFlow!M27 -> 325,871 | N27: =InterveningNaturalFlow!N27 -> 156,412 | O27: =InterveningNaturalFlow!O27 -> 422,804 | P27: =InterveningNaturalFlow!P27 -> 163,781 | Q27: =InterveningNaturalFlow!Q27+TotalNaturalFlow!P27+TotalNaturalFlow!O27+TotalNaturalFlow!N27+TotalNaturalFlow!M27+TotalNaturalFlow!L27 -> 2,118,458 | R27: =InterveningNaturalFlow!R27 -> 61,757 | S27: =InterveningNaturalFlow!S27 -> 277,620 | T27: =InterveningNaturalFlow!T27+TotalNaturalFlow!S27 -> 443,475 | U27: =InterveningNaturalFlow!U27+TotalNaturalFlow!T27+TotalNaturalFlow!R27+TotalNaturalFlow!Q27+TotalNaturalFlow!I27 -> 5,103,491 | W27: =InterveningNaturalFlow!W27 -> 1,234 | X27: =InterveningNaturalFlow!X27 -> 885 | Y27: =InterveningNaturalFlow!Y27+TotalNaturalFlow!X27+TotalNaturalFlow!W27+TotalNaturalFlow!U27 -> 5,158,966 | Z27: =InterveningNaturalFlow!Z27 -> 4,978 | AA27: =InterveningNaturalFlow!AA27+TotalNaturalFlow!Z27+Y27 -> 5,225,181 | AB27: =InterveningNaturalFlow!AB27+TotalNaturalFlow!AA27 -> 5,245,091 | AC27: =InterveningNaturalFlow!AC27 -> 6 | AD27: =InterveningNaturalFlow!AD27+TotalNaturalFlow!AC27+AB27 -> 5,258,066 | AE27: =InterveningNaturalFlow!AE27+TotalNaturalFlow!AD27 -> 5,246,564
A28: 1907-08-31 | B28: =InterveningNaturalFlow!B28 -> 229,194 | C28: =InterveningNaturalFlow!C28+TotalNaturalFlow!B28 -> 386,537 | D28: =InterveningNaturalFlow!D28 -> 18,224 | E28: =InterveningNaturalFlow!E28+TotalNaturalFlow!D28 -> 151,770 | F28: =InterveningNaturalFlow!F28+TotalNaturalFlow!E28 -> 161,770 | G28: =InterveningNaturalFlow!G28+TotalNaturalFlow!F28 -> 211,309 | H28: =InterveningNaturalFlow!H28 -> 47,215 | I28: =InterveningNaturalFlow!I28+TotalNaturalFlow!H28+TotalNaturalFlow!G28+TotalNaturalFlow!C28 -> 672,010 | J28: =InterveningNaturalFlow!J28 -> 177,600 | K28: =InterveningNaturalFlow!K28+TotalNaturalFlow!J28 -> 180,053 | L28: =InterveningNaturalFlow!L28+TotalNaturalFlow!K28 -> 259,612 | M28: =InterveningNaturalFlow!M28 -> 65,357 | N28: =InterveningNaturalFlow!N28 -> 91,072 | O28: =InterveningNaturalFlow!O28 -> 103,064 | P28: =InterveningNaturalFlow!P28 -> 77,496 | Q28: =InterveningNaturalFlow!Q28+TotalNaturalFlow!P28+TotalNaturalFlow!O28+TotalNaturalFlow!N28+TotalNaturalFlow!M28+TotalNaturalFlow!L28 -> 784,367 | R28: =InterveningNaturalFlow!R28 -> 19,757 | S28: =InterveningNaturalFlow!S28 -> 97,724 | T28: =InterveningNaturalFlow!T28+TotalNaturalFlow!S28 -> 226,409 | U28: =InterveningNaturalFlow!U28+TotalNaturalFlow!T28+TotalNaturalFlow!R28+TotalNaturalFlow!Q28+TotalNaturalFlow!I28 -> 1,920,787 | W28: =InterveningNaturalFlow!W28 -> 2,251 | X28: =InterveningNaturalFlow!X28 -> 38,762 | Y28: =InterveningNaturalFlow!Y28+TotalNaturalFlow!X28+TotalNaturalFlow!W28+TotalNaturalFlow!U28 -> 2,007,596 | Z28: =InterveningNaturalFlow!Z28 -> 6,317 | AA28: =InterveningNaturalFlow!AA28+TotalNaturalFlow!Z28+Y28 -> 2,040,985 | AB28: =InterveningNaturalFlow!AB28+TotalNaturalFlow!AA28 -> 2,014,626 | AC28: =InterveningNaturalFlow!AC28 -> 111 | AD28: =InterveningNaturalFlow!AD28+TotalNaturalFlow!AC28+AB28 -> 2,011,898 | AE28: =InterveningNaturalFlow!AE28+TotalNaturalFlow!AD28 -> 1,979,065
A29: 1907-09-30 | B29: =InterveningNaturalFlow!B29 -> 116,369 | C29: =InterveningNaturalFlow!C29+TotalNaturalFlow!B29 -> 191,365 | D29: =InterveningNaturalFlow!D29 -> 9,575 | E29: =InterveningNaturalFlow!E29+TotalNaturalFlow!D29 -> 80,238 | F29: =InterveningNaturalFlow!F29+TotalNaturalFlow!E29 -> 84,238 | G29: =InterveningNaturalFlow!G29+TotalNaturalFlow!F29 -> 119,776 | H29: =InterveningNaturalFlow!H29 -> 30,176 | I29: =InterveningNaturalFlow!I29+TotalNaturalFlow!H29+TotalNaturalFlow!G29+TotalNaturalFlow!C29 -> 342,011 | J29: =InterveningNaturalFlow!J29 -> 54,500 | K29: =InterveningNaturalFlow!K29+TotalNaturalFlow!J29 -> 61,665 | L29: =InterveningNaturalFlow!L29+TotalNaturalFlow!K29 -> 88,400 | M29: =InterveningNaturalFlow!M29 -> 31,784 | N29: =InterveningNaturalFlow!N29 -> 37,632 | O29: =InterveningNaturalFlow!O29 -> 70,122 | P29: =InterveningNaturalFlow!P29 -> 42,707 | Q29: =InterveningNaturalFlow!Q29+TotalNaturalFlow!P29+TotalNaturalFlow!O29+TotalNaturalFlow!N29+TotalNaturalFlow!M29+TotalNaturalFlow!L29 -> 342,077 | R29: =InterveningNaturalFlow!R29 -> 6,992 | S29: =InterveningNaturalFlow!S29 -> 49,311 | T29: =InterveningNaturalFlow!T29+TotalNaturalFlow!S29 -> 122,673 | U29: =InterveningNaturalFlow!U29+TotalNaturalFlow!T29+TotalNaturalFlow!R29+TotalNaturalFlow!Q29+TotalNaturalFlow!I29 -> 955,414 | W29: =InterveningNaturalFlow!W29 -> 1,430 | X29: =InterveningNaturalFlow!X29 -> 28,827 | Y29: =InterveningNaturalFlow!Y29+TotalNaturalFlow!X29+TotalNaturalFlow!W29+TotalNaturalFlow!U29 -> 1,022,256 | Z29: =InterveningNaturalFlow!Z29 -> 6,899 | AA29: =InterveningNaturalFlow!AA29+TotalNaturalFlow!Z29+Y29 -> 975,835 | AB29: =InterveningNaturalFlow!AB29+TotalNaturalFlow!AA29 -> 969,156 | AC29: =InterveningNaturalFlow!AC29 -> 233 | AD29: =InterveningNaturalFlow!AD29+TotalNaturalFlow!AC29+AB29 -> 981,632 | AE29: =InterveningNaturalFlow!AE29+TotalNaturalFlow!AD29 -> 929,928
A30: 1907-10-31 | B30: =InterveningNaturalFlow!B30 -> 92,511 | C30: =InterveningNaturalFlow!C30+TotalNaturalFlow!B30 -> 156,771 | D30: =InterveningNaturalFlow!D30 -> 8,749 | E30: =InterveningNaturalFlow!E30+TotalNaturalFlow!D30 -> 55,200 | F30: =InterveningNaturalFlow!F30+TotalNaturalFlow!E30 -> 60,800 | G30: =InterveningNaturalFlow!G30+TotalNaturalFlow!F30 -> 74,034 | H30: =InterveningNaturalFlow!H30 -> 16,771 | I30: =InterveningNaturalFlow!I30+TotalNaturalFlow!H30+TotalNaturalFlow!G30+TotalNaturalFlow!C30 -> 254,333 | J30: =InterveningNaturalFlow!J30 -> 44,300 | K30: =InterveningNaturalFlow!K30+TotalNaturalFlow!J30 -> 49,252 | L30: =InterveningNaturalFlow!L30+TotalNaturalFlow!K30 -> 56,707 | M30: =InterveningNaturalFlow!M30 -> 33,334 | N30: =InterveningNaturalFlow!N30 -> 11,660 | O30: =InterveningNaturalFlow!O30 -> 48,834 | P30: =InterveningNaturalFlow!P30 -> 33,406 | Q30: =InterveningNaturalFlow!Q30+TotalNaturalFlow!P30+TotalNaturalFlow!O30+TotalNaturalFlow!N30+TotalNaturalFlow!M30+TotalNaturalFlow!L30 -> 232,475 | R30: =InterveningNaturalFlow!R30 -> 4,695 | S30: =InterveningNaturalFlow!S30 -> 47,900 | T30: =InterveningNaturalFlow!T30+TotalNaturalFlow!S30 -> 97,414 | U30: =InterveningNaturalFlow!U30+TotalNaturalFlow!T30+TotalNaturalFlow!R30+TotalNaturalFlow!Q30+TotalNaturalFlow!I30 -> 608,812 | W30: =InterveningNaturalFlow!W30 -> 2,680 | X30: =InterveningNaturalFlow!X30 -> 0 | Y30: =InterveningNaturalFlow!Y30+TotalNaturalFlow!X30+TotalNaturalFlow!W30+TotalNaturalFlow!U30 -> 612,373 | Z30: =InterveningNaturalFlow!Z30 -> 5,654 | AA30: =InterveningNaturalFlow!AA30+TotalNaturalFlow!Z30+Y30 -> 604,589 | AB30: =InterveningNaturalFlow!AB30+TotalNaturalFlow!AA30 -> 619,207 | AC30: =InterveningNaturalFlow!AC30 -> 194 | AD30: =InterveningNaturalFlow!AD30+TotalNaturalFlow!AC30+AB30 -> 600,776 | AE30: =InterveningNaturalFlow!AE30+TotalNaturalFlow!AD30 -> 688,610
A31: 1907-11-30 | B31: =InterveningNaturalFlow!B31 -> 59,764 | C31: =InterveningNaturalFlow!C31+TotalNaturalFlow!B31 -> 88,379 | D31: =InterveningNaturalFlow!D31 -> 5,481 | E31: =InterveningNaturalFlow!E31+TotalNaturalFlow!D31 -> 33,000 | F31: =InterveningNaturalFlow!F31+TotalNaturalFlow!E31 -> 38,100 | G31: =InterveningNaturalFlow!G31+TotalNaturalFlow!F31 -> 62,014 | H31: =InterveningNaturalFlow!H31 -> 225 | I31: =InterveningNaturalFlow!I31+TotalNaturalFlow!H31+TotalNaturalFlow!G31+TotalNaturalFlow!C31 -> 158,260 | J31: =InterveningNaturalFlow!J31 -> 34,000 | K31: =InterveningNaturalFlow!K31+TotalNaturalFlow!J31 -> 34,928 | L31: =InterveningNaturalFlow!L31+TotalNaturalFlow!K31 -> 33,743 | M31: =InterveningNaturalFlow!M31 -> 20,695 | N31: =InterveningNaturalFlow!N31 -> 8,080 | O31: =InterveningNaturalFlow!O31 -> 34,542 | P31: =InterveningNaturalFlow!P31 -> 27,858 | Q31: =InterveningNaturalFlow!Q31+TotalNaturalFlow!P31+TotalNaturalFlow!O31+TotalNaturalFlow!N31+TotalNaturalFlow!M31+TotalNaturalFlow!L31 -> 152,609 | R31: =InterveningNaturalFlow!R31 -> 4,703 | S31: =InterveningNaturalFlow!S31 -> 33,100 | T31: =InterveningNaturalFlow!T31+TotalNaturalFlow!S31 -> 50,191 | U31: =InterveningNaturalFlow!U31+TotalNaturalFlow!T31+TotalNaturalFlow!R31+TotalNaturalFlow!Q31+TotalNaturalFlow!I31 -> 377,467 | W31: =InterveningNaturalFlow!W31 -> 2,535 | X31: =InterveningNaturalFlow!X31 -> 0 | Y31: =InterveningNaturalFlow!Y31+TotalNaturalFlow!X31+TotalNaturalFlow!W31+TotalNaturalFlow!U31 -> 386,102 | Z31: =InterveningNaturalFlow!Z31 -> 7,253 | AA31: =InterveningNaturalFlow!AA31+TotalNaturalFlow!Z31+Y31 -> 402,861 | AB31: =InterveningNaturalFlow!AB31+TotalNaturalFlow!AA31 -> 423,180 | AC31: =InterveningNaturalFlow!AC31 -> 477 | AD31: =InterveningNaturalFlow!AD31+TotalNaturalFlow!AC31+AB31 -> 411,829 | AE31: =InterveningNaturalFlow!AE31+TotalNaturalFlow!AD31 -> 444,573
A32: 1907-12-31 | B32: =InterveningNaturalFlow!B32 -> 46,132 | C32: =InterveningNaturalFlow!C32+TotalNaturalFlow!B32 -> 65,618 | D32: =InterveningNaturalFlow!D32 -> 5,584 | E32: =InterveningNaturalFlow!E32+TotalNaturalFlow!D32 -> 26,000 | F32: =InterveningNaturalFlow!F32+TotalNaturalFlow!E32 -> 27,700 | G32: =InterveningNaturalFlow!G32+TotalNaturalFlow!F32 -> 60,494 | H32: =InterveningNaturalFlow!H32 -> 4,066 | I32: =InterveningNaturalFlow!I32+TotalNaturalFlow!H32+TotalNaturalFlow!G32+TotalNaturalFlow!C32 -> 122,090 | J32: =InterveningNaturalFlow!J32 -> 17,000 | K32: =InterveningNaturalFlow!K32+TotalNaturalFlow!J32 -> 16,663 | L32: =InterveningNaturalFlow!L32+TotalNaturalFlow!K32 -> 27,031 | M32: =InterveningNaturalFlow!M32 -> 13,547 | N32: =InterveningNaturalFlow!N32 -> 3,629 | O32: =InterveningNaturalFlow!O32 -> 23,346 | P32: =InterveningNaturalFlow!P32 -> 24,621 | Q32: =InterveningNaturalFlow!Q32+TotalNaturalFlow!P32+TotalNaturalFlow!O32+TotalNaturalFlow!N32+TotalNaturalFlow!M32+TotalNaturalFlow!L32 -> 90,268 | R32: =InterveningNaturalFlow!R32 -> 2,357 | S32: =InterveningNaturalFlow!S32 -> 23,600 | T32: =InterveningNaturalFlow!T32+TotalNaturalFlow!S32 -> 39,561 | U32: =InterveningNaturalFlow!U32+TotalNaturalFlow!T32+TotalNaturalFlow!R32+TotalNaturalFlow!Q32+TotalNaturalFlow!I32 -> 268,130 | W32: =InterveningNaturalFlow!W32 -> 1,367 | X32: =InterveningNaturalFlow!X32 -> 0 | Y32: =InterveningNaturalFlow!Y32+TotalNaturalFlow!X32+TotalNaturalFlow!W32+TotalNaturalFlow!U32 -> 314,074 | Z32: =InterveningNaturalFlow!Z32 -> 11,478 | AA32: =InterveningNaturalFlow!AA32+TotalNaturalFlow!Z32+Y32 -> 365,433 | AB32: =InterveningNaturalFlow!AB32+TotalNaturalFlow!AA32 -> 367,721 | AC32: =InterveningNaturalFlow!AC32 -> 3,521 | AD32: =InterveningNaturalFlow!AD32+TotalNaturalFlow!AC32+AB32 -> 363,087 | AE32: =InterveningNaturalFlow!AE32+TotalNaturalFlow!AD32 -> 336,682
A33: 1908-01-31 | B33: =InterveningNaturalFlow!B33 -> 52,790 | C33: =InterveningNaturalFlow!C33+TotalNaturalFlow!B33 -> 90,959 | D33: =InterveningNaturalFlow!D33 -> 3,867 | E33: =InterveningNaturalFlow!E33+TotalNaturalFlow!D33 -> 25,000 | F33: =InterveningNaturalFlow!F33+TotalNaturalFlow!E33 -> 27,700 | G33: =InterveningNaturalFlow!G33+TotalNaturalFlow!F33 -> 59,220 | H33: =InterveningNaturalFlow!H33 -> 6,986 | I33: =InterveningNaturalFlow!I33+TotalNaturalFlow!H33+TotalNaturalFlow!G33+TotalNaturalFlow!C33 -> 163,180 | J33: =InterveningNaturalFlow!J33 -> 17,000 | K33: =InterveningNaturalFlow!K33+TotalNaturalFlow!J33 -> 17,322 | L33: =InterveningNaturalFlow!L33+TotalNaturalFlow!K33 -> 37,289 | M33: =InterveningNaturalFlow!M33 -> 11,910 | N33: =InterveningNaturalFlow!N33 -> 2,085 | O33: =InterveningNaturalFlow!O33 -> 17,604 | P33: =InterveningNaturalFlow!P33 -> 17,745 | Q33: =InterveningNaturalFlow!Q33+TotalNaturalFlow!P33+TotalNaturalFlow!O33+TotalNaturalFlow!N33+TotalNaturalFlow!M33+TotalNaturalFlow!L33 -> 79,935 | R33: =InterveningNaturalFlow!R33 -> 3,094 | S33: =InterveningNaturalFlow!S33 -> 25,300 | T33: =InterveningNaturalFlow!T33+TotalNaturalFlow!S33 -> 47,936 | U33: =InterveningNaturalFlow!U33+TotalNaturalFlow!T33+TotalNaturalFlow!R33+TotalNaturalFlow!Q33+TotalNaturalFlow!I33 -> 276,192 | W33: =InterveningNaturalFlow!W33 -> 1,238 | X33: =InterveningNaturalFlow!X33 -> 17,337 | Y33: =InterveningNaturalFlow!Y33+TotalNaturalFlow!X33+TotalNaturalFlow!W33+TotalNaturalFlow!U33 -> 329,707 | Z33: =InterveningNaturalFlow!Z33 -> 18,786 | AA33: =InterveningNaturalFlow!AA33+TotalNaturalFlow!Z33+Y33 -> 374,073 | AB33: =InterveningNaturalFlow!AB33+TotalNaturalFlow!AA33 -> 318,031 | AC33: =InterveningNaturalFlow!AC33 -> 6,002 | AD33: =InterveningNaturalFlow!AD33+TotalNaturalFlow!AC33+AB33 -> 306,299 | AE33: =InterveningNaturalFlow!AE33+TotalNaturalFlow!AD33 -> 263,922
A34: 1908-02-29 | B34: =InterveningNaturalFlow!B34 -> 40,479 | C34: =InterveningNaturalFlow!C34+TotalNaturalFlow!B34 -> 79,988 | D34: =InterveningNaturalFlow!D34 -> 4,084 | E34: =InterveningNaturalFlow!E34+TotalNaturalFlow!D34 -> 22,000 | F34: =InterveningNaturalFlow!F34+TotalNaturalFlow!E34 -> 25,900 | G34: =InterveningNaturalFlow!G34+TotalNaturalFlow!F34 -> 57,609 | H34: =InterveningNaturalFlow!H34 -> 10,053 | I34: =InterveningNaturalFlow!I34+TotalNaturalFlow!H34+TotalNaturalFlow!G34+TotalNaturalFlow!C34 -> 158,820 | J34: =InterveningNaturalFlow!J34 -> 18,000 | K34: =InterveningNaturalFlow!K34+TotalNaturalFlow!J34 -> 17,229 | L34: =InterveningNaturalFlow!L34+TotalNaturalFlow!K34 -> 44,419 | M34: =InterveningNaturalFlow!M34 -> 15,871 | N34: =InterveningNaturalFlow!N34 -> 1,218 | O34: =InterveningNaturalFlow!O34 -> 18,989 | P34: =InterveningNaturalFlow!P34 -> 13,997 | Q34: =InterveningNaturalFlow!Q34+TotalNaturalFlow!P34+TotalNaturalFlow!O34+TotalNaturalFlow!N34+TotalNaturalFlow!M34+TotalNaturalFlow!L34 -> 88,226 | R34: =InterveningNaturalFlow!R34 -> 3,215 | S34: =InterveningNaturalFlow!S34 -> 44,100 | T34: =InterveningNaturalFlow!T34+TotalNaturalFlow!S34 -> 92,972 | U34: =InterveningNaturalFlow!U34+TotalNaturalFlow!T34+TotalNaturalFlow!R34+TotalNaturalFlow!Q34+TotalNaturalFlow!I34 -> 379,543 | W34: =InterveningNaturalFlow!W34 -> 3,401 | X34: =InterveningNaturalFlow!X34 -> 10,173 | Y34: =InterveningNaturalFlow!Y34+TotalNaturalFlow!X34+TotalNaturalFlow!W34+TotalNaturalFlow!U34 -> 421,996 | Z34: =InterveningNaturalFlow!Z34 -> 16,172 | AA34: =InterveningNaturalFlow!AA34+TotalNaturalFlow!Z34+Y34 -> 499,173 | AB34: =InterveningNaturalFlow!AB34+TotalNaturalFlow!AA34 -> 459,190 | AC34: =InterveningNaturalFlow!AC34 -> 10,816 | AD34: =InterveningNaturalFlow!AD34+TotalNaturalFlow!AC34+AB34 -> 448,583 | AE34: =InterveningNaturalFlow!AE34+TotalNaturalFlow!AD34 -> 447,328
A35: 1908-03-31 | B35: =InterveningNaturalFlow!B35 -> 62,629 | C35: =InterveningNaturalFlow!C35+TotalNaturalFlow!B35 -> 113,071 | D35: =InterveningNaturalFlow!D35 -> 4,530 | E35: =InterveningNaturalFlow!E35+TotalNaturalFlow!D35 -> 36,000 | F35: =InterveningNaturalFlow!F35+TotalNaturalFlow!E35 -> 43,000 | G35: =InterveningNaturalFlow!G35+TotalNaturalFlow!F35 -> 91,303 | H35: =InterveningNaturalFlow!H35 -> 29,886 | I35: =InterveningNaturalFlow!I35+TotalNaturalFlow!H35+TotalNaturalFlow!G35+TotalNaturalFlow!C35 -> 262,250 | J35: =InterveningNaturalFlow!J35 -> 45,000 | K35: =InterveningNaturalFlow!K35+TotalNaturalFlow!J35 -> 52,710 | L35: =InterveningNaturalFlow!L35+TotalNaturalFlow!K35 -> 114,406 | M35: =InterveningNaturalFlow!M35 -> 39,989 | N35: =InterveningNaturalFlow!N35 -> 16,264 | O35: =InterveningNaturalFlow!O35 -> 26,355 | P35: =InterveningNaturalFlow!P35 -> 24,988 | Q35: =InterveningNaturalFlow!Q35+TotalNaturalFlow!P35+TotalNaturalFlow!O35+TotalNaturalFlow!N35+TotalNaturalFlow!M35+TotalNaturalFlow!L35 -> 219,689 | R35: =InterveningNaturalFlow!R35 -> 6,036 | S35: =InterveningNaturalFlow!S35 -> 119,000 | T35: =InterveningNaturalFlow!T35+TotalNaturalFlow!S35 -> 165,380 | U35: =InterveningNaturalFlow!U35+TotalNaturalFlow!T35+TotalNaturalFlow!R35+TotalNaturalFlow!Q35+TotalNaturalFlow!I35 -> 664,762 | W35: =InterveningNaturalFlow!W35 -> 3,166 | X35: =InterveningNaturalFlow!X35 -> 9,574 | Y35: =InterveningNaturalFlow!Y35+TotalNaturalFlow!X35+TotalNaturalFlow!W35+TotalNaturalFlow!U35 -> 704,523 | Z35: =InterveningNaturalFlow!Z35 -> 15,608 | AA35: =InterveningNaturalFlow!AA35+TotalNaturalFlow!Z35+Y35 -> 766,479 | AB35: =InterveningNaturalFlow!AB35+TotalNaturalFlow!AA35 -> 786,438 | AC35: =InterveningNaturalFlow!AC35 -> 75,565 | AD35: =InterveningNaturalFlow!AD35+TotalNaturalFlow!AC35+AB35 -> 832,604 | AE35: =InterveningNaturalFlow!AE35+TotalNaturalFlow!AD35 -> 842,644
A36: 1908-04-30 | B36: =InterveningNaturalFlow!B36 -> 127,924 | C36: =InterveningNaturalFlow!C36+TotalNaturalFlow!B36 -> 239,025 | D36: =InterveningNaturalFlow!D36 -> 11,561 | E36: =InterveningNaturalFlow!E36+TotalNaturalFlow!D36 -> 92,000 | F36: =InterveningNaturalFlow!F36+TotalNaturalFlow!E36 -> 115,000 | G36: =InterveningNaturalFlow!G36+TotalNaturalFlow!F36 -> 179,312 | H36: =InterveningNaturalFlow!H36 -> 98,465 | I36: =InterveningNaturalFlow!I36+TotalNaturalFlow!H36+TotalNaturalFlow!G36+TotalNaturalFlow!C36 -> 527,533 | J36: =InterveningNaturalFlow!J36 -> 95,000 | K36: =InterveningNaturalFlow!K36+TotalNaturalFlow!J36 -> 110,722 | L36: =InterveningNaturalFlow!L36+TotalNaturalFlow!K36 -> 185,067 | M36: =InterveningNaturalFlow!M36 -> 116,275 | N36: =InterveningNaturalFlow!N36 -> 21,300 | O36: =InterveningNaturalFlow!O36 -> 38,549 | P36: =InterveningNaturalFlow!P36 -> 41,771 | Q36: =InterveningNaturalFlow!Q36+TotalNaturalFlow!P36+TotalNaturalFlow!O36+TotalNaturalFlow!N36+TotalNaturalFlow!M36+TotalNaturalFlow!L36 -> 392,158 | R36: =InterveningNaturalFlow!R36 -> 8,420 | S36: =InterveningNaturalFlow!S36 -> 179,000 | T36: =InterveningNaturalFlow!T36+TotalNaturalFlow!S36 -> 212,355 | U36: =InterveningNaturalFlow!U36+TotalNaturalFlow!T36+TotalNaturalFlow!R36+TotalNaturalFlow!Q36+TotalNaturalFlow!I36 -> 1,041,224 | W36: =InterveningNaturalFlow!W36 -> 1,638 | X36: =InterveningNaturalFlow!X36 -> 1,597 | Y36: =InterveningNaturalFlow!Y36+TotalNaturalFlow!X36+TotalNaturalFlow!W36+TotalNaturalFlow!U36 -> 1,039,996 | Z36: =InterveningNaturalFlow!Z36 -> 13,332 | AA36: =InterveningNaturalFlow!AA36+TotalNaturalFlow!Z36+Y36 -> 1,048,019 | AB36: =InterveningNaturalFlow!AB36+TotalNaturalFlow!AA36 -> 1,078,515 | AC36: =InterveningNaturalFlow!AC36 -> 29,483 | AD36: =InterveningNaturalFlow!AD36+TotalNaturalFlow!AC36+AB36 -> 1,099,857 | AE36: =InterveningNaturalFlow!AE36+TotalNaturalFlow!AD36 -> 1,065,140
A37: 1908-05-31 | B37: =InterveningNaturalFlow!B37 -> 244,207 | C37: =InterveningNaturalFlow!C37+TotalNaturalFlow!B37 -> 401,003 | D37: =InterveningNaturalFlow!D37 -> 18,335 | E37: =InterveningNaturalFlow!E37+TotalNaturalFlow!D37 -> 135,010 | F37: =InterveningNaturalFlow!F37+TotalNaturalFlow!E37 -> 165,010 | G37: =InterveningNaturalFlow!G37+TotalNaturalFlow!F37 -> 246,966 | H37: =InterveningNaturalFlow!H37 -> 77,704 | I37: =InterveningNaturalFlow!I37+TotalNaturalFlow!H37+TotalNaturalFlow!G37+TotalNaturalFlow!C37 -> 752,709 | J37: =InterveningNaturalFlow!J37 -> 218,000 | K37: =InterveningNaturalFlow!K37+TotalNaturalFlow!J37 -> 221,740 | L37: =InterveningNaturalFlow!L37+TotalNaturalFlow!K37 -> 278,041 | M37: =InterveningNaturalFlow!M37 -> 242,249 | N37: =InterveningNaturalFlow!N37 -> 68,811 | O37: =InterveningNaturalFlow!O37 -> 74,490 | P37: =InterveningNaturalFlow!P37 -> 67,373 | Q37: =InterveningNaturalFlow!Q37+TotalNaturalFlow!P37+TotalNaturalFlow!O37+TotalNaturalFlow!N37+TotalNaturalFlow!M37+TotalNaturalFlow!L37 -> 729,186 | R37: =InterveningNaturalFlow!R37 -> 11,888 | S37: =InterveningNaturalFlow!S37 -> 185,000 | T37: =InterveningNaturalFlow!T37+TotalNaturalFlow!S37 -> 258,012 | U37: =InterveningNaturalFlow!U37+TotalNaturalFlow!T37+TotalNaturalFlow!R37+TotalNaturalFlow!Q37+TotalNaturalFlow!I37 -> 1,595,614 | W37: =InterveningNaturalFlow!W37 -> 964 | X37: =InterveningNaturalFlow!X37 -> 443 | Y37: =InterveningNaturalFlow!Y37+TotalNaturalFlow!X37+TotalNaturalFlow!W37+TotalNaturalFlow!U37 -> 1,559,486 | Z37: =InterveningNaturalFlow!Z37 -> 14,986 | AA37: =InterveningNaturalFlow!AA37+TotalNaturalFlow!Z37+Y37 -> 1,512,300 | AB37: =InterveningNaturalFlow!AB37+TotalNaturalFlow!AA37 -> 1,528,588 | AC37: =InterveningNaturalFlow!AC37 -> 55 | AD37: =InterveningNaturalFlow!AD37+TotalNaturalFlow!AC37+AB37 -> 1,529,229 | AE37: =InterveningNaturalFlow!AE37+TotalNaturalFlow!AD37 -> 1,535,129
A38: 1908-06-30 | B38: =InterveningNaturalFlow!B38 -> 528,043 | C38: =InterveningNaturalFlow!C38+TotalNaturalFlow!B38 -> 861,771 | D38: =InterveningNaturalFlow!D38 -> 42,651 | E38: =InterveningNaturalFlow!E38+TotalNaturalFlow!D38 -> 247,628 | F38: =InterveningNaturalFlow!F38+TotalNaturalFlow!E38 -> 292,628 | G38: =InterveningNaturalFlow!G38+TotalNaturalFlow!F38 -> 408,464 | H38: =InterveningNaturalFlow!H38 -> 74,881 | I38: =InterveningNaturalFlow!I38+TotalNaturalFlow!H38+TotalNaturalFlow!G38+TotalNaturalFlow!C38 -> 1,404,867 | J38: =InterveningNaturalFlow!J38 -> 294,200 | K38: =InterveningNaturalFlow!K38+TotalNaturalFlow!J38 -> 319,347 | L38: =InterveningNaturalFlow!L38+TotalNaturalFlow!K38 -> 458,103 | M38: =InterveningNaturalFlow!M38 -> 275,354 | N38: =InterveningNaturalFlow!N38 -> 75,804 | O38: =InterveningNaturalFlow!O38 -> 193,201 | P38: =InterveningNaturalFlow!P38 -> 96,894 | Q38: =InterveningNaturalFlow!Q38+TotalNaturalFlow!P38+TotalNaturalFlow!O38+TotalNaturalFlow!N38+TotalNaturalFlow!M38+TotalNaturalFlow!L38 -> 1,171,567 | R38: =InterveningNaturalFlow!R38 -> 57,377 | S38: =InterveningNaturalFlow!S38 -> 249,629 | T38: =InterveningNaturalFlow!T38+TotalNaturalFlow!S38 -> 382,154 | U38: =InterveningNaturalFlow!U38+TotalNaturalFlow!T38+TotalNaturalFlow!R38+TotalNaturalFlow!Q38+TotalNaturalFlow!I38 -> 2,922,360 | W38: =InterveningNaturalFlow!W38 -> 686 | X38: =InterveningNaturalFlow!X38 -> 4,395 | Y38: =InterveningNaturalFlow!Y38+TotalNaturalFlow!X38+TotalNaturalFlow!W38+TotalNaturalFlow!U38 -> 2,956,288 | Z38: =InterveningNaturalFlow!Z38 -> 5,947 | AA38: =InterveningNaturalFlow!AA38+TotalNaturalFlow!Z38+Y38 -> 2,979,994 | AB38: =InterveningNaturalFlow!AB38+TotalNaturalFlow!AA38 -> 2,998,436 | AC38: =InterveningNaturalFlow!AC38 -> 12 | AD38: =InterveningNaturalFlow!AD38+TotalNaturalFlow!AC38+AB38 -> 3,015,628 | AE38: =InterveningNaturalFlow!AE38+TotalNaturalFlow!AD38 -> 3,000,047
A39: 1908-07-31 | B39: =InterveningNaturalFlow!B39 -> 237,460 | C39: =InterveningNaturalFlow!C39+TotalNaturalFlow!B39 -> 444,816 | D39: =InterveningNaturalFlow!D39 -> 26,706 | E39: =InterveningNaturalFlow!E39+TotalNaturalFlow!D39 -> 142,882 | F39: =InterveningNaturalFlow!F39+TotalNaturalFlow!E39 -> 155,882 | G39: =InterveningNaturalFlow!G39+TotalNaturalFlow!F39 -> 216,798 | H39: =InterveningNaturalFlow!H39 -> 34,496 | I39: =InterveningNaturalFlow!I39+TotalNaturalFlow!H39+TotalNaturalFlow!G39+TotalNaturalFlow!C39 -> 733,960 | J39: =InterveningNaturalFlow!J39 -> 197,000 | K39: =InterveningNaturalFlow!K39+TotalNaturalFlow!J39 -> 225,971 | L39: =InterveningNaturalFlow!L39+TotalNaturalFlow!K39 -> 312,951 | M39: =InterveningNaturalFlow!M39 -> 125,107 | N39: =InterveningNaturalFlow!N39 -> 73,681 | O39: =InterveningNaturalFlow!O39 -> 130,296 | P39: =InterveningNaturalFlow!P39 -> 64,987 | Q39: =InterveningNaturalFlow!Q39+TotalNaturalFlow!P39+TotalNaturalFlow!O39+TotalNaturalFlow!N39+TotalNaturalFlow!M39+TotalNaturalFlow!L39 -> 820,406 | R39: =InterveningNaturalFlow!R39 -> 29,769 | S39: =InterveningNaturalFlow!S39 -> 134,974 | T39: =InterveningNaturalFlow!T39+TotalNaturalFlow!S39 -> 268,612 | U39: =InterveningNaturalFlow!U39+TotalNaturalFlow!T39+TotalNaturalFlow!R39+TotalNaturalFlow!Q39+TotalNaturalFlow!I39 -> 1,924,283 | W39: =InterveningNaturalFlow!W39 -> 1,998 | X39: =InterveningNaturalFlow!X39 -> 102 | Y39: =InterveningNaturalFlow!Y39+TotalNaturalFlow!X39+TotalNaturalFlow!W39+TotalNaturalFlow!U39 -> 1,978,499 | Z39: =InterveningNaturalFlow!Z39 -> 5,409 | AA39: =InterveningNaturalFlow!AA39+TotalNaturalFlow!Z39+Y39 -> 2,044,531 | AB39: =InterveningNaturalFlow!AB39+TotalNaturalFlow!AA39 -> 2,094,717 | AC39: =InterveningNaturalFlow!AC39 -> 5 | AD39: =InterveningNaturalFlow!AD39+TotalNaturalFlow!AC39+AB39 -> 2,118,745 | AE39: =InterveningNaturalFlow!AE39+TotalNaturalFlow!AD39 -> 2,117,778
A40: 1908-08-31 | B40: =InterveningNaturalFlow!B40 -> 144,038 | C40: =InterveningNaturalFlow!C40+TotalNaturalFlow!B40 -> 255,985 | D40: =InterveningNaturalFlow!D40 -> 13,453 | E40: =InterveningNaturalFlow!E40+TotalNaturalFlow!D40 -> 106,170 | F40: =InterveningNaturalFlow!F40+TotalNaturalFlow!E40 -> 114,170 | G40: =InterveningNaturalFlow!G40+TotalNaturalFlow!F40 -> 124,370 | H40: =InterveningNaturalFlow!H40 -> 22,671 | I40: =InterveningNaturalFlow!I40+TotalNaturalFlow!H40+TotalNaturalFlow!G40+TotalNaturalFlow!C40 -> 422,304 | J40: =InterveningNaturalFlow!J40 -> 138,800 | K40: =InterveningNaturalFlow!K40+TotalNaturalFlow!J40 -> 148,656 | L40: =InterveningNaturalFlow!L40+TotalNaturalFlow!K40 -> 204,307 | M40: =InterveningNaturalFlow!M40 -> 40,358 | N40: =InterveningNaturalFlow!N40 -> 62,967 | O40: =InterveningNaturalFlow!O40 -> 56,755 | P40: =InterveningNaturalFlow!P40 -> 49,357 | Q40: =InterveningNaturalFlow!Q40+TotalNaturalFlow!P40+TotalNaturalFlow!O40+TotalNaturalFlow!N40+TotalNaturalFlow!M40+TotalNaturalFlow!L40 -> 530,425 | R40: =InterveningNaturalFlow!R40 -> 14,435 | S40: =InterveningNaturalFlow!S40 -> 167,344 | T40: =InterveningNaturalFlow!T40+TotalNaturalFlow!S40 -> 259,276 | U40: =InterveningNaturalFlow!U40+TotalNaturalFlow!T40+TotalNaturalFlow!R40+TotalNaturalFlow!Q40+TotalNaturalFlow!I40 -> 1,117,477 | W40: =InterveningNaturalFlow!W40 -> 4,372 | X40: =InterveningNaturalFlow!X40 -> 13,532 | Y40: =InterveningNaturalFlow!Y40+TotalNaturalFlow!X40+TotalNaturalFlow!W40+TotalNaturalFlow!U40 -> 1,189,776 | Z40: =InterveningNaturalFlow!Z40 -> 7,146 | AA40: =InterveningNaturalFlow!AA40+TotalNaturalFlow!Z40+Y40 -> 1,262,474 | AB40: =InterveningNaturalFlow!AB40+TotalNaturalFlow!AA40 -> 1,294,899 | AC40: =InterveningNaturalFlow!AC40 -> 57 | AD40: =InterveningNaturalFlow!AD40+TotalNaturalFlow!AC40+AB40 -> 1,292,275 | AE40: =InterveningNaturalFlow!AE40+TotalNaturalFlow!AD40 -> 1,270,625
A41: 1908-09-30 | B41: =InterveningNaturalFlow!B41 -> 69,132 | C41: =InterveningNaturalFlow!C41+TotalNaturalFlow!B41 -> 121,391 | D41: =InterveningNaturalFlow!D41 -> 10,515 | E41: =InterveningNaturalFlow!E41+TotalNaturalFlow!D41 -> 44,638 | F41: =InterveningNaturalFlow!F41+TotalNaturalFlow!E41 -> 49,138 | G41: =InterveningNaturalFlow!G41+TotalNaturalFlow!F41 -> 82,051 | H41: =InterveningNaturalFlow!H41 -> 17,784 | I41: =InterveningNaturalFlow!I41+TotalNaturalFlow!H41+TotalNaturalFlow!G41+TotalNaturalFlow!C41 -> 230,874 | J41: =InterveningNaturalFlow!J41 -> 46,300 | K41: =InterveningNaturalFlow!K41+TotalNaturalFlow!J41 -> 53,095 | L41: =InterveningNaturalFlow!L41+TotalNaturalFlow!K41 -> 78,715 | M41: =InterveningNaturalFlow!M41 -> 20,937 | N41: =InterveningNaturalFlow!N41 -> 29,484 | O41: =InterveningNaturalFlow!O41 -> 36,462 | P41: =InterveningNaturalFlow!P41 -> 28,009 | Q41: =InterveningNaturalFlow!Q41+TotalNaturalFlow!P41+TotalNaturalFlow!O41+TotalNaturalFlow!N41+TotalNaturalFlow!M41+TotalNaturalFlow!L41 -> 227,372 | R41: =InterveningNaturalFlow!R41 -> 5,675 | S41: =InterveningNaturalFlow!S41 -> 44,900 | T41: =InterveningNaturalFlow!T41+TotalNaturalFlow!S41 -> 103,707 | U41: =InterveningNaturalFlow!U41+TotalNaturalFlow!T41+TotalNaturalFlow!R41+TotalNaturalFlow!Q41+TotalNaturalFlow!I41 -> 598,088 | W41: =InterveningNaturalFlow!W41 -> 1,821 | X41: =InterveningNaturalFlow!X41 -> 45,409 | Y41: =InterveningNaturalFlow!Y41+TotalNaturalFlow!X41+TotalNaturalFlow!W41+TotalNaturalFlow!U41 -> 692,994 | Z41: =InterveningNaturalFlow!Z41 -> 6,878 | AA41: =InterveningNaturalFlow!AA41+TotalNaturalFlow!Z41+Y41 -> 686,407 | AB41: =InterveningNaturalFlow!AB41+TotalNaturalFlow!AA41 -> 729,213 | AC41: =InterveningNaturalFlow!AC41 -> 63 | AD41: =InterveningNaturalFlow!AD41+TotalNaturalFlow!AC41+AB41 -> 754,218 | AE41: =InterveningNaturalFlow!AE41+TotalNaturalFlow!AD41 -> 751,883
A42: 1908-10-31 | B42: =InterveningNaturalFlow!B42 -> 54,734 | C42: =InterveningNaturalFlow!C42+TotalNaturalFlow!B42 -> 89,905 | D42: =InterveningNaturalFlow!D42 -> 6,962 | E42: =InterveningNaturalFlow!E42+TotalNaturalFlow!D42 -> 36,000 | F42: =InterveningNaturalFlow!F42+TotalNaturalFlow!E42 -> 39,000 | G42: =InterveningNaturalFlow!G42+TotalNaturalFlow!F42 -> 76,787 | H42: =InterveningNaturalFlow!H42 -> 32,360 | I42: =InterveningNaturalFlow!I42+TotalNaturalFlow!H42+TotalNaturalFlow!G42+TotalNaturalFlow!C42 -> 198,109 | J42: =InterveningNaturalFlow!J42 -> 40,000 | K42: =InterveningNaturalFlow!K42+TotalNaturalFlow!J42 -> 40,076 | L42: =InterveningNaturalFlow!L42+TotalNaturalFlow!K42 -> 71,540 | M42: =InterveningNaturalFlow!M42 -> 22,695 | N42: =InterveningNaturalFlow!N42 -> 11,839 | O42: =InterveningNaturalFlow!O42 -> 43,097 | P42: =InterveningNaturalFlow!P42 -> 31,080 | Q42: =InterveningNaturalFlow!Q42+TotalNaturalFlow!P42+TotalNaturalFlow!O42+TotalNaturalFlow!N42+TotalNaturalFlow!M42+TotalNaturalFlow!L42 -> 221,438 | R42: =InterveningNaturalFlow!R42 -> 3,098 | S42: =InterveningNaturalFlow!S42 -> 40,400 | T42: =InterveningNaturalFlow!T42+TotalNaturalFlow!S42 -> 75,903 | U42: =InterveningNaturalFlow!U42+TotalNaturalFlow!T42+TotalNaturalFlow!R42+TotalNaturalFlow!Q42+TotalNaturalFlow!I42 -> 483,627 | W42: =InterveningNaturalFlow!W42 -> 1,726 | X42: =InterveningNaturalFlow!X42 -> 4,825 | Y42: =InterveningNaturalFlow!Y42+TotalNaturalFlow!X42+TotalNaturalFlow!W42+TotalNaturalFlow!U42 -> 501,511 | Z42: =InterveningNaturalFlow!Z42 -> 5,151 | AA42: =InterveningNaturalFlow!AA42+TotalNaturalFlow!Z42+Y42 -> 586,670 | AB42: =InterveningNaturalFlow!AB42+TotalNaturalFlow!AA42 -> 578,351 | AC42: =InterveningNaturalFlow!AC42 -> 127 | AD42: =InterveningNaturalFlow!AD42+TotalNaturalFlow!AC42+AB42 -> 602,229 | AE42: =InterveningNaturalFlow!AE42+TotalNaturalFlow!AD42 -> 546,264
A43: 1908-11-30 | B43: =InterveningNaturalFlow!B43 -> 46,300 | C43: =InterveningNaturalFlow!C43+TotalNaturalFlow!B43 -> 90,402 | D43: =InterveningNaturalFlow!D43 -> 4,806 | E43: =InterveningNaturalFlow!E43+TotalNaturalFlow!D43 -> 26,000 | F43: =InterveningNaturalFlow!F43+TotalNaturalFlow!E43 -> 30,300 | G43: =InterveningNaturalFlow!G43+TotalNaturalFlow!F43 -> 59,325 | H43: =InterveningNaturalFlow!H43 -> 19,096 | I43: =InterveningNaturalFlow!I43+TotalNaturalFlow!H43+TotalNaturalFlow!G43+TotalNaturalFlow!C43 -> 176,885 | J43: =InterveningNaturalFlow!J43 -> 25,000 | K43: =InterveningNaturalFlow!K43+TotalNaturalFlow!J43 -> 23,826 | L43: =InterveningNaturalFlow!L43+TotalNaturalFlow!K43 -> 36,194 | M43: =InterveningNaturalFlow!M43 -> 18,202 | N43: =InterveningNaturalFlow!N43 -> 5,685 | O43: =InterveningNaturalFlow!O43 -> 27,811 | P43: =InterveningNaturalFlow!P43 -> 23,982 | Q43: =InterveningNaturalFlow!Q43+TotalNaturalFlow!P43+TotalNaturalFlow!O43+TotalNaturalFlow!N43+TotalNaturalFlow!M43+TotalNaturalFlow!L43 -> 128,469 | R43: =InterveningNaturalFlow!R43 -> 2,256 | S43: =InterveningNaturalFlow!S43 -> 24,100 | T43: =InterveningNaturalFlow!T43+TotalNaturalFlow!S43 -> 48,942 | U43: =InterveningNaturalFlow!U43+TotalNaturalFlow!T43+TotalNaturalFlow!R43+TotalNaturalFlow!Q43+TotalNaturalFlow!I43 -> 395,707 | W43: =InterveningNaturalFlow!W43 -> 956 | X43: =InterveningNaturalFlow!X43 -> 26,778 | Y43: =InterveningNaturalFlow!Y43+TotalNaturalFlow!X43+TotalNaturalFlow!W43+TotalNaturalFlow!U43 -> 453,984 | Z43: =InterveningNaturalFlow!Z43 -> 6,691 | AA43: =InterveningNaturalFlow!AA43+TotalNaturalFlow!Z43+Y43 -> 499,253 | AB43: =InterveningNaturalFlow!AB43+TotalNaturalFlow!AA43 -> 509,346 | AC43: =InterveningNaturalFlow!AC43 -> 254 | AD43: =InterveningNaturalFlow!AD43+TotalNaturalFlow!AC43+AB43 -> 484,148 | AE43: =InterveningNaturalFlow!AE43+TotalNaturalFlow!AD43 -> 466,539
A44: 1908-12-31 | B44: =InterveningNaturalFlow!B44 -> 41,728 | C44: =InterveningNaturalFlow!C44+TotalNaturalFlow!B44 -> 85,817 | D44: =InterveningNaturalFlow!D44 -> 6,639 | E44: =InterveningNaturalFlow!E44+TotalNaturalFlow!D44 -> 27,000 | F44: =InterveningNaturalFlow!F44+TotalNaturalFlow!E44 -> 29,200 | G44: =InterveningNaturalFlow!G44+TotalNaturalFlow!F44 -> 71,540 | H44: =InterveningNaturalFlow!H44 -> 14,520 | I44: =InterveningNaturalFlow!I44+TotalNaturalFlow!H44+TotalNaturalFlow!G44+TotalNaturalFlow!C44 -> 169,775 | J44: =InterveningNaturalFlow!J44 -> 6,000 | K44: =InterveningNaturalFlow!K44+TotalNaturalFlow!J44 -> 11,171 | L44: =InterveningNaturalFlow!L44+TotalNaturalFlow!K44 -> 22,683 | M44: =InterveningNaturalFlow!M44 -> 9,877 | N44: =InterveningNaturalFlow!N44 -> 2,367 | O44: =InterveningNaturalFlow!O44 -> 14,951 | P44: =InterveningNaturalFlow!P44 -> 14,181 | Q44: =InterveningNaturalFlow!Q44+TotalNaturalFlow!P44+TotalNaturalFlow!O44+TotalNaturalFlow!N44+TotalNaturalFlow!M44+TotalNaturalFlow!L44 -> 49,280 | R44: =InterveningNaturalFlow!R44 -> 3,218 | S44: =InterveningNaturalFlow!S44 -> 18,300 | T44: =InterveningNaturalFlow!T44+TotalNaturalFlow!S44 -> 45,972 | U44: =InterveningNaturalFlow!U44+TotalNaturalFlow!T44+TotalNaturalFlow!R44+TotalNaturalFlow!Q44+TotalNaturalFlow!I44 -> 312,145 | W44: =InterveningNaturalFlow!W44 -> 570 | X44: =InterveningNaturalFlow!X44 -> 1,398 | Y44: =InterveningNaturalFlow!Y44+TotalNaturalFlow!X44+TotalNaturalFlow!W44+TotalNaturalFlow!U44 -> 366,609 | Z44: =InterveningNaturalFlow!Z44 -> 10,147 | AA44: =InterveningNaturalFlow!AA44+TotalNaturalFlow!Z44+Y44 -> 390,167 | AB44: =InterveningNaturalFlow!AB44+TotalNaturalFlow!AA44 -> 411,811 | AC44: =InterveningNaturalFlow!AC44 -> 578 | AD44: =InterveningNaturalFlow!AD44+TotalNaturalFlow!AC44+AB44 -> 379,650 | AE44: =InterveningNaturalFlow!AE44+TotalNaturalFlow!AD44 -> 372,377
A45: 1909-01-31 | B45: =InterveningNaturalFlow!B45 -> 47,445 | C45: =InterveningNaturalFlow!C45+TotalNaturalFlow!B45 -> 94,180 | D45: =InterveningNaturalFlow!D45 -> 4,956 | E45: =InterveningNaturalFlow!E45+TotalNaturalFlow!D45 -> 25,000 | F45: =InterveningNaturalFlow!F45+TotalNaturalFlow!E45 -> 28,300 | G45: =InterveningNaturalFlow!G45+TotalNaturalFlow!F45 -> 60,542 | H45: =InterveningNaturalFlow!H45 -> 12,258 | I45: =InterveningNaturalFlow!I45+TotalNaturalFlow!H45+TotalNaturalFlow!G45+TotalNaturalFlow!C45 -> 174,360 | J45: =InterveningNaturalFlow!J45 -> 27,000 | K45: =InterveningNaturalFlow!K45+TotalNaturalFlow!J45 -> 24,330 | L45: =InterveningNaturalFlow!L45+TotalNaturalFlow!K45 -> 45,364 | M45: =InterveningNaturalFlow!M45 -> 14,894 | N45: =InterveningNaturalFlow!N45 -> 5,950 | O45: =InterveningNaturalFlow!O45 -> 28,998 | P45: =InterveningNaturalFlow!P45 -> 23,207 | Q45: =InterveningNaturalFlow!Q45+TotalNaturalFlow!P45+TotalNaturalFlow!O45+TotalNaturalFlow!N45+TotalNaturalFlow!M45+TotalNaturalFlow!L45 -> 121,666 | R45: =InterveningNaturalFlow!R45 -> 3,448 | S45: =InterveningNaturalFlow!S45 -> 35,100 | T45: =InterveningNaturalFlow!T45+TotalNaturalFlow!S45 -> 66,715 | U45: =InterveningNaturalFlow!U45+TotalNaturalFlow!T45+TotalNaturalFlow!R45+TotalNaturalFlow!Q45+TotalNaturalFlow!I45 -> 378,989 | W45: =InterveningNaturalFlow!W45 -> 737 | X45: =InterveningNaturalFlow!X45 -> 1,808 | Y45: =InterveningNaturalFlow!Y45+TotalNaturalFlow!X45+TotalNaturalFlow!W45+TotalNaturalFlow!U45 -> 426,271 | Z45: =InterveningNaturalFlow!Z45 -> 11,706 | AA45: =InterveningNaturalFlow!AA45+TotalNaturalFlow!Z45+Y45 -> 498,843 | AB45: =InterveningNaturalFlow!AB45+TotalNaturalFlow!AA45 -> 531,888 | AC45: =InterveningNaturalFlow!AC45 -> 471 | AD45: =InterveningNaturalFlow!AD45+TotalNaturalFlow!AC45+AB45 -> 500,866 | AE45: =InterveningNaturalFlow!AE45+TotalNaturalFlow!AD45 -> 551,331
A46: 1909-02-28 | B46: =InterveningNaturalFlow!B46 -> 36,981 | C46: =InterveningNaturalFlow!C46+TotalNaturalFlow!B46 -> 66,886 | D46: =InterveningNaturalFlow!D46 -> 3,498 | E46: =InterveningNaturalFlow!E46+TotalNaturalFlow!D46 -> 21,000 | F46: =InterveningNaturalFlow!F46+TotalNaturalFlow!E46 -> 25,000 | G46: =InterveningNaturalFlow!G46+TotalNaturalFlow!F46 -> 54,733 | H46: =InterveningNaturalFlow!H46 -> 10,948 | I46: =InterveningNaturalFlow!I46+TotalNaturalFlow!H46+TotalNaturalFlow!G46+TotalNaturalFlow!C46 -> 135,445 | J46: =InterveningNaturalFlow!J46 -> 20,000 | K46: =InterveningNaturalFlow!K46+TotalNaturalFlow!J46 -> 19,200 | L46: =InterveningNaturalFlow!L46+TotalNaturalFlow!K46 -> 57,172 | M46: =InterveningNaturalFlow!M46 -> 13,585 | N46: =InterveningNaturalFlow!N46 -> 3,402 | O46: =InterveningNaturalFlow!O46 -> 26,901 | P46: =InterveningNaturalFlow!P46 -> 12,700 | Q46: =InterveningNaturalFlow!Q46+TotalNaturalFlow!P46+TotalNaturalFlow!O46+TotalNaturalFlow!N46+TotalNaturalFlow!M46+TotalNaturalFlow!L46 -> 95,346 | R46: =InterveningNaturalFlow!R46 -> 3,222 | S46: =InterveningNaturalFlow!S46 -> 20,700 | T46: =InterveningNaturalFlow!T46+TotalNaturalFlow!S46 -> 58,709 | U46: =InterveningNaturalFlow!U46+TotalNaturalFlow!T46+TotalNaturalFlow!R46+TotalNaturalFlow!Q46+TotalNaturalFlow!I46 -> 317,458 | W46: =InterveningNaturalFlow!W46 -> 1,420 | X46: =InterveningNaturalFlow!X46 -> 0 | Y46: =InterveningNaturalFlow!Y46+TotalNaturalFlow!X46+TotalNaturalFlow!W46+TotalNaturalFlow!U46 -> 338,052 | Z46: =InterveningNaturalFlow!Z46 -> 15,434 | AA46: =InterveningNaturalFlow!AA46+TotalNaturalFlow!Z46+Y46 -> 401,492 | AB46: =InterveningNaturalFlow!AB46+TotalNaturalFlow!AA46 -> 442,279 | AC46: =InterveningNaturalFlow!AC46 -> 11,966 | AD46: =InterveningNaturalFlow!AD46+TotalNaturalFlow!AC46+AB46 -> 427,608 | AE46: =InterveningNaturalFlow!AE46+TotalNaturalFlow!AD46 -> 455,618
A47: 1909-03-31 | B47: =InterveningNaturalFlow!B47 -> 53,003 | C47: =InterveningNaturalFlow!C47+TotalNaturalFlow!B47 -> 93,511 | D47: =InterveningNaturalFlow!D47 -> 4,621 | E47: =InterveningNaturalFlow!E47+TotalNaturalFlow!D47 -> 39,000 | F47: =InterveningNaturalFlow!F47+TotalNaturalFlow!E47 -> 46,100 | G47: =InterveningNaturalFlow!G47+TotalNaturalFlow!F47 -> 69,633 | H47: =InterveningNaturalFlow!H47 -> 27,850 | I47: =InterveningNaturalFlow!I47+TotalNaturalFlow!H47+TotalNaturalFlow!G47+TotalNaturalFlow!C47 -> 195,440 | J47: =InterveningNaturalFlow!J47 -> 89,000 | K47: =InterveningNaturalFlow!K47+TotalNaturalFlow!J47 -> 116,900 | L47: =InterveningNaturalFlow!L47+TotalNaturalFlow!K47 -> 210,405 | M47: =InterveningNaturalFlow!M47 -> 84,917 | N47: =InterveningNaturalFlow!N47 -> 44,293 | O47: =InterveningNaturalFlow!O47 -> 50,399 | P47: =InterveningNaturalFlow!P47 -> 51,153 | Q47: =InterveningNaturalFlow!Q47+TotalNaturalFlow!P47+TotalNaturalFlow!O47+TotalNaturalFlow!N47+TotalNaturalFlow!M47+TotalNaturalFlow!L47 -> 499,537 | R47: =InterveningNaturalFlow!R47 -> 6,644 | S47: =InterveningNaturalFlow!S47 -> 109,000 | T47: =InterveningNaturalFlow!T47+TotalNaturalFlow!S47 -> 151,149 | U47: =InterveningNaturalFlow!U47+TotalNaturalFlow!T47+TotalNaturalFlow!R47+TotalNaturalFlow!Q47+TotalNaturalFlow!I47 -> 763,721 | W47: =InterveningNaturalFlow!W47 -> 1,723 | X47: =InterveningNaturalFlow!X47 -> 11,655 | Y47: =InterveningNaturalFlow!Y47+TotalNaturalFlow!X47+TotalNaturalFlow!W47+TotalNaturalFlow!U47 -> 794,141 | Z47: =InterveningNaturalFlow!Z47 -> 13,971 | AA47: =InterveningNaturalFlow!AA47+TotalNaturalFlow!Z47+Y47 -> 824,020 | AB47: =InterveningNaturalFlow!AB47+TotalNaturalFlow!AA47 -> 902,640 | AC47: =InterveningNaturalFlow!AC47 -> 68,919 | AD47: =InterveningNaturalFlow!AD47+TotalNaturalFlow!AC47+AB47 -> 936,016 | AE47: =InterveningNaturalFlow!AE47+TotalNaturalFlow!AD47 -> 977,128
A48: 1909-04-30 | B48: =InterveningNaturalFlow!B48 -> 94,156 | C48: =InterveningNaturalFlow!C48+TotalNaturalFlow!B48 -> 171,804 | D48: =InterveningNaturalFlow!D48 -> 9,693 | E48: =InterveningNaturalFlow!E48+TotalNaturalFlow!D48 -> 93,000 | F48: =InterveningNaturalFlow!F48+TotalNaturalFlow!E48 -> 116,000 | G48: =InterveningNaturalFlow!G48+TotalNaturalFlow!F48 -> 156,584 | H48: =InterveningNaturalFlow!H48 -> 152,239 | I48: =InterveningNaturalFlow!I48+TotalNaturalFlow!H48+TotalNaturalFlow!G48+TotalNaturalFlow!C48 -> 444,109 | J48: =InterveningNaturalFlow!J48 -> 126,000 | K48: =InterveningNaturalFlow!K48+TotalNaturalFlow!J48 -> 153,651 | L48: =InterveningNaturalFlow!L48+TotalNaturalFlow!K48 -> 246,434 | M48: =InterveningNaturalFlow!M48 -> 165,236 | N48: =InterveningNaturalFlow!N48 -> 49,893 | O48: =InterveningNaturalFlow!O48 -> 54,867 | P48: =InterveningNaturalFlow!P48 -> 49,110 | Q48: =InterveningNaturalFlow!Q48+TotalNaturalFlow!P48+TotalNaturalFlow!O48+TotalNaturalFlow!N48+TotalNaturalFlow!M48+TotalNaturalFlow!L48 -> 553,551 | R48: =InterveningNaturalFlow!R48 -> 8,083 | S48: =InterveningNaturalFlow!S48 -> 261,000 | T48: =InterveningNaturalFlow!T48+TotalNaturalFlow!S48 -> 302,939 | U48: =InterveningNaturalFlow!U48+TotalNaturalFlow!T48+TotalNaturalFlow!R48+TotalNaturalFlow!Q48+TotalNaturalFlow!I48 -> 1,120,492 | W48: =InterveningNaturalFlow!W48 -> 978 | X48: =InterveningNaturalFlow!X48 -> 68,735 | Y48: =InterveningNaturalFlow!Y48+TotalNaturalFlow!X48+TotalNaturalFlow!W48+TotalNaturalFlow!U48 -> 1,205,377 | Z48: =InterveningNaturalFlow!Z48 -> 12,182 | AA48: =InterveningNaturalFlow!AA48+TotalNaturalFlow!Z48+Y48 -> 1,248,856 | AB48: =InterveningNaturalFlow!AB48+TotalNaturalFlow!AA48 -> 1,304,418 | AC48: =InterveningNaturalFlow!AC48 -> 28,950 | AD48: =InterveningNaturalFlow!AD48+TotalNaturalFlow!AC48+AB48 -> 1,305,896 | AE48: =InterveningNaturalFlow!AE48+TotalNaturalFlow!AD48 -> 1,318,503
A49: 1909-05-31 | B49: =InterveningNaturalFlow!B49 -> 365,065 | C49: =InterveningNaturalFlow!C49+TotalNaturalFlow!B49 -> 697,205 | D49: =InterveningNaturalFlow!D49 -> 31,940 | E49: =InterveningNaturalFlow!E49+TotalNaturalFlow!D49 -> 361,010 | F49: =InterveningNaturalFlow!F49+TotalNaturalFlow!E49 -> 440,010 | G49: =InterveningNaturalFlow!G49+TotalNaturalFlow!F49 -> 658,565 | H49: =InterveningNaturalFlow!H49 -> 318,719 | I49: =InterveningNaturalFlow!I49+TotalNaturalFlow!H49+TotalNaturalFlow!G49+TotalNaturalFlow!C49 -> 1,666,998 | J49: =InterveningNaturalFlow!J49 -> 360,000 | K49: =InterveningNaturalFlow!K49+TotalNaturalFlow!J49 -> 362,585 | L49: =InterveningNaturalFlow!L49+TotalNaturalFlow!K49 -> 555,532 | M49: =InterveningNaturalFlow!M49 -> 472,119 | N49: =InterveningNaturalFlow!N49 -> 144,433 | O49: =InterveningNaturalFlow!O49 -> 185,273 | P49: =InterveningNaturalFlow!P49 -> 113,079 | Q49: =InterveningNaturalFlow!Q49+TotalNaturalFlow!P49+TotalNaturalFlow!O49+TotalNaturalFlow!N49+TotalNaturalFlow!M49+TotalNaturalFlow!L49 -> 1,407,189 | R49: =InterveningNaturalFlow!R49 -> 44,689 | S49: =InterveningNaturalFlow!S49 -> 365,300 | T49: =InterveningNaturalFlow!T49+TotalNaturalFlow!S49 -> 529,520 | U49: =InterveningNaturalFlow!U49+TotalNaturalFlow!T49+TotalNaturalFlow!R49+TotalNaturalFlow!Q49+TotalNaturalFlow!I49 -> 3,349,297 | W49: =InterveningNaturalFlow!W49 -> 403 | X49: =InterveningNaturalFlow!X49 -> 0 | Y49: =InterveningNaturalFlow!Y49+TotalNaturalFlow!X49+TotalNaturalFlow!W49+TotalNaturalFlow!U49 -> 3,290,847 | Z49: =InterveningNaturalFlow!Z49 -> 13,519 | AA49: =InterveningNaturalFlow!AA49+TotalNaturalFlow!Z49+Y49 -> 3,318,922 | AB49: =InterveningNaturalFlow!AB49+TotalNaturalFlow!AA49 -> 3,366,072 | AC49: =InterveningNaturalFlow!AC49 -> 43 | AD49: =InterveningNaturalFlow!AD49+TotalNaturalFlow!AC49+AB49 -> 3,347,562 | AE49: =InterveningNaturalFlow!AE49+TotalNaturalFlow!AD49 -> 3,321,698
A50: 1909-06-30 | B50: =InterveningNaturalFlow!B50 -> 1,492,179 | C50: =InterveningNaturalFlow!C50+TotalNaturalFlow!B50 -> 2,119,745 | D50: =InterveningNaturalFlow!D50 -> 83,716 | E50: =InterveningNaturalFlow!E50+TotalNaturalFlow!D50 -> 556,828 | F50: =InterveningNaturalFlow!F50+TotalNaturalFlow!E50 -> 654,828 | G50: =InterveningNaturalFlow!G50+TotalNaturalFlow!F50 -> 943,311 | H50: =InterveningNaturalFlow!H50 -> 181,781 | I50: =InterveningNaturalFlow!I50+TotalNaturalFlow!H50+TotalNaturalFlow!G50+TotalNaturalFlow!C50 -> 3,249,640 | J50: =InterveningNaturalFlow!J50 -> 653,800 | K50: =InterveningNaturalFlow!K50+TotalNaturalFlow!J50 -> 691,908 | L50: =InterveningNaturalFlow!L50+TotalNaturalFlow!K50 -> 1,006,801 | M50: =InterveningNaturalFlow!M50 -> 766,060 | N50: =InterveningNaturalFlow!N50 -> 202,830 | O50: =InterveningNaturalFlow!O50 -> 535,168 | P50: =InterveningNaturalFlow!P50 -> 230,581 | Q50: =InterveningNaturalFlow!Q50+TotalNaturalFlow!P50+TotalNaturalFlow!O50+TotalNaturalFlow!N50+TotalNaturalFlow!M50+TotalNaturalFlow!L50 -> 2,916,462 | R50: =InterveningNaturalFlow!R50 -> 131,211 | S50: =InterveningNaturalFlow!S50 -> 449,955 | T50: =InterveningNaturalFlow!T50+TotalNaturalFlow!S50 -> 697,310 | U50: =InterveningNaturalFlow!U50+TotalNaturalFlow!T50+TotalNaturalFlow!R50+TotalNaturalFlow!Q50+TotalNaturalFlow!I50 -> 7,203,254 | W50: =InterveningNaturalFlow!W50 -> 262 | X50: =InterveningNaturalFlow!X50 -> 11,463 | Y50: =InterveningNaturalFlow!Y50+TotalNaturalFlow!X50+TotalNaturalFlow!W50+TotalNaturalFlow!U50 -> 7,243,813 | Z50: =InterveningNaturalFlow!Z50 -> 5,338 | AA50: =InterveningNaturalFlow!AA50+TotalNaturalFlow!Z50+Y50 -> 7,284,643 | AB50: =InterveningNaturalFlow!AB50+TotalNaturalFlow!AA50 -> 7,316,307 | AC50: =InterveningNaturalFlow!AC50 -> 22 | AD50: =InterveningNaturalFlow!AD50+TotalNaturalFlow!AC50+AB50 -> 7,294,350 | AE50: =InterveningNaturalFlow!AE50+TotalNaturalFlow!AD50 -> 7,262,533
A51: 1909-07-31 | B51: =InterveningNaturalFlow!B51 -> 564,560 | C51: =InterveningNaturalFlow!C51+TotalNaturalFlow!B51 -> 972,804 | D51: =InterveningNaturalFlow!D51 -> 56,685 | E51: =InterveningNaturalFlow!E51+TotalNaturalFlow!D51 -> 327,382 | F51: =InterveningNaturalFlow!F51+TotalNaturalFlow!E51 -> 358,382 | G51: =InterveningNaturalFlow!G51+TotalNaturalFlow!F51 -> 468,209 | H51: =InterveningNaturalFlow!H51 -> 128,828 | I51: =InterveningNaturalFlow!I51+TotalNaturalFlow!H51+TotalNaturalFlow!G51+TotalNaturalFlow!C51 -> 1,576,078 | J51: =InterveningNaturalFlow!J51 -> 375,100 | K51: =InterveningNaturalFlow!K51+TotalNaturalFlow!J51 -> 410,624 | L51: =InterveningNaturalFlow!L51+TotalNaturalFlow!K51 -> 523,892 | M51: =InterveningNaturalFlow!M51 -> 303,486 | N51: =InterveningNaturalFlow!N51 -> 162,235 | O51: =InterveningNaturalFlow!O51 -> 294,512 | P51: =InterveningNaturalFlow!P51 -> 155,108 | Q51: =InterveningNaturalFlow!Q51+TotalNaturalFlow!P51+TotalNaturalFlow!O51+TotalNaturalFlow!N51+TotalNaturalFlow!M51+TotalNaturalFlow!L51 -> 1,739,035 | R51: =InterveningNaturalFlow!R51 -> 49,472 | S51: =InterveningNaturalFlow!S51 -> 152,337 | T51: =InterveningNaturalFlow!T51+TotalNaturalFlow!S51 -> 409,301 | U51: =InterveningNaturalFlow!U51+TotalNaturalFlow!T51+TotalNaturalFlow!R51+TotalNaturalFlow!Q51+TotalNaturalFlow!I51 -> 4,109,919 | W51: =InterveningNaturalFlow!W51 -> 1,453 | X51: =InterveningNaturalFlow!X51 -> 2,373 | Y51: =InterveningNaturalFlow!Y51+TotalNaturalFlow!X51+TotalNaturalFlow!W51+TotalNaturalFlow!U51 -> 4,167,452 | Z51: =InterveningNaturalFlow!Z51 -> 5,013 | AA51: =InterveningNaturalFlow!AA51+TotalNaturalFlow!Z51+Y51 -> 4,279,814 | AB51: =InterveningNaturalFlow!AB51+TotalNaturalFlow!AA51 -> 4,340,338 | AC51: =InterveningNaturalFlow!AC51 -> 22 | AD51: =InterveningNaturalFlow!AD51+TotalNaturalFlow!AC51+AB51 -> 4,359,465 | AE51: =InterveningNaturalFlow!AE51+TotalNaturalFlow!AD51 -> 4,308,912
A52: 1909-08-31 | B52: =InterveningNaturalFlow!B52 -> 199,280 | C52: =InterveningNaturalFlow!C52+TotalNaturalFlow!B52 -> 364,504 | D52: =InterveningNaturalFlow!D52 -> 19,405 | E52: =InterveningNaturalFlow!E52+TotalNaturalFlow!D52 -> 124,970 | F52: =InterveningNaturalFlow!F52+TotalNaturalFlow!E52 -> 133,970 | G52: =InterveningNaturalFlow!G52+TotalNaturalFlow!F52 -> 200,053 | H52: =InterveningNaturalFlow!H52 -> 56,112 | I52: =InterveningNaturalFlow!I52+TotalNaturalFlow!H52+TotalNaturalFlow!G52+TotalNaturalFlow!C52 -> 629,407 | J52: =InterveningNaturalFlow!J52 -> 182,800 | K52: =InterveningNaturalFlow!K52+TotalNaturalFlow!J52 -> 205,864 | L52: =InterveningNaturalFlow!L52+TotalNaturalFlow!K52 -> 286,331 | M52: =InterveningNaturalFlow!M52 -> 62,591 | N52: =InterveningNaturalFlow!N52 -> 102,624 | O52: =InterveningNaturalFlow!O52 -> 125,758 | P52: =InterveningNaturalFlow!P52 -> 71,990 | Q52: =InterveningNaturalFlow!Q52+TotalNaturalFlow!P52+TotalNaturalFlow!O52+TotalNaturalFlow!N52+TotalNaturalFlow!M52+TotalNaturalFlow!L52 -> 766,351 | R52: =InterveningNaturalFlow!R52 -> 23,260 | S52: =InterveningNaturalFlow!S52 -> 224,482 | T52: =InterveningNaturalFlow!T52+TotalNaturalFlow!S52 -> 465,977 | U52: =InterveningNaturalFlow!U52+TotalNaturalFlow!T52+TotalNaturalFlow!R52+TotalNaturalFlow!Q52+TotalNaturalFlow!I52 -> 1,880,422 | W52: =InterveningNaturalFlow!W52 -> 3,602 | X52: =InterveningNaturalFlow!X52 -> 40,461 | Y52: =InterveningNaturalFlow!Y52+TotalNaturalFlow!X52+TotalNaturalFlow!W52+TotalNaturalFlow!U52 -> 1,918,356 | Z52: =InterveningNaturalFlow!Z52 -> 6,624 | AA52: =InterveningNaturalFlow!AA52+TotalNaturalFlow!Z52+Y52 -> 1,815,859 | AB52: =InterveningNaturalFlow!AB52+TotalNaturalFlow!AA52 -> 1,848,249 | AC52: =InterveningNaturalFlow!AC52 -> 51 | AD52: =InterveningNaturalFlow!AD52+TotalNaturalFlow!AC52+AB52 -> 1,867,773 | AE52: =InterveningNaturalFlow!AE52+TotalNaturalFlow!AD52 -> 1,839,088
A53: 1909-09-30 | B53: =InterveningNaturalFlow!B53 -> 154,107 | C53: =InterveningNaturalFlow!C53+TotalNaturalFlow!B53 -> 246,070 | D53: =InterveningNaturalFlow!D53 -> 18,355 | E53: =InterveningNaturalFlow!E53+TotalNaturalFlow!D53 -> 149,138 | F53: =InterveningNaturalFlow!F53+TotalNaturalFlow!E53 -> 159,138 | G53: =InterveningNaturalFlow!G53+TotalNaturalFlow!F53 -> 129,714 | H53: =InterveningNaturalFlow!H53 -> 36,895 | I53: =InterveningNaturalFlow!I53+TotalNaturalFlow!H53+TotalNaturalFlow!G53+TotalNaturalFlow!C53 -> 414,111 | J53: =InterveningNaturalFlow!J53 -> 142,600 | K53: =InterveningNaturalFlow!K53+TotalNaturalFlow!J53 -> 150,956 | L53: =InterveningNaturalFlow!L53+TotalNaturalFlow!K53 -> 187,258 | M53: =InterveningNaturalFlow!M53 -> 57,560 | N53: =InterveningNaturalFlow!N53 -> 64,963 | O53: =InterveningNaturalFlow!O53 -> 130,191 | P53: =InterveningNaturalFlow!P53 -> 64,711 | Q53: =InterveningNaturalFlow!Q53+TotalNaturalFlow!P53+TotalNaturalFlow!O53+TotalNaturalFlow!N53+TotalNaturalFlow!M53+TotalNaturalFlow!L53 -> 631,509 | R53: =InterveningNaturalFlow!R53 -> 13,151 | S53: =InterveningNaturalFlow!S53 -> 366,400 | T53: =InterveningNaturalFlow!T53+TotalNaturalFlow!S53 -> 555,230 | U53: =InterveningNaturalFlow!U53+TotalNaturalFlow!T53+TotalNaturalFlow!R53+TotalNaturalFlow!Q53+TotalNaturalFlow!I53 -> 1,526,396 | W53: =InterveningNaturalFlow!W53 -> 6,642 | X53: =InterveningNaturalFlow!X53 -> 34,715 | Y53: =InterveningNaturalFlow!Y53+TotalNaturalFlow!X53+TotalNaturalFlow!W53+TotalNaturalFlow!U53 -> 1,577,167 | Z53: =InterveningNaturalFlow!Z53 -> 6,428 | AA53: =InterveningNaturalFlow!AA53+TotalNaturalFlow!Z53+Y53 -> 1,611,099 | AB53: =InterveningNaturalFlow!AB53+TotalNaturalFlow!AA53 -> 1,645,887 | AC53: =InterveningNaturalFlow!AC53 -> 2 | AD53: =InterveningNaturalFlow!AD53+TotalNaturalFlow!AC53+AB53 -> 1,665,747 | AE53: =InterveningNaturalFlow!AE53+TotalNaturalFlow!AD53 -> 1,624,720
A54: 1909-10-31 | B54: =InterveningNaturalFlow!B54 -> 95,330 | C54: =InterveningNaturalFlow!C54+TotalNaturalFlow!B54 -> 156,512 | D54: =InterveningNaturalFlow!D54 -> 9,649 | E54: =InterveningNaturalFlow!E54+TotalNaturalFlow!D54 -> 72,200 | F54: =InterveningNaturalFlow!F54+TotalNaturalFlow!E54 -> 78,200 | G54: =InterveningNaturalFlow!G54+TotalNaturalFlow!F54 -> 100,705 | H54: =InterveningNaturalFlow!H54 -> 24,397 | I54: =InterveningNaturalFlow!I54+TotalNaturalFlow!H54+TotalNaturalFlow!G54+TotalNaturalFlow!C54 -> 273,516 | J54: =InterveningNaturalFlow!J54 -> 45,500 | K54: =InterveningNaturalFlow!K54+TotalNaturalFlow!J54 -> 46,478 | L54: =InterveningNaturalFlow!L54+TotalNaturalFlow!K54 -> 73,675 | M54: =InterveningNaturalFlow!M54 -> 32,412 | N54: =InterveningNaturalFlow!N54 -> 20,808 | O54: =InterveningNaturalFlow!O54 -> 53,222 | P54: =InterveningNaturalFlow!P54 -> 35,480 | Q54: =InterveningNaturalFlow!Q54+TotalNaturalFlow!P54+TotalNaturalFlow!O54+TotalNaturalFlow!N54+TotalNaturalFlow!M54+TotalNaturalFlow!L54 -> 250,840 | R54: =InterveningNaturalFlow!R54 -> 7,908 | S54: =InterveningNaturalFlow!S54 -> 66,554 | T54: =InterveningNaturalFlow!T54+TotalNaturalFlow!S54 -> 143,479 | U54: =InterveningNaturalFlow!U54+TotalNaturalFlow!T54+TotalNaturalFlow!R54+TotalNaturalFlow!Q54+TotalNaturalFlow!I54 -> 680,646 | W54: =InterveningNaturalFlow!W54 -> 578 | X54: =InterveningNaturalFlow!X54 -> 3,878 | Y54: =InterveningNaturalFlow!Y54+TotalNaturalFlow!X54+TotalNaturalFlow!W54+TotalNaturalFlow!U54 -> 710,725 | Z54: =InterveningNaturalFlow!Z54 -> 5,606 | AA54: =InterveningNaturalFlow!AA54+TotalNaturalFlow!Z54+Y54 -> 717,294 | AB54: =InterveningNaturalFlow!AB54+TotalNaturalFlow!AA54 -> 705,929 | AC54: =InterveningNaturalFlow!AC54 -> 99 | AD54: =InterveningNaturalFlow!AD54+TotalNaturalFlow!AC54+AB54 -> 724,028 | AE54: =InterveningNaturalFlow!AE54+TotalNaturalFlow!AD54 -> 659,819
A55: 1909-11-30 | B55: =InterveningNaturalFlow!B55 -> 66,070 | C55: =InterveningNaturalFlow!C55+TotalNaturalFlow!B55 -> 102,544 | D55: =InterveningNaturalFlow!D55 -> 4,904 | E55: =InterveningNaturalFlow!E55+TotalNaturalFlow!D55 -> 32,000 | F55: =InterveningNaturalFlow!F55+TotalNaturalFlow!E55 -> 36,300 | G55: =InterveningNaturalFlow!G55+TotalNaturalFlow!F55 -> 89,345 | H55: =InterveningNaturalFlow!H55 -> 10,184 | I55: =InterveningNaturalFlow!I55+TotalNaturalFlow!H55+TotalNaturalFlow!G55+TotalNaturalFlow!C55 -> 202,590 | J55: =InterveningNaturalFlow!J55 -> 40,000 | K55: =InterveningNaturalFlow!K55+TotalNaturalFlow!J55 -> 36,982 | L55: =InterveningNaturalFlow!L55+TotalNaturalFlow!K55 -> 41,575 | M55: =InterveningNaturalFlow!M55 -> 27,100 | N55: =InterveningNaturalFlow!N55 -> 14,675 | O55: =InterveningNaturalFlow!O55 -> 38,438 | P55: =InterveningNaturalFlow!P55 -> 27,867 | Q55: =InterveningNaturalFlow!Q55+TotalNaturalFlow!P55+TotalNaturalFlow!O55+TotalNaturalFlow!N55+TotalNaturalFlow!M55+TotalNaturalFlow!L55 -> 177,402 | R55: =InterveningNaturalFlow!R55 -> 9,605 | S55: =InterveningNaturalFlow!S55 -> 40,767 | T55: =InterveningNaturalFlow!T55+TotalNaturalFlow!S55 -> 80,079 | U55: =InterveningNaturalFlow!U55+TotalNaturalFlow!T55+TotalNaturalFlow!R55+TotalNaturalFlow!Q55+TotalNaturalFlow!I55 -> 489,990 | W55: =InterveningNaturalFlow!W55 -> 1,008 | X55: =InterveningNaturalFlow!X55 -> 9,530 | Y55: =InterveningNaturalFlow!Y55+TotalNaturalFlow!X55+TotalNaturalFlow!W55+TotalNaturalFlow!U55 -> 557,328 | Z55: =InterveningNaturalFlow!Z55 -> 7,283 | AA55: =InterveningNaturalFlow!AA55+TotalNaturalFlow!Z55+Y55 -> 622,220 | AB55: =InterveningNaturalFlow!AB55+TotalNaturalFlow!AA55 -> 634,831 | AC55: =InterveningNaturalFlow!AC55 -> 175 | AD55: =InterveningNaturalFlow!AD55+TotalNaturalFlow!AC55+AB55 -> 599,072 | AE55: =InterveningNaturalFlow!AE55+TotalNaturalFlow!AD55 -> 563,130
A56: 1909-12-31 | B56: =InterveningNaturalFlow!B56 -> 47,527 | C56: =InterveningNaturalFlow!C56+TotalNaturalFlow!B56 -> 88,130 | D56: =InterveningNaturalFlow!D56 -> 4,386 | E56: =InterveningNaturalFlow!E56+TotalNaturalFlow!D56 -> 27,000 | F56: =InterveningNaturalFlow!F56+TotalNaturalFlow!E56 -> 28,900 | G56: =InterveningNaturalFlow!G56+TotalNaturalFlow!F56 -> 97,056 | H56: =InterveningNaturalFlow!H56 -> 14,847 | I56: =InterveningNaturalFlow!I56+TotalNaturalFlow!H56+TotalNaturalFlow!G56+TotalNaturalFlow!C56 -> 191,815 | J56: =InterveningNaturalFlow!J56 -> 6,000 | K56: =InterveningNaturalFlow!K56+TotalNaturalFlow!J56 -> 9,553 | L56: =InterveningNaturalFlow!L56+TotalNaturalFlow!K56 -> 24,642 | M56: =InterveningNaturalFlow!M56 -> 15,600 | N56: =InterveningNaturalFlow!N56 -> 5,107 | O56: =InterveningNaturalFlow!O56 -> 33,343 | P56: =InterveningNaturalFlow!P56 -> 9,843 | Q56: =InterveningNaturalFlow!Q56+TotalNaturalFlow!P56+TotalNaturalFlow!O56+TotalNaturalFlow!N56+TotalNaturalFlow!M56+TotalNaturalFlow!L56 -> 79,389 | R56: =InterveningNaturalFlow!R56 -> 7,700 | S56: =InterveningNaturalFlow!S56 -> 34,734 | T56: =InterveningNaturalFlow!T56+TotalNaturalFlow!S56 -> 71,355 | U56: =InterveningNaturalFlow!U56+TotalNaturalFlow!T56+TotalNaturalFlow!R56+TotalNaturalFlow!Q56+TotalNaturalFlow!I56 -> 377,548 | W56: =InterveningNaturalFlow!W56 -> 938 | X56: =InterveningNaturalFlow!X56 -> 20 | Y56: =InterveningNaturalFlow!Y56+TotalNaturalFlow!X56+TotalNaturalFlow!W56+TotalNaturalFlow!U56 -> 426,160 | Z56: =InterveningNaturalFlow!Z56 -> 11,442 | AA56: =InterveningNaturalFlow!AA56+TotalNaturalFlow!Z56+Y56 -> 476,234 | AB56: =InterveningNaturalFlow!AB56+TotalNaturalFlow!AA56 -> 493,076 | AC56: =InterveningNaturalFlow!AC56 -> 957 | AD56: =InterveningNaturalFlow!AD56+TotalNaturalFlow!AC56+AB56 -> 487,151 | AE56: =InterveningNaturalFlow!AE56+TotalNaturalFlow!AD56 -> 453,212
A57: 1910-01-31 | B57: =InterveningNaturalFlow!B57 -> 51,775 | C57: =InterveningNaturalFlow!C57+TotalNaturalFlow!B57 -> 99,758 | D57: =InterveningNaturalFlow!D57 -> 4,386 | E57: =InterveningNaturalFlow!E57+TotalNaturalFlow!D57 -> 25,000 | F57: =InterveningNaturalFlow!F57+TotalNaturalFlow!E57 -> 28,200 | G57: =InterveningNaturalFlow!G57+TotalNaturalFlow!F57 -> 81,312 | H57: =InterveningNaturalFlow!H57 -> 12,904 | I57: =InterveningNaturalFlow!I57+TotalNaturalFlow!H57+TotalNaturalFlow!G57+TotalNaturalFlow!C57 -> 196,390 | J57: =InterveningNaturalFlow!J57 -> 6,000 | K57: =InterveningNaturalFlow!K57+TotalNaturalFlow!J57 -> 18,001 | L57: =InterveningNaturalFlow!L57+TotalNaturalFlow!K57 -> 52,538 | M57: =InterveningNaturalFlow!M57 -> 9,007 | N57: =InterveningNaturalFlow!N57 -> 561 | O57: =InterveningNaturalFlow!O57 -> 22,852 | P57: =InterveningNaturalFlow!P57 -> 6,988 | Q57: =InterveningNaturalFlow!Q57+TotalNaturalFlow!P57+TotalNaturalFlow!O57+TotalNaturalFlow!N57+TotalNaturalFlow!M57+TotalNaturalFlow!L57 -> 61,488 | R57: =InterveningNaturalFlow!R57 -> 9,000 | S57: =InterveningNaturalFlow!S57 -> 42,612 | T57: =InterveningNaturalFlow!T57+TotalNaturalFlow!S57 -> 61,933 | U57: =InterveningNaturalFlow!U57+TotalNaturalFlow!T57+TotalNaturalFlow!R57+TotalNaturalFlow!Q57+TotalNaturalFlow!I57 -> 289,322 | W57: =InterveningNaturalFlow!W57 -> 1,160 | X57: =InterveningNaturalFlow!X57 -> 25 | Y57: =InterveningNaturalFlow!Y57+TotalNaturalFlow!X57+TotalNaturalFlow!W57+TotalNaturalFlow!U57 -> 316,146 | Z57: =InterveningNaturalFlow!Z57 -> 18,018 | AA57: =InterveningNaturalFlow!AA57+TotalNaturalFlow!Z57+Y57 -> 445,373 | AB57: =InterveningNaturalFlow!AB57+TotalNaturalFlow!AA57 -> 439,825 | AC57: =InterveningNaturalFlow!AC57 -> 3,342 | AD57: =InterveningNaturalFlow!AD57+TotalNaturalFlow!AC57+AB57 -> 454,408 | AE57: =InterveningNaturalFlow!AE57+TotalNaturalFlow!AD57 -> 356,053
A58: 1910-02-28 | B58: =InterveningNaturalFlow!B58 -> 40,592 | C58: =InterveningNaturalFlow!C58+TotalNaturalFlow!B58 -> 86,092 | D58: =InterveningNaturalFlow!D58 -> 4,713 | E58: =InterveningNaturalFlow!E58+TotalNaturalFlow!D58 -> 22,000 | F58: =InterveningNaturalFlow!F58+TotalNaturalFlow!E58 -> 25,500 | G58: =InterveningNaturalFlow!G58+TotalNaturalFlow!F58 -> 72,805 | H58: =InterveningNaturalFlow!H58 -> 13,732 | I58: =InterveningNaturalFlow!I58+TotalNaturalFlow!H58+TotalNaturalFlow!G58+TotalNaturalFlow!C58 -> 171,080 | J58: =InterveningNaturalFlow!J58 -> 36,000 | K58: =InterveningNaturalFlow!K58+TotalNaturalFlow!J58 -> 38,930 | L58: =InterveningNaturalFlow!L58+TotalNaturalFlow!K58 -> 92,340 | M58: =InterveningNaturalFlow!M58 -> 17,799 | N58: =InterveningNaturalFlow!N58 -> 10,929 | O58: =InterveningNaturalFlow!O58 -> 34,267 | P58: =InterveningNaturalFlow!P58 -> 16,334 | Q58: =InterveningNaturalFlow!Q58+TotalNaturalFlow!P58+TotalNaturalFlow!O58+TotalNaturalFlow!N58+TotalNaturalFlow!M58+TotalNaturalFlow!L58 -> 138,884 | R58: =InterveningNaturalFlow!R58 -> 11,100 | S58: =InterveningNaturalFlow!S58 -> 36,939 | T58: =InterveningNaturalFlow!T58+TotalNaturalFlow!S58 -> 96,171 | U58: =InterveningNaturalFlow!U58+TotalNaturalFlow!T58+TotalNaturalFlow!R58+TotalNaturalFlow!Q58+TotalNaturalFlow!I58 -> 493,565 | W58: =InterveningNaturalFlow!W58 -> 1,873 | X58: =InterveningNaturalFlow!X58 -> 1,171 | Y58: =InterveningNaturalFlow!Y58+TotalNaturalFlow!X58+TotalNaturalFlow!W58+TotalNaturalFlow!U58 -> 511,711 | Z58: =InterveningNaturalFlow!Z58 -> 16,731 | AA58: =InterveningNaturalFlow!AA58+TotalNaturalFlow!Z58+Y58 -> 597,248 | AB58: =InterveningNaturalFlow!AB58+TotalNaturalFlow!AA58 -> 599,994 | AC58: =InterveningNaturalFlow!AC58 -> 5,159 | AD58: =InterveningNaturalFlow!AD58+TotalNaturalFlow!AC58+AB58 -> 575,030 | AE58: =InterveningNaturalFlow!AE58+TotalNaturalFlow!AD58 -> 597,167
A59: 1910-03-31 | B59: =InterveningNaturalFlow!B59 -> 114,650 | C59: =InterveningNaturalFlow!C59+TotalNaturalFlow!B59 -> 191,002 | D59: =InterveningNaturalFlow!D59 -> 6,968 | E59: =InterveningNaturalFlow!E59+TotalNaturalFlow!D59 -> 89,000 | F59: =InterveningNaturalFlow!F59+TotalNaturalFlow!E59 -> 106,400 | G59: =InterveningNaturalFlow!G59+TotalNaturalFlow!F59 -> 169,413 | H59: =InterveningNaturalFlow!H59 -> 67,930 | I59: =InterveningNaturalFlow!I59+TotalNaturalFlow!H59+TotalNaturalFlow!G59+TotalNaturalFlow!C59 -> 446,735 | J59: =InterveningNaturalFlow!J59 -> 175,000 | K59: =InterveningNaturalFlow!K59+TotalNaturalFlow!J59 -> 208,611 | L59: =InterveningNaturalFlow!L59+TotalNaturalFlow!K59 -> 367,080 | M59: =InterveningNaturalFlow!M59 -> 108,466 | N59: =InterveningNaturalFlow!N59 -> 59,694 | O59: =InterveningNaturalFlow!O59 -> 64,303 | P59: =InterveningNaturalFlow!P59 -> 61,997 | Q59: =InterveningNaturalFlow!Q59+TotalNaturalFlow!P59+TotalNaturalFlow!O59+TotalNaturalFlow!N59+TotalNaturalFlow!M59+TotalNaturalFlow!L59 -> 703,181 | R59: =InterveningNaturalFlow!R59 -> 44,800 | S59: =InterveningNaturalFlow!S59 -> 139,723 | T59: =InterveningNaturalFlow!T59+TotalNaturalFlow!S59 -> 192,058 | U59: =InterveningNaturalFlow!U59+TotalNaturalFlow!T59+TotalNaturalFlow!R59+TotalNaturalFlow!Q59+TotalNaturalFlow!I59 -> 1,403,871 | W59: =InterveningNaturalFlow!W59 -> 2,023 | X59: =InterveningNaturalFlow!X59 -> 128 | Y59: =InterveningNaturalFlow!Y59+TotalNaturalFlow!X59+TotalNaturalFlow!W59+TotalNaturalFlow!U59 -> 1,420,099 | Z59: =InterveningNaturalFlow!Z59 -> 15,801 | AA59: =InterveningNaturalFlow!AA59+TotalNaturalFlow!Z59+Y59 -> 1,498,032 | AB59: =InterveningNaturalFlow!AB59+TotalNaturalFlow!AA59 -> 1,513,539 | AC59: =InterveningNaturalFlow!AC59 -> 30,874 | AD59: =InterveningNaturalFlow!AD59+TotalNaturalFlow!AC59+AB59 -> 1,496,554 | AE59: =InterveningNaturalFlow!AE59+TotalNaturalFlow!AD59 -> 1,528,030
A60: 1910-04-30 | B60: =InterveningNaturalFlow!B60 -> 192,236 | C60: =InterveningNaturalFlow!C60+TotalNaturalFlow!B60 -> 304,254 | D60: =InterveningNaturalFlow!D60 -> 13,854 | E60: =InterveningNaturalFlow!E60+TotalNaturalFlow!D60 -> 175,000 | F60: =InterveningNaturalFlow!F60+TotalNaturalFlow!E60 -> 220,400 | G60: =InterveningNaturalFlow!G60+TotalNaturalFlow!F60 -> 287,878 | H60: =InterveningNaturalFlow!H60 -> 183,623 | I60: =InterveningNaturalFlow!I60+TotalNaturalFlow!H60+TotalNaturalFlow!G60+TotalNaturalFlow!C60 -> 760,986 | J60: =InterveningNaturalFlow!J60 -> 130,000 | K60: =InterveningNaturalFlow!K60+TotalNaturalFlow!J60 -> 154,179 | L60: =InterveningNaturalFlow!L60+TotalNaturalFlow!K60 -> 254,047 | M60: =InterveningNaturalFlow!M60 -> 218,954 | N60: =InterveningNaturalFlow!N60 -> 60,900 | O60: =InterveningNaturalFlow!O60 -> 113,159 | P60: =InterveningNaturalFlow!P60 -> 76,064 | Q60: =InterveningNaturalFlow!Q60+TotalNaturalFlow!P60+TotalNaturalFlow!O60+TotalNaturalFlow!N60+TotalNaturalFlow!M60+TotalNaturalFlow!L60 -> 756,531 | R60: =InterveningNaturalFlow!R60 -> 46,808 | S60: =InterveningNaturalFlow!S60 -> 158,355 | T60: =InterveningNaturalFlow!T60+TotalNaturalFlow!S60 -> 222,056 | U60: =InterveningNaturalFlow!U60+TotalNaturalFlow!T60+TotalNaturalFlow!R60+TotalNaturalFlow!Q60+TotalNaturalFlow!I60 -> 1,730,475 | W60: =InterveningNaturalFlow!W60 -> 960 | X60: =InterveningNaturalFlow!X60 -> 22,867 | Y60: =InterveningNaturalFlow!Y60+TotalNaturalFlow!X60+TotalNaturalFlow!W60+TotalNaturalFlow!U60 -> 1,754,609 | Z60: =InterveningNaturalFlow!Z60 -> 15,151 | AA60: =InterveningNaturalFlow!AA60+TotalNaturalFlow!Z60+Y60 -> 1,843,602 | AB60: =InterveningNaturalFlow!AB60+TotalNaturalFlow!AA60 -> 1,885,654 | AC60: =InterveningNaturalFlow!AC60 -> 8,139 | AD60: =InterveningNaturalFlow!AD60+TotalNaturalFlow!AC60+AB60 -> 1,867,623 | AE60: =InterveningNaturalFlow!AE60+TotalNaturalFlow!AD60 -> 1,919,646
A61: 1910-05-31 | B61: =InterveningNaturalFlow!B61 -> 432,027 | C61: =InterveningNaturalFlow!C61+TotalNaturalFlow!B61 -> 768,762 | D61: =InterveningNaturalFlow!D61 -> 31,778 | E61: =InterveningNaturalFlow!E61+TotalNaturalFlow!D61 -> 318,010 | F61: =InterveningNaturalFlow!F61+TotalNaturalFlow!E61 -> 386,910 | G61: =InterveningNaturalFlow!G61+TotalNaturalFlow!F61 -> 600,310 | H61: =InterveningNaturalFlow!H61 -> 219,717 | I61: =InterveningNaturalFlow!I61+TotalNaturalFlow!H61+TotalNaturalFlow!G61+TotalNaturalFlow!C61 -> 1,590,971 | J61: =InterveningNaturalFlow!J61 -> 342,100 | K61: =InterveningNaturalFlow!K61+TotalNaturalFlow!J61 -> 334,682 | L61: =InterveningNaturalFlow!L61+TotalNaturalFlow!K61 -> 481,266 | M61: =InterveningNaturalFlow!M61 -> 377,300 | N61: =InterveningNaturalFlow!N61 -> 121,985 | O61: =InterveningNaturalFlow!O61 -> 223,833 | P61: =InterveningNaturalFlow!P61 -> 121,956 | Q61: =InterveningNaturalFlow!Q61+TotalNaturalFlow!P61+TotalNaturalFlow!O61+TotalNaturalFlow!N61+TotalNaturalFlow!M61+TotalNaturalFlow!L61 -> 1,384,892 | R61: =InterveningNaturalFlow!R61 -> 86,618 | S61: =InterveningNaturalFlow!S61 -> 296,042 | T61: =InterveningNaturalFlow!T61+TotalNaturalFlow!S61 -> 422,996 | U61: =InterveningNaturalFlow!U61+TotalNaturalFlow!T61+TotalNaturalFlow!R61+TotalNaturalFlow!Q61+TotalNaturalFlow!I61 -> 3,298,793 | W61: =InterveningNaturalFlow!W61 -> 474 | X61: =InterveningNaturalFlow!X61 -> 0 | Y61: =InterveningNaturalFlow!Y61+TotalNaturalFlow!X61+TotalNaturalFlow!W61+TotalNaturalFlow!U61 -> 3,272,850 | Z61: =InterveningNaturalFlow!Z61 -> 14,161 | AA61: =InterveningNaturalFlow!AA61+TotalNaturalFlow!Z61+Y61 -> 3,296,973 | AB61: =InterveningNaturalFlow!AB61+TotalNaturalFlow!AA61 -> 3,319,453 | AC61: =InterveningNaturalFlow!AC61 -> 5,808 | AD61: =InterveningNaturalFlow!AD61+TotalNaturalFlow!AC61+AB61 -> 3,309,381 | AE61: =InterveningNaturalFlow!AE61+TotalNaturalFlow!AD61 -> 3,291,384
A62: 1910-06-30 | B62: =InterveningNaturalFlow!B62 -> 495,871 | C62: =InterveningNaturalFlow!C62+TotalNaturalFlow!B62 -> 848,223 | D62: =InterveningNaturalFlow!D62 -> 34,431 | E62: =InterveningNaturalFlow!E62+TotalNaturalFlow!D62 -> 285,828 | F62: =InterveningNaturalFlow!F62+TotalNaturalFlow!E62 -> 334,328 | G62: =InterveningNaturalFlow!G62+TotalNaturalFlow!F62 -> 486,439 | H62: =InterveningNaturalFlow!H62 -> 124,793 | I62: =InterveningNaturalFlow!I62+TotalNaturalFlow!H62+TotalNaturalFlow!G62+TotalNaturalFlow!C62 -> 1,508,761 | J62: =InterveningNaturalFlow!J62 -> 268,400 | K62: =InterveningNaturalFlow!K62+TotalNaturalFlow!J62 -> 285,014 | L62: =InterveningNaturalFlow!L62+TotalNaturalFlow!K62 -> 323,218 | M62: =InterveningNaturalFlow!M62 -> 210,148 | N62: =InterveningNaturalFlow!N62 -> 93,751 | O62: =InterveningNaturalFlow!O62 -> 130,359 | P62: =InterveningNaturalFlow!P62 -> 106,681 | Q62: =InterveningNaturalFlow!Q62+TotalNaturalFlow!P62+TotalNaturalFlow!O62+TotalNaturalFlow!N62+TotalNaturalFlow!M62+TotalNaturalFlow!L62 -> 988,093 | R62: =InterveningNaturalFlow!R62 -> 33,389 | S62: =InterveningNaturalFlow!S62 -> 212,636 | T62: =InterveningNaturalFlow!T62+TotalNaturalFlow!S62 -> 419,321 | U62: =InterveningNaturalFlow!U62+TotalNaturalFlow!T62+TotalNaturalFlow!R62+TotalNaturalFlow!Q62+TotalNaturalFlow!I62 -> 3,101,705 | W62: =InterveningNaturalFlow!W62 -> 345 | X62: =InterveningNaturalFlow!X62 -> 378 | Y62: =InterveningNaturalFlow!Y62+TotalNaturalFlow!X62+TotalNaturalFlow!W62+TotalNaturalFlow!U62 -> 3,139,482 | Z62: =InterveningNaturalFlow!Z62 -> 5,768 | AA62: =InterveningNaturalFlow!AA62+TotalNaturalFlow!Z62+Y62 -> 3,176,657 | AB62: =InterveningNaturalFlow!AB62+TotalNaturalFlow!AA62 -> 3,197,977 | AC62: =InterveningNaturalFlow!AC62 -> 30 | AD62: =InterveningNaturalFlow!AD62+TotalNaturalFlow!AC62+AB62 -> 3,208,332 | AE62: =InterveningNaturalFlow!AE62+TotalNaturalFlow!AD62 -> 3,136,176
A63: 1910-07-31 | B63: =InterveningNaturalFlow!B63 -> 168,640 | C63: =InterveningNaturalFlow!C63+TotalNaturalFlow!B63 -> 348,828 | D63: =InterveningNaturalFlow!D63 -> 17,958 | E63: =InterveningNaturalFlow!E63+TotalNaturalFlow!D63 -> 104,082 | F63: =InterveningNaturalFlow!F63+TotalNaturalFlow!E63 -> 112,382 | G63: =InterveningNaturalFlow!G63+TotalNaturalFlow!F63 -> 224,692 | H63: =InterveningNaturalFlow!H63 -> 46,510 | I63: =InterveningNaturalFlow!I63+TotalNaturalFlow!H63+TotalNaturalFlow!G63+TotalNaturalFlow!C63 -> 649,248 | J63: =InterveningNaturalFlow!J63 -> 88,800 | K63: =InterveningNaturalFlow!K63+TotalNaturalFlow!J63 -> 96,863 | L63: =InterveningNaturalFlow!L63+TotalNaturalFlow!K63 -> 134,692 | M63: =InterveningNaturalFlow!M63 -> 57,125 | N63: =InterveningNaturalFlow!N63 -> 44,157 | O63: =InterveningNaturalFlow!O63 -> 47,440 | P63: =InterveningNaturalFlow!P63 -> 50,868 | Q63: =InterveningNaturalFlow!Q63+TotalNaturalFlow!P63+TotalNaturalFlow!O63+TotalNaturalFlow!N63+TotalNaturalFlow!M63+TotalNaturalFlow!L63 -> 394,148 | R63: =InterveningNaturalFlow!R63 -> 28,193 | S63: =InterveningNaturalFlow!S63 -> 65,487 | T63: =InterveningNaturalFlow!T63+TotalNaturalFlow!S63 -> 190,581 | U63: =InterveningNaturalFlow!U63+TotalNaturalFlow!T63+TotalNaturalFlow!R63+TotalNaturalFlow!Q63+TotalNaturalFlow!I63 -> 1,373,125 | W63: =InterveningNaturalFlow!W63 -> 1,192 | X63: =InterveningNaturalFlow!X63 -> 196 | Y63: =InterveningNaturalFlow!Y63+TotalNaturalFlow!X63+TotalNaturalFlow!W63+TotalNaturalFlow!U63 -> 1,376,624 | Z63: =InterveningNaturalFlow!Z63 -> 5,410 | AA63: =InterveningNaturalFlow!AA63+TotalNaturalFlow!Z63+Y63 -> 1,469,385 | AB63: =InterveningNaturalFlow!AB63+TotalNaturalFlow!AA63 -> 1,543,918 | AC63: =InterveningNaturalFlow!AC63 -> 5 | AD63: =InterveningNaturalFlow!AD63+TotalNaturalFlow!AC63+AB63 -> 1,572,668 | AE63: =InterveningNaturalFlow!AE63+TotalNaturalFlow!AD63 -> 1,514,086
A64: 1910-08-31 | B64: =InterveningNaturalFlow!B64 -> 103,566 | C64: =InterveningNaturalFlow!C64+TotalNaturalFlow!B64 -> 186,682 | D64: =InterveningNaturalFlow!D64 -> 9,057 | E64: =InterveningNaturalFlow!E64+TotalNaturalFlow!D64 -> 62,070 | F64: =InterveningNaturalFlow!F64+TotalNaturalFlow!E64 -> 77,670 | G64: =InterveningNaturalFlow!G64+TotalNaturalFlow!F64 -> 114,280 | H64: =InterveningNaturalFlow!H64 -> 24,999 | I64: =InterveningNaturalFlow!I64+TotalNaturalFlow!H64+TotalNaturalFlow!G64+TotalNaturalFlow!C64 -> 330,405 | J64: =InterveningNaturalFlow!J64 -> 72,900 | K64: =InterveningNaturalFlow!K64+TotalNaturalFlow!J64 -> 76,460 | L64: =InterveningNaturalFlow!L64+TotalNaturalFlow!K64 -> 106,485 | M64: =InterveningNaturalFlow!M64 -> 26,390 | N64: =InterveningNaturalFlow!N64 -> 36,959 | O64: =InterveningNaturalFlow!O64 -> 20,580 | P64: =InterveningNaturalFlow!P64 -> 38,697 | Q64: =InterveningNaturalFlow!Q64+TotalNaturalFlow!P64+TotalNaturalFlow!O64+TotalNaturalFlow!N64+TotalNaturalFlow!M64+TotalNaturalFlow!L64 -> 269,070 | R64: =InterveningNaturalFlow!R64 -> 14,078 | S64: =InterveningNaturalFlow!S64 -> 63,802 | T64: =InterveningNaturalFlow!T64+TotalNaturalFlow!S64 -> 114,681 | U64: =InterveningNaturalFlow!U64+TotalNaturalFlow!T64+TotalNaturalFlow!R64+TotalNaturalFlow!Q64+TotalNaturalFlow!I64 -> 866,631 | W64: =InterveningNaturalFlow!W64 -> 2,144 | X64: =InterveningNaturalFlow!X64 -> 447 | Y64: =InterveningNaturalFlow!Y64+TotalNaturalFlow!X64+TotalNaturalFlow!W64+TotalNaturalFlow!U64 -> 854,015 | Z64: =InterveningNaturalFlow!Z64 -> 7,176 | AA64: =InterveningNaturalFlow!AA64+TotalNaturalFlow!Z64+Y64 -> 920,587 | AB64: =InterveningNaturalFlow!AB64+TotalNaturalFlow!AA64 -> 979,313 | AC64: =InterveningNaturalFlow!AC64 -> 60 | AD64: =InterveningNaturalFlow!AD64+TotalNaturalFlow!AC64+AB64 -> 975,349 | AE64: =InterveningNaturalFlow!AE64+TotalNaturalFlow!AD64 -> 935,887
A65: 1910-09-30 | B65: =InterveningNaturalFlow!B65 -> 91,501 | C65: =InterveningNaturalFlow!C65+TotalNaturalFlow!B65 -> 145,071 | D65: =InterveningNaturalFlow!D65 -> 9,612 | E65: =InterveningNaturalFlow!E65+TotalNaturalFlow!D65 -> 42,838 | F65: =InterveningNaturalFlow!F65+TotalNaturalFlow!E65 -> 46,238 | G65: =InterveningNaturalFlow!G65+TotalNaturalFlow!F65 -> 95,998 | H65: =InterveningNaturalFlow!H65 -> 22,694 | I65: =InterveningNaturalFlow!I65+TotalNaturalFlow!H65+TotalNaturalFlow!G65+TotalNaturalFlow!C65 -> 265,156 | J65: =InterveningNaturalFlow!J65 -> 32,300 | K65: =InterveningNaturalFlow!K65+TotalNaturalFlow!J65 -> 38,223 | L65: =InterveningNaturalFlow!L65+TotalNaturalFlow!K65 -> 57,785 | M65: =InterveningNaturalFlow!M65 -> 23,482 | N65: =InterveningNaturalFlow!N65 -> 25,140 | O65: =InterveningNaturalFlow!O65 -> 25,777 | P65: =InterveningNaturalFlow!P65 -> 29,259 | Q65: =InterveningNaturalFlow!Q65+TotalNaturalFlow!P65+TotalNaturalFlow!O65+TotalNaturalFlow!N65+TotalNaturalFlow!M65+TotalNaturalFlow!L65 -> 176,999 | R65: =InterveningNaturalFlow!R65 -> 17,015 | S65: =InterveningNaturalFlow!S65 -> 34,148 | T65: =InterveningNaturalFlow!T65+TotalNaturalFlow!S65 -> 94,615 | U65: =InterveningNaturalFlow!U65+TotalNaturalFlow!T65+TotalNaturalFlow!R65+TotalNaturalFlow!Q65+TotalNaturalFlow!I65 -> 630,999 | W65: =InterveningNaturalFlow!W65 -> 1,306 | X65: =InterveningNaturalFlow!X65 -> 37,591 | Y65: =InterveningNaturalFlow!Y65+TotalNaturalFlow!X65+TotalNaturalFlow!W65+TotalNaturalFlow!U65 -> 713,165 | Z65: =InterveningNaturalFlow!Z65 -> 7,161 | AA65: =InterveningNaturalFlow!AA65+TotalNaturalFlow!Z65+Y65 -> 710,189 | AB65: =InterveningNaturalFlow!AB65+TotalNaturalFlow!AA65 -> 736,663 | AC65: =InterveningNaturalFlow!AC65 -> 96 | AD65: =InterveningNaturalFlow!AD65+TotalNaturalFlow!AC65+AB65 -> 752,225 | AE65: =InterveningNaturalFlow!AE65+TotalNaturalFlow!AD65 -> 688,659
A66: 1910-10-31 | B66: =InterveningNaturalFlow!B66 -> 61,615 | C66: =InterveningNaturalFlow!C66+TotalNaturalFlow!B66 -> 110,730 | D66: =InterveningNaturalFlow!D66 -> 6,837 | E66: =InterveningNaturalFlow!E66+TotalNaturalFlow!D66 -> 35,200 | F66: =InterveningNaturalFlow!F66+TotalNaturalFlow!E66 -> 37,600 | G66: =InterveningNaturalFlow!G66+TotalNaturalFlow!F66 -> 79,857 | H66: =InterveningNaturalFlow!H66 -> 35,700 | I66: =InterveningNaturalFlow!I66+TotalNaturalFlow!H66+TotalNaturalFlow!G66+TotalNaturalFlow!C66 -> 245,777 | J66: =InterveningNaturalFlow!J66 -> 56,400 | K66: =InterveningNaturalFlow!K66+TotalNaturalFlow!J66 -> 54,599 | L66: =InterveningNaturalFlow!L66+TotalNaturalFlow!K66 -> 83,182 | M66: =InterveningNaturalFlow!M66 -> 22,912 | N66: =InterveningNaturalFlow!N66 -> 14,540 | O66: =InterveningNaturalFlow!O66 -> 36,966 | P66: =InterveningNaturalFlow!P66 -> 27,044 | Q66: =InterveningNaturalFlow!Q66+TotalNaturalFlow!P66+TotalNaturalFlow!O66+TotalNaturalFlow!N66+TotalNaturalFlow!M66+TotalNaturalFlow!L66 -> 204,179 | R66: =InterveningNaturalFlow!R66 -> 13,808 | S66: =InterveningNaturalFlow!S66 -> 74,752 | T66: =InterveningNaturalFlow!T66+TotalNaturalFlow!S66 -> 133,241 | U66: =InterveningNaturalFlow!U66+TotalNaturalFlow!T66+TotalNaturalFlow!R66+TotalNaturalFlow!Q66+TotalNaturalFlow!I66 -> 616,468 | W66: =InterveningNaturalFlow!W66 -> 4,344 | X66: =InterveningNaturalFlow!X66 -> 37,352 | Y66: =InterveningNaturalFlow!Y66+TotalNaturalFlow!X66+TotalNaturalFlow!W66+TotalNaturalFlow!U66 -> 676,675 | Z66: =InterveningNaturalFlow!Z66 -> 6,790 | AA66: =InterveningNaturalFlow!AA66+TotalNaturalFlow!Z66+Y66 -> 702,649 | AB66: =InterveningNaturalFlow!AB66+TotalNaturalFlow!AA66 -> 695,466 | AC66: =InterveningNaturalFlow!AC66 -> 218 | AD66: =InterveningNaturalFlow!AD66+TotalNaturalFlow!AC66+AB66 -> 722,473 | AE66: =InterveningNaturalFlow!AE66+TotalNaturalFlow!AD66 -> 781,078
A67: 1910-11-30 | B67: =InterveningNaturalFlow!B67 -> 53,782 | C67: =InterveningNaturalFlow!C67+TotalNaturalFlow!B67 -> 97,728 | D67: =InterveningNaturalFlow!D67 -> 4,605 | E67: =InterveningNaturalFlow!E67+TotalNaturalFlow!D67 -> 29,000 | F67: =InterveningNaturalFlow!F67+TotalNaturalFlow!E67 -> 32,700 | G67: =InterveningNaturalFlow!G67+TotalNaturalFlow!F67 -> 67,316 | H67: =InterveningNaturalFlow!H67 -> 13,520 | I67: =InterveningNaturalFlow!I67+TotalNaturalFlow!H67+TotalNaturalFlow!G67+TotalNaturalFlow!C67 -> 197,150 | J67: =InterveningNaturalFlow!J67 -> 39,000 | K67: =InterveningNaturalFlow!K67+TotalNaturalFlow!J67 -> 41,725 | L67: =InterveningNaturalFlow!L67+TotalNaturalFlow!K67 -> 44,059 | M67: =InterveningNaturalFlow!M67 -> 23,403 | N67: =InterveningNaturalFlow!N67 -> 10,499 | O67: =InterveningNaturalFlow!O67 -> 23,612 | P67: =InterveningNaturalFlow!P67 -> 21,739 | Q67: =InterveningNaturalFlow!Q67+TotalNaturalFlow!P67+TotalNaturalFlow!O67+TotalNaturalFlow!N67+TotalNaturalFlow!M67+TotalNaturalFlow!L67 -> 135,292 | R67: =InterveningNaturalFlow!R67 -> 5,905 | S67: =InterveningNaturalFlow!S67 -> 61,239 | T67: =InterveningNaturalFlow!T67+TotalNaturalFlow!S67 -> 85,549 | U67: =InterveningNaturalFlow!U67+TotalNaturalFlow!T67+TotalNaturalFlow!R67+TotalNaturalFlow!Q67+TotalNaturalFlow!I67 -> 445,769 | W67: =InterveningNaturalFlow!W67 -> 2,797 | X67: =InterveningNaturalFlow!X67 -> 41,747 | Y67: =InterveningNaturalFlow!Y67+TotalNaturalFlow!X67+TotalNaturalFlow!W67+TotalNaturalFlow!U67 -> 517,211 | Z67: =InterveningNaturalFlow!Z67 -> 8,712 | AA67: =InterveningNaturalFlow!AA67+TotalNaturalFlow!Z67+Y67 -> 601,069 | AB67: =InterveningNaturalFlow!AB67+TotalNaturalFlow!AA67 -> 610,400 | AC67: =InterveningNaturalFlow!AC67 -> 552 | AD67: =InterveningNaturalFlow!AD67+TotalNaturalFlow!AC67+AB67 -> 562,112 | AE67: =InterveningNaturalFlow!AE67+TotalNaturalFlow!AD67 -> 540,735
A68: 1910-12-31 | B68: =InterveningNaturalFlow!B68 -> 40,929 | C68: =InterveningNaturalFlow!C68+TotalNaturalFlow!B68 -> 88,452 | D68: =InterveningNaturalFlow!D68 -> 4,979 | E68: =InterveningNaturalFlow!E68+TotalNaturalFlow!D68 -> 27,000 | F68: =InterveningNaturalFlow!F68+TotalNaturalFlow!E68 -> 29,500 | G68: =InterveningNaturalFlow!G68+TotalNaturalFlow!F68 -> 73,624 | H68: =InterveningNaturalFlow!H68 -> 11,418 | I68: =InterveningNaturalFlow!I68+TotalNaturalFlow!H68+TotalNaturalFlow!G68+TotalNaturalFlow!C68 -> 182,360 | J68: =InterveningNaturalFlow!J68 -> 21,000 | K68: =InterveningNaturalFlow!K68+TotalNaturalFlow!J68 -> 33,814 | L68: =InterveningNaturalFlow!L68+TotalNaturalFlow!K68 -> 44,001 | M68: =InterveningNaturalFlow!M68 -> 18,017 | N68: =InterveningNaturalFlow!N68 -> 3,293 | O68: =InterveningNaturalFlow!O68 -> 25,818 | P68: =InterveningNaturalFlow!P68 -> 15,365 | Q68: =InterveningNaturalFlow!Q68+TotalNaturalFlow!P68+TotalNaturalFlow!O68+TotalNaturalFlow!N68+TotalNaturalFlow!M68+TotalNaturalFlow!L68 -> 93,204 | R68: =InterveningNaturalFlow!R68 -> 6,200 | S68: =InterveningNaturalFlow!S68 -> 59,311 | T68: =InterveningNaturalFlow!T68+TotalNaturalFlow!S68 -> 56,540 | U68: =InterveningNaturalFlow!U68+TotalNaturalFlow!T68+TotalNaturalFlow!R68+TotalNaturalFlow!Q68+TotalNaturalFlow!I68 -> 345,922 | W68: =InterveningNaturalFlow!W68 -> 1,416 | X68: =InterveningNaturalFlow!X68 -> 0 | Y68: =InterveningNaturalFlow!Y68+TotalNaturalFlow!X68+TotalNaturalFlow!W68+TotalNaturalFlow!U68 -> 394,058 | Z68: =InterveningNaturalFlow!Z68 -> 13,726 | AA68: =InterveningNaturalFlow!AA68+TotalNaturalFlow!Z68+Y68 -> 474,885 | AB68: =InterveningNaturalFlow!AB68+TotalNaturalFlow!AA68 -> 491,554 | AC68: =InterveningNaturalFlow!AC68 -> 4,211 | AD68: =InterveningNaturalFlow!AD68+TotalNaturalFlow!AC68+AB68 -> 482,576 | AE68: =InterveningNaturalFlow!AE68+TotalNaturalFlow!AD68 -> 467,360
A69: 1911-01-31 | B69: =InterveningNaturalFlow!B69 -> 43,131 | C69: =InterveningNaturalFlow!C69+TotalNaturalFlow!B69 -> 82,607 | D69: =InterveningNaturalFlow!D69 -> 4,984 | E69: =InterveningNaturalFlow!E69+TotalNaturalFlow!D69 -> 26,000 | F69: =InterveningNaturalFlow!F69+TotalNaturalFlow!E69 -> 28,900 | G69: =InterveningNaturalFlow!G69+TotalNaturalFlow!F69 -> 68,510 | H69: =InterveningNaturalFlow!H69 -> 9,317 | I69: =InterveningNaturalFlow!I69+TotalNaturalFlow!H69+TotalNaturalFlow!G69+TotalNaturalFlow!C69 -> 165,040 | J69: =InterveningNaturalFlow!J69 -> 47,000 | K69: =InterveningNaturalFlow!K69+TotalNaturalFlow!J69 -> 47,421 | L69: =InterveningNaturalFlow!L69+TotalNaturalFlow!K69 -> 81,327 | M69: =InterveningNaturalFlow!M69 -> 16,169 | N69: =InterveningNaturalFlow!N69 -> 8,115 | O69: =InterveningNaturalFlow!O69 -> 27,104 | P69: =InterveningNaturalFlow!P69 -> 15,618 | Q69: =InterveningNaturalFlow!Q69+TotalNaturalFlow!P69+TotalNaturalFlow!O69+TotalNaturalFlow!N69+TotalNaturalFlow!M69+TotalNaturalFlow!L69 -> 143,325 | R69: =InterveningNaturalFlow!R69 -> 13,800 | S69: =InterveningNaturalFlow!S69 -> 38,838 | T69: =InterveningNaturalFlow!T69+TotalNaturalFlow!S69 -> 55,480 | U69: =InterveningNaturalFlow!U69+TotalNaturalFlow!T69+TotalNaturalFlow!R69+TotalNaturalFlow!Q69+TotalNaturalFlow!I69 -> 367,374 | W69: =InterveningNaturalFlow!W69 -> 2,635 | X69: =InterveningNaturalFlow!X69 -> 11 | Y69: =InterveningNaturalFlow!Y69+TotalNaturalFlow!X69+TotalNaturalFlow!W69+TotalNaturalFlow!U69 -> 406,202 | Z69: =InterveningNaturalFlow!Z69 -> 22,067 | AA69: =InterveningNaturalFlow!AA69+TotalNaturalFlow!Z69+Y69 -> 527,891 | AB69: =InterveningNaturalFlow!AB69+TotalNaturalFlow!AA69 -> 546,961 | AC69: =InterveningNaturalFlow!AC69 -> 7,275 | AD69: =InterveningNaturalFlow!AD69+TotalNaturalFlow!AC69+AB69 -> 524,423 | AE69: =InterveningNaturalFlow!AE69+TotalNaturalFlow!AD69 -> 342,422
A70: 1911-02-28 | B70: =InterveningNaturalFlow!B70 -> 41,643 | C70: =InterveningNaturalFlow!C70+TotalNaturalFlow!B70 -> 75,516 | D70: =InterveningNaturalFlow!D70 -> 3,524 | E70: =InterveningNaturalFlow!E70+TotalNaturalFlow!D70 -> 21,000 | F70: =InterveningNaturalFlow!F70+TotalNaturalFlow!E70 -> 25,500 | G70: =InterveningNaturalFlow!G70+TotalNaturalFlow!F70 -> 70,011 | H70: =InterveningNaturalFlow!H70 -> 12,104 | I70: =InterveningNaturalFlow!I70+TotalNaturalFlow!H70+TotalNaturalFlow!G70+TotalNaturalFlow!C70 -> 161,040 | J70: =InterveningNaturalFlow!J70 -> 56,000 | K70: =InterveningNaturalFlow!K70+TotalNaturalFlow!J70 -> 52,039 | L70: =InterveningNaturalFlow!L70+TotalNaturalFlow!K70 -> 102,389 | M70: =InterveningNaturalFlow!M70 -> 20,754 | N70: =InterveningNaturalFlow!N70 -> 14,712 | O70: =InterveningNaturalFlow!O70 -> 29,852 | P70: =InterveningNaturalFlow!P70 -> 24,050 | Q70: =InterveningNaturalFlow!Q70+TotalNaturalFlow!P70+TotalNaturalFlow!O70+TotalNaturalFlow!N70+TotalNaturalFlow!M70+TotalNaturalFlow!L70 -> 191,108 | R70: =InterveningNaturalFlow!R70 -> 10,900 | S70: =InterveningNaturalFlow!S70 -> 52,036 | T70: =InterveningNaturalFlow!T70+TotalNaturalFlow!S70 -> 90,839 | U70: =InterveningNaturalFlow!U70+TotalNaturalFlow!T70+TotalNaturalFlow!R70+TotalNaturalFlow!Q70+TotalNaturalFlow!I70 -> 482,597 | W70: =InterveningNaturalFlow!W70 -> 2,455 | X70: =InterveningNaturalFlow!X70 -> 296 | Y70: =InterveningNaturalFlow!Y70+TotalNaturalFlow!X70+TotalNaturalFlow!W70+TotalNaturalFlow!U70 -> 521,715 | Z70: =InterveningNaturalFlow!Z70 -> 26,893 | AA70: =InterveningNaturalFlow!AA70+TotalNaturalFlow!Z70+Y70 -> 608,968 | AB70: =InterveningNaturalFlow!AB70+TotalNaturalFlow!AA70 -> 619,601 | AC70: =InterveningNaturalFlow!AC70 -> 12,340 | AD70: =InterveningNaturalFlow!AD70+TotalNaturalFlow!AC70+AB70 -> 584,073 | AE70: =InterveningNaturalFlow!AE70+TotalNaturalFlow!AD70 -> 605,887
A71: 1911-03-31 | B71: =InterveningNaturalFlow!B71 -> 57,967 | C71: =InterveningNaturalFlow!C71+TotalNaturalFlow!B71 -> 117,559 | D71: =InterveningNaturalFlow!D71 -> 4,372 | E71: =InterveningNaturalFlow!E71+TotalNaturalFlow!D71 -> 36,000 | F71: =InterveningNaturalFlow!F71+TotalNaturalFlow!E71 -> 43,000 | G71: =InterveningNaturalFlow!G71+TotalNaturalFlow!F71 -> 132,387 | H71: =InterveningNaturalFlow!H71 -> 56,146 | I71: =InterveningNaturalFlow!I71+TotalNaturalFlow!H71+TotalNaturalFlow!G71+TotalNaturalFlow!C71 -> 328,050 | J71: =InterveningNaturalFlow!J71 -> 97,000 | K71: =InterveningNaturalFlow!K71+TotalNaturalFlow!J71 -> 103,328 | L71: =InterveningNaturalFlow!L71+TotalNaturalFlow!K71 -> 196,738 | M71: =InterveningNaturalFlow!M71 -> 60,804 | N71: =InterveningNaturalFlow!N71 -> 36,022 | O71: =InterveningNaturalFlow!O71 -> 32,114 | P71: =InterveningNaturalFlow!P71 -> 36,930 | Q71: =InterveningNaturalFlow!Q71+TotalNaturalFlow!P71+TotalNaturalFlow!O71+TotalNaturalFlow!N71+TotalNaturalFlow!M71+TotalNaturalFlow!L71 -> 386,323 | R71: =InterveningNaturalFlow!R71 -> 10,100 | S71: =InterveningNaturalFlow!S71 -> 118,296 | T71: =InterveningNaturalFlow!T71+TotalNaturalFlow!S71 -> 177,880 | U71: =InterveningNaturalFlow!U71+TotalNaturalFlow!T71+TotalNaturalFlow!R71+TotalNaturalFlow!Q71+TotalNaturalFlow!I71 -> 902,111 | W71: =InterveningNaturalFlow!W71 -> 3,288 | X71: =InterveningNaturalFlow!X71 -> 251 | Y71: =InterveningNaturalFlow!Y71+TotalNaturalFlow!X71+TotalNaturalFlow!W71+TotalNaturalFlow!U71 -> 928,727 | Z71: =InterveningNaturalFlow!Z71 -> 23,521 | AA71: =InterveningNaturalFlow!AA71+TotalNaturalFlow!Z71+Y71 -> 1,017,618 | AB71: =InterveningNaturalFlow!AB71+TotalNaturalFlow!AA71 -> 1,026,182 | AC71: =InterveningNaturalFlow!AC71 -> 66,894 | AD71: =InterveningNaturalFlow!AD71+TotalNaturalFlow!AC71+AB71 -> 1,013,979 | AE71: =InterveningNaturalFlow!AE71+TotalNaturalFlow!AD71 -> 1,022,329
A72: 1911-04-30 | B72: =InterveningNaturalFlow!B72 -> 107,070 | C72: =InterveningNaturalFlow!C72+TotalNaturalFlow!B72 -> 181,368 | D72: =InterveningNaturalFlow!D72 -> 6,174 | E72: =InterveningNaturalFlow!E72+TotalNaturalFlow!D72 -> 110,000 | F72: =InterveningNaturalFlow!F72+TotalNaturalFlow!E72 -> 137,000 | G72: =InterveningNaturalFlow!G72+TotalNaturalFlow!F72 -> 150,962 | H72: =InterveningNaturalFlow!H72 -> 121,106 | I72: =InterveningNaturalFlow!I72+TotalNaturalFlow!H72+TotalNaturalFlow!G72+TotalNaturalFlow!C72 -> 454,392 | J72: =InterveningNaturalFlow!J72 -> 45,000 | K72: =InterveningNaturalFlow!K72+TotalNaturalFlow!J72 -> 45,498 | L72: =InterveningNaturalFlow!L72+TotalNaturalFlow!K72 -> 82,138 | M72: =InterveningNaturalFlow!M72 -> 123,326 | N72: =InterveningNaturalFlow!N72 -> 18,500 | O72: =InterveningNaturalFlow!O72 -> 28,701 | P72: =InterveningNaturalFlow!P72 -> 50,941 | Q72: =InterveningNaturalFlow!Q72+TotalNaturalFlow!P72+TotalNaturalFlow!O72+TotalNaturalFlow!N72+TotalNaturalFlow!M72+TotalNaturalFlow!L72 -> 328,283 | R72: =InterveningNaturalFlow!R72 -> 9,708 | S72: =InterveningNaturalFlow!S72 -> 254,590 | T72: =InterveningNaturalFlow!T72+TotalNaturalFlow!S72 -> 299,579 | U72: =InterveningNaturalFlow!U72+TotalNaturalFlow!T72+TotalNaturalFlow!R72+TotalNaturalFlow!Q72+TotalNaturalFlow!I72 -> 951,815 | W72: =InterveningNaturalFlow!W72 -> 1,640 | X72: =InterveningNaturalFlow!X72 -> 0 | Y72: =InterveningNaturalFlow!Y72+TotalNaturalFlow!X72+TotalNaturalFlow!W72+TotalNaturalFlow!U72 -> 995,684 | Z72: =InterveningNaturalFlow!Z72 -> 29,888 | AA72: =InterveningNaturalFlow!AA72+TotalNaturalFlow!Z72+Y72 -> 1,048,603 | AB72: =InterveningNaturalFlow!AB72+TotalNaturalFlow!AA72 -> 1,070,762 | AC72: =InterveningNaturalFlow!AC72 -> 32,072 | AD72: =InterveningNaturalFlow!AD72+TotalNaturalFlow!AC72+AB72 -> 1,039,759 | AE72: =InterveningNaturalFlow!AE72+TotalNaturalFlow!AD72 -> 999,758
A73: 1911-05-31 | B73: =InterveningNaturalFlow!B73 -> 505,588 | C73: =InterveningNaturalFlow!C73+TotalNaturalFlow!B73 -> 785,713 | D73: =InterveningNaturalFlow!D73 -> 34,843 | E73: =InterveningNaturalFlow!E73+TotalNaturalFlow!D73 -> 330,010 | F73: =InterveningNaturalFlow!F73+TotalNaturalFlow!E73 -> 401,010 | G73: =InterveningNaturalFlow!G73+TotalNaturalFlow!F73 -> 638,043 | H73: =InterveningNaturalFlow!H73 -> 214,879 | I73: =InterveningNaturalFlow!I73+TotalNaturalFlow!H73+TotalNaturalFlow!G73+TotalNaturalFlow!C73 -> 1,666,494 | J73: =InterveningNaturalFlow!J73 -> 32,900 | K73: =InterveningNaturalFlow!K73+TotalNaturalFlow!J73 -> 43,299 | L73: =InterveningNaturalFlow!L73+TotalNaturalFlow!K73 -> 122,452 | M73: =InterveningNaturalFlow!M73 -> 364,002 | N73: =InterveningNaturalFlow!N73 -> 54,311 | O73: =InterveningNaturalFlow!O73 -> 131,443 | P73: =InterveningNaturalFlow!P73 -> 102,063 | Q73: =InterveningNaturalFlow!Q73+TotalNaturalFlow!P73+TotalNaturalFlow!O73+TotalNaturalFlow!N73+TotalNaturalFlow!M73+TotalNaturalFlow!L73 -> 780,979 | R73: =InterveningNaturalFlow!R73 -> 38,918 | S73: =InterveningNaturalFlow!S73 -> 463,704 | T73: =InterveningNaturalFlow!T73+TotalNaturalFlow!S73 -> 653,057 | U73: =InterveningNaturalFlow!U73+TotalNaturalFlow!T73+TotalNaturalFlow!R73+TotalNaturalFlow!Q73+TotalNaturalFlow!I73 -> 2,924,637 | W73: =InterveningNaturalFlow!W73 -> 986 | X73: =InterveningNaturalFlow!X73 -> 6,618 | Y73: =InterveningNaturalFlow!Y73+TotalNaturalFlow!X73+TotalNaturalFlow!W73+TotalNaturalFlow!U73 -> 2,910,679 | Z73: =InterveningNaturalFlow!Z73 -> 25,958 | AA73: =InterveningNaturalFlow!AA73+TotalNaturalFlow!Z73+Y73 -> 2,964,347 | AB73: =InterveningNaturalFlow!AB73+TotalNaturalFlow!AA73 -> 2,952,069 | AC73: =InterveningNaturalFlow!AC73 -> 52 | AD73: =InterveningNaturalFlow!AD73+TotalNaturalFlow!AC73+AB73 -> 2,952,264 | AE73: =InterveningNaturalFlow!AE73+TotalNaturalFlow!AD73 -> 2,855,371
A74: 1911-06-30 | B74: =InterveningNaturalFlow!B74 -> 720,399 | C74: =InterveningNaturalFlow!C74+TotalNaturalFlow!B74 -> 1,113,756 | D74: =InterveningNaturalFlow!D74 -> 68,639 | E74: =InterveningNaturalFlow!E74+TotalNaturalFlow!D74 -> 452,928 | F74: =InterveningNaturalFlow!F74+TotalNaturalFlow!E74 -> 532,328 | G74: =InterveningNaturalFlow!G74+TotalNaturalFlow!F74 -> 684,676 | H74: =InterveningNaturalFlow!H74 -> 150,495 | I74: =InterveningNaturalFlow!I74+TotalNaturalFlow!H74+TotalNaturalFlow!G74+TotalNaturalFlow!C74 -> 2,032,886 | J74: =InterveningNaturalFlow!J74 -> 266,500 | K74: =InterveningNaturalFlow!K74+TotalNaturalFlow!J74 -> 268,262 | L74: =InterveningNaturalFlow!L74+TotalNaturalFlow!K74 -> 469,834 | M74: =InterveningNaturalFlow!M74 -> 339,430 | N74: =InterveningNaturalFlow!N74 -> 105,484 | O74: =InterveningNaturalFlow!O74 -> 231,917 | P74: =InterveningNaturalFlow!P74 -> 126,084 | Q74: =InterveningNaturalFlow!Q74+TotalNaturalFlow!P74+TotalNaturalFlow!O74+TotalNaturalFlow!N74+TotalNaturalFlow!M74+TotalNaturalFlow!L74 -> 1,310,814 | R74: =InterveningNaturalFlow!R74 -> 50,689 | S74: =InterveningNaturalFlow!S74 -> 505,255 | T74: =InterveningNaturalFlow!T74+TotalNaturalFlow!S74 -> 738,826 | U74: =InterveningNaturalFlow!U74+TotalNaturalFlow!T74+TotalNaturalFlow!R74+TotalNaturalFlow!Q74+TotalNaturalFlow!I74 -> 4,124,342 | W74: =InterveningNaturalFlow!W74 -> 746 | X74: =InterveningNaturalFlow!X74 -> 566 | Y74: =InterveningNaturalFlow!Y74+TotalNaturalFlow!X74+TotalNaturalFlow!W74+TotalNaturalFlow!U74 -> 4,157,931 | Z74: =InterveningNaturalFlow!Z74 -> 10,076 | AA74: =InterveningNaturalFlow!AA74+TotalNaturalFlow!Z74+Y74 -> 4,245,742 | AB74: =InterveningNaturalFlow!AB74+TotalNaturalFlow!AA74 -> 4,267,921 | AC74: =InterveningNaturalFlow!AC74 -> 14 | AD74: =InterveningNaturalFlow!AD74+TotalNaturalFlow!AC74+AB74 -> 4,272,761 | AE74: =InterveningNaturalFlow!AE74+TotalNaturalFlow!AD74 -> 4,131,143
A75: 1911-07-31 | B75: =InterveningNaturalFlow!B75 -> 336,010 | C75: =InterveningNaturalFlow!C75+TotalNaturalFlow!B75 -> 587,245 | D75: =InterveningNaturalFlow!D75 -> 42,337 | E75: =InterveningNaturalFlow!E75+TotalNaturalFlow!D75 -> 259,282 | F75: =InterveningNaturalFlow!F75+TotalNaturalFlow!E75 -> 284,382 | G75: =InterveningNaturalFlow!G75+TotalNaturalFlow!F75 -> 365,780 | H75: =InterveningNaturalFlow!H75 -> 69,330 | I75: =InterveningNaturalFlow!I75+TotalNaturalFlow!H75+TotalNaturalFlow!G75+TotalNaturalFlow!C75 -> 1,108,195 | J75: =InterveningNaturalFlow!J75 -> 187,900 | K75: =InterveningNaturalFlow!K75+TotalNaturalFlow!J75 -> 190,706 | L75: =InterveningNaturalFlow!L75+TotalNaturalFlow!K75 -> 278,652 | M75: =InterveningNaturalFlow!M75 -> 117,282 | N75: =InterveningNaturalFlow!N75 -> 52,605 | O75: =InterveningNaturalFlow!O75 -> 97,779 | P75: =InterveningNaturalFlow!P75 -> 79,880 | Q75: =InterveningNaturalFlow!Q75+TotalNaturalFlow!P75+TotalNaturalFlow!O75+TotalNaturalFlow!N75+TotalNaturalFlow!M75+TotalNaturalFlow!L75 -> 701,330 | R75: =InterveningNaturalFlow!R75 -> 22,893 | S75: =InterveningNaturalFlow!S75 -> 210,213 | T75: =InterveningNaturalFlow!T75+TotalNaturalFlow!S75 -> 390,837 | U75: =InterveningNaturalFlow!U75+TotalNaturalFlow!T75+TotalNaturalFlow!R75+TotalNaturalFlow!Q75+TotalNaturalFlow!I75 -> 2,353,784 | W75: =InterveningNaturalFlow!W75 -> 1,511 | X75: =InterveningNaturalFlow!X75 -> 155 | Y75: =InterveningNaturalFlow!Y75+TotalNaturalFlow!X75+TotalNaturalFlow!W75+TotalNaturalFlow!U75 -> 2,415,864 | Z75: =InterveningNaturalFlow!Z75 -> 6,470 | AA75: =InterveningNaturalFlow!AA75+TotalNaturalFlow!Z75+Y75 -> 2,496,969 | AB75: =InterveningNaturalFlow!AB75+TotalNaturalFlow!AA75 -> 2,498,112 | AC75: =InterveningNaturalFlow!AC75 -> 6 | AD75: =InterveningNaturalFlow!AD75+TotalNaturalFlow!AC75+AB75 -> 2,536,840 | AE75: =InterveningNaturalFlow!AE75+TotalNaturalFlow!AD75 -> 2,421,186
A76: 1911-08-31 | B76: =InterveningNaturalFlow!B76 -> 140,938 | C76: =InterveningNaturalFlow!C76+TotalNaturalFlow!B76 -> 233,760 | D76: =InterveningNaturalFlow!D76 -> 14,842 | E76: =InterveningNaturalFlow!E76+TotalNaturalFlow!D76 -> 111,070 | F76: =InterveningNaturalFlow!F76+TotalNaturalFlow!E76 -> 118,870 | G76: =InterveningNaturalFlow!G76+TotalNaturalFlow!F76 -> 152,238 | H76: =InterveningNaturalFlow!H76 -> 31,918 | I76: =InterveningNaturalFlow!I76+TotalNaturalFlow!H76+TotalNaturalFlow!G76+TotalNaturalFlow!C76 -> 439,699 | J76: =InterveningNaturalFlow!J76 -> 102,400 | K76: =InterveningNaturalFlow!K76+TotalNaturalFlow!J76 -> 100,882 | L76: =InterveningNaturalFlow!L76+TotalNaturalFlow!K76 -> 151,988 | M76: =InterveningNaturalFlow!M76 -> 30,563 | N76: =InterveningNaturalFlow!N76 -> 33,116 | O76: =InterveningNaturalFlow!O76 -> 36,115 | P76: =InterveningNaturalFlow!P76 -> 43,228 | Q76: =InterveningNaturalFlow!Q76+TotalNaturalFlow!P76+TotalNaturalFlow!O76+TotalNaturalFlow!N76+TotalNaturalFlow!M76+TotalNaturalFlow!L76 -> 325,956 | R76: =InterveningNaturalFlow!R76 -> 20,378 | S76: =InterveningNaturalFlow!S76 -> 127,961 | T76: =InterveningNaturalFlow!T76+TotalNaturalFlow!S76 -> 260,743 | U76: =InterveningNaturalFlow!U76+TotalNaturalFlow!T76+TotalNaturalFlow!R76+TotalNaturalFlow!Q76+TotalNaturalFlow!I76 -> 1,016,615 | W76: =InterveningNaturalFlow!W76 -> 3,024 | X76: =InterveningNaturalFlow!X76 -> 307 | Y76: =InterveningNaturalFlow!Y76+TotalNaturalFlow!X76+TotalNaturalFlow!W76+TotalNaturalFlow!U76 -> 1,016,148 | Z76: =InterveningNaturalFlow!Z76 -> 8,590 | AA76: =InterveningNaturalFlow!AA76+TotalNaturalFlow!Z76+Y76 -> 1,046,593 | AB76: =InterveningNaturalFlow!AB76+TotalNaturalFlow!AA76 -> 1,055,747 | AC76: =InterveningNaturalFlow!AC76 -> 61 | AD76: =InterveningNaturalFlow!AD76+TotalNaturalFlow!AC76+AB76 -> 1,029,838 | AE76: =InterveningNaturalFlow!AE76+TotalNaturalFlow!AD76 -> 964,538
A77: 1911-09-30 | B77: =InterveningNaturalFlow!B77 -> 83,611 | C77: =InterveningNaturalFlow!C77+TotalNaturalFlow!B77 -> 140,549 | D77: =InterveningNaturalFlow!D77 -> 11,649 | E77: =InterveningNaturalFlow!E77+TotalNaturalFlow!D77 -> 67,838 | F77: =InterveningNaturalFlow!F77+TotalNaturalFlow!E77 -> 72,538 | G77: =InterveningNaturalFlow!G77+TotalNaturalFlow!F77 -> 102,567 | H77: =InterveningNaturalFlow!H77 -> 23,840 | I77: =InterveningNaturalFlow!I77+TotalNaturalFlow!H77+TotalNaturalFlow!G77+TotalNaturalFlow!C77 -> 270,827 | J77: =InterveningNaturalFlow!J77 -> 40,600 | K77: =InterveningNaturalFlow!K77+TotalNaturalFlow!J77 -> 44,135 | L77: =InterveningNaturalFlow!L77+TotalNaturalFlow!K77 -> 70,311 | M77: =InterveningNaturalFlow!M77 -> 17,158 | N77: =InterveningNaturalFlow!N77 -> 19,199 | O77: =InterveningNaturalFlow!O77 -> 12,991 | P77: =InterveningNaturalFlow!P77 -> 29,661 | Q77: =InterveningNaturalFlow!Q77+TotalNaturalFlow!P77+TotalNaturalFlow!O77+TotalNaturalFlow!N77+TotalNaturalFlow!M77+TotalNaturalFlow!L77 -> 150,888 | R77: =InterveningNaturalFlow!R77 -> 11,315 | S77: =InterveningNaturalFlow!S77 -> 90,548 | T77: =InterveningNaturalFlow!T77+TotalNaturalFlow!S77 -> 205,416 | U77: =InterveningNaturalFlow!U77+TotalNaturalFlow!T77+TotalNaturalFlow!R77+TotalNaturalFlow!Q77+TotalNaturalFlow!I77 -> 593,647 | W77: =InterveningNaturalFlow!W77 -> 2,089 | X77: =InterveningNaturalFlow!X77 -> 7,602 | Y77: =InterveningNaturalFlow!Y77+TotalNaturalFlow!X77+TotalNaturalFlow!W77+TotalNaturalFlow!U77 -> 648,957 | Z77: =InterveningNaturalFlow!Z77 -> 8,900 | AA77: =InterveningNaturalFlow!AA77+TotalNaturalFlow!Z77+Y77 -> 708,479 | AB77: =InterveningNaturalFlow!AB77+TotalNaturalFlow!AA77 -> 725,619 | AC77: =InterveningNaturalFlow!AC77 -> 71 | AD77: =InterveningNaturalFlow!AD77+TotalNaturalFlow!AC77+AB77 -> 690,858 | AE77: =InterveningNaturalFlow!AE77+TotalNaturalFlow!AD77 -> 671,939
A78: 1911-10-31 | B78: =InterveningNaturalFlow!B78 -> 88,882 | C78: =InterveningNaturalFlow!C78+TotalNaturalFlow!B78 -> 185,566 | D78: =InterveningNaturalFlow!D78 -> 14,694 | E78: =InterveningNaturalFlow!E78+TotalNaturalFlow!D78 -> 120,200 | F78: =InterveningNaturalFlow!F78+TotalNaturalFlow!E78 -> 132,200 | G78: =InterveningNaturalFlow!G78+TotalNaturalFlow!F78 -> 159,185 | H78: =InterveningNaturalFlow!H78 -> 103,754 | I78: =InterveningNaturalFlow!I78+TotalNaturalFlow!H78+TotalNaturalFlow!G78+TotalNaturalFlow!C78 -> 473,008 | J78: =InterveningNaturalFlow!J78 -> 46,100 | K78: =InterveningNaturalFlow!K78+TotalNaturalFlow!J78 -> 50,416 | L78: =InterveningNaturalFlow!L78+TotalNaturalFlow!K78 -> 78,589 | M78: =InterveningNaturalFlow!M78 -> 32,579 | N78: =InterveningNaturalFlow!N78 -> 23,746 | O78: =InterveningNaturalFlow!O78 -> 49,368 | P78: =InterveningNaturalFlow!P78 -> 33,566 | Q78: =InterveningNaturalFlow!Q78+TotalNaturalFlow!P78+TotalNaturalFlow!O78+TotalNaturalFlow!N78+TotalNaturalFlow!M78+TotalNaturalFlow!L78 -> 236,048 | R78: =InterveningNaturalFlow!R78 -> 22,008 | S78: =InterveningNaturalFlow!S78 -> 67,791 | T78: =InterveningNaturalFlow!T78+TotalNaturalFlow!S78 -> 180,248 | U78: =InterveningNaturalFlow!U78+TotalNaturalFlow!T78+TotalNaturalFlow!R78+TotalNaturalFlow!Q78+TotalNaturalFlow!I78 -> 1,138,004 | W78: =InterveningNaturalFlow!W78 -> 6,094 | X78: =InterveningNaturalFlow!X78 -> 3,310 | Y78: =InterveningNaturalFlow!Y78+TotalNaturalFlow!X78+TotalNaturalFlow!W78+TotalNaturalFlow!U78 -> 1,157,594 | Z78: =InterveningNaturalFlow!Z78 -> 8,766 | AA78: =InterveningNaturalFlow!AA78+TotalNaturalFlow!Z78+Y78 -> 1,237,478 | AB78: =InterveningNaturalFlow!AB78+TotalNaturalFlow!AA78 -> 1,273,296 | AC78: =InterveningNaturalFlow!AC78 -> 259 | AD78: =InterveningNaturalFlow!AD78+TotalNaturalFlow!AC78+AB78 -> 1,283,803 | AE78: =InterveningNaturalFlow!AE78+TotalNaturalFlow!AD78 -> 1,231,676
A79: 1911-11-30 | B79: =InterveningNaturalFlow!B79 -> 54,486 | C79: =InterveningNaturalFlow!C79+TotalNaturalFlow!B79 -> 97,947 | D79: =InterveningNaturalFlow!D79 -> 6,696 | E79: =InterveningNaturalFlow!E79+TotalNaturalFlow!D79 -> 46,000 | F79: =InterveningNaturalFlow!F79+TotalNaturalFlow!E79 -> 51,500 | G79: =InterveningNaturalFlow!G79+TotalNaturalFlow!F79 -> 89,024 | H79: =InterveningNaturalFlow!H79 -> 20,423 | I79: =InterveningNaturalFlow!I79+TotalNaturalFlow!H79+TotalNaturalFlow!G79+TotalNaturalFlow!C79 -> 220,050 | J79: =InterveningNaturalFlow!J79 -> 34,000 | K79: =InterveningNaturalFlow!K79+TotalNaturalFlow!J79 -> 37,876 | L79: =InterveningNaturalFlow!L79+TotalNaturalFlow!K79 -> 55,403 | M79: =InterveningNaturalFlow!M79 -> 21,688 | N79: =InterveningNaturalFlow!N79 -> 13,078 | O79: =InterveningNaturalFlow!O79 -> 22,970 | P79: =InterveningNaturalFlow!P79 -> 21,017 | Q79: =InterveningNaturalFlow!Q79+TotalNaturalFlow!P79+TotalNaturalFlow!O79+TotalNaturalFlow!N79+TotalNaturalFlow!M79+TotalNaturalFlow!L79 -> 133,567 | R79: =InterveningNaturalFlow!R79 -> 3,805 | S79: =InterveningNaturalFlow!S79 -> 71,761 | T79: =InterveningNaturalFlow!T79+TotalNaturalFlow!S79 -> 77,125 | U79: =InterveningNaturalFlow!U79+TotalNaturalFlow!T79+TotalNaturalFlow!R79+TotalNaturalFlow!Q79+TotalNaturalFlow!I79 -> 442,055 | W79: =InterveningNaturalFlow!W79 -> 1,847 | X79: =InterveningNaturalFlow!X79 -> 7,848 | Y79: =InterveningNaturalFlow!Y79+TotalNaturalFlow!X79+TotalNaturalFlow!W79+TotalNaturalFlow!U79 -> 491,256 | Z79: =InterveningNaturalFlow!Z79 -> 11,404 | AA79: =InterveningNaturalFlow!AA79+TotalNaturalFlow!Z79+Y79 -> 524,024 | AB79: =InterveningNaturalFlow!AB79+TotalNaturalFlow!AA79 -> 535,447 | AC79: =InterveningNaturalFlow!AC79 -> 659 | AD79: =InterveningNaturalFlow!AD79+TotalNaturalFlow!AC79+AB79 -> 554,188 | AE79: =InterveningNaturalFlow!AE79+TotalNaturalFlow!AD79 -> 543,769
A80: 1911-12-31 | B80: =InterveningNaturalFlow!B80 -> 40,166 | C80: =InterveningNaturalFlow!C80+TotalNaturalFlow!B80 -> 86,676 | D80: =InterveningNaturalFlow!D80 -> 6,305 | E80: =InterveningNaturalFlow!E80+TotalNaturalFlow!D80 -> 34,000 | F80: =InterveningNaturalFlow!F80+TotalNaturalFlow!E80 -> 37,100 | G80: =InterveningNaturalFlow!G80+TotalNaturalFlow!F80 -> 77,940 | H80: =InterveningNaturalFlow!H80 -> 12,852 | I80: =InterveningNaturalFlow!I80+TotalNaturalFlow!H80+TotalNaturalFlow!G80+TotalNaturalFlow!C80 -> 183,040 | J80: =InterveningNaturalFlow!J80 -> 27,000 | K80: =InterveningNaturalFlow!K80+TotalNaturalFlow!J80 -> 29,251 | L80: =InterveningNaturalFlow!L80+TotalNaturalFlow!K80 -> 37,194 | M80: =InterveningNaturalFlow!M80 -> 18,461 | N80: =InterveningNaturalFlow!N80 -> 6,359 | O80: =InterveningNaturalFlow!O80 -> 29,703 | P80: =InterveningNaturalFlow!P80 -> 20,984 | Q80: =InterveningNaturalFlow!Q80+TotalNaturalFlow!P80+TotalNaturalFlow!O80+TotalNaturalFlow!N80+TotalNaturalFlow!M80+TotalNaturalFlow!L80 -> 100,999 | R80: =InterveningNaturalFlow!R80 -> 3,700 | S80: =InterveningNaturalFlow!S80 -> 46,690 | T80: =InterveningNaturalFlow!T80+TotalNaturalFlow!S80 -> 64,421 | U80: =InterveningNaturalFlow!U80+TotalNaturalFlow!T80+TotalNaturalFlow!R80+TotalNaturalFlow!Q80+TotalNaturalFlow!I80 -> 353,041 | W80: =InterveningNaturalFlow!W80 -> 1,364 | X80: =InterveningNaturalFlow!X80 -> 0 | Y80: =InterveningNaturalFlow!Y80+TotalNaturalFlow!X80+TotalNaturalFlow!W80+TotalNaturalFlow!U80 -> 405,916 | Z80: =InterveningNaturalFlow!Z80 -> 24,537 | AA80: =InterveningNaturalFlow!AA80+TotalNaturalFlow!Z80+Y80 -> 426,955 | AB80: =InterveningNaturalFlow!AB80+TotalNaturalFlow!AA80 -> 441,444 | AC80: =InterveningNaturalFlow!AC80 -> 5,121 | AD80: =InterveningNaturalFlow!AD80+TotalNaturalFlow!AC80+AB80 -> 443,700 | AE80: =InterveningNaturalFlow!AE80+TotalNaturalFlow!AD80 -> 435,166
A81: 1912-01-31 | B81: =InterveningNaturalFlow!B81 -> 47,237 | C81: =InterveningNaturalFlow!C81+TotalNaturalFlow!B81 -> 92,973 | D81: =InterveningNaturalFlow!D81 -> 4,052 | E81: =InterveningNaturalFlow!E81+TotalNaturalFlow!D81 -> 29,000 | F81: =InterveningNaturalFlow!F81+TotalNaturalFlow!E81 -> 33,200 | G81: =InterveningNaturalFlow!G81+TotalNaturalFlow!F81 -> 64,168 | H81: =InterveningNaturalFlow!H81 -> 10,594 | I81: =InterveningNaturalFlow!I81+TotalNaturalFlow!H81+TotalNaturalFlow!G81+TotalNaturalFlow!C81 -> 172,040 | J81: =InterveningNaturalFlow!J81 -> 23,000 | K81: =InterveningNaturalFlow!K81+TotalNaturalFlow!J81 -> 21,722 | L81: =InterveningNaturalFlow!L81+TotalNaturalFlow!K81 -> 42,560 | M81: =InterveningNaturalFlow!M81 -> 15,341 | N81: =InterveningNaturalFlow!N81 -> 4,392 | O81: =InterveningNaturalFlow!O81 -> 26,966 | P81: =InterveningNaturalFlow!P81 -> 19,249 | Q81: =InterveningNaturalFlow!Q81+TotalNaturalFlow!P81+TotalNaturalFlow!O81+TotalNaturalFlow!N81+TotalNaturalFlow!M81+TotalNaturalFlow!L81 -> 105,819 | R81: =InterveningNaturalFlow!R81 -> 3,100 | S81: =InterveningNaturalFlow!S81 -> 42,241 | T81: =InterveningNaturalFlow!T81+TotalNaturalFlow!S81 -> 66,491 | U81: =InterveningNaturalFlow!U81+TotalNaturalFlow!T81+TotalNaturalFlow!R81+TotalNaturalFlow!Q81+TotalNaturalFlow!I81 -> 346,041 | W81: =InterveningNaturalFlow!W81 -> 3,256 | X81: =InterveningNaturalFlow!X81 -> 539 | Y81: =InterveningNaturalFlow!Y81+TotalNaturalFlow!X81+TotalNaturalFlow!W81+TotalNaturalFlow!U81 -> 376,938 | Z81: =InterveningNaturalFlow!Z81 -> 28,468 | AA81: =InterveningNaturalFlow!AA81+TotalNaturalFlow!Z81+Y81 -> 412,249 | AB81: =InterveningNaturalFlow!AB81+TotalNaturalFlow!AA81 -> 405,868 | AC81: =InterveningNaturalFlow!AC81 -> 8,951 | AD81: =InterveningNaturalFlow!AD81+TotalNaturalFlow!AC81+AB81 -> 390,987 | AE81: =InterveningNaturalFlow!AE81+TotalNaturalFlow!AD81 -> 369,186
A82: 1912-02-29 | B82: =InterveningNaturalFlow!B82 -> 43,409 | C82: =InterveningNaturalFlow!C82+TotalNaturalFlow!B82 -> 75,062 | D82: =InterveningNaturalFlow!D82 -> 3,400 | E82: =InterveningNaturalFlow!E82+TotalNaturalFlow!D82 -> 25,000 | F82: =InterveningNaturalFlow!F82+TotalNaturalFlow!E82 -> 28,700 | G82: =InterveningNaturalFlow!G82+TotalNaturalFlow!F82 -> 58,047 | H82: =InterveningNaturalFlow!H82 -> 12,377 | I82: =InterveningNaturalFlow!I82+TotalNaturalFlow!H82+TotalNaturalFlow!G82+TotalNaturalFlow!C82 -> 156,040 | J82: =InterveningNaturalFlow!J82 -> 21,000 | K82: =InterveningNaturalFlow!K82+TotalNaturalFlow!J82 -> 19,762 | L82: =InterveningNaturalFlow!L82+TotalNaturalFlow!K82 -> 53,636 | M82: =InterveningNaturalFlow!M82 -> 12,058 | N82: =InterveningNaturalFlow!N82 -> 2,824 | O82: =InterveningNaturalFlow!O82 -> 30,042 | P82: =InterveningNaturalFlow!P82 -> 14,365 | Q82: =InterveningNaturalFlow!Q82+TotalNaturalFlow!P82+TotalNaturalFlow!O82+TotalNaturalFlow!N82+TotalNaturalFlow!M82+TotalNaturalFlow!L82 -> 103,436 | R82: =InterveningNaturalFlow!R82 -> 4,000 | S82: =InterveningNaturalFlow!S82 -> 39,381 | T82: =InterveningNaturalFlow!T82+TotalNaturalFlow!S82 -> 73,659 | U82: =InterveningNaturalFlow!U82+TotalNaturalFlow!T82+TotalNaturalFlow!R82+TotalNaturalFlow!Q82+TotalNaturalFlow!I82 -> 327,037 | W82: =InterveningNaturalFlow!W82 -> 3,991 | X82: =InterveningNaturalFlow!X82 -> 1,851 | Y82: =InterveningNaturalFlow!Y82+TotalNaturalFlow!X82+TotalNaturalFlow!W82+TotalNaturalFlow!U82 -> 347,632 | Z82: =InterveningNaturalFlow!Z82 -> 33,110 | AA82: =InterveningNaturalFlow!AA82+TotalNaturalFlow!Z82+Y82 -> 403,563 | AB82: =InterveningNaturalFlow!AB82+TotalNaturalFlow!AA82 -> 418,969 | AC82: =InterveningNaturalFlow!AC82 -> 16,060 | AD82: =InterveningNaturalFlow!AD82+TotalNaturalFlow!AC82+AB82 -> 411,108 | AE82: =InterveningNaturalFlow!AE82+TotalNaturalFlow!AD82 -> 408,091
A83: 1912-03-31 | B83: =InterveningNaturalFlow!B83 -> 49,562 | C83: =InterveningNaturalFlow!C83+TotalNaturalFlow!B83 -> 92,471 | D83: =InterveningNaturalFlow!D83 -> 4,285 | E83: =InterveningNaturalFlow!E83+TotalNaturalFlow!D83 -> 42,000 | F83: =InterveningNaturalFlow!F83+TotalNaturalFlow!E83 -> 49,100 | G83: =InterveningNaturalFlow!G83+TotalNaturalFlow!F83 -> 86,836 | H83: =InterveningNaturalFlow!H83 -> 36,226 | I83: =InterveningNaturalFlow!I83+TotalNaturalFlow!H83+TotalNaturalFlow!G83+TotalNaturalFlow!C83 -> 225,145 | J83: =InterveningNaturalFlow!J83 -> 35,000 | K83: =InterveningNaturalFlow!K83+TotalNaturalFlow!J83 -> 40,651 | L83: =InterveningNaturalFlow!L83+TotalNaturalFlow!K83 -> 73,830 | M83: =InterveningNaturalFlow!M83 -> 41,789 | N83: =InterveningNaturalFlow!N83 -> 14,427 | O83: =InterveningNaturalFlow!O83 -> 37,923 | P83: =InterveningNaturalFlow!P83 -> 33,803 | Q83: =InterveningNaturalFlow!Q83+TotalNaturalFlow!P83+TotalNaturalFlow!O83+TotalNaturalFlow!N83+TotalNaturalFlow!M83+TotalNaturalFlow!L83 -> 226,809 | R83: =InterveningNaturalFlow!R83 -> 6,100 | S83: =InterveningNaturalFlow!S83 -> 98,485 | T83: =InterveningNaturalFlow!T83+TotalNaturalFlow!S83 -> 141,506 | U83: =InterveningNaturalFlow!U83+TotalNaturalFlow!T83+TotalNaturalFlow!R83+TotalNaturalFlow!Q83+TotalNaturalFlow!I83 -> 538,143 | W83: =InterveningNaturalFlow!W83 -> 4,586 | X83: =InterveningNaturalFlow!X83 -> 0 | Y83: =InterveningNaturalFlow!Y83+TotalNaturalFlow!X83+TotalNaturalFlow!W83+TotalNaturalFlow!U83 -> 550,667 | Z83: =InterveningNaturalFlow!Z83 -> 28,059 | AA83: =InterveningNaturalFlow!AA83+TotalNaturalFlow!Z83+Y83 -> 591,081 | AB83: =InterveningNaturalFlow!AB83+TotalNaturalFlow!AA83 -> 601,308 | AC83: =InterveningNaturalFlow!AC83 -> 101,588 | AD83: =InterveningNaturalFlow!AD83+TotalNaturalFlow!AC83+AB83 -> 660,028 | AE83: =InterveningNaturalFlow!AE83+TotalNaturalFlow!AD83 -> 626,656
A84: 1912-04-30 | B84: =InterveningNaturalFlow!B84 -> 84,179 | C84: =InterveningNaturalFlow!C84+TotalNaturalFlow!B84 -> 147,423 | D84: =InterveningNaturalFlow!D84 -> 8,789 | E84: =InterveningNaturalFlow!E84+TotalNaturalFlow!D84 -> 113,000 | F84: =InterveningNaturalFlow!F84+TotalNaturalFlow!E84 -> 166,200 | G84: =InterveningNaturalFlow!G84+TotalNaturalFlow!F84 -> 136,578 | H84: =InterveningNaturalFlow!H84 -> 144,522 | I84: =InterveningNaturalFlow!I84+TotalNaturalFlow!H84+TotalNaturalFlow!G84+TotalNaturalFlow!C84 -> 395,708 | J84: =InterveningNaturalFlow!J84 -> 60,000 | K84: =InterveningNaturalFlow!K84+TotalNaturalFlow!J84 -> 77,038 | L84: =InterveningNaturalFlow!L84+TotalNaturalFlow!K84 -> 135,460 | M84: =InterveningNaturalFlow!M84 -> 122,286 | N84: =InterveningNaturalFlow!N84 -> 29,252 | O84: =InterveningNaturalFlow!O84 -> 40,211 | P84: =InterveningNaturalFlow!P84 -> 56,820 | Q84: =InterveningNaturalFlow!Q84+TotalNaturalFlow!P84+TotalNaturalFlow!O84+TotalNaturalFlow!N84+TotalNaturalFlow!M84+TotalNaturalFlow!L84 -> 390,870 | R84: =InterveningNaturalFlow!R84 -> 5,708 | S84: =InterveningNaturalFlow!S84 -> 243,880 | T84: =InterveningNaturalFlow!T84+TotalNaturalFlow!S84 -> 284,791 | U84: =InterveningNaturalFlow!U84+TotalNaturalFlow!T84+TotalNaturalFlow!R84+TotalNaturalFlow!Q84+TotalNaturalFlow!I84 -> 902,408 | W84: =InterveningNaturalFlow!W84 -> 2,486 | X84: =InterveningNaturalFlow!X84 -> 86,512 | Y84: =InterveningNaturalFlow!Y84+TotalNaturalFlow!X84+TotalNaturalFlow!W84+TotalNaturalFlow!U84 -> 950,421 | Z84: =InterveningNaturalFlow!Z84 -> 36,146 | AA84: =InterveningNaturalFlow!AA84+TotalNaturalFlow!Z84+Y84 -> 1,033,011 | AB84: =InterveningNaturalFlow!AB84+TotalNaturalFlow!AA84 -> 967,163 | AC84: =InterveningNaturalFlow!AC84 -> 51,794 | AD84: =InterveningNaturalFlow!AD84+TotalNaturalFlow!AC84+AB84 -> 956,513 | AE84: =InterveningNaturalFlow!AE84+TotalNaturalFlow!AD84 -> 866,352
A85: 1912-05-31 | B85: =InterveningNaturalFlow!B85 -> 469,364 | C85: =InterveningNaturalFlow!C85+TotalNaturalFlow!B85 -> 868,178 | D85: =InterveningNaturalFlow!D85 -> 34,103 | E85: =InterveningNaturalFlow!E85+TotalNaturalFlow!D85 -> 363,010 | F85: =InterveningNaturalFlow!F85+TotalNaturalFlow!E85 -> 441,810 | G85: =InterveningNaturalFlow!G85+TotalNaturalFlow!F85 -> 868,671 | H85: =InterveningNaturalFlow!H85 -> 352,771 | I85: =InterveningNaturalFlow!I85+TotalNaturalFlow!H85+TotalNaturalFlow!G85+TotalNaturalFlow!C85 -> 2,090,057 | J85: =InterveningNaturalFlow!J85 -> 162,000 | K85: =InterveningNaturalFlow!K85+TotalNaturalFlow!J85 -> 173,126 | L85: =InterveningNaturalFlow!L85+TotalNaturalFlow!K85 -> 278,346 | M85: =InterveningNaturalFlow!M85 -> 455,609 | N85: =InterveningNaturalFlow!N85 -> 86,964 | O85: =InterveningNaturalFlow!O85 -> 126,630 | P85: =InterveningNaturalFlow!P85 -> 120,378 | Q85: =InterveningNaturalFlow!Q85+TotalNaturalFlow!P85+TotalNaturalFlow!O85+TotalNaturalFlow!N85+TotalNaturalFlow!M85+TotalNaturalFlow!L85 -> 1,025,969 | R85: =InterveningNaturalFlow!R85 -> 33,318 | S85: =InterveningNaturalFlow!S85 -> 438,143 | T85: =InterveningNaturalFlow!T85+TotalNaturalFlow!S85 -> 646,439 | U85: =InterveningNaturalFlow!U85+TotalNaturalFlow!T85+TotalNaturalFlow!R85+TotalNaturalFlow!Q85+TotalNaturalFlow!I85 -> 3,684,152 | W85: =InterveningNaturalFlow!W85 -> 1,805 | X85: =InterveningNaturalFlow!X85 -> 0 | Y85: =InterveningNaturalFlow!Y85+TotalNaturalFlow!X85+TotalNaturalFlow!W85+TotalNaturalFlow!U85 -> 3,642,710 | Z85: =InterveningNaturalFlow!Z85 -> 30,525 | AA85: =InterveningNaturalFlow!AA85+TotalNaturalFlow!Z85+Y85 -> 3,680,361 | AB85: =InterveningNaturalFlow!AB85+TotalNaturalFlow!AA85 -> 3,697,422 | AC85: =InterveningNaturalFlow!AC85 -> 160 | AD85: =InterveningNaturalFlow!AD85+TotalNaturalFlow!AC85+AB85 -> 3,672,236 | AE85: =InterveningNaturalFlow!AE85+TotalNaturalFlow!AD85 -> 3,606,121
A86: 1912-06-30 | B86: =InterveningNaturalFlow!B86 -> 1,164,973 | C86: =InterveningNaturalFlow!C86+TotalNaturalFlow!B86 -> 1,735,838 | D86: =InterveningNaturalFlow!D86 -> 62,529 | E86: =InterveningNaturalFlow!E86+TotalNaturalFlow!D86 -> 458,128 | F86: =InterveningNaturalFlow!F86+TotalNaturalFlow!E86 -> 537,628 | G86: =InterveningNaturalFlow!G86+TotalNaturalFlow!F86 -> 924,463 | H86: =InterveningNaturalFlow!H86 -> 180,894 | I86: =InterveningNaturalFlow!I86+TotalNaturalFlow!H86+TotalNaturalFlow!G86+TotalNaturalFlow!C86 -> 2,886,923 | J86: =InterveningNaturalFlow!J86 -> 584,100 | K86: =InterveningNaturalFlow!K86+TotalNaturalFlow!J86 -> 610,355 | L86: =InterveningNaturalFlow!L86+TotalNaturalFlow!K86 -> 874,607 | M86: =InterveningNaturalFlow!M86 -> 636,888 | N86: =InterveningNaturalFlow!N86 -> 183,933 | O86: =InterveningNaturalFlow!O86 -> 396,929 | P86: =InterveningNaturalFlow!P86 -> 197,439 | Q86: =InterveningNaturalFlow!Q86+TotalNaturalFlow!P86+TotalNaturalFlow!O86+TotalNaturalFlow!N86+TotalNaturalFlow!M86+TotalNaturalFlow!L86 -> 2,391,165 | R86: =InterveningNaturalFlow!R86 -> 113,289 | S86: =InterveningNaturalFlow!S86 -> 410,531 | T86: =InterveningNaturalFlow!T86+TotalNaturalFlow!S86 -> 697,068 | U86: =InterveningNaturalFlow!U86+TotalNaturalFlow!T86+TotalNaturalFlow!R86+TotalNaturalFlow!Q86+TotalNaturalFlow!I86 -> 6,151,096 | W86: =InterveningNaturalFlow!W86 -> 572 | X86: =InterveningNaturalFlow!X86 -> 262 | Y86: =InterveningNaturalFlow!Y86+TotalNaturalFlow!X86+TotalNaturalFlow!W86+TotalNaturalFlow!U86 -> 6,152,736 | Z86: =InterveningNaturalFlow!Z86 -> 12,713 | AA86: =InterveningNaturalFlow!AA86+TotalNaturalFlow!Z86+Y86 -> 6,174,348 | AB86: =InterveningNaturalFlow!AB86+TotalNaturalFlow!AA86 -> 6,240,357 | AC86: =InterveningNaturalFlow!AC86 -> 271 | AD86: =InterveningNaturalFlow!AD86+TotalNaturalFlow!AC86+AB86 -> 6,199,307 | AE86: =InterveningNaturalFlow!AE86+TotalNaturalFlow!AD86 -> 6,084,460
A87: 1912-07-31 | B87: =InterveningNaturalFlow!B87 -> 617,765 | C87: =InterveningNaturalFlow!C87+TotalNaturalFlow!B87 -> 1,004,410 | D87: =InterveningNaturalFlow!D87 -> 45,020 | E87: =InterveningNaturalFlow!E87+TotalNaturalFlow!D87 -> 271,982 | F87: =InterveningNaturalFlow!F87+TotalNaturalFlow!E87 -> 296,782 | G87: =InterveningNaturalFlow!G87+TotalNaturalFlow!F87 -> 481,578 | H87: =InterveningNaturalFlow!H87 -> 89,615 | I87: =InterveningNaturalFlow!I87+TotalNaturalFlow!H87+TotalNaturalFlow!G87+TotalNaturalFlow!C87 -> 1,620,861 | J87: =InterveningNaturalFlow!J87 -> 416,400 | K87: =InterveningNaturalFlow!K87+TotalNaturalFlow!J87 -> 447,565 | L87: =InterveningNaturalFlow!L87+TotalNaturalFlow!K87 -> 536,309 | M87: =InterveningNaturalFlow!M87 -> 236,885 | N87: =InterveningNaturalFlow!N87 -> 91,355 | O87: =InterveningNaturalFlow!O87 -> 136,249 | P87: =InterveningNaturalFlow!P87 -> 106,159 | Q87: =InterveningNaturalFlow!Q87+TotalNaturalFlow!P87+TotalNaturalFlow!O87+TotalNaturalFlow!N87+TotalNaturalFlow!M87+TotalNaturalFlow!L87 -> 1,193,226 | R87: =InterveningNaturalFlow!R87 -> 30,793 | S87: =InterveningNaturalFlow!S87 -> 181,875 | T87: =InterveningNaturalFlow!T87+TotalNaturalFlow!S87 -> 332,068 | U87: =InterveningNaturalFlow!U87+TotalNaturalFlow!T87+TotalNaturalFlow!R87+TotalNaturalFlow!Q87+TotalNaturalFlow!I87 -> 3,206,236 | W87: =InterveningNaturalFlow!W87 -> 2,027 | X87: =InterveningNaturalFlow!X87 -> 83 | Y87: =InterveningNaturalFlow!Y87+TotalNaturalFlow!X87+TotalNaturalFlow!W87+TotalNaturalFlow!U87 -> 3,268,109 | Z87: =InterveningNaturalFlow!Z87 -> 8,457 | AA87: =InterveningNaturalFlow!AA87+TotalNaturalFlow!Z87+Y87 -> 3,322,240 | AB87: =InterveningNaturalFlow!AB87+TotalNaturalFlow!AA87 -> 3,393,654 | AC87: =InterveningNaturalFlow!AC87 -> 130 | AD87: =InterveningNaturalFlow!AD87+TotalNaturalFlow!AC87+AB87 -> 3,390,550 | AE87: =InterveningNaturalFlow!AE87+TotalNaturalFlow!AD87 -> 3,295,486
A88: 1912-08-31 | B88: =InterveningNaturalFlow!B88 -> 218,221 | C88: =InterveningNaturalFlow!C88+TotalNaturalFlow!B88 -> 380,432 | D88: =InterveningNaturalFlow!D88 -> 15,671 | E88: =InterveningNaturalFlow!E88+TotalNaturalFlow!D88 -> 103,070 | F88: =InterveningNaturalFlow!F88+TotalNaturalFlow!E88 -> 110,470 | G88: =InterveningNaturalFlow!G88+TotalNaturalFlow!F88 -> 193,261 | H88: =InterveningNaturalFlow!H88 -> 50,220 | I88: =InterveningNaturalFlow!I88+TotalNaturalFlow!H88+TotalNaturalFlow!G88+TotalNaturalFlow!C88 -> 636,573 | J88: =InterveningNaturalFlow!J88 -> 168,800 | K88: =InterveningNaturalFlow!K88+TotalNaturalFlow!J88 -> 178,918 | L88: =InterveningNaturalFlow!L88+TotalNaturalFlow!K88 -> 246,016 | M88: =InterveningNaturalFlow!M88 -> 56,093 | N88: =InterveningNaturalFlow!N88 -> 68,139 | O88: =InterveningNaturalFlow!O88 -> 60,214 | P88: =InterveningNaturalFlow!P88 -> 56,879 | Q88: =InterveningNaturalFlow!Q88+TotalNaturalFlow!P88+TotalNaturalFlow!O88+TotalNaturalFlow!N88+TotalNaturalFlow!M88+TotalNaturalFlow!L88 -> 554,319 | R88: =InterveningNaturalFlow!R88 -> 17,578 | S88: =InterveningNaturalFlow!S88 -> 104,016 | T88: =InterveningNaturalFlow!T88+TotalNaturalFlow!S88 -> 195,301 | U88: =InterveningNaturalFlow!U88+TotalNaturalFlow!T88+TotalNaturalFlow!R88+TotalNaturalFlow!Q88+TotalNaturalFlow!I88 -> 1,362,372 | W88: =InterveningNaturalFlow!W88 -> 3,415 | X88: =InterveningNaturalFlow!X88 -> 766 | Y88: =InterveningNaturalFlow!Y88+TotalNaturalFlow!X88+TotalNaturalFlow!W88+TotalNaturalFlow!U88 -> 1,364,653 | Z88: =InterveningNaturalFlow!Z88 -> 10,587 | AA88: =InterveningNaturalFlow!AA88+TotalNaturalFlow!Z88+Y88 -> 1,398,371 | AB88: =InterveningNaturalFlow!AB88+TotalNaturalFlow!AA88 -> 1,390,760 | AC88: =InterveningNaturalFlow!AC88 -> 866 | AD88: =InterveningNaturalFlow!AD88+TotalNaturalFlow!AC88+AB88 -> 1,417,276 | AE88: =InterveningNaturalFlow!AE88+TotalNaturalFlow!AD88 -> 1,372,941
A89: 1912-09-30 | B89: =InterveningNaturalFlow!B89 -> 108,734 | C89: =InterveningNaturalFlow!C89+TotalNaturalFlow!B89 -> 168,193 | D89: =InterveningNaturalFlow!D89 -> 12,504 | E89: =InterveningNaturalFlow!E89+TotalNaturalFlow!D89 -> 57,838 | F89: =InterveningNaturalFlow!F89+TotalNaturalFlow!E89 -> 60,538 | G89: =InterveningNaturalFlow!G89+TotalNaturalFlow!F89 -> 104,696 | H89: =InterveningNaturalFlow!H89 -> 26,921 | I89: =InterveningNaturalFlow!I89+TotalNaturalFlow!H89+TotalNaturalFlow!G89+TotalNaturalFlow!C89 -> 304,053 | J89: =InterveningNaturalFlow!J89 -> 66,500 | K89: =InterveningNaturalFlow!K89+TotalNaturalFlow!J89 -> 73,291 | L89: =InterveningNaturalFlow!L89+TotalNaturalFlow!K89 -> 109,816 | M89: =InterveningNaturalFlow!M89 -> 25,341 | N89: =InterveningNaturalFlow!N89 -> 36,742 | O89: =InterveningNaturalFlow!O89 -> 38,187 | P89: =InterveningNaturalFlow!P89 -> 31,263 | Q89: =InterveningNaturalFlow!Q89+TotalNaturalFlow!P89+TotalNaturalFlow!O89+TotalNaturalFlow!N89+TotalNaturalFlow!M89+TotalNaturalFlow!L89 -> 246,131 | R89: =InterveningNaturalFlow!R89 -> 5,115 | S89: =InterveningNaturalFlow!S89 -> 79,690 | T89: =InterveningNaturalFlow!T89+TotalNaturalFlow!S89 -> 181,985 | U89: =InterveningNaturalFlow!U89+TotalNaturalFlow!T89+TotalNaturalFlow!R89+TotalNaturalFlow!Q89+TotalNaturalFlow!I89 -> 631,542 | W89: =InterveningNaturalFlow!W89 -> 3,165 | X89: =InterveningNaturalFlow!X89 -> 32,847 | Y89: =InterveningNaturalFlow!Y89+TotalNaturalFlow!X89+TotalNaturalFlow!W89+TotalNaturalFlow!U89 -> 720,521 | Z89: =InterveningNaturalFlow!Z89 -> 10,964 | AA89: =InterveningNaturalFlow!AA89+TotalNaturalFlow!Z89+Y89 -> 712,129 | AB89: =InterveningNaturalFlow!AB89+TotalNaturalFlow!AA89 -> 708,688 | AC89: =InterveningNaturalFlow!AC89 -> 359 | AD89: =InterveningNaturalFlow!AD89+TotalNaturalFlow!AC89+AB89 -> 702,890 | AE89: =InterveningNaturalFlow!AE89+TotalNaturalFlow!AD89 -> 709,715
A90: 1912-10-31 | B90: =InterveningNaturalFlow!B90 -> 92,922 | C90: =InterveningNaturalFlow!C90+TotalNaturalFlow!B90 -> 161,843 | D90: =InterveningNaturalFlow!D90 -> 10,093 | E90: =InterveningNaturalFlow!E90+TotalNaturalFlow!D90 -> 57,000 | F90: =InterveningNaturalFlow!F90+TotalNaturalFlow!E90 -> 63,000 | G90: =InterveningNaturalFlow!G90+TotalNaturalFlow!F90 -> 83,495 | H90: =InterveningNaturalFlow!H90 -> 37,121 | I90: =InterveningNaturalFlow!I90+TotalNaturalFlow!H90+TotalNaturalFlow!G90+TotalNaturalFlow!C90 -> 291,440 | J90: =InterveningNaturalFlow!J90 -> 53,000 | K90: =InterveningNaturalFlow!K90+TotalNaturalFlow!J90 -> 60,453 | L90: =InterveningNaturalFlow!L90+TotalNaturalFlow!K90 -> 101,599 | M90: =InterveningNaturalFlow!M90 -> 30,779 | N90: =InterveningNaturalFlow!N90 -> 14,240 | O90: =InterveningNaturalFlow!O90 -> 36,342 | P90: =InterveningNaturalFlow!P90 -> 26,834 | Q90: =InterveningNaturalFlow!Q90+TotalNaturalFlow!P90+TotalNaturalFlow!O90+TotalNaturalFlow!N90+TotalNaturalFlow!M90+TotalNaturalFlow!L90 -> 225,904 | R90: =InterveningNaturalFlow!R90 -> 23,608 | S90: =InterveningNaturalFlow!S90 -> 36,232 | T90: =InterveningNaturalFlow!T90+TotalNaturalFlow!S90 -> 92,159 | U90: =InterveningNaturalFlow!U90+TotalNaturalFlow!T90+TotalNaturalFlow!R90+TotalNaturalFlow!Q90+TotalNaturalFlow!I90 -> 636,273 | W90: =InterveningNaturalFlow!W90 -> 2,689 | X90: =InterveningNaturalFlow!X90 -> 47,251 | Y90: =InterveningNaturalFlow!Y90+TotalNaturalFlow!X90+TotalNaturalFlow!W90+TotalNaturalFlow!U90 -> 688,705 | Z90: =InterveningNaturalFlow!Z90 -> 6,169 | AA90: =InterveningNaturalFlow!AA90+TotalNaturalFlow!Z90+Y90 -> 674,253 | AB90: =InterveningNaturalFlow!AB90+TotalNaturalFlow!AA90 -> 698,470 | AC90: =InterveningNaturalFlow!AC90 -> 381 | AD90: =InterveningNaturalFlow!AD90+TotalNaturalFlow!AC90+AB90 -> 715,732 | AE90: =InterveningNaturalFlow!AE90+TotalNaturalFlow!AD90 -> 676,292
A91: 1912-11-30 | B91: =InterveningNaturalFlow!B91 -> 53,868 | C91: =InterveningNaturalFlow!C91+TotalNaturalFlow!B91 -> 114,255 | D91: =InterveningNaturalFlow!D91 -> 5,327 | E91: =InterveningNaturalFlow!E91+TotalNaturalFlow!D91 -> 29,000 | F91: =InterveningNaturalFlow!F91+TotalNaturalFlow!E91 -> 33,400 | G91: =InterveningNaturalFlow!G91+TotalNaturalFlow!F91 -> 69,234 | H91: =InterveningNaturalFlow!H91 -> 33,100 | I91: =InterveningNaturalFlow!I91+TotalNaturalFlow!H91+TotalNaturalFlow!G91+TotalNaturalFlow!C91 -> 229,060 | J91: =InterveningNaturalFlow!J91 -> 45,000 | K91: =InterveningNaturalFlow!K91+TotalNaturalFlow!J91 -> 57,715 | L91: =InterveningNaturalFlow!L91+TotalNaturalFlow!K91 -> 80,112 | M91: =InterveningNaturalFlow!M91 -> 23,895 | N91: =InterveningNaturalFlow!N91 -> 10,175 | O91: =InterveningNaturalFlow!O91 -> 37,167 | P91: =InterveningNaturalFlow!P91 -> 27,068 | Q91: =InterveningNaturalFlow!Q91+TotalNaturalFlow!P91+TotalNaturalFlow!O91+TotalNaturalFlow!N91+TotalNaturalFlow!M91+TotalNaturalFlow!L91 -> 208,603 | R91: =InterveningNaturalFlow!R91 -> 11,905 | S91: =InterveningNaturalFlow!S91 -> 27,102 | T91: =InterveningNaturalFlow!T91+TotalNaturalFlow!S91 -> 55,193 | U91: =InterveningNaturalFlow!U91+TotalNaturalFlow!T91+TotalNaturalFlow!R91+TotalNaturalFlow!Q91+TotalNaturalFlow!I91 -> 533,066 | W91: =InterveningNaturalFlow!W91 -> 1,784 | X91: =InterveningNaturalFlow!X91 -> 780 | Y91: =InterveningNaturalFlow!Y91+TotalNaturalFlow!X91+TotalNaturalFlow!W91+TotalNaturalFlow!U91 -> 537,926 | Z91: =InterveningNaturalFlow!Z91 -> 7,914 | AA91: =InterveningNaturalFlow!AA91+TotalNaturalFlow!Z91+Y91 -> 550,568 | AB91: =InterveningNaturalFlow!AB91+TotalNaturalFlow!AA91 -> 557,680 | AC91: =InterveningNaturalFlow!AC91 -> 508 | AD91: =InterveningNaturalFlow!AD91+TotalNaturalFlow!AC91+AB91 -> 506,443 | AE91: =InterveningNaturalFlow!AE91+TotalNaturalFlow!AD91 -> 486,902
A92: 1912-12-31 | B92: =InterveningNaturalFlow!B92 -> 45,820 | C92: =InterveningNaturalFlow!C92+TotalNaturalFlow!B92 -> 91,703 | D92: =InterveningNaturalFlow!D92 -> 5,704 | E92: =InterveningNaturalFlow!E92+TotalNaturalFlow!D92 -> 28,000 | F92: =InterveningNaturalFlow!F92+TotalNaturalFlow!E92 -> 29,500 | G92: =InterveningNaturalFlow!G92+TotalNaturalFlow!F92 -> 66,263 | H92: =InterveningNaturalFlow!H92 -> 17,474 | I92: =InterveningNaturalFlow!I92+TotalNaturalFlow!H92+TotalNaturalFlow!G92+TotalNaturalFlow!C92 -> 171,040 | J92: =InterveningNaturalFlow!J92 -> 61,000 | K92: =InterveningNaturalFlow!K92+TotalNaturalFlow!J92 -> 54,761 | L92: =InterveningNaturalFlow!L92+TotalNaturalFlow!K92 -> 68,619 | M92: =InterveningNaturalFlow!M92 -> 13,574 | N92: =InterveningNaturalFlow!N92 -> 3,544 | O92: =InterveningNaturalFlow!O92 -> 24,052 | P92: =InterveningNaturalFlow!P92 -> 13,908 | Q92: =InterveningNaturalFlow!Q92+TotalNaturalFlow!P92+TotalNaturalFlow!O92+TotalNaturalFlow!N92+TotalNaturalFlow!M92+TotalNaturalFlow!L92 -> 99,699 | R92: =InterveningNaturalFlow!R92 -> 2,900 | S92: =InterveningNaturalFlow!S92 -> 26,794 | T92: =InterveningNaturalFlow!T92+TotalNaturalFlow!S92 -> 40,053 | U92: =InterveningNaturalFlow!U92+TotalNaturalFlow!T92+TotalNaturalFlow!R92+TotalNaturalFlow!Q92+TotalNaturalFlow!I92 -> 305,039 | W92: =InterveningNaturalFlow!W92 -> 1,147 | X92: =InterveningNaturalFlow!X92 -> 2,510 | Y92: =InterveningNaturalFlow!Y92+TotalNaturalFlow!X92+TotalNaturalFlow!W92+TotalNaturalFlow!U92 -> 344,074 | Z92: =InterveningNaturalFlow!Z92 -> 12,501 | AA92: =InterveningNaturalFlow!AA92+TotalNaturalFlow!Z92+Y92 -> 400,924 | AB92: =InterveningNaturalFlow!AB92+TotalNaturalFlow!AA92 -> 415,461 | AC92: =InterveningNaturalFlow!AC92 -> 3,667 | AD92: =InterveningNaturalFlow!AD92+TotalNaturalFlow!AC92+AB92 -> 409,764 | AE92: =InterveningNaturalFlow!AE92+TotalNaturalFlow!AD92 -> 399,836
A93: 1913-01-31 | B93: =InterveningNaturalFlow!B93 -> 45,295 | C93: =InterveningNaturalFlow!C93+TotalNaturalFlow!B93 -> 100,182 | D93: =InterveningNaturalFlow!D93 -> 3,723 | E93: =InterveningNaturalFlow!E93+TotalNaturalFlow!D93 -> 25,000 | F93: =InterveningNaturalFlow!F93+TotalNaturalFlow!E93 -> 27,600 | G93: =InterveningNaturalFlow!G93+TotalNaturalFlow!F93 -> 56,379 | H93: =InterveningNaturalFlow!H93 -> 15,508 | I93: =InterveningNaturalFlow!I93+TotalNaturalFlow!H93+TotalNaturalFlow!G93+TotalNaturalFlow!C93 -> 179,040 | J93: =InterveningNaturalFlow!J93 -> 33,000 | K93: =InterveningNaturalFlow!K93+TotalNaturalFlow!J93 -> 32,830 | L93: =InterveningNaturalFlow!L93+TotalNaturalFlow!K93 -> 55,723 | M93: =InterveningNaturalFlow!M93 -> 17,144 | N93: =InterveningNaturalFlow!N93 -> 8,390 | O93: =InterveningNaturalFlow!O93 -> 34,464 | P93: =InterveningNaturalFlow!P93 -> 24,893 | Q93: =InterveningNaturalFlow!Q93+TotalNaturalFlow!P93+TotalNaturalFlow!O93+TotalNaturalFlow!N93+TotalNaturalFlow!M93+TotalNaturalFlow!L93 -> 142,619 | R93: =InterveningNaturalFlow!R93 -> 2,500 | S93: =InterveningNaturalFlow!S93 -> 20,626 | T93: =InterveningNaturalFlow!T93+TotalNaturalFlow!S93 -> 37,077 | U93: =InterveningNaturalFlow!U93+TotalNaturalFlow!T93+TotalNaturalFlow!R93+TotalNaturalFlow!Q93+TotalNaturalFlow!I93 -> 354,040 | W93: =InterveningNaturalFlow!W93 -> 1,280 | X93: =InterveningNaturalFlow!X93 -> 594 | Y93: =InterveningNaturalFlow!Y93+TotalNaturalFlow!X93+TotalNaturalFlow!W93+TotalNaturalFlow!U93 -> 375,616 | Z93: =InterveningNaturalFlow!Z93 -> 20,468 | AA93: =InterveningNaturalFlow!AA93+TotalNaturalFlow!Z93+Y93 -> 423,708 | AB93: =InterveningNaturalFlow!AB93+TotalNaturalFlow!AA93 -> 408,580 | AC93: =InterveningNaturalFlow!AC93 -> 6,125 | AD93: =InterveningNaturalFlow!AD93+TotalNaturalFlow!AC93+AB93 -> 394,119 | AE93: =InterveningNaturalFlow!AE93+TotalNaturalFlow!AD93 -> 385,914
A94: 1913-02-28 | B94: =InterveningNaturalFlow!B94 -> 37,443 | C94: =InterveningNaturalFlow!C94+TotalNaturalFlow!B94 -> 76,380 | D94: =InterveningNaturalFlow!D94 -> 3,277 | E94: =InterveningNaturalFlow!E94+TotalNaturalFlow!D94 -> 20,000 | F94: =InterveningNaturalFlow!F94+TotalNaturalFlow!E94 -> 23,300 | G94: =InterveningNaturalFlow!G94+TotalNaturalFlow!F94 -> 50,714 | H94: =InterveningNaturalFlow!H94 -> 18,081 | I94: =InterveningNaturalFlow!I94+TotalNaturalFlow!H94+TotalNaturalFlow!G94+TotalNaturalFlow!C94 -> 155,035 | J94: =InterveningNaturalFlow!J94 -> 26,000 | K94: =InterveningNaturalFlow!K94+TotalNaturalFlow!J94 -> 29,558 | L94: =InterveningNaturalFlow!L94+TotalNaturalFlow!K94 -> 59,681 | M94: =InterveningNaturalFlow!M94 -> 14,450 | N94: =InterveningNaturalFlow!N94 -> 6,417 | O94: =InterveningNaturalFlow!O94 -> 32,972 | P94: =InterveningNaturalFlow!P94 -> 18,393 | Q94: =InterveningNaturalFlow!Q94+TotalNaturalFlow!P94+TotalNaturalFlow!O94+TotalNaturalFlow!N94+TotalNaturalFlow!M94+TotalNaturalFlow!L94 -> 126,770 | R94: =InterveningNaturalFlow!R94 -> 2,800 | S94: =InterveningNaturalFlow!S94 -> 24,848 | T94: =InterveningNaturalFlow!T94+TotalNaturalFlow!S94 -> 49,720 | U94: =InterveningNaturalFlow!U94+TotalNaturalFlow!T94+TotalNaturalFlow!R94+TotalNaturalFlow!Q94+TotalNaturalFlow!I94 -> 314,036 | W94: =InterveningNaturalFlow!W94 -> 2,321 | X94: =InterveningNaturalFlow!X94 -> 2,246 | Y94: =InterveningNaturalFlow!Y94+TotalNaturalFlow!X94+TotalNaturalFlow!W94+TotalNaturalFlow!U94 -> 339,452 | Z94: =InterveningNaturalFlow!Z94 -> 17,716 | AA94: =InterveningNaturalFlow!AA94+TotalNaturalFlow!Z94+Y94 -> 418,052 | AB94: =InterveningNaturalFlow!AB94+TotalNaturalFlow!AA94 -> 389,967 | AC94: =InterveningNaturalFlow!AC94 -> 8,824 | AD94: =InterveningNaturalFlow!AD94+TotalNaturalFlow!AC94+AB94 -> 370,928 | AE94: =InterveningNaturalFlow!AE94+TotalNaturalFlow!AD94 -> 364,419
A95: 1913-03-31 | B95: =InterveningNaturalFlow!B95 -> 43,405 | C95: =InterveningNaturalFlow!C95+TotalNaturalFlow!B95 -> 89,264 | D95: =InterveningNaturalFlow!D95 -> 4,055 | E95: =InterveningNaturalFlow!E95+TotalNaturalFlow!D95 -> 30,000 | F95: =InterveningNaturalFlow!F95+TotalNaturalFlow!E95 -> 36,200 | G95: =InterveningNaturalFlow!G95+TotalNaturalFlow!F95 -> 69,060 | H95: =InterveningNaturalFlow!H95 -> 40,515 | I95: =InterveningNaturalFlow!I95+TotalNaturalFlow!H95+TotalNaturalFlow!G95+TotalNaturalFlow!C95 -> 208,340 | J95: =InterveningNaturalFlow!J95 -> 61,000 | K95: =InterveningNaturalFlow!K95+TotalNaturalFlow!J95 -> 71,247 | L95: =InterveningNaturalFlow!L95+TotalNaturalFlow!K95 -> 131,568 | M95: =InterveningNaturalFlow!M95 -> 42,250 | N95: =InterveningNaturalFlow!N95 -> 21,433 | O95: =InterveningNaturalFlow!O95 -> 30,492 | P95: =InterveningNaturalFlow!P95 -> 31,196 | Q95: =InterveningNaturalFlow!Q95+TotalNaturalFlow!P95+TotalNaturalFlow!O95+TotalNaturalFlow!N95+TotalNaturalFlow!M95+TotalNaturalFlow!L95 -> 258,571 | R95: =InterveningNaturalFlow!R95 -> 8,400 | S95: =InterveningNaturalFlow!S95 -> 65,373 | T95: =InterveningNaturalFlow!T95+TotalNaturalFlow!S95 -> 99,730 | U95: =InterveningNaturalFlow!U95+TotalNaturalFlow!T95+TotalNaturalFlow!R95+TotalNaturalFlow!Q95+TotalNaturalFlow!I95 -> 523,341 | W95: =InterveningNaturalFlow!W95 -> 3,024 | X95: =InterveningNaturalFlow!X95 -> 15,202 | Y95: =InterveningNaturalFlow!Y95+TotalNaturalFlow!X95+TotalNaturalFlow!W95+TotalNaturalFlow!U95 -> 552,492 | Z95: =InterveningNaturalFlow!Z95 -> 19,850 | AA95: =InterveningNaturalFlow!AA95+TotalNaturalFlow!Z95+Y95 -> 629,232 | AB95: =InterveningNaturalFlow!AB95+TotalNaturalFlow!AA95 -> 663,384 | AC95: =InterveningNaturalFlow!AC95 -> 30,559 | AD95: =InterveningNaturalFlow!AD95+TotalNaturalFlow!AC95+AB95 -> 665,134 | AE95: =InterveningNaturalFlow!AE95+TotalNaturalFlow!AD95 -> 649,228
A96: 1913-04-30 | B96: =InterveningNaturalFlow!B96 -> 178,781 | C96: =InterveningNaturalFlow!C96+TotalNaturalFlow!B96 -> 323,335 | D96: =InterveningNaturalFlow!D96 -> 9,366 | E96: =InterveningNaturalFlow!E96+TotalNaturalFlow!D96 -> 107,000 | F96: =InterveningNaturalFlow!F96+TotalNaturalFlow!E96 -> 135,000 | G96: =InterveningNaturalFlow!G96+TotalNaturalFlow!F96 -> 257,548 | H96: =InterveningNaturalFlow!H96 -> 222,157 | I96: =InterveningNaturalFlow!I96+TotalNaturalFlow!H96+TotalNaturalFlow!G96+TotalNaturalFlow!C96 -> 720,125 | J96: =InterveningNaturalFlow!J96 -> 135,000 | K96: =InterveningNaturalFlow!K96+TotalNaturalFlow!J96 -> 162,549 | L96: =InterveningNaturalFlow!L96+TotalNaturalFlow!K96 -> 249,947 | M96: =InterveningNaturalFlow!M96 -> 236,640 | N96: =InterveningNaturalFlow!N96 -> 80,745 | O96: =InterveningNaturalFlow!O96 -> 101,962 | P96: =InterveningNaturalFlow!P96 -> 70,810 | Q96: =InterveningNaturalFlow!Q96+TotalNaturalFlow!P96+TotalNaturalFlow!O96+TotalNaturalFlow!N96+TotalNaturalFlow!M96+TotalNaturalFlow!L96 -> 777,887 | R96: =InterveningNaturalFlow!R96 -> 20,108 | S96: =InterveningNaturalFlow!S96 -> 141,192 | T96: =InterveningNaturalFlow!T96+TotalNaturalFlow!S96 -> 274,070 | U96: =InterveningNaturalFlow!U96+TotalNaturalFlow!T96+TotalNaturalFlow!R96+TotalNaturalFlow!Q96+TotalNaturalFlow!I96 -> 1,829,662 | W96: =InterveningNaturalFlow!W96 -> 1,441 | X96: =InterveningNaturalFlow!X96 -> 2,290 | Y96: =InterveningNaturalFlow!Y96+TotalNaturalFlow!X96+TotalNaturalFlow!W96+TotalNaturalFlow!U96 -> 1,843,112 | Z96: =InterveningNaturalFlow!Z96 -> 24,246 | AA96: =InterveningNaturalFlow!AA96+TotalNaturalFlow!Z96+Y96 -> 1,948,183 | AB96: =InterveningNaturalFlow!AB96+TotalNaturalFlow!AA96 -> 1,956,400 | AC96: =InterveningNaturalFlow!AC96 -> 12,257 | AD96: =InterveningNaturalFlow!AD96+TotalNaturalFlow!AC96+AB96 -> 1,961,315 | AE96: =InterveningNaturalFlow!AE96+TotalNaturalFlow!AD96 -> 1,930,015
A97: 1913-05-31 | B97: =InterveningNaturalFlow!B97 -> 452,171 | C97: =InterveningNaturalFlow!C97+TotalNaturalFlow!B97 -> 794,120 | D97: =InterveningNaturalFlow!D97 -> 31,327 | E97: =InterveningNaturalFlow!E97+TotalNaturalFlow!D97 -> 240,010 | F97: =InterveningNaturalFlow!F97+TotalNaturalFlow!E97 -> 291,810 | G97: =InterveningNaturalFlow!G97+TotalNaturalFlow!F97 -> 463,557 | H97: =InterveningNaturalFlow!H97 -> 244,586 | I97: =InterveningNaturalFlow!I97+TotalNaturalFlow!H97+TotalNaturalFlow!G97+TotalNaturalFlow!C97 -> 1,443,609 | J97: =InterveningNaturalFlow!J97 -> 269,300 | K97: =InterveningNaturalFlow!K97+TotalNaturalFlow!J97 -> 273,957 | L97: =InterveningNaturalFlow!L97+TotalNaturalFlow!K97 -> 393,747 | M97: =InterveningNaturalFlow!M97 -> 376,532 | N97: =InterveningNaturalFlow!N97 -> 94,274 | O97: =InterveningNaturalFlow!O97 -> 168,663 | P97: =InterveningNaturalFlow!P97 -> 101,270 | Q97: =InterveningNaturalFlow!Q97+TotalNaturalFlow!P97+TotalNaturalFlow!O97+TotalNaturalFlow!N97+TotalNaturalFlow!M97+TotalNaturalFlow!L97 -> 1,131,237 | R97: =InterveningNaturalFlow!R97 -> 74,118 | S97: =InterveningNaturalFlow!S97 -> 273,273 | T97: =InterveningNaturalFlow!T97+TotalNaturalFlow!S97 -> 420,097 | U97: =InterveningNaturalFlow!U97+TotalNaturalFlow!T97+TotalNaturalFlow!R97+TotalNaturalFlow!Q97+TotalNaturalFlow!I97 -> 3,270,773 | W97: =InterveningNaturalFlow!W97 -> 865 | X97: =InterveningNaturalFlow!X97 -> 0 | Y97: =InterveningNaturalFlow!Y97+TotalNaturalFlow!X97+TotalNaturalFlow!W97+TotalNaturalFlow!U97 -> 3,200,814 | Z97: =InterveningNaturalFlow!Z97 -> 17,406 | AA97: =InterveningNaturalFlow!AA97+TotalNaturalFlow!Z97+Y97 -> 3,251,317 | AB97: =InterveningNaturalFlow!AB97+TotalNaturalFlow!AA97 -> 3,228,547 | AC97: =InterveningNaturalFlow!AC97 -> 10,074 | AD97: =InterveningNaturalFlow!AD97+TotalNaturalFlow!AC97+AB97 -> 3,219,224 | AE97: =InterveningNaturalFlow!AE97+TotalNaturalFlow!AD97 -> 3,158,556
A98: 1913-06-30 | B98: =InterveningNaturalFlow!B98 -> 454,694 | C98: =InterveningNaturalFlow!C98+TotalNaturalFlow!B98 -> 819,922 | D98: =InterveningNaturalFlow!D98 -> 35,039 | E98: =InterveningNaturalFlow!E98+TotalNaturalFlow!D98 -> 231,428 | F98: =InterveningNaturalFlow!F98+TotalNaturalFlow!E98 -> 272,128 | G98: =InterveningNaturalFlow!G98+TotalNaturalFlow!F98 -> 395,879 | H98: =InterveningNaturalFlow!H98 -> 152,848 | I98: =InterveningNaturalFlow!I98+TotalNaturalFlow!H98+TotalNaturalFlow!G98+TotalNaturalFlow!C98 -> 1,377,506 | J98: =InterveningNaturalFlow!J98 -> 523,100 | K98: =InterveningNaturalFlow!K98+TotalNaturalFlow!J98 -> 551,660 | L98: =InterveningNaturalFlow!L98+TotalNaturalFlow!K98 -> 656,441 | M98: =InterveningNaturalFlow!M98 -> 264,506 | N98: =InterveningNaturalFlow!N98 -> 77,660 | O98: =InterveningNaturalFlow!O98 -> 173,625 | P98: =InterveningNaturalFlow!P98 -> 90,024 | Q98: =InterveningNaturalFlow!Q98+TotalNaturalFlow!P98+TotalNaturalFlow!O98+TotalNaturalFlow!N98+TotalNaturalFlow!M98+TotalNaturalFlow!L98 -> 1,278,694 | R98: =InterveningNaturalFlow!R98 -> 43,889 | S98: =InterveningNaturalFlow!S98 -> 238,565 | T98: =InterveningNaturalFlow!T98+TotalNaturalFlow!S98 -> 383,997 | U98: =InterveningNaturalFlow!U98+TotalNaturalFlow!T98+TotalNaturalFlow!R98+TotalNaturalFlow!Q98+TotalNaturalFlow!I98 -> 3,144,987 | W98: =InterveningNaturalFlow!W98 -> 516 | X98: =InterveningNaturalFlow!X98 -> 132 | Y98: =InterveningNaturalFlow!Y98+TotalNaturalFlow!X98+TotalNaturalFlow!W98+TotalNaturalFlow!U98 -> 3,075,759 | Z98: =InterveningNaturalFlow!Z98 -> 6,261 | AA98: =InterveningNaturalFlow!AA98+TotalNaturalFlow!Z98+Y98 -> 3,126,495 | AB98: =InterveningNaturalFlow!AB98+TotalNaturalFlow!AA98 -> 3,133,725 | AC98: =InterveningNaturalFlow!AC98 -> 61 | AD98: =InterveningNaturalFlow!AD98+TotalNaturalFlow!AC98+AB98 -> 3,120,535 | AE98: =InterveningNaturalFlow!AE98+TotalNaturalFlow!AD98 -> 3,033,600
A99: 1913-07-31 | B99: =InterveningNaturalFlow!B99 -> 223,095 | C99: =InterveningNaturalFlow!C99+TotalNaturalFlow!B99 -> 414,047 | D99: =InterveningNaturalFlow!D99 -> 21,674 | E99: =InterveningNaturalFlow!E99+TotalNaturalFlow!D99 -> 114,882 | F99: =InterveningNaturalFlow!F99+TotalNaturalFlow!E99 -> 125,082 | G99: =InterveningNaturalFlow!G99+TotalNaturalFlow!F99 -> 198,210 | H99: =InterveningNaturalFlow!H99 -> 69,657 | I99: =InterveningNaturalFlow!I99+TotalNaturalFlow!H99+TotalNaturalFlow!G99+TotalNaturalFlow!C99 -> 690,093 | J99: =InterveningNaturalFlow!J99 -> 361,900 | K99: =InterveningNaturalFlow!K99+TotalNaturalFlow!J99 -> 397,719 | L99: =InterveningNaturalFlow!L99+TotalNaturalFlow!K99 -> 443,309 | M99: =InterveningNaturalFlow!M99 -> 148,506 | N99: =InterveningNaturalFlow!N99 -> 101,204 | O99: =InterveningNaturalFlow!O99 -> 123,457 | P99: =InterveningNaturalFlow!P99 -> 71,680 | Q99: =InterveningNaturalFlow!Q99+TotalNaturalFlow!P99+TotalNaturalFlow!O99+TotalNaturalFlow!N99+TotalNaturalFlow!M99+TotalNaturalFlow!L99 -> 1,078,458 | R99: =InterveningNaturalFlow!R99 -> 28,393 | S99: =InterveningNaturalFlow!S99 -> 81,765 | T99: =InterveningNaturalFlow!T99+TotalNaturalFlow!S99 -> 216,074 | U99: =InterveningNaturalFlow!U99+TotalNaturalFlow!T99+TotalNaturalFlow!R99+TotalNaturalFlow!Q99+TotalNaturalFlow!I99 -> 1,984,477 | W99: =InterveningNaturalFlow!W99 -> 1,531 | X99: =InterveningNaturalFlow!X99 -> 3,879 | Y99: =InterveningNaturalFlow!Y99+TotalNaturalFlow!X99+TotalNaturalFlow!W99+TotalNaturalFlow!U99 -> 1,997,157 | Z99: =InterveningNaturalFlow!Z99 -> 5,872 | AA99: =InterveningNaturalFlow!AA99+TotalNaturalFlow!Z99+Y99 -> 2,158,694 | AB99: =InterveningNaturalFlow!AB99+TotalNaturalFlow!AA99 -> 2,224,834 | AC99: =InterveningNaturalFlow!AC99 -> 15 | AD99: =InterveningNaturalFlow!AD99+TotalNaturalFlow!AC99+AB99 -> 2,246,082 | AE99: =InterveningNaturalFlow!AE99+TotalNaturalFlow!AD99 -> 2,145,253
A100: 1913-08-31 | B100: =InterveningNaturalFlow!B100 -> 111,851 | C100: =InterveningNaturalFlow!C100+TotalNaturalFlow!B100 -> 199,876 | D100: =InterveningNaturalFlow!D100 -> 10,243 | E100: =InterveningNaturalFlow!E100+TotalNaturalFlow!D100 -> 76,670 | F100: =InterveningNaturalFlow!F100+TotalNaturalFlow!E100 -> 81,270 | G100: =InterveningNaturalFlow!G100+TotalNaturalFlow!F100 -> 105,005 | H100: =InterveningNaturalFlow!H100 -> 39,141 | I100: =InterveningNaturalFlow!I100+TotalNaturalFlow!H100+TotalNaturalFlow!G100+TotalNaturalFlow!C100 -> 340,995 | J100: =InterveningNaturalFlow!J100 -> 156,200 | K100: =InterveningNaturalFlow!K100+TotalNaturalFlow!J100 -> 173,217 | L100: =InterveningNaturalFlow!L100+TotalNaturalFlow!K100 -> 214,440 | M100: =InterveningNaturalFlow!M100 -> 30,870 | N100: =InterveningNaturalFlow!N100 -> 57,634 | O100: =InterveningNaturalFlow!O100 -> 53,435 | P100: =InterveningNaturalFlow!P100 -> 37,071 | Q100: =InterveningNaturalFlow!Q100+TotalNaturalFlow!P100+TotalNaturalFlow!O100+TotalNaturalFlow!N100+TotalNaturalFlow!M100+TotalNaturalFlow!L100 -> 419,999 | R100: =InterveningNaturalFlow!R100 -> 17,978 | S100: =InterveningNaturalFlow!S100 -> 43,310 | T100: =InterveningNaturalFlow!T100+TotalNaturalFlow!S100 -> 160,815 | U100: =InterveningNaturalFlow!U100+TotalNaturalFlow!T100+TotalNaturalFlow!R100+TotalNaturalFlow!Q100+TotalNaturalFlow!I100 -> 874,871 | W100: =InterveningNaturalFlow!W100 -> 2,663 | X100: =InterveningNaturalFlow!X100 -> 73,316 | Y100: =InterveningNaturalFlow!Y100+TotalNaturalFlow!X100+TotalNaturalFlow!W100+TotalNaturalFlow!U100 -> 949,478 | Z100: =InterveningNaturalFlow!Z100 -> 7,778 | AA100: =InterveningNaturalFlow!AA100+TotalNaturalFlow!Z100+Y100 -> 862,172 | AB100: =InterveningNaturalFlow!AB100+TotalNaturalFlow!AA100 -> 873,781 | AC100: =InterveningNaturalFlow!AC100 -> 318 | AD100: =InterveningNaturalFlow!AD100+TotalNaturalFlow!AC100+AB100 -> 866,746 | AE100: =InterveningNaturalFlow!AE100+TotalNaturalFlow!AD100 -> 783,920
A101: 1913-09-30 | B101: =InterveningNaturalFlow!B101 -> 88,371 | C101: =InterveningNaturalFlow!C101+TotalNaturalFlow!B101 -> 156,080 | D101: =InterveningNaturalFlow!D101 -> 9,115 | E101: =InterveningNaturalFlow!E101+TotalNaturalFlow!D101 -> 61,338 | F101: =InterveningNaturalFlow!F101+TotalNaturalFlow!E101 -> 65,438 | G101: =InterveningNaturalFlow!G101+TotalNaturalFlow!F101 -> 99,055 | H101: =InterveningNaturalFlow!H101 -> 37,124 | I101: =InterveningNaturalFlow!I101+TotalNaturalFlow!H101+TotalNaturalFlow!G101+TotalNaturalFlow!C101 -> 292,467 | J101: =InterveningNaturalFlow!J101 -> 80,700 | K101: =InterveningNaturalFlow!K101+TotalNaturalFlow!J101 -> 89,271 | L101: =InterveningNaturalFlow!L101+TotalNaturalFlow!K101 -> 122,311 | M101: =InterveningNaturalFlow!M101 -> 28,165 | N101: =InterveningNaturalFlow!N101 -> 37,132 | O101: =InterveningNaturalFlow!O101 -> 40,537 | P101: =InterveningNaturalFlow!P101 -> 35,139 | Q101: =InterveningNaturalFlow!Q101+TotalNaturalFlow!P101+TotalNaturalFlow!O101+TotalNaturalFlow!N101+TotalNaturalFlow!M101+TotalNaturalFlow!L101 -> 275,148 | R101: =InterveningNaturalFlow!R101 -> 15,415 | S101: =InterveningNaturalFlow!S101 -> 43,674 | T101: =InterveningNaturalFlow!T101+TotalNaturalFlow!S101 -> 125,645 | U101: =InterveningNaturalFlow!U101+TotalNaturalFlow!T101+TotalNaturalFlow!R101+TotalNaturalFlow!Q101+TotalNaturalFlow!I101 -> 701,627 | W101: =InterveningNaturalFlow!W101 -> 2,135 | X101: =InterveningNaturalFlow!X101 -> 17,241 | Y101: =InterveningNaturalFlow!Y101+TotalNaturalFlow!X101+TotalNaturalFlow!W101+TotalNaturalFlow!U101 -> 751,155 | Z101: =InterveningNaturalFlow!Z101 -> 7,318 | AA101: =InterveningNaturalFlow!AA101+TotalNaturalFlow!Z101+Y101 -> 745,165 | AB101: =InterveningNaturalFlow!AB101+TotalNaturalFlow!AA101 -> 759,828 | AC101: =InterveningNaturalFlow!AC101 -> 67 | AD101: =InterveningNaturalFlow!AD101+TotalNaturalFlow!AC101+AB101 -> 774,510 | AE101: =InterveningNaturalFlow!AE101+TotalNaturalFlow!AD101 -> 716,996
A102: 1913-10-31 | B102: =InterveningNaturalFlow!B102 -> 89,738 | C102: =InterveningNaturalFlow!C102+TotalNaturalFlow!B102 -> 145,535 | D102: =InterveningNaturalFlow!D102 -> 8,749 | E102: =InterveningNaturalFlow!E102+TotalNaturalFlow!D102 -> 48,000 | F102: =InterveningNaturalFlow!F102+TotalNaturalFlow!E102 -> 53,300 | G102: =InterveningNaturalFlow!G102+TotalNaturalFlow!F102 -> 87,579 | H102: =InterveningNaturalFlow!H102 -> 29,479 | I102: =InterveningNaturalFlow!I102+TotalNaturalFlow!H102+TotalNaturalFlow!G102+TotalNaturalFlow!C102 -> 267,205 | J102: =InterveningNaturalFlow!J102 -> 57,000 | K102: =InterveningNaturalFlow!K102+TotalNaturalFlow!J102 -> 63,092 | L102: =InterveningNaturalFlow!L102+TotalNaturalFlow!K102 -> 102,620 | M102: =InterveningNaturalFlow!M102 -> 31,721 | N102: =InterveningNaturalFlow!N102 -> 13,496 | O102: =InterveningNaturalFlow!O102 -> 36,287 | P102: =InterveningNaturalFlow!P102 -> 28,905 | Q102: =InterveningNaturalFlow!Q102+TotalNaturalFlow!P102+TotalNaturalFlow!O102+TotalNaturalFlow!N102+TotalNaturalFlow!M102+TotalNaturalFlow!L102 -> 223,610 | R102: =InterveningNaturalFlow!R102 -> 4,513 | S102: =InterveningNaturalFlow!S102 -> 61,156 | T102: =InterveningNaturalFlow!T102+TotalNaturalFlow!S102 -> 129,586 | U102: =InterveningNaturalFlow!U102+TotalNaturalFlow!T102+TotalNaturalFlow!R102+TotalNaturalFlow!Q102+TotalNaturalFlow!I102 -> 670,352 | W102: =InterveningNaturalFlow!W102 -> 1,644 | X102: =InterveningNaturalFlow!X102 -> 39,259 | Y102: =InterveningNaturalFlow!Y102+TotalNaturalFlow!X102+TotalNaturalFlow!W102+TotalNaturalFlow!U102 -> 718,593 | Z102: =InterveningNaturalFlow!Z102 -> 4,196 | AA102: =InterveningNaturalFlow!AA102+TotalNaturalFlow!Z102+Y102 -> 725,453 | AB102: =InterveningNaturalFlow!AB102+TotalNaturalFlow!AA102 -> 744,752 | AC102: =InterveningNaturalFlow!AC102 -> 199 | AD102: =InterveningNaturalFlow!AD102+TotalNaturalFlow!AC102+AB102 -> 721,627 | AE102: =InterveningNaturalFlow!AE102+TotalNaturalFlow!AD102 -> 774,294
A103: 1913-11-30 | B103: =InterveningNaturalFlow!B103 -> 63,309 | C103: =InterveningNaturalFlow!C103+TotalNaturalFlow!B103 -> 108,885 | D103: =InterveningNaturalFlow!D103 -> 5,062 | E103: =InterveningNaturalFlow!E103+TotalNaturalFlow!D103 -> 38,000 | F103: =InterveningNaturalFlow!F103+TotalNaturalFlow!E103 -> 42,200 | G103: =InterveningNaturalFlow!G103+TotalNaturalFlow!F103 -> 72,386 | H103: =InterveningNaturalFlow!H103 -> 19,753 | I103: =InterveningNaturalFlow!I103+TotalNaturalFlow!H103+TotalNaturalFlow!G103+TotalNaturalFlow!C103 -> 214,572 | J103: =InterveningNaturalFlow!J103 -> 50,000 | K103: =InterveningNaturalFlow!K103+TotalNaturalFlow!J103 -> 51,276 | L103: =InterveningNaturalFlow!L103+TotalNaturalFlow!K103 -> 68,881 | M103: =InterveningNaturalFlow!M103 -> 26,778 | N103: =InterveningNaturalFlow!N103 -> 10,669 | O103: =InterveningNaturalFlow!O103 -> 46,580 | P103: =InterveningNaturalFlow!P103 -> 24,666 | Q103: =InterveningNaturalFlow!Q103+TotalNaturalFlow!P103+TotalNaturalFlow!O103+TotalNaturalFlow!N103+TotalNaturalFlow!M103+TotalNaturalFlow!L103 -> 196,567 | R103: =InterveningNaturalFlow!R103 -> 7,409 | S103: =InterveningNaturalFlow!S103 -> 64,386 | T103: =InterveningNaturalFlow!T103+TotalNaturalFlow!S103 -> 76,038 | U103: =InterveningNaturalFlow!U103+TotalNaturalFlow!T103+TotalNaturalFlow!R103+TotalNaturalFlow!Q103+TotalNaturalFlow!I103 -> 538,369 | W103: =InterveningNaturalFlow!W103 -> 1,538 | X103: =InterveningNaturalFlow!X103 -> 353 | Y103: =InterveningNaturalFlow!Y103+TotalNaturalFlow!X103+TotalNaturalFlow!W103+TotalNaturalFlow!U103 -> 569,211 | Z103: =InterveningNaturalFlow!Z103 -> 5,450 | AA103: =InterveningNaturalFlow!AA103+TotalNaturalFlow!Z103+Y103 -> 596,552 | AB103: =InterveningNaturalFlow!AB103+TotalNaturalFlow!AA103 -> 622,692 | AC103: =InterveningNaturalFlow!AC103 -> 213 | AD103: =InterveningNaturalFlow!AD103+TotalNaturalFlow!AC103+AB103 -> 569,656 | AE103: =InterveningNaturalFlow!AE103+TotalNaturalFlow!AD103 -> 534,697
A104: 1913-12-31 | B104: =InterveningNaturalFlow!B104 -> 41,991 | C104: =InterveningNaturalFlow!C104+TotalNaturalFlow!B104 -> 67,539 | D104: =InterveningNaturalFlow!D104 -> 4,250 | E104: =InterveningNaturalFlow!E104+TotalNaturalFlow!D104 -> 30,000 | F104: =InterveningNaturalFlow!F104+TotalNaturalFlow!E104 -> 32,200 | G104: =InterveningNaturalFlow!G104+TotalNaturalFlow!F104 -> 71,771 | H104: =InterveningNaturalFlow!H104 -> 8,769 | I104: =InterveningNaturalFlow!I104+TotalNaturalFlow!H104+TotalNaturalFlow!G104+TotalNaturalFlow!C104 -> 141,308 | J104: =InterveningNaturalFlow!J104 -> 21,000 | K104: =InterveningNaturalFlow!K104+TotalNaturalFlow!J104 -> 23,585 | L104: =InterveningNaturalFlow!L104+TotalNaturalFlow!K104 -> 37,634 | M104: =InterveningNaturalFlow!M104 -> 17,887 | N104: =InterveningNaturalFlow!N104 -> 4,290 | O104: =InterveningNaturalFlow!O104 -> 36,844 | P104: =InterveningNaturalFlow!P104 -> 18,357 | Q104: =InterveningNaturalFlow!Q104+TotalNaturalFlow!P104+TotalNaturalFlow!O104+TotalNaturalFlow!N104+TotalNaturalFlow!M104+TotalNaturalFlow!L104 -> 105,240 | R104: =InterveningNaturalFlow!R104 -> 4,000 | S104: =InterveningNaturalFlow!S104 -> 47,625 | T104: =InterveningNaturalFlow!T104+TotalNaturalFlow!S104 -> 51,872 | U104: =InterveningNaturalFlow!U104+TotalNaturalFlow!T104+TotalNaturalFlow!R104+TotalNaturalFlow!Q104+TotalNaturalFlow!I104 -> 329,845 | W104: =InterveningNaturalFlow!W104 -> 1,001 | X104: =InterveningNaturalFlow!X104 -> 513 | Y104: =InterveningNaturalFlow!Y104+TotalNaturalFlow!X104+TotalNaturalFlow!W104+TotalNaturalFlow!U104 -> 366,773 | Z104: =InterveningNaturalFlow!Z104 -> 8,263 | AA104: =InterveningNaturalFlow!AA104+TotalNaturalFlow!Z104+Y104 -> 374,826 | AB104: =InterveningNaturalFlow!AB104+TotalNaturalFlow!AA104 -> 390,060 | AC104: =InterveningNaturalFlow!AC104 -> 467 | AD104: =InterveningNaturalFlow!AD104+TotalNaturalFlow!AC104+AB104 -> 364,085 | AE104: =InterveningNaturalFlow!AE104+TotalNaturalFlow!AD104 -> 320,925
A105: 1914-01-31 | B105: =InterveningNaturalFlow!B105 -> 45,102 | C105: =InterveningNaturalFlow!C105+TotalNaturalFlow!B105 -> 94,546 | D105: =InterveningNaturalFlow!D105 -> 3,812 | E105: =InterveningNaturalFlow!E105+TotalNaturalFlow!D105 -> 26,000 | F105: =InterveningNaturalFlow!F105+TotalNaturalFlow!E105 -> 29,200 | G105: =InterveningNaturalFlow!G105+TotalNaturalFlow!F105 -> 65,114 | H105: =InterveningNaturalFlow!H105 -> 12,117 | I105: =InterveningNaturalFlow!I105+TotalNaturalFlow!H105+TotalNaturalFlow!G105+TotalNaturalFlow!C105 -> 180,159 | J105: =InterveningNaturalFlow!J105 -> 25,000 | K105: =InterveningNaturalFlow!K105+TotalNaturalFlow!J105 -> 29,799 | L105: =InterveningNaturalFlow!L105+TotalNaturalFlow!K105 -> 58,998 | M105: =InterveningNaturalFlow!M105 -> 14,115 | N105: =InterveningNaturalFlow!N105 -> 6,215 | O105: =InterveningNaturalFlow!O105 -> 39,629 | P105: =InterveningNaturalFlow!P105 -> 13,565 | Q105: =InterveningNaturalFlow!Q105+TotalNaturalFlow!P105+TotalNaturalFlow!O105+TotalNaturalFlow!N105+TotalNaturalFlow!M105+TotalNaturalFlow!L105 -> 125,900 | R105: =InterveningNaturalFlow!R105 -> 3,400 | S105: =InterveningNaturalFlow!S105 -> 35,300 | T105: =InterveningNaturalFlow!T105+TotalNaturalFlow!S105 -> 56,092 | U105: =InterveningNaturalFlow!U105+TotalNaturalFlow!T105+TotalNaturalFlow!R105+TotalNaturalFlow!Q105+TotalNaturalFlow!I105 -> 369,539 | W105: =InterveningNaturalFlow!W105 -> 1,226 | X105: =InterveningNaturalFlow!X105 -> 16,662 | Y105: =InterveningNaturalFlow!Y105+TotalNaturalFlow!X105+TotalNaturalFlow!W105+TotalNaturalFlow!U105 -> 412,994 | Z105: =InterveningNaturalFlow!Z105 -> 9,509 | AA105: =InterveningNaturalFlow!AA105+TotalNaturalFlow!Z105+Y105 -> 435,977 | AB105: =InterveningNaturalFlow!AB105+TotalNaturalFlow!AA105 -> 424,601 | AC105: =InterveningNaturalFlow!AC105 -> 12,200 | AD105: =InterveningNaturalFlow!AD105+TotalNaturalFlow!AC105+AB105 -> 423,698 | AE105: =InterveningNaturalFlow!AE105+TotalNaturalFlow!AD105 -> 390,233
A106: 1914-02-28 | B106: =InterveningNaturalFlow!B106 -> 41,898 | C106: =InterveningNaturalFlow!C106+TotalNaturalFlow!B106 -> 79,761 | D106: =InterveningNaturalFlow!D106 -> 3,949 | E106: =InterveningNaturalFlow!E106+TotalNaturalFlow!D106 -> 21,000 | F106: =InterveningNaturalFlow!F106+TotalNaturalFlow!E106 -> 24,900 | G106: =InterveningNaturalFlow!G106+TotalNaturalFlow!F106 -> 53,135 | H106: =InterveningNaturalFlow!H106 -> 12,965 | I106: =InterveningNaturalFlow!I106+TotalNaturalFlow!H106+TotalNaturalFlow!G106+TotalNaturalFlow!C106 -> 151,295 | J106: =InterveningNaturalFlow!J106 -> 26,000 | K106: =InterveningNaturalFlow!K106+TotalNaturalFlow!J106 -> 28,359 | L106: =InterveningNaturalFlow!L106+TotalNaturalFlow!K106 -> 67,750 | M106: =InterveningNaturalFlow!M106 -> 16,825 | N106: =InterveningNaturalFlow!N106 -> 9,389 | O106: =InterveningNaturalFlow!O106 -> 43,352 | P106: =InterveningNaturalFlow!P106 -> 18,628 | Q106: =InterveningNaturalFlow!Q106+TotalNaturalFlow!P106+TotalNaturalFlow!O106+TotalNaturalFlow!N106+TotalNaturalFlow!M106+TotalNaturalFlow!L106 -> 148,637 | R106: =InterveningNaturalFlow!R106 -> 3,600 | S106: =InterveningNaturalFlow!S106 -> 28,269 | T106: =InterveningNaturalFlow!T106+TotalNaturalFlow!S106 -> 69,767 | U106: =InterveningNaturalFlow!U106+TotalNaturalFlow!T106+TotalNaturalFlow!R106+TotalNaturalFlow!Q106+TotalNaturalFlow!I106 -> 401,134 | W106: =InterveningNaturalFlow!W106 -> 1,986 | X106: =InterveningNaturalFlow!X106 -> 865 | Y106: =InterveningNaturalFlow!Y106+TotalNaturalFlow!X106+TotalNaturalFlow!W106+TotalNaturalFlow!U106 -> 419,858 | Z106: =InterveningNaturalFlow!Z106 -> 12,228 | AA106: =InterveningNaturalFlow!AA106+TotalNaturalFlow!Z106+Y106 -> 468,404 | AB106: =InterveningNaturalFlow!AB106+TotalNaturalFlow!AA106 -> 427,394 | AC106: =InterveningNaturalFlow!AC106 -> 50,400 | AD106: =InterveningNaturalFlow!AD106+TotalNaturalFlow!AC106+AB106 -> 460,881 | AE106: =InterveningNaturalFlow!AE106+TotalNaturalFlow!AD106 -> 416,933
A107: 1914-03-31 | B107: =InterveningNaturalFlow!B107 -> 62,247 | C107: =InterveningNaturalFlow!C107+TotalNaturalFlow!B107 -> 107,644 | D107: =InterveningNaturalFlow!D107 -> 4,545 | E107: =InterveningNaturalFlow!E107+TotalNaturalFlow!D107 -> 47,000 | F107: =InterveningNaturalFlow!F107+TotalNaturalFlow!E107 -> 55,300 | G107: =InterveningNaturalFlow!G107+TotalNaturalFlow!F107 -> 87,282 | H107: =InterveningNaturalFlow!H107 -> 32,381 | I107: =InterveningNaturalFlow!I107+TotalNaturalFlow!H107+TotalNaturalFlow!G107+TotalNaturalFlow!C107 -> 224,631 | J107: =InterveningNaturalFlow!J107 -> 63,000 | K107: =InterveningNaturalFlow!K107+TotalNaturalFlow!J107 -> 78,068 | L107: =InterveningNaturalFlow!L107+TotalNaturalFlow!K107 -> 156,956 | M107: =InterveningNaturalFlow!M107 -> 59,323 | N107: =InterveningNaturalFlow!N107 -> 37,689 | O107: =InterveningNaturalFlow!O107 -> 51,865 | P107: =InterveningNaturalFlow!P107 -> 47,596 | Q107: =InterveningNaturalFlow!Q107+TotalNaturalFlow!P107+TotalNaturalFlow!O107+TotalNaturalFlow!N107+TotalNaturalFlow!M107+TotalNaturalFlow!L107 -> 396,983 | R107: =InterveningNaturalFlow!R107 -> 5,500 | S107: =InterveningNaturalFlow!S107 -> 80,027 | T107: =InterveningNaturalFlow!T107+TotalNaturalFlow!S107 -> 165,444 | U107: =InterveningNaturalFlow!U107+TotalNaturalFlow!T107+TotalNaturalFlow!R107+TotalNaturalFlow!Q107+TotalNaturalFlow!I107 -> 876,055 | W107: =InterveningNaturalFlow!W107 -> 2,468 | X107: =InterveningNaturalFlow!X107 -> 8,194 | Y107: =InterveningNaturalFlow!Y107+TotalNaturalFlow!X107+TotalNaturalFlow!W107+TotalNaturalFlow!U107 -> 905,418 | Z107: =InterveningNaturalFlow!Z107 -> 12,341 | AA107: =InterveningNaturalFlow!AA107+TotalNaturalFlow!Z107+Y107 -> 914,166 | AB107: =InterveningNaturalFlow!AB107+TotalNaturalFlow!AA107 -> 936,129 | AC107: =InterveningNaturalFlow!AC107 -> 3,700 | AD107: =InterveningNaturalFlow!AD107+TotalNaturalFlow!AC107+AB107 -> 903,094 | AE107: =InterveningNaturalFlow!AE107+TotalNaturalFlow!AD107 -> 839,570
A108: 1914-04-30 | B108: =InterveningNaturalFlow!B108 -> 154,771 | C108: =InterveningNaturalFlow!C108+TotalNaturalFlow!B108 -> 264,884 | D108: =InterveningNaturalFlow!D108 -> 8,871 | E108: =InterveningNaturalFlow!E108+TotalNaturalFlow!D108 -> 104,000 | F108: =InterveningNaturalFlow!F108+TotalNaturalFlow!E108 -> 130,500 | G108: =InterveningNaturalFlow!G108+TotalNaturalFlow!F108 -> 224,971 | H108: =InterveningNaturalFlow!H108 -> 173,211 | I108: =InterveningNaturalFlow!I108+TotalNaturalFlow!H108+TotalNaturalFlow!G108+TotalNaturalFlow!C108 -> 601,854 | J108: =InterveningNaturalFlow!J108 -> 147,000 | K108: =InterveningNaturalFlow!K108+TotalNaturalFlow!J108 -> 173,131 | L108: =InterveningNaturalFlow!L108+TotalNaturalFlow!K108 -> 300,902 | M108: =InterveningNaturalFlow!M108 -> 226,907 | N108: =InterveningNaturalFlow!N108 -> 75,555 | O108: =InterveningNaturalFlow!O108 -> 105,043 | P108: =InterveningNaturalFlow!P108 -> 70,262 | Q108: =InterveningNaturalFlow!Q108+TotalNaturalFlow!P108+TotalNaturalFlow!O108+TotalNaturalFlow!N108+TotalNaturalFlow!M108+TotalNaturalFlow!L108 -> 779,818 | R108: =InterveningNaturalFlow!R108 -> 15,410 | S108: =InterveningNaturalFlow!S108 -> 211,887 | T108: =InterveningNaturalFlow!T108+TotalNaturalFlow!S108 -> 282,932 | U108: =InterveningNaturalFlow!U108+TotalNaturalFlow!T108+TotalNaturalFlow!R108+TotalNaturalFlow!Q108+TotalNaturalFlow!I108 -> 1,593,815 | W108: =InterveningNaturalFlow!W108 -> 1,086 | X108: =InterveningNaturalFlow!X108 -> 0 | Y108: =InterveningNaturalFlow!Y108+TotalNaturalFlow!X108+TotalNaturalFlow!W108+TotalNaturalFlow!U108 -> 1,622,965 | Z108: =InterveningNaturalFlow!Z108 -> 11,683 | AA108: =InterveningNaturalFlow!AA108+TotalNaturalFlow!Z108+Y108 -> 1,649,997 | AB108: =InterveningNaturalFlow!AB108+TotalNaturalFlow!AA108 -> 1,666,029 | AC108: =InterveningNaturalFlow!AC108 -> 1,500 | AD108: =InterveningNaturalFlow!AD108+TotalNaturalFlow!AC108+AB108 -> 1,647,508 | AE108: =InterveningNaturalFlow!AE108+TotalNaturalFlow!AD108 -> 1,591,256
A109: 1914-05-31 | B109: =InterveningNaturalFlow!B109 -> 770,934 | C109: =InterveningNaturalFlow!C109+TotalNaturalFlow!B109 -> 1,159,961 | D109: =InterveningNaturalFlow!D109 -> 40,319 | E109: =InterveningNaturalFlow!E109+TotalNaturalFlow!D109 -> 383,010 | F109: =InterveningNaturalFlow!F109+TotalNaturalFlow!E109 -> 465,310 | G109: =InterveningNaturalFlow!G109+TotalNaturalFlow!F109 -> 828,777 | H109: =InterveningNaturalFlow!H109 -> 250,023 | I109: =InterveningNaturalFlow!I109+TotalNaturalFlow!H109+TotalNaturalFlow!G109+TotalNaturalFlow!C109 -> 2,150,731 | J109: =InterveningNaturalFlow!J109 -> 356,900 | K109: =InterveningNaturalFlow!K109+TotalNaturalFlow!J109 -> 364,062 | L109: =InterveningNaturalFlow!L109+TotalNaturalFlow!K109 -> 615,337 | M109: =InterveningNaturalFlow!M109 -> 634,232 | N109: =InterveningNaturalFlow!N109 -> 183,505 | O109: =InterveningNaturalFlow!O109 -> 310,885 | P109: =InterveningNaturalFlow!P109 -> 151,965 | Q109: =InterveningNaturalFlow!Q109+TotalNaturalFlow!P109+TotalNaturalFlow!O109+TotalNaturalFlow!N109+TotalNaturalFlow!M109+TotalNaturalFlow!L109 -> 1,871,957 | R109: =InterveningNaturalFlow!R109 -> 113,372 | S109: =InterveningNaturalFlow!S109 -> 381,662 | T109: =InterveningNaturalFlow!T109+TotalNaturalFlow!S109 -> 572,437 | U109: =InterveningNaturalFlow!U109+TotalNaturalFlow!T109+TotalNaturalFlow!R109+TotalNaturalFlow!Q109+TotalNaturalFlow!I109 -> 4,685,651 | W109: =InterveningNaturalFlow!W109 -> 529 | X109: =InterveningNaturalFlow!X109 -> 0 | Y109: =InterveningNaturalFlow!Y109+TotalNaturalFlow!X109+TotalNaturalFlow!W109+TotalNaturalFlow!U109 -> 4,632,367 | Z109: =InterveningNaturalFlow!Z109 -> 11,256 | AA109: =InterveningNaturalFlow!AA109+TotalNaturalFlow!Z109+Y109 -> 4,676,336 | AB109: =InterveningNaturalFlow!AB109+TotalNaturalFlow!AA109 -> 4,702,909 | AC109: =InterveningNaturalFlow!AC109 -> 1,400 | AD109: =InterveningNaturalFlow!AD109+TotalNaturalFlow!AC109+AB109 -> 4,709,674 | AE109: =InterveningNaturalFlow!AE109+TotalNaturalFlow!AD109 -> 4,666,478
A110: 1914-06-30 | B110: =InterveningNaturalFlow!B110 -> 1,132,594 | C110: =InterveningNaturalFlow!C110+TotalNaturalFlow!B110 -> 1,582,920 | D110: =InterveningNaturalFlow!D110 -> 56,365 | E110: =InterveningNaturalFlow!E110+TotalNaturalFlow!D110 -> 435,328 | F110: =InterveningNaturalFlow!F110+TotalNaturalFlow!E110 -> 511,128 | G110: =InterveningNaturalFlow!G110+TotalNaturalFlow!F110 -> 872,678 | H110: =InterveningNaturalFlow!H110 -> 168,949 | I110: =InterveningNaturalFlow!I110+TotalNaturalFlow!H110+TotalNaturalFlow!G110+TotalNaturalFlow!C110 -> 2,624,533 | J110: =InterveningNaturalFlow!J110 -> 598,500 | K110: =InterveningNaturalFlow!K110+TotalNaturalFlow!J110 -> 623,057 | L110: =InterveningNaturalFlow!L110+TotalNaturalFlow!K110 -> 805,179 | M110: =InterveningNaturalFlow!M110 -> 571,321 | N110: =InterveningNaturalFlow!N110 -> 187,924 | O110: =InterveningNaturalFlow!O110 -> 366,522 | P110: =InterveningNaturalFlow!P110 -> 197,169 | Q110: =InterveningNaturalFlow!Q110+TotalNaturalFlow!P110+TotalNaturalFlow!O110+TotalNaturalFlow!N110+TotalNaturalFlow!M110+TotalNaturalFlow!L110 -> 2,283,431 | R110: =InterveningNaturalFlow!R110 -> 111,011 | S110: =InterveningNaturalFlow!S110 -> 384,197 | T110: =InterveningNaturalFlow!T110+TotalNaturalFlow!S110 -> 695,971 | U110: =InterveningNaturalFlow!U110+TotalNaturalFlow!T110+TotalNaturalFlow!R110+TotalNaturalFlow!Q110+TotalNaturalFlow!I110 -> 6,296,012 | W110: =InterveningNaturalFlow!W110 -> 368 | X110: =InterveningNaturalFlow!X110 -> 66 | Y110: =InterveningNaturalFlow!Y110+TotalNaturalFlow!X110+TotalNaturalFlow!W110+TotalNaturalFlow!U110 -> 6,427,271 | Z110: =InterveningNaturalFlow!Z110 -> 4,462 | AA110: =InterveningNaturalFlow!AA110+TotalNaturalFlow!Z110+Y110 -> 6,501,756 | AB110: =InterveningNaturalFlow!AB110+TotalNaturalFlow!AA110 -> 6,549,907 | AC110: =InterveningNaturalFlow!AC110 -> 1,500 | AD110: =InterveningNaturalFlow!AD110+TotalNaturalFlow!AC110+AB110 -> 6,548,259 | AE110: =InterveningNaturalFlow!AE110+TotalNaturalFlow!AD110 -> 6,480,865
A111: 1914-07-31 | B111: =InterveningNaturalFlow!B111 -> 382,642 | C111: =InterveningNaturalFlow!C111+TotalNaturalFlow!B111 -> 722,861 | D111: =InterveningNaturalFlow!D111 -> 37,868 | E111: =InterveningNaturalFlow!E111+TotalNaturalFlow!D111 -> 242,782 | F111: =InterveningNaturalFlow!F111+TotalNaturalFlow!E111 -> 263,882 | G111: =InterveningNaturalFlow!G111+TotalNaturalFlow!F111 -> 505,278 | H111: =InterveningNaturalFlow!H111 -> 113,584 | I111: =InterveningNaturalFlow!I111+TotalNaturalFlow!H111+TotalNaturalFlow!G111+TotalNaturalFlow!C111 -> 1,359,748 | J111: =InterveningNaturalFlow!J111 -> 319,400 | K111: =InterveningNaturalFlow!K111+TotalNaturalFlow!J111 -> 342,778 | L111: =InterveningNaturalFlow!L111+TotalNaturalFlow!K111 -> 410,951 | M111: =InterveningNaturalFlow!M111 -> 170,153 | N111: =InterveningNaturalFlow!N111 -> 79,820 | O111: =InterveningNaturalFlow!O111 -> 119,597 | P111: =InterveningNaturalFlow!P111 -> 113,527 | Q111: =InterveningNaturalFlow!Q111+TotalNaturalFlow!P111+TotalNaturalFlow!O111+TotalNaturalFlow!N111+TotalNaturalFlow!M111+TotalNaturalFlow!L111 -> 1,029,139 | R111: =InterveningNaturalFlow!R111 -> 34,238 | S111: =InterveningNaturalFlow!S111 -> 157,357 | T111: =InterveningNaturalFlow!T111+TotalNaturalFlow!S111 -> 352,381 | U111: =InterveningNaturalFlow!U111+TotalNaturalFlow!T111+TotalNaturalFlow!R111+TotalNaturalFlow!Q111+TotalNaturalFlow!I111 -> 3,116,693 | W111: =InterveningNaturalFlow!W111 -> 1,142 | X111: =InterveningNaturalFlow!X111 -> 1,701 | Y111: =InterveningNaturalFlow!Y111+TotalNaturalFlow!X111+TotalNaturalFlow!W111+TotalNaturalFlow!U111 -> 3,121,780 | Z111: =InterveningNaturalFlow!Z111 -> 4,271 | AA111: =InterveningNaturalFlow!AA111+TotalNaturalFlow!Z111+Y111 -> 3,165,326 | AB111: =InterveningNaturalFlow!AB111+TotalNaturalFlow!AA111 -> 3,204,114 | AC111: =InterveningNaturalFlow!AC111 -> 1,500 | AD111: =InterveningNaturalFlow!AD111+TotalNaturalFlow!AC111+AB111 -> 3,186,379 | AE111: =InterveningNaturalFlow!AE111+TotalNaturalFlow!AD111 -> 3,136,394
A112: 1914-08-31 | B112: =InterveningNaturalFlow!B112 -> 186,215 | C112: =InterveningNaturalFlow!C112+TotalNaturalFlow!B112 -> 335,649 | D112: =InterveningNaturalFlow!D112 -> 14,022 | E112: =InterveningNaturalFlow!E112+TotalNaturalFlow!D112 -> 113,270 | F112: =InterveningNaturalFlow!F112+TotalNaturalFlow!E112 -> 122,570 | G112: =InterveningNaturalFlow!G112+TotalNaturalFlow!F112 -> 224,781 | H112: =InterveningNaturalFlow!H112 -> 70,805 | I112: =InterveningNaturalFlow!I112+TotalNaturalFlow!H112+TotalNaturalFlow!G112+TotalNaturalFlow!C112 -> 633,860 | J112: =InterveningNaturalFlow!J112 -> 125,300 | K112: =InterveningNaturalFlow!K112+TotalNaturalFlow!J112 -> 130,774 | L112: =InterveningNaturalFlow!L112+TotalNaturalFlow!K112 -> 184,335 | M112: =InterveningNaturalFlow!M112 -> 45,168 | N112: =InterveningNaturalFlow!N112 -> 48,130 | O112: =InterveningNaturalFlow!O112 -> 44,640 | P112: =InterveningNaturalFlow!P112 -> 57,164 | Q112: =InterveningNaturalFlow!Q112+TotalNaturalFlow!P112+TotalNaturalFlow!O112+TotalNaturalFlow!N112+TotalNaturalFlow!M112+TotalNaturalFlow!L112 -> 438,650 | R112: =InterveningNaturalFlow!R112 -> 19,492 | S112: =InterveningNaturalFlow!S112 -> 89,990 | T112: =InterveningNaturalFlow!T112+TotalNaturalFlow!S112 -> 246,972 | U112: =InterveningNaturalFlow!U112+TotalNaturalFlow!T112+TotalNaturalFlow!R112+TotalNaturalFlow!Q112+TotalNaturalFlow!I112 -> 1,405,438 | W112: =InterveningNaturalFlow!W112 -> 2,278 | X112: =InterveningNaturalFlow!X112 -> 1,082 | Y112: =InterveningNaturalFlow!Y112+TotalNaturalFlow!X112+TotalNaturalFlow!W112+TotalNaturalFlow!U112 -> 1,394,130 | Z112: =InterveningNaturalFlow!Z112 -> 5,098 | AA112: =InterveningNaturalFlow!AA112+TotalNaturalFlow!Z112+Y112 -> 1,507,356 | AB112: =InterveningNaturalFlow!AB112+TotalNaturalFlow!AA112 -> 1,530,669 | AC112: =InterveningNaturalFlow!AC112 -> 1,500 | AD112: =InterveningNaturalFlow!AD112+TotalNaturalFlow!AC112+AB112 -> 1,519,345 | AE112: =InterveningNaturalFlow!AE112+TotalNaturalFlow!AD112 -> 1,470,861
A113: 1914-09-30 | B113: =InterveningNaturalFlow!B113 -> 112,069 | C113: =InterveningNaturalFlow!C113+TotalNaturalFlow!B113 -> 182,864 | D113: =InterveningNaturalFlow!D113 -> 9,521 | E113: =InterveningNaturalFlow!E113+TotalNaturalFlow!D113 -> 66,738 | F113: =InterveningNaturalFlow!F113+TotalNaturalFlow!E113 -> 71,238 | G113: =InterveningNaturalFlow!G113+TotalNaturalFlow!F113 -> 131,759 | H113: =InterveningNaturalFlow!H113 -> 36,573 | I113: =InterveningNaturalFlow!I113+TotalNaturalFlow!H113+TotalNaturalFlow!G113+TotalNaturalFlow!C113 -> 348,424 | J113: =InterveningNaturalFlow!J113 -> 55,800 | K113: =InterveningNaturalFlow!K113+TotalNaturalFlow!J113 -> 61,375 | L113: =InterveningNaturalFlow!L113+TotalNaturalFlow!K113 -> 86,973 | M113: =InterveningNaturalFlow!M113 -> 22,820 | N113: =InterveningNaturalFlow!N113 -> 28,358 | O113: =InterveningNaturalFlow!O113 -> 33,872 | P113: =InterveningNaturalFlow!P113 -> 32,883 | Q113: =InterveningNaturalFlow!Q113+TotalNaturalFlow!P113+TotalNaturalFlow!O113+TotalNaturalFlow!N113+TotalNaturalFlow!M113+TotalNaturalFlow!L113 -> 215,547 | R113: =InterveningNaturalFlow!R113 -> 5,321 | S113: =InterveningNaturalFlow!S113 -> 68,893 | T113: =InterveningNaturalFlow!T113+TotalNaturalFlow!S113 -> 203,411 | U113: =InterveningNaturalFlow!U113+TotalNaturalFlow!T113+TotalNaturalFlow!R113+TotalNaturalFlow!Q113+TotalNaturalFlow!I113 -> 783,864 | W113: =InterveningNaturalFlow!W113 -> 1,285 | X113: =InterveningNaturalFlow!X113 -> 16,613 | Y113: =InterveningNaturalFlow!Y113+TotalNaturalFlow!X113+TotalNaturalFlow!W113+TotalNaturalFlow!U113 -> 846,604 | Z113: =InterveningNaturalFlow!Z113 -> 5,223 | AA113: =InterveningNaturalFlow!AA113+TotalNaturalFlow!Z113+Y113 -> 852,867 | AB113: =InterveningNaturalFlow!AB113+TotalNaturalFlow!AA113 -> 862,824 | AC113: =InterveningNaturalFlow!AC113 -> 1,400 | AD113: =InterveningNaturalFlow!AD113+TotalNaturalFlow!AC113+AB113 -> 866,870 | AE113: =InterveningNaturalFlow!AE113+TotalNaturalFlow!AD113 -> 864,319
A114: 1914-10-31 | B114: =InterveningNaturalFlow!B114 -> 101,672 | C114: =InterveningNaturalFlow!C114+TotalNaturalFlow!B114 -> 144,465 | D114: =InterveningNaturalFlow!D114 -> 9,951 | E114: =InterveningNaturalFlow!E114+TotalNaturalFlow!D114 -> 66,200 | F114: =InterveningNaturalFlow!F114+TotalNaturalFlow!E114 -> 73,100 | G114: =InterveningNaturalFlow!G114+TotalNaturalFlow!F114 -> 100,351 | H114: =InterveningNaturalFlow!H114 -> 20,251 | I114: =InterveningNaturalFlow!I114+TotalNaturalFlow!H114+TotalNaturalFlow!G114+TotalNaturalFlow!C114 -> 261,551 | J114: =InterveningNaturalFlow!J114 -> 36,000 | K114: =InterveningNaturalFlow!K114+TotalNaturalFlow!J114 -> 33,800 | L114: =InterveningNaturalFlow!L114+TotalNaturalFlow!K114 -> 71,517 | M114: =InterveningNaturalFlow!M114 -> 33,342 | N114: =InterveningNaturalFlow!N114 -> 15,394 | O114: =InterveningNaturalFlow!O114 -> 51,161 | P114: =InterveningNaturalFlow!P114 -> 32,524 | Q114: =InterveningNaturalFlow!Q114+TotalNaturalFlow!P114+TotalNaturalFlow!O114+TotalNaturalFlow!N114+TotalNaturalFlow!M114+TotalNaturalFlow!L114 -> 247,507 | R114: =InterveningNaturalFlow!R114 -> 10,107 | S114: =InterveningNaturalFlow!S114 -> 86,068 | T114: =InterveningNaturalFlow!T114+TotalNaturalFlow!S114 -> 223,157 | U114: =InterveningNaturalFlow!U114+TotalNaturalFlow!T114+TotalNaturalFlow!R114+TotalNaturalFlow!Q114+TotalNaturalFlow!I114 -> 964,927 | W114: =InterveningNaturalFlow!W114 -> 3,366 | X114: =InterveningNaturalFlow!X114 -> 0 | Y114: =InterveningNaturalFlow!Y114+TotalNaturalFlow!X114+TotalNaturalFlow!W114+TotalNaturalFlow!U114 -> 992,498 | Z114: =InterveningNaturalFlow!Z114 -> 4,477 | AA114: =InterveningNaturalFlow!AA114+TotalNaturalFlow!Z114+Y114 -> 1,053,599 | AB114: =InterveningNaturalFlow!AB114+TotalNaturalFlow!AA114 -> 1,077,726 | AC114: =InterveningNaturalFlow!AC114 -> 2,000 | AD114: =InterveningNaturalFlow!AD114+TotalNaturalFlow!AC114+AB114 -> 1,085,167 | AE114: =InterveningNaturalFlow!AE114+TotalNaturalFlow!AD114 -> 1,015,693
A115: 1914-11-30 | B115: =InterveningNaturalFlow!B115 -> 58,314 | C115: =InterveningNaturalFlow!C115+TotalNaturalFlow!B115 -> 106,582 | D115: =InterveningNaturalFlow!D115 -> 6,803 | E115: =InterveningNaturalFlow!E115+TotalNaturalFlow!D115 -> 48,000 | F115: =InterveningNaturalFlow!F115+TotalNaturalFlow!E115 -> 54,000 | G115: =InterveningNaturalFlow!G115+TotalNaturalFlow!F115 -> 74,823 | H115: =InterveningNaturalFlow!H115 -> 20,480 | I115: =InterveningNaturalFlow!I115+TotalNaturalFlow!H115+TotalNaturalFlow!G115+TotalNaturalFlow!C115 -> 217,062 | J115: =InterveningNaturalFlow!J115 -> 31,000 | K115: =InterveningNaturalFlow!K115+TotalNaturalFlow!J115 -> 29,700 | L115: =InterveningNaturalFlow!L115+TotalNaturalFlow!K115 -> 50,732 | M115: =InterveningNaturalFlow!M115 -> 22,910 | N115: =InterveningNaturalFlow!N115 -> 10,866 | O115: =InterveningNaturalFlow!O115 -> 33,457 | P115: =InterveningNaturalFlow!P115 -> 24,897 | Q115: =InterveningNaturalFlow!Q115+TotalNaturalFlow!P115+TotalNaturalFlow!O115+TotalNaturalFlow!N115+TotalNaturalFlow!M115+TotalNaturalFlow!L115 -> 163,030 | R115: =InterveningNaturalFlow!R115 -> 2,505 | S115: =InterveningNaturalFlow!S115 -> 38,597 | T115: =InterveningNaturalFlow!T115+TotalNaturalFlow!S115 -> 93,878 | U115: =InterveningNaturalFlow!U115+TotalNaturalFlow!T115+TotalNaturalFlow!R115+TotalNaturalFlow!Q115+TotalNaturalFlow!I115 -> 527,355 | W115: =InterveningNaturalFlow!W115 -> 1,145 | X115: =InterveningNaturalFlow!X115 -> 859 | Y115: =InterveningNaturalFlow!Y115+TotalNaturalFlow!X115+TotalNaturalFlow!W115+TotalNaturalFlow!U115 -> 579,906 | Z115: =InterveningNaturalFlow!Z115 -> 5,743 | AA115: =InterveningNaturalFlow!AA115+TotalNaturalFlow!Z115+Y115 -> 586,544 | AB115: =InterveningNaturalFlow!AB115+TotalNaturalFlow!AA115 -> 570,408 | AC115: =InterveningNaturalFlow!AC115 -> 1,600 | AD115: =InterveningNaturalFlow!AD115+TotalNaturalFlow!AC115+AB115 -> 547,439 | AE115: =InterveningNaturalFlow!AE115+TotalNaturalFlow!AD115 -> 526,639
A116: 1914-12-31 | B116: =InterveningNaturalFlow!B116 -> 38,006 | C116: =InterveningNaturalFlow!C116+TotalNaturalFlow!B116 -> 65,074 | D116: =InterveningNaturalFlow!D116 -> 4,437 | E116: =InterveningNaturalFlow!E116+TotalNaturalFlow!D116 -> 30,000 | F116: =InterveningNaturalFlow!F116+TotalNaturalFlow!E116 -> 31,900 | G116: =InterveningNaturalFlow!G116+TotalNaturalFlow!F116 -> 72,977 | H116: =InterveningNaturalFlow!H116 -> 8,674 | I116: =InterveningNaturalFlow!I116+TotalNaturalFlow!H116+TotalNaturalFlow!G116+TotalNaturalFlow!C116 -> 141,293 | J116: =InterveningNaturalFlow!J116 -> 24,000 | K116: =InterveningNaturalFlow!K116+TotalNaturalFlow!J116 -> 24,600 | L116: =InterveningNaturalFlow!L116+TotalNaturalFlow!K116 -> 36,782 | M116: =InterveningNaturalFlow!M116 -> 15,829 | N116: =InterveningNaturalFlow!N116 -> 3,736 | O116: =InterveningNaturalFlow!O116 -> 28,947 | P116: =InterveningNaturalFlow!P116 -> 17,162 | Q116: =InterveningNaturalFlow!Q116+TotalNaturalFlow!P116+TotalNaturalFlow!O116+TotalNaturalFlow!N116+TotalNaturalFlow!M116+TotalNaturalFlow!L116 -> 97,155 | R116: =InterveningNaturalFlow!R116 -> 3,700 | S116: =InterveningNaturalFlow!S116 -> 22,344 | T116: =InterveningNaturalFlow!T116+TotalNaturalFlow!S116 -> 62,579 | U116: =InterveningNaturalFlow!U116+TotalNaturalFlow!T116+TotalNaturalFlow!R116+TotalNaturalFlow!Q116+TotalNaturalFlow!I116 -> 334,330 | W116: =InterveningNaturalFlow!W116 -> 686 | X116: =InterveningNaturalFlow!X116 -> 17,397 | Y116: =InterveningNaturalFlow!Y116+TotalNaturalFlow!X116+TotalNaturalFlow!W116+TotalNaturalFlow!U116 -> 389,332 | Z116: =InterveningNaturalFlow!Z116 -> 8,749 | AA116: =InterveningNaturalFlow!AA116+TotalNaturalFlow!Z116+Y116 -> 427,171 | AB116: =InterveningNaturalFlow!AB116+TotalNaturalFlow!AA116 -> 435,803 | AC116: =InterveningNaturalFlow!AC116 -> 1,800 | AD116: =InterveningNaturalFlow!AD116+TotalNaturalFlow!AC116+AB116 -> 444,570 | AE116: =InterveningNaturalFlow!AE116+TotalNaturalFlow!AD116 -> 432,995
A117: 1915-01-31 | B117: =InterveningNaturalFlow!B117 -> 38,568 | C117: =InterveningNaturalFlow!C117+TotalNaturalFlow!B117 -> 91,132 | D117: =InterveningNaturalFlow!D117 -> 4,197 | E117: =InterveningNaturalFlow!E117+TotalNaturalFlow!D117 -> 27,000 | F117: =InterveningNaturalFlow!F117+TotalNaturalFlow!E117 -> 30,100 | G117: =InterveningNaturalFlow!G117+TotalNaturalFlow!F117 -> 66,138 | H117: =InterveningNaturalFlow!H117 -> 12,693 | I117: =InterveningNaturalFlow!I117+TotalNaturalFlow!H117+TotalNaturalFlow!G117+TotalNaturalFlow!C117 -> 180,154 | J117: =InterveningNaturalFlow!J117 -> 20,000 | K117: =InterveningNaturalFlow!K117+TotalNaturalFlow!J117 -> 19,900 | L117: =InterveningNaturalFlow!L117+TotalNaturalFlow!K117 -> 43,402 | M117: =InterveningNaturalFlow!M117 -> 11,141 | N117: =InterveningNaturalFlow!N117 -> 2,967 | O117: =InterveningNaturalFlow!O117 -> 24,778 | P117: =InterveningNaturalFlow!P117 -> 19,928 | Q117: =InterveningNaturalFlow!Q117+TotalNaturalFlow!P117+TotalNaturalFlow!O117+TotalNaturalFlow!N117+TotalNaturalFlow!M117+TotalNaturalFlow!L117 -> 94,230 | R117: =InterveningNaturalFlow!R117 -> 3,000 | S117: =InterveningNaturalFlow!S117 -> 21,660 | T117: =InterveningNaturalFlow!T117+TotalNaturalFlow!S117 -> 62,360 | U117: =InterveningNaturalFlow!U117+TotalNaturalFlow!T117+TotalNaturalFlow!R117+TotalNaturalFlow!Q117+TotalNaturalFlow!I117 -> 304,134 | W117: =InterveningNaturalFlow!W117 -> 1,772 | X117: =InterveningNaturalFlow!X117 -> 0 | Y117: =InterveningNaturalFlow!Y117+TotalNaturalFlow!X117+TotalNaturalFlow!W117+TotalNaturalFlow!U117 -> 334,847 | Z117: =InterveningNaturalFlow!Z117 -> 10,598 | AA117: =InterveningNaturalFlow!AA117+TotalNaturalFlow!Z117+Y117 -> 443,696 | AB117: =InterveningNaturalFlow!AB117+TotalNaturalFlow!AA117 -> 431,062 | AC117: =InterveningNaturalFlow!AC117 -> 23,300 | AD117: =InterveningNaturalFlow!AD117+TotalNaturalFlow!AC117+AB117 -> 467,939 | AE117: =InterveningNaturalFlow!AE117+TotalNaturalFlow!AD117 -> 365,591
A118: 1915-02-28 | B118: =InterveningNaturalFlow!B118 -> 37,156 | C118: =InterveningNaturalFlow!C118+TotalNaturalFlow!B118 -> 74,971 | D118: =InterveningNaturalFlow!D118 -> 3,820 | E118: =InterveningNaturalFlow!E118+TotalNaturalFlow!D118 -> 23,000 | F118: =InterveningNaturalFlow!F118+TotalNaturalFlow!E118 -> 26,600 | G118: =InterveningNaturalFlow!G118+TotalNaturalFlow!F118 -> 55,911 | H118: =InterveningNaturalFlow!H118 -> 13,312 | I118: =InterveningNaturalFlow!I118+TotalNaturalFlow!H118+TotalNaturalFlow!G118+TotalNaturalFlow!C118 -> 151,295 | J118: =InterveningNaturalFlow!J118 -> 18,000 | K118: =InterveningNaturalFlow!K118+TotalNaturalFlow!J118 -> 18,000 | L118: =InterveningNaturalFlow!L118+TotalNaturalFlow!K118 -> 54,052 | M118: =InterveningNaturalFlow!M118 -> 15,178 | N118: =InterveningNaturalFlow!N118 -> 2,991 | O118: =InterveningNaturalFlow!O118 -> 20,730 | P118: =InterveningNaturalFlow!P118 -> 15,873 | Q118: =InterveningNaturalFlow!Q118+TotalNaturalFlow!P118+TotalNaturalFlow!O118+TotalNaturalFlow!N118+TotalNaturalFlow!M118+TotalNaturalFlow!L118 -> 102,103 | R118: =InterveningNaturalFlow!R118 -> 2,600 | S118: =InterveningNaturalFlow!S118 -> 36,611 | T118: =InterveningNaturalFlow!T118+TotalNaturalFlow!S118 -> 129,302 | U118: =InterveningNaturalFlow!U118+TotalNaturalFlow!T118+TotalNaturalFlow!R118+TotalNaturalFlow!Q118+TotalNaturalFlow!I118 -> 397,336 | W118: =InterveningNaturalFlow!W118 -> 2,809 | X118: =InterveningNaturalFlow!X118 -> 606 | Y118: =InterveningNaturalFlow!Y118+TotalNaturalFlow!X118+TotalNaturalFlow!W118+TotalNaturalFlow!U118 -> 423,827 | Z118: =InterveningNaturalFlow!Z118 -> 12,619 | AA118: =InterveningNaturalFlow!AA118+TotalNaturalFlow!Z118+Y118 -> 541,771 | AB118: =InterveningNaturalFlow!AB118+TotalNaturalFlow!AA118 -> 546,178 | AC118: =InterveningNaturalFlow!AC118 -> 59,500 | AD118: =InterveningNaturalFlow!AD118+TotalNaturalFlow!AC118+AB118 -> 586,523 | AE118: =InterveningNaturalFlow!AE118+TotalNaturalFlow!AD118 -> 600,616
A119: 1915-03-31 | B119: =InterveningNaturalFlow!B119 -> 45,815 | C119: =InterveningNaturalFlow!C119+TotalNaturalFlow!B119 -> 85,013 | D119: =InterveningNaturalFlow!D119 -> 4,198 | E119: =InterveningNaturalFlow!E119+TotalNaturalFlow!D119 -> 47,000 | F119: =InterveningNaturalFlow!F119+TotalNaturalFlow!E119 -> 54,700 | G119: =InterveningNaturalFlow!G119+TotalNaturalFlow!F119 -> 64,532 | H119: =InterveningNaturalFlow!H119 -> 25,329 | I119: =InterveningNaturalFlow!I119+TotalNaturalFlow!H119+TotalNaturalFlow!G119+TotalNaturalFlow!C119 -> 178,148 | J119: =InterveningNaturalFlow!J119 -> 41,000 | K119: =InterveningNaturalFlow!K119+TotalNaturalFlow!J119 -> 49,100 | L119: =InterveningNaturalFlow!L119+TotalNaturalFlow!K119 -> 80,291 | M119: =InterveningNaturalFlow!M119 -> 34,500 | N119: =InterveningNaturalFlow!N119 -> 16,638 | O119: =InterveningNaturalFlow!O119 -> 24,205 | P119: =InterveningNaturalFlow!P119 -> 26,900 | Q119: =InterveningNaturalFlow!Q119+TotalNaturalFlow!P119+TotalNaturalFlow!O119+TotalNaturalFlow!N119+TotalNaturalFlow!M119+TotalNaturalFlow!L119 -> 190,584 | R119: =InterveningNaturalFlow!R119 -> 12,800 | S119: =InterveningNaturalFlow!S119 -> 71,993 | T119: =InterveningNaturalFlow!T119+TotalNaturalFlow!S119 -> 137,098 | U119: =InterveningNaturalFlow!U119+TotalNaturalFlow!T119+TotalNaturalFlow!R119+TotalNaturalFlow!Q119+TotalNaturalFlow!I119 -> 525,839 | W119: =InterveningNaturalFlow!W119 -> 2,350 | X119: =InterveningNaturalFlow!X119 -> 780 | Y119: =InterveningNaturalFlow!Y119+TotalNaturalFlow!X119+TotalNaturalFlow!W119+TotalNaturalFlow!U119 -> 504,128 | Z119: =InterveningNaturalFlow!Z119 -> 12,952 | AA119: =InterveningNaturalFlow!AA119+TotalNaturalFlow!Z119+Y119 -> 568,520 | AB119: =InterveningNaturalFlow!AB119+TotalNaturalFlow!AA119 -> 571,624 | AC119: =InterveningNaturalFlow!AC119 -> 6,500 | AD119: =InterveningNaturalFlow!AD119+TotalNaturalFlow!AC119+AB119 -> 557,933 | AE119: =InterveningNaturalFlow!AE119+TotalNaturalFlow!AD119 -> 540,177
A120: 1915-04-30 | B120: =InterveningNaturalFlow!B120 -> 136,351 | C120: =InterveningNaturalFlow!C120+TotalNaturalFlow!B120 -> 225,648 | D120: =InterveningNaturalFlow!D120 -> 7,216 | E120: =InterveningNaturalFlow!E120+TotalNaturalFlow!D120 -> 85,000 | F120: =InterveningNaturalFlow!F120+TotalNaturalFlow!E120 -> 106,500 | G120: =InterveningNaturalFlow!G120+TotalNaturalFlow!F120 -> 234,103 | H120: =InterveningNaturalFlow!H120 -> 162,027 | I120: =InterveningNaturalFlow!I120+TotalNaturalFlow!H120+TotalNaturalFlow!G120+TotalNaturalFlow!C120 -> 601,574 | J120: =InterveningNaturalFlow!J120 -> 71,000 | K120: =InterveningNaturalFlow!K120+TotalNaturalFlow!J120 -> 84,200 | L120: =InterveningNaturalFlow!L120+TotalNaturalFlow!K120 -> 131,388 | M120: =InterveningNaturalFlow!M120 -> 143,428 | N120: =InterveningNaturalFlow!N120 -> 27,286 | O120: =InterveningNaturalFlow!O120 -> 63,277 | P120: =InterveningNaturalFlow!P120 -> 59,669 | Q120: =InterveningNaturalFlow!Q120+TotalNaturalFlow!P120+TotalNaturalFlow!O120+TotalNaturalFlow!N120+TotalNaturalFlow!M120+TotalNaturalFlow!L120 -> 458,490 | R120: =InterveningNaturalFlow!R120 -> 15,008 | S120: =InterveningNaturalFlow!S120 -> 296,684 | T120: =InterveningNaturalFlow!T120+TotalNaturalFlow!S120 -> 480,012 | U120: =InterveningNaturalFlow!U120+TotalNaturalFlow!T120+TotalNaturalFlow!R120+TotalNaturalFlow!Q120+TotalNaturalFlow!I120 -> 1,483,872 | W120: =InterveningNaturalFlow!W120 -> 1,264 | X120: =InterveningNaturalFlow!X120 -> 1,354 | Y120: =InterveningNaturalFlow!Y120+TotalNaturalFlow!X120+TotalNaturalFlow!W120+TotalNaturalFlow!U120 -> 1,368,239 | Z120: =InterveningNaturalFlow!Z120 -> 15,480 | AA120: =InterveningNaturalFlow!AA120+TotalNaturalFlow!Z120+Y120 -> 1,415,410 | AB120: =InterveningNaturalFlow!AB120+TotalNaturalFlow!AA120 -> 1,463,223 | AC120: =InterveningNaturalFlow!AC120 -> 1,900 | AD120: =InterveningNaturalFlow!AD120+TotalNaturalFlow!AC120+AB120 -> 1,477,549 | AE120: =InterveningNaturalFlow!AE120+TotalNaturalFlow!AD120 -> 1,530,065
A121: 1915-05-31 | B121: =InterveningNaturalFlow!B121 -> 286,563 | C121: =InterveningNaturalFlow!C121+TotalNaturalFlow!B121 -> 511,721 | D121: =InterveningNaturalFlow!D121 -> 18,765 | E121: =InterveningNaturalFlow!E121+TotalNaturalFlow!D121 -> 140,010 | F121: =InterveningNaturalFlow!F121+TotalNaturalFlow!E121 -> 171,710 | G121: =InterveningNaturalFlow!G121+TotalNaturalFlow!F121 -> 481,496 | H121: =InterveningNaturalFlow!H121 -> 209,442 | I121: =InterveningNaturalFlow!I121+TotalNaturalFlow!H121+TotalNaturalFlow!G121+TotalNaturalFlow!C121 -> 1,170,728 | J121: =InterveningNaturalFlow!J121 -> 100,000 | K121: =InterveningNaturalFlow!K121+TotalNaturalFlow!J121 -> 99,300 | L121: =InterveningNaturalFlow!L121+TotalNaturalFlow!K121 -> 180,006 | M121: =InterveningNaturalFlow!M121 -> 269,643 | N121: =InterveningNaturalFlow!N121 -> 58,466 | O121: =InterveningNaturalFlow!O121 -> 83,812 | P121: =InterveningNaturalFlow!P121 -> 83,869 | Q121: =InterveningNaturalFlow!Q121+TotalNaturalFlow!P121+TotalNaturalFlow!O121+TotalNaturalFlow!N121+TotalNaturalFlow!M121+TotalNaturalFlow!L121 -> 713,901 | R121: =InterveningNaturalFlow!R121 -> 33,497 | S121: =InterveningNaturalFlow!S121 -> 340,274 | T121: =InterveningNaturalFlow!T121+TotalNaturalFlow!S121 -> 589,925 | U121: =InterveningNaturalFlow!U121+TotalNaturalFlow!T121+TotalNaturalFlow!R121+TotalNaturalFlow!Q121+TotalNaturalFlow!I121 -> 2,427,137 | W121: =InterveningNaturalFlow!W121 -> 540 | X121: =InterveningNaturalFlow!X121 -> 0 | Y121: =InterveningNaturalFlow!Y121+TotalNaturalFlow!X121+TotalNaturalFlow!W121+TotalNaturalFlow!U121 -> 2,332,331 | Z121: =InterveningNaturalFlow!Z121 -> 16,894 | AA121: =InterveningNaturalFlow!AA121+TotalNaturalFlow!Z121+Y121 -> 2,381,098 | AB121: =InterveningNaturalFlow!AB121+TotalNaturalFlow!AA121 -> 2,367,006 | AC121: =InterveningNaturalFlow!AC121 -> 7,500 | AD121: =InterveningNaturalFlow!AD121+TotalNaturalFlow!AC121+AB121 -> 2,368,668 | AE121: =InterveningNaturalFlow!AE121+TotalNaturalFlow!AD121 -> 2,341,252
A122: 1915-06-30 | B122: =InterveningNaturalFlow!B122 -> 584,541 | C122: =InterveningNaturalFlow!C122+TotalNaturalFlow!B122 -> 957,895 | D122: =InterveningNaturalFlow!D122 -> 33,939 | E122: =InterveningNaturalFlow!E122+TotalNaturalFlow!D122 -> 270,228 | F122: =InterveningNaturalFlow!F122+TotalNaturalFlow!E122 -> 318,728 | G122: =InterveningNaturalFlow!G122+TotalNaturalFlow!F122 -> 585,841 | H122: =InterveningNaturalFlow!H122 -> 154,483 | I122: =InterveningNaturalFlow!I122+TotalNaturalFlow!H122+TotalNaturalFlow!G122+TotalNaturalFlow!C122 -> 1,725,083 | J122: =InterveningNaturalFlow!J122 -> 176,100 | K122: =InterveningNaturalFlow!K122+TotalNaturalFlow!J122 -> 178,200 | L122: =InterveningNaturalFlow!L122+TotalNaturalFlow!K122 -> 318,445 | M122: =InterveningNaturalFlow!M122 -> 285,277 | N122: =InterveningNaturalFlow!N122 -> 83,079 | O122: =InterveningNaturalFlow!O122 -> 183,572 | P122: =InterveningNaturalFlow!P122 -> 114,847 | Q122: =InterveningNaturalFlow!Q122+TotalNaturalFlow!P122+TotalNaturalFlow!O122+TotalNaturalFlow!N122+TotalNaturalFlow!M122+TotalNaturalFlow!L122 -> 1,053,884 | R122: =InterveningNaturalFlow!R122 -> 47,692 | S122: =InterveningNaturalFlow!S122 -> 400,317 | T122: =InterveningNaturalFlow!T122+TotalNaturalFlow!S122 -> 658,267 | U122: =InterveningNaturalFlow!U122+TotalNaturalFlow!T122+TotalNaturalFlow!R122+TotalNaturalFlow!Q122+TotalNaturalFlow!I122 -> 3,642,472 | W122: =InterveningNaturalFlow!W122 -> 473 | X122: =InterveningNaturalFlow!X122 -> 289 | Y122: =InterveningNaturalFlow!Y122+TotalNaturalFlow!X122+TotalNaturalFlow!W122+TotalNaturalFlow!U122 -> 3,671,281 | Z122: =InterveningNaturalFlow!Z122 -> 6,147 | AA122: =InterveningNaturalFlow!AA122+TotalNaturalFlow!Z122+Y122 -> 3,744,639 | AB122: =InterveningNaturalFlow!AB122+TotalNaturalFlow!AA122 -> 3,769,252 | AC122: =InterveningNaturalFlow!AC122 -> 5,700 | AD122: =InterveningNaturalFlow!AD122+TotalNaturalFlow!AC122+AB122 -> 3,700,671 | AE122: =InterveningNaturalFlow!AE122+TotalNaturalFlow!AD122 -> 3,631,896
A123: 1915-07-31 | B123: =InterveningNaturalFlow!B123 -> 309,362 | C123: =InterveningNaturalFlow!C123+TotalNaturalFlow!B123 -> 498,267 | D123: =InterveningNaturalFlow!D123 -> 22,137 | E123: =InterveningNaturalFlow!E123+TotalNaturalFlow!D123 -> 141,382 | F123: =InterveningNaturalFlow!F123+TotalNaturalFlow!E123 -> 151,382 | G123: =InterveningNaturalFlow!G123+TotalNaturalFlow!F123 -> 275,302 | H123: =InterveningNaturalFlow!H123 -> 68,480 | I123: =InterveningNaturalFlow!I123+TotalNaturalFlow!H123+TotalNaturalFlow!G123+TotalNaturalFlow!C123 -> 868,154 | J123: =InterveningNaturalFlow!J123 -> 187,000 | K123: =InterveningNaturalFlow!K123+TotalNaturalFlow!J123 -> 205,100 | L123: =InterveningNaturalFlow!L123+TotalNaturalFlow!K123 -> 239,480 | M123: =InterveningNaturalFlow!M123 -> 96,416 | N123: =InterveningNaturalFlow!N123 -> 44,720 | O123: =InterveningNaturalFlow!O123 -> 75,652 | P123: =InterveningNaturalFlow!P123 -> 61,333 | Q123: =InterveningNaturalFlow!Q123+TotalNaturalFlow!P123+TotalNaturalFlow!O123+TotalNaturalFlow!N123+TotalNaturalFlow!M123+TotalNaturalFlow!L123 -> 582,547 | R123: =InterveningNaturalFlow!R123 -> 22,665 | S123: =InterveningNaturalFlow!S123 -> 239,547 | T123: =InterveningNaturalFlow!T123+TotalNaturalFlow!S123 -> 447,000 | U123: =InterveningNaturalFlow!U123+TotalNaturalFlow!T123+TotalNaturalFlow!R123+TotalNaturalFlow!Q123+TotalNaturalFlow!I123 -> 2,147,795 | W123: =InterveningNaturalFlow!W123 -> 921 | X123: =InterveningNaturalFlow!X123 -> 15 | Y123: =InterveningNaturalFlow!Y123+TotalNaturalFlow!X123+TotalNaturalFlow!W123+TotalNaturalFlow!U123 -> 2,202,391 | Z123: =InterveningNaturalFlow!Z123 -> 4,278 | AA123: =InterveningNaturalFlow!AA123+TotalNaturalFlow!Z123+Y123 -> 2,303,233 | AB123: =InterveningNaturalFlow!AB123+TotalNaturalFlow!AA123 -> 2,344,028 | AC123: =InterveningNaturalFlow!AC123 -> 2,200 | AD123: =InterveningNaturalFlow!AD123+TotalNaturalFlow!AC123+AB123 -> 2,268,716 | AE123: =InterveningNaturalFlow!AE123+TotalNaturalFlow!AD123 -> 2,190,799
A124: 1915-08-31 | B124: =InterveningNaturalFlow!B124 -> 109,559 | C124: =InterveningNaturalFlow!C124+TotalNaturalFlow!B124 -> 194,602 | D124: =InterveningNaturalFlow!D124 -> 9,196 | E124: =InterveningNaturalFlow!E124+TotalNaturalFlow!D124 -> 67,370 | F124: =InterveningNaturalFlow!F124+TotalNaturalFlow!E124 -> 71,970 | G124: =InterveningNaturalFlow!G124+TotalNaturalFlow!F124 -> 114,957 | H124: =InterveningNaturalFlow!H124 -> 37,951 | I124: =InterveningNaturalFlow!I124+TotalNaturalFlow!H124+TotalNaturalFlow!G124+TotalNaturalFlow!C124 -> 336,077 | J124: =InterveningNaturalFlow!J124 -> 94,600 | K124: =InterveningNaturalFlow!K124+TotalNaturalFlow!J124 -> 102,800 | L124: =InterveningNaturalFlow!L124+TotalNaturalFlow!K124 -> 134,443 | M124: =InterveningNaturalFlow!M124 -> 24,022 | N124: =InterveningNaturalFlow!N124 -> 37,679 | O124: =InterveningNaturalFlow!O124 -> 37,320 | P124: =InterveningNaturalFlow!P124 -> 36,683 | Q124: =InterveningNaturalFlow!Q124+TotalNaturalFlow!P124+TotalNaturalFlow!O124+TotalNaturalFlow!N124+TotalNaturalFlow!M124+TotalNaturalFlow!L124 -> 302,583 | R124: =InterveningNaturalFlow!R124 -> 8,376 | S124: =InterveningNaturalFlow!S124 -> 69,318 | T124: =InterveningNaturalFlow!T124+TotalNaturalFlow!S124 -> 146,154 | U124: =InterveningNaturalFlow!U124+TotalNaturalFlow!T124+TotalNaturalFlow!R124+TotalNaturalFlow!Q124+TotalNaturalFlow!I124 -> 853,538 | W124: =InterveningNaturalFlow!W124 -> 1,169 | X124: =InterveningNaturalFlow!X124 -> 11,525 | Y124: =InterveningNaturalFlow!Y124+TotalNaturalFlow!X124+TotalNaturalFlow!W124+TotalNaturalFlow!U124 -> 860,236 | Z124: =InterveningNaturalFlow!Z124 -> 5,625 | AA124: =InterveningNaturalFlow!AA124+TotalNaturalFlow!Z124+Y124 -> 954,141 | AB124: =InterveningNaturalFlow!AB124+TotalNaturalFlow!AA124 -> 949,187 | AC124: =InterveningNaturalFlow!AC124 -> 1,800 | AD124: =InterveningNaturalFlow!AD124+TotalNaturalFlow!AC124+AB124 -> 939,570 | AE124: =InterveningNaturalFlow!AE124+TotalNaturalFlow!AD124 -> 878,070
A125: 1915-09-30 | B125: =InterveningNaturalFlow!B125 -> 67,986 | C125: =InterveningNaturalFlow!C125+TotalNaturalFlow!B125 -> 114,606 | D125: =InterveningNaturalFlow!D125 -> 8,123 | E125: =InterveningNaturalFlow!E125+TotalNaturalFlow!D125 -> 37,938 | F125: =InterveningNaturalFlow!F125+TotalNaturalFlow!E125 -> 40,938 | G125: =InterveningNaturalFlow!G125+TotalNaturalFlow!F125 -> 65,216 | H125: =InterveningNaturalFlow!H125 -> 18,248 | I125: =InterveningNaturalFlow!I125+TotalNaturalFlow!H125+TotalNaturalFlow!G125+TotalNaturalFlow!C125 -> 195,296 | J125: =InterveningNaturalFlow!J125 -> 70,000 | K125: =InterveningNaturalFlow!K125+TotalNaturalFlow!J125 -> 75,600 | L125: =InterveningNaturalFlow!L125+TotalNaturalFlow!K125 -> 99,756 | M125: =InterveningNaturalFlow!M125 -> 15,844 | N125: =InterveningNaturalFlow!N125 -> 24,334 | O125: =InterveningNaturalFlow!O125 -> 25,166 | P125: =InterveningNaturalFlow!P125 -> 27,991 | Q125: =InterveningNaturalFlow!Q125+TotalNaturalFlow!P125+TotalNaturalFlow!O125+TotalNaturalFlow!N125+TotalNaturalFlow!M125+TotalNaturalFlow!L125 -> 209,420 | R125: =InterveningNaturalFlow!R125 -> 4,915 | S125: =InterveningNaturalFlow!S125 -> 42,457 | T125: =InterveningNaturalFlow!T125+TotalNaturalFlow!S125 -> 77,403 | U125: =InterveningNaturalFlow!U125+TotalNaturalFlow!T125+TotalNaturalFlow!R125+TotalNaturalFlow!Q125+TotalNaturalFlow!I125 -> 528,868 | W125: =InterveningNaturalFlow!W125 -> 1,490 | X125: =InterveningNaturalFlow!X125 -> 33,332 | Y125: =InterveningNaturalFlow!Y125+TotalNaturalFlow!X125+TotalNaturalFlow!W125+TotalNaturalFlow!U125 -> 580,916 | Z125: =InterveningNaturalFlow!Z125 -> 5,636 | AA125: =InterveningNaturalFlow!AA125+TotalNaturalFlow!Z125+Y125 -> 574,221 | AB125: =InterveningNaturalFlow!AB125+TotalNaturalFlow!AA125 -> 584,343 | AC125: =InterveningNaturalFlow!AC125 -> 2,000 | AD125: =InterveningNaturalFlow!AD125+TotalNaturalFlow!AC125+AB125 -> 593,789 | AE125: =InterveningNaturalFlow!AE125+TotalNaturalFlow!AD125 -> 576,272
A126: 1915-10-31 | B126: =InterveningNaturalFlow!B126 -> 71,183 | C126: =InterveningNaturalFlow!C126+TotalNaturalFlow!B126 -> 108,970 | D126: =InterveningNaturalFlow!D126 -> 5,995 | E126: =InterveningNaturalFlow!E126+TotalNaturalFlow!D126 -> 33,000 | F126: =InterveningNaturalFlow!F126+TotalNaturalFlow!E126 -> 36,100 | G126: =InterveningNaturalFlow!G126+TotalNaturalFlow!F126 -> 69,589 | H126: =InterveningNaturalFlow!H126 -> 28,290 | I126: =InterveningNaturalFlow!I126+TotalNaturalFlow!H126+TotalNaturalFlow!G126+TotalNaturalFlow!C126 -> 200,670 | J126: =InterveningNaturalFlow!J126 -> 61,500 | K126: =InterveningNaturalFlow!K126+TotalNaturalFlow!J126 -> 73,800 | L126: =InterveningNaturalFlow!L126+TotalNaturalFlow!K126 -> 89,370 | M126: =InterveningNaturalFlow!M126 -> 26,666 | N126: =InterveningNaturalFlow!N126 -> 13,740 | O126: =InterveningNaturalFlow!O126 -> 54,783 | P126: =InterveningNaturalFlow!P126 -> 29,965 | Q126: =InterveningNaturalFlow!Q126+TotalNaturalFlow!P126+TotalNaturalFlow!O126+TotalNaturalFlow!N126+TotalNaturalFlow!M126+TotalNaturalFlow!L126 -> 252,744 | R126: =InterveningNaturalFlow!R126 -> 610 | S126: =InterveningNaturalFlow!S126 -> 30,482 | T126: =InterveningNaturalFlow!T126+TotalNaturalFlow!S126 -> 64,244 | U126: =InterveningNaturalFlow!U126+TotalNaturalFlow!T126+TotalNaturalFlow!R126+TotalNaturalFlow!Q126+TotalNaturalFlow!I126 -> 557,983 | W126: =InterveningNaturalFlow!W126 -> 1,503 | X126: =InterveningNaturalFlow!X126 -> 1,515 | Y126: =InterveningNaturalFlow!Y126+TotalNaturalFlow!X126+TotalNaturalFlow!W126+TotalNaturalFlow!U126 -> 581,330 | Z126: =InterveningNaturalFlow!Z126 -> 9,086 | AA126: =InterveningNaturalFlow!AA126+TotalNaturalFlow!Z126+Y126 -> 614,597 | AB126: =InterveningNaturalFlow!AB126+TotalNaturalFlow!AA126 -> 632,896 | AC126: =InterveningNaturalFlow!AC126 -> 1,100 | AD126: =InterveningNaturalFlow!AD126+TotalNaturalFlow!AC126+AB126 -> 633,509 | AE126: =InterveningNaturalFlow!AE126+TotalNaturalFlow!AD126 -> 594,741
A127: 1915-11-30 | B127: =InterveningNaturalFlow!B127 -> 48,013 | C127: =InterveningNaturalFlow!C127+TotalNaturalFlow!B127 -> 80,445 | D127: =InterveningNaturalFlow!D127 -> 4,166 | E127: =InterveningNaturalFlow!E127+TotalNaturalFlow!D127 -> 28,000 | F127: =InterveningNaturalFlow!F127+TotalNaturalFlow!E127 -> 32,600 | G127: =InterveningNaturalFlow!G127+TotalNaturalFlow!F127 -> 69,707 | H127: =InterveningNaturalFlow!H127 -> 16,146 | I127: =InterveningNaturalFlow!I127+TotalNaturalFlow!H127+TotalNaturalFlow!G127+TotalNaturalFlow!C127 -> 164,891 | J127: =InterveningNaturalFlow!J127 -> 42,000 | K127: =InterveningNaturalFlow!K127+TotalNaturalFlow!J127 -> 48,500 | L127: =InterveningNaturalFlow!L127+TotalNaturalFlow!K127 -> 60,630 | M127: =InterveningNaturalFlow!M127 -> 23,872 | N127: =InterveningNaturalFlow!N127 -> 8,482 | O127: =InterveningNaturalFlow!O127 -> 33,865 | P127: =InterveningNaturalFlow!P127 -> 22,246 | Q127: =InterveningNaturalFlow!Q127+TotalNaturalFlow!P127+TotalNaturalFlow!O127+TotalNaturalFlow!N127+TotalNaturalFlow!M127+TotalNaturalFlow!L127 -> 171,933 | R127: =InterveningNaturalFlow!R127 -> 7,107 | S127: =InterveningNaturalFlow!S127 -> 35,057 | T127: =InterveningNaturalFlow!T127+TotalNaturalFlow!S127 -> 39,707 | U127: =InterveningNaturalFlow!U127+TotalNaturalFlow!T127+TotalNaturalFlow!R127+TotalNaturalFlow!Q127+TotalNaturalFlow!I127 -> 411,050 | W127: =InterveningNaturalFlow!W127 -> 1,894 | X127: =InterveningNaturalFlow!X127 -> 130 | Y127: =InterveningNaturalFlow!Y127+TotalNaturalFlow!X127+TotalNaturalFlow!W127+TotalNaturalFlow!U127 -> 471,537 | Z127: =InterveningNaturalFlow!Z127 -> 11,670 | AA127: =InterveningNaturalFlow!AA127+TotalNaturalFlow!Z127+Y127 -> 517,345 | AB127: =InterveningNaturalFlow!AB127+TotalNaturalFlow!AA127 -> 509,556 | AC127: =InterveningNaturalFlow!AC127 -> 1,300 | AD127: =InterveningNaturalFlow!AD127+TotalNaturalFlow!AC127+AB127 -> 424,339 | AE127: =InterveningNaturalFlow!AE127+TotalNaturalFlow!AD127 -> 402,029
A128: 1915-12-31 | B128: =InterveningNaturalFlow!B128 -> 42,722 | C128: =InterveningNaturalFlow!C128+TotalNaturalFlow!B128 -> 76,297 | D128: =InterveningNaturalFlow!D128 -> 4,364 | E128: =InterveningNaturalFlow!E128+TotalNaturalFlow!D128 -> 25,000 | F128: =InterveningNaturalFlow!F128+TotalNaturalFlow!E128 -> 27,500 | G128: =InterveningNaturalFlow!G128+TotalNaturalFlow!F128 -> 73,346 | H128: =InterveningNaturalFlow!H128 -> 15,347 | I128: =InterveningNaturalFlow!I128+TotalNaturalFlow!H128+TotalNaturalFlow!G128+TotalNaturalFlow!C128 -> 155,445 | J128: =InterveningNaturalFlow!J128 -> 35,000 | K128: =InterveningNaturalFlow!K128+TotalNaturalFlow!J128 -> 38,300 | L128: =InterveningNaturalFlow!L128+TotalNaturalFlow!K128 -> 50,254 | M128: =InterveningNaturalFlow!M128 -> 17,756 | N128: =InterveningNaturalFlow!N128 -> 7,699 | O128: =InterveningNaturalFlow!O128 -> 35,447 | P128: =InterveningNaturalFlow!P128 -> 16,573 | Q128: =InterveningNaturalFlow!Q128+TotalNaturalFlow!P128+TotalNaturalFlow!O128+TotalNaturalFlow!N128+TotalNaturalFlow!M128+TotalNaturalFlow!L128 -> 117,825 | R128: =InterveningNaturalFlow!R128 -> 4,200 | S128: =InterveningNaturalFlow!S128 -> 18,975 | T128: =InterveningNaturalFlow!T128+TotalNaturalFlow!S128 -> 39,138 | U128: =InterveningNaturalFlow!U128+TotalNaturalFlow!T128+TotalNaturalFlow!R128+TotalNaturalFlow!Q128+TotalNaturalFlow!I128 -> 343,248 | W128: =InterveningNaturalFlow!W128 -> 1,393 | X128: =InterveningNaturalFlow!X128 -> 0 | Y128: =InterveningNaturalFlow!Y128+TotalNaturalFlow!X128+TotalNaturalFlow!W128+TotalNaturalFlow!U128 -> 386,190 | Z128: =InterveningNaturalFlow!Z128 -> 18,987 | AA128: =InterveningNaturalFlow!AA128+TotalNaturalFlow!Z128+Y128 -> 402,519 | AB128: =InterveningNaturalFlow!AB128+TotalNaturalFlow!AA128 -> 396,334 | AC128: =InterveningNaturalFlow!AC128 -> 1,200 | AD128: =InterveningNaturalFlow!AD128+TotalNaturalFlow!AC128+AB128 -> 279,055 | AE128: =InterveningNaturalFlow!AE128+TotalNaturalFlow!AD128 -> 256,586
A129: 1916-01-31 | B129: =InterveningNaturalFlow!B129 -> 44,486 | C129: =InterveningNaturalFlow!C129+TotalNaturalFlow!B129 -> 90,164 | D129: =InterveningNaturalFlow!D129 -> 2,717 | E129: =InterveningNaturalFlow!E129+TotalNaturalFlow!D129 -> 23,000 | F129: =InterveningNaturalFlow!F129+TotalNaturalFlow!E129 -> 24,600 | G129: =InterveningNaturalFlow!G129+TotalNaturalFlow!F129 -> 79,138 | H129: =InterveningNaturalFlow!H129 -> 16,488 | I129: =InterveningNaturalFlow!I129+TotalNaturalFlow!H129+TotalNaturalFlow!G129+TotalNaturalFlow!C129 -> 181,657 | J129: =InterveningNaturalFlow!J129 -> 25,000 | K129: =InterveningNaturalFlow!K129+TotalNaturalFlow!J129 -> 25,500 | L129: =InterveningNaturalFlow!L129+TotalNaturalFlow!K129 -> 51,798 | M129: =InterveningNaturalFlow!M129 -> 13,450 | N129: =InterveningNaturalFlow!N129 -> 4,921 | O129: =InterveningNaturalFlow!O129 -> 34,662 | P129: =InterveningNaturalFlow!P129 -> 13,048 | Q129: =InterveningNaturalFlow!Q129+TotalNaturalFlow!P129+TotalNaturalFlow!O129+TotalNaturalFlow!N129+TotalNaturalFlow!M129+TotalNaturalFlow!L129 -> 109,787 | R129: =InterveningNaturalFlow!R129 -> 3,600 | S129: =InterveningNaturalFlow!S129 -> 29,163 | T129: =InterveningNaturalFlow!T129+TotalNaturalFlow!S129 -> 80,390 | U129: =InterveningNaturalFlow!U129+TotalNaturalFlow!T129+TotalNaturalFlow!R129+TotalNaturalFlow!Q129+TotalNaturalFlow!I129 -> 393,996 | W129: =InterveningNaturalFlow!W129 -> 2,145 | X129: =InterveningNaturalFlow!X129 -> 184,473 | Y129: =InterveningNaturalFlow!Y129+TotalNaturalFlow!X129+TotalNaturalFlow!W129+TotalNaturalFlow!U129 -> 611,206 | Z129: =InterveningNaturalFlow!Z129 -> 37,710 | AA129: =InterveningNaturalFlow!AA129+TotalNaturalFlow!Z129+Y129 -> 669,131 | AB129: =InterveningNaturalFlow!AB129+TotalNaturalFlow!AA129 -> 654,979 | AC129: =InterveningNaturalFlow!AC129 -> 110,800 | AD129: =InterveningNaturalFlow!AD129+TotalNaturalFlow!AC129+AB129 -> 748,799 | AE129: =InterveningNaturalFlow!AE129+TotalNaturalFlow!AD129 -> 713,746
A130: 1916-02-29 | B130: =InterveningNaturalFlow!B130 -> 39,515 | C130: =InterveningNaturalFlow!C130+TotalNaturalFlow!B130 -> 82,327 | D130: =InterveningNaturalFlow!D130 -> 2,922 | E130: =InterveningNaturalFlow!E130+TotalNaturalFlow!D130 -> 19,000 | F130: =InterveningNaturalFlow!F130+TotalNaturalFlow!E130 -> 22,400 | G130: =InterveningNaturalFlow!G130+TotalNaturalFlow!F130 -> 88,403 | H130: =InterveningNaturalFlow!H130 -> 21,387 | I130: =InterveningNaturalFlow!I130+TotalNaturalFlow!H130+TotalNaturalFlow!G130+TotalNaturalFlow!C130 -> 186,249 | J130: =InterveningNaturalFlow!J130 -> 28,000 | K130: =InterveningNaturalFlow!K130+TotalNaturalFlow!J130 -> 32,700 | L130: =InterveningNaturalFlow!L130+TotalNaturalFlow!K130 -> 64,903 | M130: =InterveningNaturalFlow!M130 -> 17,216 | N130: =InterveningNaturalFlow!N130 -> 11,201 | O130: =InterveningNaturalFlow!O130 -> 37,695 | P130: =InterveningNaturalFlow!P130 -> 17,263 | Q130: =InterveningNaturalFlow!Q130+TotalNaturalFlow!P130+TotalNaturalFlow!O130+TotalNaturalFlow!N130+TotalNaturalFlow!M130+TotalNaturalFlow!L130 -> 133,014 | R130: =InterveningNaturalFlow!R130 -> 4,700 | S130: =InterveningNaturalFlow!S130 -> 29,366 | T130: =InterveningNaturalFlow!T130+TotalNaturalFlow!S130 -> 80,614 | U130: =InterveningNaturalFlow!U130+TotalNaturalFlow!T130+TotalNaturalFlow!R130+TotalNaturalFlow!Q130+TotalNaturalFlow!I130 -> 424,367 | W130: =InterveningNaturalFlow!W130 -> 3,800 | X130: =InterveningNaturalFlow!X130 -> 2,435 | Y130: =InterveningNaturalFlow!Y130+TotalNaturalFlow!X130+TotalNaturalFlow!W130+TotalNaturalFlow!U130 -> 448,592 | Z130: =InterveningNaturalFlow!Z130 -> 35,088 | AA130: =InterveningNaturalFlow!AA130+TotalNaturalFlow!Z130+Y130 -> 519,955 | AB130: =InterveningNaturalFlow!AB130+TotalNaturalFlow!AA130 -> 490,958 | AC130: =InterveningNaturalFlow!AC130 -> 81,700 | AD130: =InterveningNaturalFlow!AD130+TotalNaturalFlow!AC130+AB130 -> 556,220 | AE130: =InterveningNaturalFlow!AE130+TotalNaturalFlow!AD130 -> 549,009
A131: 1916-03-31 | B131: =InterveningNaturalFlow!B131 -> 76,730 | C131: =InterveningNaturalFlow!C131+TotalNaturalFlow!B131 -> 155,593 | D131: =InterveningNaturalFlow!D131 -> 4,036 | E131: =InterveningNaturalFlow!E131+TotalNaturalFlow!D131 -> 38,000 | F131: =InterveningNaturalFlow!F131+TotalNaturalFlow!E131 -> 44,800 | G131: =InterveningNaturalFlow!G131+TotalNaturalFlow!F131 -> 161,763 | H131: =InterveningNaturalFlow!H131 -> 97,158 | I131: =InterveningNaturalFlow!I131+TotalNaturalFlow!H131+TotalNaturalFlow!G131+TotalNaturalFlow!C131 -> 423,654 | J131: =InterveningNaturalFlow!J131 -> 80,000 | K131: =InterveningNaturalFlow!K131+TotalNaturalFlow!J131 -> 121,300 | L131: =InterveningNaturalFlow!L131+TotalNaturalFlow!K131 -> 181,326 | M131: =InterveningNaturalFlow!M131 -> 99,210 | N131: =InterveningNaturalFlow!N131 -> 57,169 | O131: =InterveningNaturalFlow!O131 -> 65,564 | P131: =InterveningNaturalFlow!P131 -> 63,471 | Q131: =InterveningNaturalFlow!Q131+TotalNaturalFlow!P131+TotalNaturalFlow!O131+TotalNaturalFlow!N131+TotalNaturalFlow!M131+TotalNaturalFlow!L131 -> 562,337 | R131: =InterveningNaturalFlow!R131 -> 23,300 | S131: =InterveningNaturalFlow!S131 -> 212,423 | T131: =InterveningNaturalFlow!T131+TotalNaturalFlow!S131 -> 381,660 | U131: =InterveningNaturalFlow!U131+TotalNaturalFlow!T131+TotalNaturalFlow!R131+TotalNaturalFlow!Q131+TotalNaturalFlow!I131 -> 1,391,402 | W131: =InterveningNaturalFlow!W131 -> 7,160 | X131: =InterveningNaturalFlow!X131 -> 4,800 | Y131: =InterveningNaturalFlow!Y131+TotalNaturalFlow!X131+TotalNaturalFlow!W131+TotalNaturalFlow!U131 -> 1,419,991 | Z131: =InterveningNaturalFlow!Z131 -> 34,413 | AA131: =InterveningNaturalFlow!AA131+TotalNaturalFlow!Z131+Y131 -> 1,495,857 | AB131: =InterveningNaturalFlow!AB131+TotalNaturalFlow!AA131 -> 1,530,541 | AC131: =InterveningNaturalFlow!AC131 -> 52,100 | AD131: =InterveningNaturalFlow!AD131+TotalNaturalFlow!AC131+AB131 -> 1,549,279 | AE131: =InterveningNaturalFlow!AE131+TotalNaturalFlow!AD131 -> 1,555,587
A132: 1916-04-30 | B132: =InterveningNaturalFlow!B132 -> 142,655 | C132: =InterveningNaturalFlow!C132+TotalNaturalFlow!B132 -> 276,056 | D132: =InterveningNaturalFlow!D132 -> 6,615 | E132: =InterveningNaturalFlow!E132+TotalNaturalFlow!D132 -> 108,000 | F132: =InterveningNaturalFlow!F132+TotalNaturalFlow!E132 -> 136,000 | G132: =InterveningNaturalFlow!G132+TotalNaturalFlow!F132 -> 293,979 | H132: =InterveningNaturalFlow!H132 -> 291,673 | I132: =InterveningNaturalFlow!I132+TotalNaturalFlow!H132+TotalNaturalFlow!G132+TotalNaturalFlow!C132 -> 773,288 | J132: =InterveningNaturalFlow!J132 -> 140,000 | K132: =InterveningNaturalFlow!K132+TotalNaturalFlow!J132 -> 157,300 | L132: =InterveningNaturalFlow!L132+TotalNaturalFlow!K132 -> 254,901 | M132: =InterveningNaturalFlow!M132 -> 174,027 | N132: =InterveningNaturalFlow!N132 -> 54,336 | O132: =InterveningNaturalFlow!O132 -> 83,501 | P132: =InterveningNaturalFlow!P132 -> 63,896 | Q132: =InterveningNaturalFlow!Q132+TotalNaturalFlow!P132+TotalNaturalFlow!O132+TotalNaturalFlow!N132+TotalNaturalFlow!M132+TotalNaturalFlow!L132 -> 648,078 | R132: =InterveningNaturalFlow!R132 -> 12,309 | S132: =InterveningNaturalFlow!S132 -> 285,980 | T132: =InterveningNaturalFlow!T132+TotalNaturalFlow!S132 -> 454,520 | U132: =InterveningNaturalFlow!U132+TotalNaturalFlow!T132+TotalNaturalFlow!R132+TotalNaturalFlow!Q132+TotalNaturalFlow!I132 -> 1,802,735 | W132: =InterveningNaturalFlow!W132 -> 2,041 | X132: =InterveningNaturalFlow!X132 -> 6,592 | Y132: =InterveningNaturalFlow!Y132+TotalNaturalFlow!X132+TotalNaturalFlow!W132+TotalNaturalFlow!U132 -> 1,810,740 | Z132: =InterveningNaturalFlow!Z132 -> 39,702 | AA132: =InterveningNaturalFlow!AA132+TotalNaturalFlow!Z132+Y132 -> 1,873,261 | AB132: =InterveningNaturalFlow!AB132+TotalNaturalFlow!AA132 -> 1,908,166 | AC132: =InterveningNaturalFlow!AC132 -> 14,400 | AD132: =InterveningNaturalFlow!AD132+TotalNaturalFlow!AC132+AB132 -> 1,909,324 | AE132: =InterveningNaturalFlow!AE132+TotalNaturalFlow!AD132 -> 1,862,199
A133: 1916-05-31 | B133: =InterveningNaturalFlow!B133 -> 457,586 | C133: =InterveningNaturalFlow!C133+TotalNaturalFlow!B133 -> 813,542 | D133: =InterveningNaturalFlow!D133 -> 26,824 | E133: =InterveningNaturalFlow!E133+TotalNaturalFlow!D133 -> 310,010 | F133: =InterveningNaturalFlow!F133+TotalNaturalFlow!E133 -> 378,410 | G133: =InterveningNaturalFlow!G133+TotalNaturalFlow!F133 -> 674,535 | H133: =InterveningNaturalFlow!H133 -> 371,643 | I133: =InterveningNaturalFlow!I133+TotalNaturalFlow!H133+TotalNaturalFlow!G133+TotalNaturalFlow!C133 -> 1,758,005 | J133: =InterveningNaturalFlow!J133 -> 247,000 | K133: =InterveningNaturalFlow!K133+TotalNaturalFlow!J133 -> 238,500 | L133: =InterveningNaturalFlow!L133+TotalNaturalFlow!K133 -> 406,281 | M133: =InterveningNaturalFlow!M133 -> 440,163 | N133: =InterveningNaturalFlow!N133 -> 137,404 | O133: =InterveningNaturalFlow!O133 -> 182,697 | P133: =InterveningNaturalFlow!P133 -> 128,560 | Q133: =InterveningNaturalFlow!Q133+TotalNaturalFlow!P133+TotalNaturalFlow!O133+TotalNaturalFlow!N133+TotalNaturalFlow!M133+TotalNaturalFlow!L133 -> 1,369,339 | R133: =InterveningNaturalFlow!R133 -> 40,333 | S133: =InterveningNaturalFlow!S133 -> 350,984 | T133: =InterveningNaturalFlow!T133+TotalNaturalFlow!S133 -> 616,479 | U133: =InterveningNaturalFlow!U133+TotalNaturalFlow!T133+TotalNaturalFlow!R133+TotalNaturalFlow!Q133+TotalNaturalFlow!I133 -> 3,736,188 | W133: =InterveningNaturalFlow!W133 -> 887 | X133: =InterveningNaturalFlow!X133 -> 23,587 | Y133: =InterveningNaturalFlow!Y133+TotalNaturalFlow!X133+TotalNaturalFlow!W133+TotalNaturalFlow!U133 -> 3,727,998 | Z133: =InterveningNaturalFlow!Z133 -> 37,521 | AA133: =InterveningNaturalFlow!AA133+TotalNaturalFlow!Z133+Y133 -> 3,638,987 | AB133: =InterveningNaturalFlow!AB133+TotalNaturalFlow!AA133 -> 3,654,593 | AC133: =InterveningNaturalFlow!AC133 -> 3,600 | AD133: =InterveningNaturalFlow!AD133+TotalNaturalFlow!AC133+AB133 -> 3,674,919 | AE133: =InterveningNaturalFlow!AE133+TotalNaturalFlow!AD133 -> 3,641,244
A134: 1916-06-30 | B134: =InterveningNaturalFlow!B134 -> 730,234 | C134: =InterveningNaturalFlow!C134+TotalNaturalFlow!B134 -> 1,224,085 | D134: =InterveningNaturalFlow!D134 -> 49,493 | E134: =InterveningNaturalFlow!E134+TotalNaturalFlow!D134 -> 439,028 | F134: =InterveningNaturalFlow!F134+TotalNaturalFlow!E134 -> 515,528 | G134: =InterveningNaturalFlow!G134+TotalNaturalFlow!F134 -> 752,001 | H134: =InterveningNaturalFlow!H134 -> 270,357 | I134: =InterveningNaturalFlow!I134+TotalNaturalFlow!H134+TotalNaturalFlow!G134+TotalNaturalFlow!C134 -> 2,246,286 | J134: =InterveningNaturalFlow!J134 -> 493,900 | K134: =InterveningNaturalFlow!K134+TotalNaturalFlow!J134 -> 521,800 | L134: =InterveningNaturalFlow!L134+TotalNaturalFlow!K134 -> 727,014 | M134: =InterveningNaturalFlow!M134 -> 344,181 | N134: =InterveningNaturalFlow!N134 -> 114,299 | O134: =InterveningNaturalFlow!O134 -> 245,501 | P134: =InterveningNaturalFlow!P134 -> 139,487 | Q134: =InterveningNaturalFlow!Q134+TotalNaturalFlow!P134+TotalNaturalFlow!O134+TotalNaturalFlow!N134+TotalNaturalFlow!M134+TotalNaturalFlow!L134 -> 1,549,822 | R134: =InterveningNaturalFlow!R134 -> 77,496 | S134: =InterveningNaturalFlow!S134 -> 433,131 | T134: =InterveningNaturalFlow!T134+TotalNaturalFlow!S134 -> 695,967 | U134: =InterveningNaturalFlow!U134+TotalNaturalFlow!T134+TotalNaturalFlow!R134+TotalNaturalFlow!Q134+TotalNaturalFlow!I134 -> 4,752,149 | W134: =InterveningNaturalFlow!W134 -> 491 | X134: =InterveningNaturalFlow!X134 -> 0 | Y134: =InterveningNaturalFlow!Y134+TotalNaturalFlow!X134+TotalNaturalFlow!W134+TotalNaturalFlow!U134 -> 4,761,590 | Z134: =InterveningNaturalFlow!Z134 -> 14,377 | AA134: =InterveningNaturalFlow!AA134+TotalNaturalFlow!Z134+Y134 -> 4,795,481 | AB134: =InterveningNaturalFlow!AB134+TotalNaturalFlow!AA134 -> 4,858,327 | AC134: =InterveningNaturalFlow!AC134 -> 2,600 | AD134: =InterveningNaturalFlow!AD134+TotalNaturalFlow!AC134+AB134 -> 4,859,959 | AE134: =InterveningNaturalFlow!AE134+TotalNaturalFlow!AD134 -> 4,773,294
A135: 1916-07-31 | B135: =InterveningNaturalFlow!B135 -> 332,998 | C135: =InterveningNaturalFlow!C135+TotalNaturalFlow!B135 -> 629,763 | D135: =InterveningNaturalFlow!D135 -> 32,606 | E135: =InterveningNaturalFlow!E135+TotalNaturalFlow!D135 -> 203,282 | F135: =InterveningNaturalFlow!F135+TotalNaturalFlow!E135 -> 221,882 | G135: =InterveningNaturalFlow!G135+TotalNaturalFlow!F135 -> 377,014 | H135: =InterveningNaturalFlow!H135 -> 136,224 | I135: =InterveningNaturalFlow!I135+TotalNaturalFlow!H135+TotalNaturalFlow!G135+TotalNaturalFlow!C135 -> 1,118,542 | J135: =InterveningNaturalFlow!J135 -> 350,900 | K135: =InterveningNaturalFlow!K135+TotalNaturalFlow!J135 -> 379,300 | L135: =InterveningNaturalFlow!L135+TotalNaturalFlow!K135 -> 422,265 | M135: =InterveningNaturalFlow!M135 -> 125,746 | N135: =InterveningNaturalFlow!N135 -> 55,371 | O135: =InterveningNaturalFlow!O135 -> 107,291 | P135: =InterveningNaturalFlow!P135 -> 97,939 | Q135: =InterveningNaturalFlow!Q135+TotalNaturalFlow!P135+TotalNaturalFlow!O135+TotalNaturalFlow!N135+TotalNaturalFlow!M135+TotalNaturalFlow!L135 -> 849,653 | R135: =InterveningNaturalFlow!R135 -> 36,400 | S135: =InterveningNaturalFlow!S135 -> 190,935 | T135: =InterveningNaturalFlow!T135+TotalNaturalFlow!S135 -> 365,188 | U135: =InterveningNaturalFlow!U135+TotalNaturalFlow!T135+TotalNaturalFlow!R135+TotalNaturalFlow!Q135+TotalNaturalFlow!I135 -> 2,633,061 | W135: =InterveningNaturalFlow!W135 -> 2,671 | X135: =InterveningNaturalFlow!X135 -> 34 | Y135: =InterveningNaturalFlow!Y135+TotalNaturalFlow!X135+TotalNaturalFlow!W135+TotalNaturalFlow!U135 -> 2,632,209 | Z135: =InterveningNaturalFlow!Z135 -> 9,277 | AA135: =InterveningNaturalFlow!AA135+TotalNaturalFlow!Z135+Y135 -> 2,709,383 | AB135: =InterveningNaturalFlow!AB135+TotalNaturalFlow!AA135 -> 2,781,541 | AC135: =InterveningNaturalFlow!AC135 -> 2,800 | AD135: =InterveningNaturalFlow!AD135+TotalNaturalFlow!AC135+AB135 -> 2,770,415 | AE135: =InterveningNaturalFlow!AE135+TotalNaturalFlow!AD135 -> 2,680,315
A136: 1916-08-31 | B136: =InterveningNaturalFlow!B136 -> 197,641 | C136: =InterveningNaturalFlow!C136+TotalNaturalFlow!B136 -> 406,679 | D136: =InterveningNaturalFlow!D136 -> 16,631 | E136: =InterveningNaturalFlow!E136+TotalNaturalFlow!D136 -> 148,270 | F136: =InterveningNaturalFlow!F136+TotalNaturalFlow!E136 -> 158,670 | G136: =InterveningNaturalFlow!G136+TotalNaturalFlow!F136 -> 257,783 | H136: =InterveningNaturalFlow!H136 -> 103,877 | I136: =InterveningNaturalFlow!I136+TotalNaturalFlow!H136+TotalNaturalFlow!G136+TotalNaturalFlow!C136 -> 781,094 | J136: =InterveningNaturalFlow!J136 -> 149,200 | K136: =InterveningNaturalFlow!K136+TotalNaturalFlow!J136 -> 160,700 | L136: =InterveningNaturalFlow!L136+TotalNaturalFlow!K136 -> 191,411 | M136: =InterveningNaturalFlow!M136 -> 48,888 | N136: =InterveningNaturalFlow!N136 -> 36,657 | O136: =InterveningNaturalFlow!O136 -> 69,190 | P136: =InterveningNaturalFlow!P136 -> 74,725 | Q136: =InterveningNaturalFlow!Q136+TotalNaturalFlow!P136+TotalNaturalFlow!O136+TotalNaturalFlow!N136+TotalNaturalFlow!M136+TotalNaturalFlow!L136 -> 503,401 | R136: =InterveningNaturalFlow!R136 -> 33,383 | S136: =InterveningNaturalFlow!S136 -> 191,968 | T136: =InterveningNaturalFlow!T136+TotalNaturalFlow!S136 -> 460,410 | U136: =InterveningNaturalFlow!U136+TotalNaturalFlow!T136+TotalNaturalFlow!R136+TotalNaturalFlow!Q136+TotalNaturalFlow!I136 -> 1,931,864 | W136: =InterveningNaturalFlow!W136 -> 6,361 | X136: =InterveningNaturalFlow!X136 -> 46,579 | Y136: =InterveningNaturalFlow!Y136+TotalNaturalFlow!X136+TotalNaturalFlow!W136+TotalNaturalFlow!U136 -> 2,040,405 | Z136: =InterveningNaturalFlow!Z136 -> 12,001 | AA136: =InterveningNaturalFlow!AA136+TotalNaturalFlow!Z136+Y136 -> 2,312,447 | AB136: =InterveningNaturalFlow!AB136+TotalNaturalFlow!AA136 -> 2,370,222 | AC136: =InterveningNaturalFlow!AC136 -> 10,600 | AD136: =InterveningNaturalFlow!AD136+TotalNaturalFlow!AC136+AB136 -> 2,367,138 | AE136: =InterveningNaturalFlow!AE136+TotalNaturalFlow!AD136 -> 2,299,951
A137: 1916-09-30 | B137: =InterveningNaturalFlow!B137 -> 113,043 | C137: =InterveningNaturalFlow!C137+TotalNaturalFlow!B137 -> 197,798 | D137: =InterveningNaturalFlow!D137 -> 10,572 | E137: =InterveningNaturalFlow!E137+TotalNaturalFlow!D137 -> 66,838 | F137: =InterveningNaturalFlow!F137+TotalNaturalFlow!E137 -> 71,538 | G137: =InterveningNaturalFlow!G137+TotalNaturalFlow!F137 -> 123,005 | H137: =InterveningNaturalFlow!H137 -> 38,103 | I137: =InterveningNaturalFlow!I137+TotalNaturalFlow!H137+TotalNaturalFlow!G137+TotalNaturalFlow!C137 -> 353,285 | J137: =InterveningNaturalFlow!J137 -> 60,700 | K137: =InterveningNaturalFlow!K137+TotalNaturalFlow!J137 -> 65,600 | L137: =InterveningNaturalFlow!L137+TotalNaturalFlow!K137 -> 89,406 | M137: =InterveningNaturalFlow!M137 -> 26,683 | N137: =InterveningNaturalFlow!N137 -> 16,458 | O137: =InterveningNaturalFlow!O137 -> 30,680 | P137: =InterveningNaturalFlow!P137 -> 39,818 | Q137: =InterveningNaturalFlow!Q137+TotalNaturalFlow!P137+TotalNaturalFlow!O137+TotalNaturalFlow!N137+TotalNaturalFlow!M137+TotalNaturalFlow!L137 -> 213,533 | R137: =InterveningNaturalFlow!R137 -> 7,818 | S137: =InterveningNaturalFlow!S137 -> 80,336 | T137: =InterveningNaturalFlow!T137+TotalNaturalFlow!S137 -> 170,320 | U137: =InterveningNaturalFlow!U137+TotalNaturalFlow!T137+TotalNaturalFlow!R137+TotalNaturalFlow!Q137+TotalNaturalFlow!I137 -> 809,499 | W137: =InterveningNaturalFlow!W137 -> 1,374 | X137: =InterveningNaturalFlow!X137 -> 5,252 | Y137: =InterveningNaturalFlow!Y137+TotalNaturalFlow!X137+TotalNaturalFlow!W137+TotalNaturalFlow!U137 -> 877,466 | Z137: =InterveningNaturalFlow!Z137 -> 11,695 | AA137: =InterveningNaturalFlow!AA137+TotalNaturalFlow!Z137+Y137 -> 905,800 | AB137: =InterveningNaturalFlow!AB137+TotalNaturalFlow!AA137 -> 919,638 | AC137: =InterveningNaturalFlow!AC137 -> 30,200 | AD137: =InterveningNaturalFlow!AD137+TotalNaturalFlow!AC137+AB137 -> 952,021 | AE137: =InterveningNaturalFlow!AE137+TotalNaturalFlow!AD137 -> 936,888
A138: 1916-10-31 | B138: =InterveningNaturalFlow!B138 -> 96,695 | C138: =InterveningNaturalFlow!C138+TotalNaturalFlow!B138 -> 234,123 | D138: =InterveningNaturalFlow!D138 -> 10,963 | E138: =InterveningNaturalFlow!E138+TotalNaturalFlow!D138 -> 65,000 | F138: =InterveningNaturalFlow!F138+TotalNaturalFlow!E138 -> 72,300 | G138: =InterveningNaturalFlow!G138+TotalNaturalFlow!F138 -> 63,888 | H138: =InterveningNaturalFlow!H138 -> 116,763 | I138: =InterveningNaturalFlow!I138+TotalNaturalFlow!H138+TotalNaturalFlow!G138+TotalNaturalFlow!C138 -> 429,500 | J138: =InterveningNaturalFlow!J138 -> 51,000 | K138: =InterveningNaturalFlow!K138+TotalNaturalFlow!J138 -> 53,700 | L138: =InterveningNaturalFlow!L138+TotalNaturalFlow!K138 -> 86,919 | M138: =InterveningNaturalFlow!M138 -> 46,100 | N138: =InterveningNaturalFlow!N138 -> 24,108 | O138: =InterveningNaturalFlow!O138 -> 71,319 | P138: =InterveningNaturalFlow!P138 -> 39,561 | Q138: =InterveningNaturalFlow!Q138+TotalNaturalFlow!P138+TotalNaturalFlow!O138+TotalNaturalFlow!N138+TotalNaturalFlow!M138+TotalNaturalFlow!L138 -> 312,026 | R138: =InterveningNaturalFlow!R138 -> 52,310 | S138: =InterveningNaturalFlow!S138 -> 210,098 | T138: =InterveningNaturalFlow!T138+TotalNaturalFlow!S138 -> 555,227 | U138: =InterveningNaturalFlow!U138+TotalNaturalFlow!T138+TotalNaturalFlow!R138+TotalNaturalFlow!Q138+TotalNaturalFlow!I138 -> 1,402,792 | W138: =InterveningNaturalFlow!W138 -> 13,472 | X138: =InterveningNaturalFlow!X138 -> 0 | Y138: =InterveningNaturalFlow!Y138+TotalNaturalFlow!X138+TotalNaturalFlow!W138+TotalNaturalFlow!U138 -> 1,431,782 | Z138: =InterveningNaturalFlow!Z138 -> 7,095 | AA138: =InterveningNaturalFlow!AA138+TotalNaturalFlow!Z138+Y138 -> 1,516,740 | AB138: =InterveningNaturalFlow!AB138+TotalNaturalFlow!AA138 -> 1,534,107 | AC138: =InterveningNaturalFlow!AC138 -> 1,400 | AD138: =InterveningNaturalFlow!AD138+TotalNaturalFlow!AC138+AB138 -> 1,533,689 | AE138: =InterveningNaturalFlow!AE138+TotalNaturalFlow!AD138 -> 1,478,016
A139: 1916-11-30 | B139: =InterveningNaturalFlow!B139 -> 62,460 | C139: =InterveningNaturalFlow!C139+TotalNaturalFlow!B139 -> 119,471 | D139: =InterveningNaturalFlow!D139 -> 5,717 | E139: =InterveningNaturalFlow!E139+TotalNaturalFlow!D139 -> 38,000 | F139: =InterveningNaturalFlow!F139+TotalNaturalFlow!E139 -> 42,600 | G139: =InterveningNaturalFlow!G139+TotalNaturalFlow!F139 -> 56,529 | H139: =InterveningNaturalFlow!H139 -> 17,372 | I139: =InterveningNaturalFlow!I139+TotalNaturalFlow!H139+TotalNaturalFlow!G139+TotalNaturalFlow!C139 -> 205,972 | J139: =InterveningNaturalFlow!J139 -> 31,000 | K139: =InterveningNaturalFlow!K139+TotalNaturalFlow!J139 -> 30,800 | L139: =InterveningNaturalFlow!L139+TotalNaturalFlow!K139 -> 48,665 | M139: =InterveningNaturalFlow!M139 -> 33,900 | N139: =InterveningNaturalFlow!N139 -> 13,784 | O139: =InterveningNaturalFlow!O139 -> 30,890 | P139: =InterveningNaturalFlow!P139 -> 20,363 | Q139: =InterveningNaturalFlow!Q139+TotalNaturalFlow!P139+TotalNaturalFlow!O139+TotalNaturalFlow!N139+TotalNaturalFlow!M139+TotalNaturalFlow!L139 -> 156,228 | R139: =InterveningNaturalFlow!R139 -> 4,807 | S139: =InterveningNaturalFlow!S139 -> 63,496 | T139: =InterveningNaturalFlow!T139+TotalNaturalFlow!S139 -> 136,900 | U139: =InterveningNaturalFlow!U139+TotalNaturalFlow!T139+TotalNaturalFlow!R139+TotalNaturalFlow!Q139+TotalNaturalFlow!I139 -> 495,715 | W139: =InterveningNaturalFlow!W139 -> 2,118 | X139: =InterveningNaturalFlow!X139 -> 83 | Y139: =InterveningNaturalFlow!Y139+TotalNaturalFlow!X139+TotalNaturalFlow!W139+TotalNaturalFlow!U139 -> 521,093 | Z139: =InterveningNaturalFlow!Z139 -> 9,237 | AA139: =InterveningNaturalFlow!AA139+TotalNaturalFlow!Z139+Y139 -> 567,533 | AB139: =InterveningNaturalFlow!AB139+TotalNaturalFlow!AA139 -> 580,339 | AC139: =InterveningNaturalFlow!AC139 -> 1,300 | AD139: =InterveningNaturalFlow!AD139+TotalNaturalFlow!AC139+AB139 -> 569,635 | AE139: =InterveningNaturalFlow!AE139+TotalNaturalFlow!AD139 -> 556,078
A140: 1916-12-31 | B140: =InterveningNaturalFlow!B140 -> 48,365 | C140: =InterveningNaturalFlow!C140+TotalNaturalFlow!B140 -> 91,438 | D140: =InterveningNaturalFlow!D140 -> 5,324 | E140: =InterveningNaturalFlow!E140+TotalNaturalFlow!D140 -> 32,000 | F140: =InterveningNaturalFlow!F140+TotalNaturalFlow!E140 -> 33,800 | G140: =InterveningNaturalFlow!G140+TotalNaturalFlow!F140 -> 55,339 | H140: =InterveningNaturalFlow!H140 -> 9,807 | I140: =InterveningNaturalFlow!I140+TotalNaturalFlow!H140+TotalNaturalFlow!G140+TotalNaturalFlow!C140 -> 166,485 | J140: =InterveningNaturalFlow!J140 -> 24,000 | K140: =InterveningNaturalFlow!K140+TotalNaturalFlow!J140 -> 24,900 | L140: =InterveningNaturalFlow!L140+TotalNaturalFlow!K140 -> 37,259 | M140: =InterveningNaturalFlow!M140 -> 29,500 | N140: =InterveningNaturalFlow!N140 -> 7,205 | O140: =InterveningNaturalFlow!O140 -> 28,759 | P140: =InterveningNaturalFlow!P140 -> 20,599 | Q140: =InterveningNaturalFlow!Q140+TotalNaturalFlow!P140+TotalNaturalFlow!O140+TotalNaturalFlow!N140+TotalNaturalFlow!M140+TotalNaturalFlow!L140 -> 128,653 | R140: =InterveningNaturalFlow!R140 -> 5,400 | S140: =InterveningNaturalFlow!S140 -> 34,682 | T140: =InterveningNaturalFlow!T140+TotalNaturalFlow!S140 -> 61,490 | U140: =InterveningNaturalFlow!U140+TotalNaturalFlow!T140+TotalNaturalFlow!R140+TotalNaturalFlow!Q140+TotalNaturalFlow!I140 -> 369,117 | W140: =InterveningNaturalFlow!W140 -> 708 | X140: =InterveningNaturalFlow!X140 -> 19,720 | Y140: =InterveningNaturalFlow!Y140+TotalNaturalFlow!X140+TotalNaturalFlow!W140+TotalNaturalFlow!U140 -> 416,829 | Z140: =InterveningNaturalFlow!Z140 -> 20,019 | AA140: =InterveningNaturalFlow!AA140+TotalNaturalFlow!Z140+Y140 -> 478,760 | AB140: =InterveningNaturalFlow!AB140+TotalNaturalFlow!AA140 -> 517,094 | AC140: =InterveningNaturalFlow!AC140 -> 4,600 | AD140: =InterveningNaturalFlow!AD140+TotalNaturalFlow!AC140+AB140 -> 498,080 | AE140: =InterveningNaturalFlow!AE140+TotalNaturalFlow!AD140 -> 479,696
A141: 1917-01-31 | B141: =InterveningNaturalFlow!B141 -> 42,783 | C141: =InterveningNaturalFlow!C141+TotalNaturalFlow!B141 -> 67,427 | D141: =InterveningNaturalFlow!D141 -> 2,913 | E141: =InterveningNaturalFlow!E141+TotalNaturalFlow!D141 -> 23,000 | F141: =InterveningNaturalFlow!F141+TotalNaturalFlow!E141 -> 25,800 | G141: =InterveningNaturalFlow!G141+TotalNaturalFlow!F141 -> 52,264 | H141: =InterveningNaturalFlow!H141 -> 5,992 | I141: =InterveningNaturalFlow!I141+TotalNaturalFlow!H141+TotalNaturalFlow!G141+TotalNaturalFlow!C141 -> 123,064 | J141: =InterveningNaturalFlow!J141 -> 22,000 | K141: =InterveningNaturalFlow!K141+TotalNaturalFlow!J141 -> 23,000 | L141: =InterveningNaturalFlow!L141+TotalNaturalFlow!K141 -> 31,143 | M141: =InterveningNaturalFlow!M141 -> 23,600 | N141: =InterveningNaturalFlow!N141 -> 2,852 | O141: =InterveningNaturalFlow!O141 -> 16,896 | P141: =InterveningNaturalFlow!P141 -> 17,265 | Q141: =InterveningNaturalFlow!Q141+TotalNaturalFlow!P141+TotalNaturalFlow!O141+TotalNaturalFlow!N141+TotalNaturalFlow!M141+TotalNaturalFlow!L141 -> 79,845 | R141: =InterveningNaturalFlow!R141 -> 1,200 | S141: =InterveningNaturalFlow!S141 -> 25,622 | T141: =InterveningNaturalFlow!T141+TotalNaturalFlow!S141 -> 67,640 | U141: =InterveningNaturalFlow!U141+TotalNaturalFlow!T141+TotalNaturalFlow!R141+TotalNaturalFlow!Q141+TotalNaturalFlow!I141 -> 260,297 | W141: =InterveningNaturalFlow!W141 -> 1,099 | X141: =InterveningNaturalFlow!X141 -> 40 | Y141: =InterveningNaturalFlow!Y141+TotalNaturalFlow!X141+TotalNaturalFlow!W141+TotalNaturalFlow!U141 -> 282,183 | Z141: =InterveningNaturalFlow!Z141 -> 23,198 | AA141: =InterveningNaturalFlow!AA141+TotalNaturalFlow!Z141+Y141 -> 338,369 | AB141: =InterveningNaturalFlow!AB141+TotalNaturalFlow!AA141 -> 328,709 | AC141: =InterveningNaturalFlow!AC141 -> 5,800 | AD141: =InterveningNaturalFlow!AD141+TotalNaturalFlow!AC141+AB141 -> 312,530 | AE141: =InterveningNaturalFlow!AE141+TotalNaturalFlow!AD141 -> 227,460
A142: 1917-02-28 | B142: =InterveningNaturalFlow!B142 -> 40,979 | C142: =InterveningNaturalFlow!C142+TotalNaturalFlow!B142 -> 72,209 | D142: =InterveningNaturalFlow!D142 -> 3,008 | E142: =InterveningNaturalFlow!E142+TotalNaturalFlow!D142 -> 23,000 | F142: =InterveningNaturalFlow!F142+TotalNaturalFlow!E142 -> 27,200 | G142: =InterveningNaturalFlow!G142+TotalNaturalFlow!F142 -> 49,983 | H142: =InterveningNaturalFlow!H142 -> 11,789 | I142: =InterveningNaturalFlow!I142+TotalNaturalFlow!H142+TotalNaturalFlow!G142+TotalNaturalFlow!C142 -> 138,923 | J142: =InterveningNaturalFlow!J142 -> 20,000 | K142: =InterveningNaturalFlow!K142+TotalNaturalFlow!J142 -> 20,200 | L142: =InterveningNaturalFlow!L142+TotalNaturalFlow!K142 -> 36,746 | M142: =InterveningNaturalFlow!M142 -> 22,200 | N142: =InterveningNaturalFlow!N142 -> 11,531 | O142: =InterveningNaturalFlow!O142 -> 22,028 | P142: =InterveningNaturalFlow!P142 -> 20,913 | Q142: =InterveningNaturalFlow!Q142+TotalNaturalFlow!P142+TotalNaturalFlow!O142+TotalNaturalFlow!N142+TotalNaturalFlow!M142+TotalNaturalFlow!L142 -> 117,311 | R142: =InterveningNaturalFlow!R142 -> 5,600 | S142: =InterveningNaturalFlow!S142 -> 24,422 | T142: =InterveningNaturalFlow!T142+TotalNaturalFlow!S142 -> 77,750 | U142: =InterveningNaturalFlow!U142+TotalNaturalFlow!T142+TotalNaturalFlow!R142+TotalNaturalFlow!Q142+TotalNaturalFlow!I142 -> 351,858 | W142: =InterveningNaturalFlow!W142 -> 2,146 | X142: =InterveningNaturalFlow!X142 -> 0 | Y142: =InterveningNaturalFlow!Y142+TotalNaturalFlow!X142+TotalNaturalFlow!W142+TotalNaturalFlow!U142 -> 363,032 | Z142: =InterveningNaturalFlow!Z142 -> 26,776 | AA142: =InterveningNaturalFlow!AA142+TotalNaturalFlow!Z142+Y142 -> 449,540 | AB142: =InterveningNaturalFlow!AB142+TotalNaturalFlow!AA142 -> 427,586 | AC142: =InterveningNaturalFlow!AC142 -> 44,500 | AD142: =InterveningNaturalFlow!AD142+TotalNaturalFlow!AC142+AB142 -> 445,957 | AE142: =InterveningNaturalFlow!AE142+TotalNaturalFlow!AD142 -> 427,072
A143: 1917-03-31 | B143: =InterveningNaturalFlow!B143 -> 48,255 | C143: =InterveningNaturalFlow!C143+TotalNaturalFlow!B143 -> 85,875 | D143: =InterveningNaturalFlow!D143 -> 2,397 | E143: =InterveningNaturalFlow!E143+TotalNaturalFlow!D143 -> 29,000 | F143: =InterveningNaturalFlow!F143+TotalNaturalFlow!E143 -> 33,800 | G143: =InterveningNaturalFlow!G143+TotalNaturalFlow!F143 -> 79,934 | H143: =InterveningNaturalFlow!H143 -> 27,096 | I143: =InterveningNaturalFlow!I143+TotalNaturalFlow!H143+TotalNaturalFlow!G143+TotalNaturalFlow!C143 -> 193,433 | J143: =InterveningNaturalFlow!J143 -> 32,000 | K143: =InterveningNaturalFlow!K143+TotalNaturalFlow!J143 -> 32,500 | L143: =InterveningNaturalFlow!L143+TotalNaturalFlow!K143 -> 66,388 | M143: =InterveningNaturalFlow!M143 -> 41,800 | N143: =InterveningNaturalFlow!N143 -> 17,519 | O143: =InterveningNaturalFlow!O143 -> 31,407 | P143: =InterveningNaturalFlow!P143 -> 34,360 | Q143: =InterveningNaturalFlow!Q143+TotalNaturalFlow!P143+TotalNaturalFlow!O143+TotalNaturalFlow!N143+TotalNaturalFlow!M143+TotalNaturalFlow!L143 -> 209,331 | R143: =InterveningNaturalFlow!R143 -> 8,000 | S143: =InterveningNaturalFlow!S143 -> 41,213 | T143: =InterveningNaturalFlow!T143+TotalNaturalFlow!S143 -> 84,323 | U143: =InterveningNaturalFlow!U143+TotalNaturalFlow!T143+TotalNaturalFlow!R143+TotalNaturalFlow!Q143+TotalNaturalFlow!I143 -> 506,892 | W143: =InterveningNaturalFlow!W143 -> 2,186 | X143: =InterveningNaturalFlow!X143 -> 36,253 | Y143: =InterveningNaturalFlow!Y143+TotalNaturalFlow!X143+TotalNaturalFlow!W143+TotalNaturalFlow!U143 -> 538,411 | Z143: =InterveningNaturalFlow!Z143 -> 23,617 | AA143: =InterveningNaturalFlow!AA143+TotalNaturalFlow!Z143+Y143 -> 617,219 | AB143: =InterveningNaturalFlow!AB143+TotalNaturalFlow!AA143 -> 667,606 | AC143: =InterveningNaturalFlow!AC143 -> 28,300 | AD143: =InterveningNaturalFlow!AD143+TotalNaturalFlow!AC143+AB143 -> 662,161 | AE143: =InterveningNaturalFlow!AE143+TotalNaturalFlow!AD143 -> 632,947
A144: 1917-04-30 | B144: =InterveningNaturalFlow!B144 -> 172,487 | C144: =InterveningNaturalFlow!C144+TotalNaturalFlow!B144 -> 249,531 | D144: =InterveningNaturalFlow!D144 -> 12,727 | E144: =InterveningNaturalFlow!E144+TotalNaturalFlow!D144 -> 75,000 | F144: =InterveningNaturalFlow!F144+TotalNaturalFlow!E144 -> 93,800 | G144: =InterveningNaturalFlow!G144+TotalNaturalFlow!F144 -> 208,035 | H144: =InterveningNaturalFlow!H144 -> 134,707 | I144: =InterveningNaturalFlow!I144+TotalNaturalFlow!H144+TotalNaturalFlow!G144+TotalNaturalFlow!C144 -> 534,956 | J144: =InterveningNaturalFlow!J144 -> 113,000 | K144: =InterveningNaturalFlow!K144+TotalNaturalFlow!J144 -> 134,800 | L144: =InterveningNaturalFlow!L144+TotalNaturalFlow!K144 -> 223,600 | M144: =InterveningNaturalFlow!M144 -> 213,100 | N144: =InterveningNaturalFlow!N144 -> 88,304 | O144: =InterveningNaturalFlow!O144 -> 97,838 | P144: =InterveningNaturalFlow!P144 -> 71,274 | Q144: =InterveningNaturalFlow!Q144+TotalNaturalFlow!P144+TotalNaturalFlow!O144+TotalNaturalFlow!N144+TotalNaturalFlow!M144+TotalNaturalFlow!L144 -> 720,542 | R144: =InterveningNaturalFlow!R144 -> 11,609 | S144: =InterveningNaturalFlow!S144 -> 222,038 | T144: =InterveningNaturalFlow!T144+TotalNaturalFlow!S144 -> 353,774 | U144: =InterveningNaturalFlow!U144+TotalNaturalFlow!T144+TotalNaturalFlow!R144+TotalNaturalFlow!Q144+TotalNaturalFlow!I144 -> 1,545,288 | W144: =InterveningNaturalFlow!W144 -> 1,397 | X144: =InterveningNaturalFlow!X144 -> 7,772 | Y144: =InterveningNaturalFlow!Y144+TotalNaturalFlow!X144+TotalNaturalFlow!W144+TotalNaturalFlow!U144 -> 1,445,735 | Z144: =InterveningNaturalFlow!Z144 -> 29,571 | AA144: =InterveningNaturalFlow!AA144+TotalNaturalFlow!Z144+Y144 -> 1,518,207 | AB144: =InterveningNaturalFlow!AB144+TotalNaturalFlow!AA144 -> 1,568,925 | AC144: =InterveningNaturalFlow!AC144 -> 7,900 | AD144: =InterveningNaturalFlow!AD144+TotalNaturalFlow!AC144+AB144 -> 1,559,848 | AE144: =InterveningNaturalFlow!AE144+TotalNaturalFlow!AD144 -> 1,504,579
A145: 1917-05-31 | B145: =InterveningNaturalFlow!B145 -> 422,734 | C145: =InterveningNaturalFlow!C145+TotalNaturalFlow!B145 -> 654,386 | D145: =InterveningNaturalFlow!D145 -> 24,241 | E145: =InterveningNaturalFlow!E145+TotalNaturalFlow!D145 -> 185,010 | F145: =InterveningNaturalFlow!F145+TotalNaturalFlow!E145 -> 226,010 | G145: =InterveningNaturalFlow!G145+TotalNaturalFlow!F145 -> 644,100 | H145: =InterveningNaturalFlow!H145 -> 328,305 | I145: =InterveningNaturalFlow!I145+TotalNaturalFlow!H145+TotalNaturalFlow!G145+TotalNaturalFlow!C145 -> 1,549,006 | J145: =InterveningNaturalFlow!J145 -> 309,000 | K145: =InterveningNaturalFlow!K145+TotalNaturalFlow!J145 -> 292,600 | L145: =InterveningNaturalFlow!L145+TotalNaturalFlow!K145 -> 483,053 | M145: =InterveningNaturalFlow!M145 -> 618,485 | N145: =InterveningNaturalFlow!N145 -> 206,575 | O145: =InterveningNaturalFlow!O145 -> 199,441 | P145: =InterveningNaturalFlow!P145 -> 140,392 | Q145: =InterveningNaturalFlow!Q145+TotalNaturalFlow!P145+TotalNaturalFlow!O145+TotalNaturalFlow!N145+TotalNaturalFlow!M145+TotalNaturalFlow!L145 -> 1,653,542 | R145: =InterveningNaturalFlow!R145 -> 54,636 | S145: =InterveningNaturalFlow!S145 -> 354,078 | T145: =InterveningNaturalFlow!T145+TotalNaturalFlow!S145 -> 569,567 | U145: =InterveningNaturalFlow!U145+TotalNaturalFlow!T145+TotalNaturalFlow!R145+TotalNaturalFlow!Q145+TotalNaturalFlow!I145 -> 3,763,312 | W145: =InterveningNaturalFlow!W145 -> 595 | X145: =InterveningNaturalFlow!X145 -> 0 | Y145: =InterveningNaturalFlow!Y145+TotalNaturalFlow!X145+TotalNaturalFlow!W145+TotalNaturalFlow!U145 -> 3,656,061 | Z145: =InterveningNaturalFlow!Z145 -> 25,049 | AA145: =InterveningNaturalFlow!AA145+TotalNaturalFlow!Z145+Y145 -> 3,744,639 | AB145: =InterveningNaturalFlow!AB145+TotalNaturalFlow!AA145 -> 3,784,964 | AC145: =InterveningNaturalFlow!AC145 -> 2,000 | AD145: =InterveningNaturalFlow!AD145+TotalNaturalFlow!AC145+AB145 -> 3,764,874 | AE145: =InterveningNaturalFlow!AE145+TotalNaturalFlow!AD145 -> 3,707,059
A146: 1917-06-30 | B146: =InterveningNaturalFlow!B146 -> 1,203,686 | C146: =InterveningNaturalFlow!C146+TotalNaturalFlow!B146 -> 1,939,130 | D146: =InterveningNaturalFlow!D146 -> 76,116 | E146: =InterveningNaturalFlow!E146+TotalNaturalFlow!D146 -> 564,928 | F146: =InterveningNaturalFlow!F146+TotalNaturalFlow!E146 -> 663,528 | G146: =InterveningNaturalFlow!G146+TotalNaturalFlow!F146 -> 1,189,316 | H146: =InterveningNaturalFlow!H146 -> 340,133 | I146: =InterveningNaturalFlow!I146+TotalNaturalFlow!H146+TotalNaturalFlow!G146+TotalNaturalFlow!C146 -> 3,524,923 | J146: =InterveningNaturalFlow!J146 -> 602,600 | K146: =InterveningNaturalFlow!K146+TotalNaturalFlow!J146 -> 621,800 | L146: =InterveningNaturalFlow!L146+TotalNaturalFlow!K146 -> 957,051 | M146: =InterveningNaturalFlow!M146 -> 784,507 | N146: =InterveningNaturalFlow!N146 -> 229,650 | O146: =InterveningNaturalFlow!O146 -> 549,663 | P146: =InterveningNaturalFlow!P146 -> 259,493 | Q146: =InterveningNaturalFlow!Q146+TotalNaturalFlow!P146+TotalNaturalFlow!O146+TotalNaturalFlow!N146+TotalNaturalFlow!M146+TotalNaturalFlow!L146 -> 2,928,346 | R146: =InterveningNaturalFlow!R146 -> 152,908 | S146: =InterveningNaturalFlow!S146 -> 570,353 | T146: =InterveningNaturalFlow!T146+TotalNaturalFlow!S146 -> 904,409 | U146: =InterveningNaturalFlow!U146+TotalNaturalFlow!T146+TotalNaturalFlow!R146+TotalNaturalFlow!Q146+TotalNaturalFlow!I146 -> 7,772,051 | W146: =InterveningNaturalFlow!W146 -> 702 | X146: =InterveningNaturalFlow!X146 -> 1,606 | Y146: =InterveningNaturalFlow!Y146+TotalNaturalFlow!X146+TotalNaturalFlow!W146+TotalNaturalFlow!U146 -> 7,730,312 | Z146: =InterveningNaturalFlow!Z146 -> 9,774 | AA146: =InterveningNaturalFlow!AA146+TotalNaturalFlow!Z146+Y146 -> 7,800,251 | AB146: =InterveningNaturalFlow!AB146+TotalNaturalFlow!AA146 -> 7,847,196 | AC146: =InterveningNaturalFlow!AC146 -> 1,400 | AD146: =InterveningNaturalFlow!AD146+TotalNaturalFlow!AC146+AB146 -> 7,828,867 | AE146: =InterveningNaturalFlow!AE146+TotalNaturalFlow!AD146 -> 7,705,438
A147: 1917-07-31 | B147: =InterveningNaturalFlow!B147 -> 620,232 | C147: =InterveningNaturalFlow!C147+TotalNaturalFlow!B147 -> 1,079,170 | D147: =InterveningNaturalFlow!D147 -> 48,181 | E147: =InterveningNaturalFlow!E147+TotalNaturalFlow!D147 -> 287,482 | F147: =InterveningNaturalFlow!F147+TotalNaturalFlow!E147 -> 315,482 | G147: =InterveningNaturalFlow!G147+TotalNaturalFlow!F147 -> 551,875 | H147: =InterveningNaturalFlow!H147 -> 138,264 | I147: =InterveningNaturalFlow!I147+TotalNaturalFlow!H147+TotalNaturalFlow!G147+TotalNaturalFlow!C147 -> 1,836,250 | J147: =InterveningNaturalFlow!J147 -> 628,500 | K147: =InterveningNaturalFlow!K147+TotalNaturalFlow!J147 -> 678,600 | L147: =InterveningNaturalFlow!L147+TotalNaturalFlow!K147 -> 828,353 | M147: =InterveningNaturalFlow!M147 -> 295,425 | N147: =InterveningNaturalFlow!N147 -> 132,592 | O147: =InterveningNaturalFlow!O147 -> 293,797 | P147: =InterveningNaturalFlow!P147 -> 147,173 | Q147: =InterveningNaturalFlow!Q147+TotalNaturalFlow!P147+TotalNaturalFlow!O147+TotalNaturalFlow!N147+TotalNaturalFlow!M147+TotalNaturalFlow!L147 -> 1,969,729 | R147: =InterveningNaturalFlow!R147 -> 52,102 | S147: =InterveningNaturalFlow!S147 -> 332,382 | T147: =InterveningNaturalFlow!T147+TotalNaturalFlow!S147 -> 596,458 | U147: =InterveningNaturalFlow!U147+TotalNaturalFlow!T147+TotalNaturalFlow!R147+TotalNaturalFlow!Q147+TotalNaturalFlow!I147 -> 4,940,893 | W147: =InterveningNaturalFlow!W147 -> 1,476 | X147: =InterveningNaturalFlow!X147 -> 52 | Y147: =InterveningNaturalFlow!Y147+TotalNaturalFlow!X147+TotalNaturalFlow!W147+TotalNaturalFlow!U147 -> 4,981,210 | Z147: =InterveningNaturalFlow!Z147 -> 6,437 | AA147: =InterveningNaturalFlow!AA147+TotalNaturalFlow!Z147+Y147 -> 5,143,562 | AB147: =InterveningNaturalFlow!AB147+TotalNaturalFlow!AA147 -> 5,188,837 | AC147: =InterveningNaturalFlow!AC147 -> 1,500 | AD147: =InterveningNaturalFlow!AD147+TotalNaturalFlow!AC147+AB147 -> 5,208,318 | AE147: =InterveningNaturalFlow!AE147+TotalNaturalFlow!AD147 -> 5,113,117
A148: 1917-08-31 | B148: =InterveningNaturalFlow!B148 -> 177,627 | C148: =InterveningNaturalFlow!C148+TotalNaturalFlow!B148 -> 348,214 | D148: =InterveningNaturalFlow!D148 -> 14,114 | E148: =InterveningNaturalFlow!E148+TotalNaturalFlow!D148 -> 104,870 | F148: =InterveningNaturalFlow!F148+TotalNaturalFlow!E148 -> 113,870 | G148: =InterveningNaturalFlow!G148+TotalNaturalFlow!F148 -> 198,298 | H148: =InterveningNaturalFlow!H148 -> 73,432 | I148: =InterveningNaturalFlow!I148+TotalNaturalFlow!H148+TotalNaturalFlow!G148+TotalNaturalFlow!C148 -> 631,901 | J148: =InterveningNaturalFlow!J148 -> 169,700 | K148: =InterveningNaturalFlow!K148+TotalNaturalFlow!J148 -> 181,900 | L148: =InterveningNaturalFlow!L148+TotalNaturalFlow!K148 -> 233,116 | M148: =InterveningNaturalFlow!M148 -> 58,338 | N148: =InterveningNaturalFlow!N148 -> 60,389 | O148: =InterveningNaturalFlow!O148 -> 99,374 | P148: =InterveningNaturalFlow!P148 -> 64,981 | Q148: =InterveningNaturalFlow!Q148+TotalNaturalFlow!P148+TotalNaturalFlow!O148+TotalNaturalFlow!N148+TotalNaturalFlow!M148+TotalNaturalFlow!L148 -> 601,085 | R148: =InterveningNaturalFlow!R148 -> 26,383 | S148: =InterveningNaturalFlow!S148 -> 94,721 | T148: =InterveningNaturalFlow!T148+TotalNaturalFlow!S148 -> 186,933 | U148: =InterveningNaturalFlow!U148+TotalNaturalFlow!T148+TotalNaturalFlow!R148+TotalNaturalFlow!Q148+TotalNaturalFlow!I148 -> 1,618,992 | W148: =InterveningNaturalFlow!W148 -> 1,944 | X148: =InterveningNaturalFlow!X148 -> 87,419 | Y148: =InterveningNaturalFlow!Y148+TotalNaturalFlow!X148+TotalNaturalFlow!W148+TotalNaturalFlow!U148 -> 1,747,659 | Z148: =InterveningNaturalFlow!Z148 -> 8,607 | AA148: =InterveningNaturalFlow!AA148+TotalNaturalFlow!Z148+Y148 -> 1,653,250 | AB148: =InterveningNaturalFlow!AB148+TotalNaturalFlow!AA148 -> 1,698,186 | AC148: =InterveningNaturalFlow!AC148 -> 5,700 | AD148: =InterveningNaturalFlow!AD148+TotalNaturalFlow!AC148+AB148 -> 1,701,643 | AE148: =InterveningNaturalFlow!AE148+TotalNaturalFlow!AD148 -> 1,627,908
A149: 1917-09-30 | B149: =InterveningNaturalFlow!B149 -> 99,293 | C149: =InterveningNaturalFlow!C149+TotalNaturalFlow!B149 -> 180,283 | D149: =InterveningNaturalFlow!D149 -> 9,492 | E149: =InterveningNaturalFlow!E149+TotalNaturalFlow!D149 -> 55,638 | F149: =InterveningNaturalFlow!F149+TotalNaturalFlow!E149 -> 59,338 | G149: =InterveningNaturalFlow!G149+TotalNaturalFlow!F149 -> 97,802 | H149: =InterveningNaturalFlow!H149 -> 45,000 | I149: =InterveningNaturalFlow!I149+TotalNaturalFlow!H149+TotalNaturalFlow!G149+TotalNaturalFlow!C149 -> 327,515 | J149: =InterveningNaturalFlow!J149 -> 81,500 | K149: =InterveningNaturalFlow!K149+TotalNaturalFlow!J149 -> 86,600 | L149: =InterveningNaturalFlow!L149+TotalNaturalFlow!K149 -> 117,663 | M149: =InterveningNaturalFlow!M149 -> 30,819 | N149: =InterveningNaturalFlow!N149 -> 30,627 | O149: =InterveningNaturalFlow!O149 -> 42,444 | P149: =InterveningNaturalFlow!P149 -> 40,019 | Q149: =InterveningNaturalFlow!Q149+TotalNaturalFlow!P149+TotalNaturalFlow!O149+TotalNaturalFlow!N149+TotalNaturalFlow!M149+TotalNaturalFlow!L149 -> 281,128 | R149: =InterveningNaturalFlow!R149 -> 19,418 | S149: =InterveningNaturalFlow!S149 -> 32,713 | T149: =InterveningNaturalFlow!T149+TotalNaturalFlow!S149 -> 85,753 | U149: =InterveningNaturalFlow!U149+TotalNaturalFlow!T149+TotalNaturalFlow!R149+TotalNaturalFlow!Q149+TotalNaturalFlow!I149 -> 822,052 | W149: =InterveningNaturalFlow!W149 -> 1,278 | X149: =InterveningNaturalFlow!X149 -> 26,554 | Y149: =InterveningNaturalFlow!Y149+TotalNaturalFlow!X149+TotalNaturalFlow!W149+TotalNaturalFlow!U149 -> 882,363 | Z149: =InterveningNaturalFlow!Z149 -> 8,416 | AA149: =InterveningNaturalFlow!AA149+TotalNaturalFlow!Z149+Y149 -> 894,419 | AB149: =InterveningNaturalFlow!AB149+TotalNaturalFlow!AA149 -> 895,098 | AC149: =InterveningNaturalFlow!AC149 -> 16,400 | AD149: =InterveningNaturalFlow!AD149+TotalNaturalFlow!AC149+AB149 -> 936,218 | AE149: =InterveningNaturalFlow!AE149+TotalNaturalFlow!AD149 -> 924,803
A150: 1917-10-31 | B150: =InterveningNaturalFlow!B150 -> 74,129 | C150: =InterveningNaturalFlow!C150+TotalNaturalFlow!B150 -> 136,849 | D150: =InterveningNaturalFlow!D150 -> 8,746 | E150: =InterveningNaturalFlow!E150+TotalNaturalFlow!D150 -> 47,200 | F150: =InterveningNaturalFlow!F150+TotalNaturalFlow!E150 -> 53,300 | G150: =InterveningNaturalFlow!G150+TotalNaturalFlow!F150 -> 69,874 | H150: =InterveningNaturalFlow!H150 -> 10,898 | I150: =InterveningNaturalFlow!I150+TotalNaturalFlow!H150+TotalNaturalFlow!G150+TotalNaturalFlow!C150 -> 215,002 | J150: =InterveningNaturalFlow!J150 -> 52,400 | K150: =InterveningNaturalFlow!K150+TotalNaturalFlow!J150 -> 58,600 | L150: =InterveningNaturalFlow!L150+TotalNaturalFlow!K150 -> 80,803 | M150: =InterveningNaturalFlow!M150 -> 23,043 | N150: =InterveningNaturalFlow!N150 -> 10,178 | O150: =InterveningNaturalFlow!O150 -> 47,037 | P150: =InterveningNaturalFlow!P150 -> 30,547 | Q150: =InterveningNaturalFlow!Q150+TotalNaturalFlow!P150+TotalNaturalFlow!O150+TotalNaturalFlow!N150+TotalNaturalFlow!M150+TotalNaturalFlow!L150 -> 209,807 | R150: =InterveningNaturalFlow!R150 -> 4,407 | S150: =InterveningNaturalFlow!S150 -> 22,097 | T150: =InterveningNaturalFlow!T150+TotalNaturalFlow!S150 -> 52,261 | U150: =InterveningNaturalFlow!U150+TotalNaturalFlow!T150+TotalNaturalFlow!R150+TotalNaturalFlow!Q150+TotalNaturalFlow!I150 -> 510,346 | W150: =InterveningNaturalFlow!W150 -> 2,370 | X150: =InterveningNaturalFlow!X150 -> 1,343 | Y150: =InterveningNaturalFlow!Y150+TotalNaturalFlow!X150+TotalNaturalFlow!W150+TotalNaturalFlow!U150 -> 529,483 | Z150: =InterveningNaturalFlow!Z150 -> 5,807 | AA150: =InterveningNaturalFlow!AA150+TotalNaturalFlow!Z150+Y150 -> 611,074 | AB150: =InterveningNaturalFlow!AB150+TotalNaturalFlow!AA150 -> 597,284 | AC150: =InterveningNaturalFlow!AC150 -> 1,100 | AD150: =InterveningNaturalFlow!AD150+TotalNaturalFlow!AC150+AB150 -> 633,006 | AE150: =InterveningNaturalFlow!AE150+TotalNaturalFlow!AD150 -> 702,965
A151: 1917-11-30 | B151: =InterveningNaturalFlow!B151 -> 68,945 | C151: =InterveningNaturalFlow!C151+TotalNaturalFlow!B151 -> 116,165 | D151: =InterveningNaturalFlow!D151 -> 5,152 | E151: =InterveningNaturalFlow!E151+TotalNaturalFlow!D151 -> 31,000 | F151: =InterveningNaturalFlow!F151+TotalNaturalFlow!E151 -> 34,500 | G151: =InterveningNaturalFlow!G151+TotalNaturalFlow!F151 -> 62,274 | H151: =InterveningNaturalFlow!H151 -> 5,098 | I151: =InterveningNaturalFlow!I151+TotalNaturalFlow!H151+TotalNaturalFlow!G151+TotalNaturalFlow!C151 -> 186,167 | J151: =InterveningNaturalFlow!J151 -> 41,000 | K151: =InterveningNaturalFlow!K151+TotalNaturalFlow!J151 -> 47,000 | L151: =InterveningNaturalFlow!L151+TotalNaturalFlow!K151 -> 56,773 | M151: =InterveningNaturalFlow!M151 -> 21,600 | N151: =InterveningNaturalFlow!N151 -> 10,039 | O151: =InterveningNaturalFlow!O151 -> 38,266 | P151: =InterveningNaturalFlow!P151 -> 29,640 | Q151: =InterveningNaturalFlow!Q151+TotalNaturalFlow!P151+TotalNaturalFlow!O151+TotalNaturalFlow!N151+TotalNaturalFlow!M151+TotalNaturalFlow!L151 -> 185,425 | R151: =InterveningNaturalFlow!R151 -> 4,705 | S151: =InterveningNaturalFlow!S151 -> 28,497 | T151: =InterveningNaturalFlow!T151+TotalNaturalFlow!S151 -> 34,300 | U151: =InterveningNaturalFlow!U151+TotalNaturalFlow!T151+TotalNaturalFlow!R151+TotalNaturalFlow!Q151+TotalNaturalFlow!I151 -> 448,052 | W151: =InterveningNaturalFlow!W151 -> 752 | X151: =InterveningNaturalFlow!X151 -> 93 | Y151: =InterveningNaturalFlow!Y151+TotalNaturalFlow!X151+TotalNaturalFlow!W151+TotalNaturalFlow!U151 -> 490,069 | Z151: =InterveningNaturalFlow!Z151 -> 7,551 | AA151: =InterveningNaturalFlow!AA151+TotalNaturalFlow!Z151+Y151 -> 534,280 | AB151: =InterveningNaturalFlow!AB151+TotalNaturalFlow!AA151 -> 533,940 | AC151: =InterveningNaturalFlow!AC151 -> 1,000 | AD151: =InterveningNaturalFlow!AD151+TotalNaturalFlow!AC151+AB151 -> 525,713 | AE151: =InterveningNaturalFlow!AE151+TotalNaturalFlow!AD151 -> 498,871
A152: 1917-12-31 | B152: =InterveningNaturalFlow!B152 -> 59,410 | C152: =InterveningNaturalFlow!C152+TotalNaturalFlow!B152 -> 107,383 | D152: =InterveningNaturalFlow!D152 -> 3,714 | E152: =InterveningNaturalFlow!E152+TotalNaturalFlow!D152 -> 26,000 | F152: =InterveningNaturalFlow!F152+TotalNaturalFlow!E152 -> 27,600 | G152: =InterveningNaturalFlow!G152+TotalNaturalFlow!F152 -> 55,478 | H152: =InterveningNaturalFlow!H152 -> 6,185 | I152: =InterveningNaturalFlow!I152+TotalNaturalFlow!H152+TotalNaturalFlow!G152+TotalNaturalFlow!C152 -> 170,861 | J152: =InterveningNaturalFlow!J152 -> 32,000 | K152: =InterveningNaturalFlow!K152+TotalNaturalFlow!J152 -> 33,800 | L152: =InterveningNaturalFlow!L152+TotalNaturalFlow!K152 -> 43,351 | M152: =InterveningNaturalFlow!M152 -> 20,100 | N152: =InterveningNaturalFlow!N152 -> 9,967 | O152: =InterveningNaturalFlow!O152 -> 48,019 | P152: =InterveningNaturalFlow!P152 -> 34,711 | Q152: =InterveningNaturalFlow!Q152+TotalNaturalFlow!P152+TotalNaturalFlow!O152+TotalNaturalFlow!N152+TotalNaturalFlow!M152+TotalNaturalFlow!L152 -> 168,755 | R152: =InterveningNaturalFlow!R152 -> 3,900 | S152: =InterveningNaturalFlow!S152 -> 8,230 | T152: =InterveningNaturalFlow!T152+TotalNaturalFlow!S152 -> 27,600 | U152: =InterveningNaturalFlow!U152+TotalNaturalFlow!T152+TotalNaturalFlow!R152+TotalNaturalFlow!Q152+TotalNaturalFlow!I152 -> 402,771 | W152: =InterveningNaturalFlow!W152 -> 1,259 | X152: =InterveningNaturalFlow!X152 -> 33,549 | Y152: =InterveningNaturalFlow!Y152+TotalNaturalFlow!X152+TotalNaturalFlow!W152+TotalNaturalFlow!U152 -> 490,891 | Z152: =InterveningNaturalFlow!Z152 -> 12,019 | AA152: =InterveningNaturalFlow!AA152+TotalNaturalFlow!Z152+Y152 -> 517,065 | AB152: =InterveningNaturalFlow!AB152+TotalNaturalFlow!AA152 -> 525,131 | AC152: =InterveningNaturalFlow!AC152 -> 3,600 | AD152: =InterveningNaturalFlow!AD152+TotalNaturalFlow!AC152+AB152 -> 530,317 | AE152: =InterveningNaturalFlow!AE152+TotalNaturalFlow!AD152 -> 503,493
A153: 1918-01-31 | B153: =InterveningNaturalFlow!B153 -> 50,853 | C153: =InterveningNaturalFlow!C153+TotalNaturalFlow!B153 -> 96,071 | D153: =InterveningNaturalFlow!D153 -> 3,560 | E153: =InterveningNaturalFlow!E153+TotalNaturalFlow!D153 -> 23,000 | F153: =InterveningNaturalFlow!F153+TotalNaturalFlow!E153 -> 25,800 | G153: =InterveningNaturalFlow!G153+TotalNaturalFlow!F153 -> 55,269 | H153: =InterveningNaturalFlow!H153 -> 5,387 | I153: =InterveningNaturalFlow!I153+TotalNaturalFlow!H153+TotalNaturalFlow!G153+TotalNaturalFlow!C153 -> 155,482 | J153: =InterveningNaturalFlow!J153 -> 23,000 | K153: =InterveningNaturalFlow!K153+TotalNaturalFlow!J153 -> 23,000 | L153: =InterveningNaturalFlow!L153+TotalNaturalFlow!K153 -> 45,098 | M153: =InterveningNaturalFlow!M153 -> 19,100 | N153: =InterveningNaturalFlow!N153 -> 9,986 | O153: =InterveningNaturalFlow!O153 -> 34,245 | P153: =InterveningNaturalFlow!P153 -> 27,328 | Q153: =InterveningNaturalFlow!Q153+TotalNaturalFlow!P153+TotalNaturalFlow!O153+TotalNaturalFlow!N153+TotalNaturalFlow!M153+TotalNaturalFlow!L153 -> 150,406 | R153: =InterveningNaturalFlow!R153 -> 3,400 | S153: =InterveningNaturalFlow!S153 -> 16,121 | T153: =InterveningNaturalFlow!T153+TotalNaturalFlow!S153 -> 25,000 | U153: =InterveningNaturalFlow!U153+TotalNaturalFlow!T153+TotalNaturalFlow!R153+TotalNaturalFlow!Q153+TotalNaturalFlow!I153 -> 356,293 | W153: =InterveningNaturalFlow!W153 -> 1,993 | X153: =InterveningNaturalFlow!X153 -> 98 | Y153: =InterveningNaturalFlow!Y153+TotalNaturalFlow!X153+TotalNaturalFlow!W153+TotalNaturalFlow!U153 -> 409,248 | Z153: =InterveningNaturalFlow!Z153 -> 19,669 | AA153: =InterveningNaturalFlow!AA153+TotalNaturalFlow!Z153+Y153 -> 477,905 | AB153: =InterveningNaturalFlow!AB153+TotalNaturalFlow!AA153 -> 478,184 | AC153: =InterveningNaturalFlow!AC153 -> 4,600 | AD153: =InterveningNaturalFlow!AD153+TotalNaturalFlow!AC153+AB153 -> 467,685 | AE153: =InterveningNaturalFlow!AE153+TotalNaturalFlow!AD153 -> 428,479
A154: 1918-02-28 | B154: =InterveningNaturalFlow!B154 -> 49,058 | C154: =InterveningNaturalFlow!C154+TotalNaturalFlow!B154 -> 90,909 | D154: =InterveningNaturalFlow!D154 -> 3,811 | E154: =InterveningNaturalFlow!E154+TotalNaturalFlow!D154 -> 26,000 | F154: =InterveningNaturalFlow!F154+TotalNaturalFlow!E154 -> 29,900 | G154: =InterveningNaturalFlow!G154+TotalNaturalFlow!F154 -> 58,017 | H154: =InterveningNaturalFlow!H154 -> 7,196 | I154: =InterveningNaturalFlow!I154+TotalNaturalFlow!H154+TotalNaturalFlow!G154+TotalNaturalFlow!C154 -> 159,372 | J154: =InterveningNaturalFlow!J154 -> 21,000 | K154: =InterveningNaturalFlow!K154+TotalNaturalFlow!J154 -> 22,200 | L154: =InterveningNaturalFlow!L154+TotalNaturalFlow!K154 -> 48,409 | M154: =InterveningNaturalFlow!M154 -> 19,600 | N154: =InterveningNaturalFlow!N154 -> 8,197 | O154: =InterveningNaturalFlow!O154 -> 33,447 | P154: =InterveningNaturalFlow!P154 -> 20,329 | Q154: =InterveningNaturalFlow!Q154+TotalNaturalFlow!P154+TotalNaturalFlow!O154+TotalNaturalFlow!N154+TotalNaturalFlow!M154+TotalNaturalFlow!L154 -> 137,264 | R154: =InterveningNaturalFlow!R154 -> 4,100 | S154: =InterveningNaturalFlow!S154 -> 25,059 | T154: =InterveningNaturalFlow!T154+TotalNaturalFlow!S154 -> 51,300 | U154: =InterveningNaturalFlow!U154+TotalNaturalFlow!T154+TotalNaturalFlow!R154+TotalNaturalFlow!Q154+TotalNaturalFlow!I154 -> 373,570 | W154: =InterveningNaturalFlow!W154 -> 2,452 | X154: =InterveningNaturalFlow!X154 -> 864 | Y154: =InterveningNaturalFlow!Y154+TotalNaturalFlow!X154+TotalNaturalFlow!W154+TotalNaturalFlow!U154 -> 399,484 | Z154: =InterveningNaturalFlow!Z154 -> 16,983 | AA154: =InterveningNaturalFlow!AA154+TotalNaturalFlow!Z154+Y154 -> 444,760 | AB154: =InterveningNaturalFlow!AB154+TotalNaturalFlow!AA154 -> 481,055 | AC154: =InterveningNaturalFlow!AC154 -> 34,900 | AD154: =InterveningNaturalFlow!AD154+TotalNaturalFlow!AC154+AB154 -> 493,791 | AE154: =InterveningNaturalFlow!AE154+TotalNaturalFlow!AD154 -> 494,663
A155: 1918-03-31 | B155: =InterveningNaturalFlow!B155 -> 79,078 | C155: =InterveningNaturalFlow!C155+TotalNaturalFlow!B155 -> 148,601 | D155: =InterveningNaturalFlow!D155 -> 4,831 | E155: =InterveningNaturalFlow!E155+TotalNaturalFlow!D155 -> 34,000 | F155: =InterveningNaturalFlow!F155+TotalNaturalFlow!E155 -> 39,900 | G155: =InterveningNaturalFlow!G155+TotalNaturalFlow!F155 -> 83,782 | H155: =InterveningNaturalFlow!H155 -> 24,172 | I155: =InterveningNaturalFlow!I155+TotalNaturalFlow!H155+TotalNaturalFlow!G155+TotalNaturalFlow!C155 -> 264,990 | J155: =InterveningNaturalFlow!J155 -> 44,000 | K155: =InterveningNaturalFlow!K155+TotalNaturalFlow!J155 -> 54,700 | L155: =InterveningNaturalFlow!L155+TotalNaturalFlow!K155 -> 98,534 | M155: =InterveningNaturalFlow!M155 -> 57,400 | N155: =InterveningNaturalFlow!N155 -> 21,365 | O155: =InterveningNaturalFlow!O155 -> 30,359 | P155: =InterveningNaturalFlow!P155 -> 28,081 | Q155: =InterveningNaturalFlow!Q155+TotalNaturalFlow!P155+TotalNaturalFlow!O155+TotalNaturalFlow!N155+TotalNaturalFlow!M155+TotalNaturalFlow!L155 -> 251,496 | R155: =InterveningNaturalFlow!R155 -> 6,700 | S155: =InterveningNaturalFlow!S155 -> 64,226 | T155: =InterveningNaturalFlow!T155+TotalNaturalFlow!S155 -> 119,000 | U155: =InterveningNaturalFlow!U155+TotalNaturalFlow!T155+TotalNaturalFlow!R155+TotalNaturalFlow!Q155+TotalNaturalFlow!I155 -> 655,998 | W155: =InterveningNaturalFlow!W155 -> 3,127 | X155: =InterveningNaturalFlow!X155 -> 1,211 | Y155: =InterveningNaturalFlow!Y155+TotalNaturalFlow!X155+TotalNaturalFlow!W155+TotalNaturalFlow!U155 -> 684,008 | Z155: =InterveningNaturalFlow!Z155 -> 19,607 | AA155: =InterveningNaturalFlow!AA155+TotalNaturalFlow!Z155+Y155 -> 736,264 | AB155: =InterveningNaturalFlow!AB155+TotalNaturalFlow!AA155 -> 784,400 | AC155: =InterveningNaturalFlow!AC155 -> 22,200 | AD155: =InterveningNaturalFlow!AD155+TotalNaturalFlow!AC155+AB155 -> 768,491 | AE155: =InterveningNaturalFlow!AE155+TotalNaturalFlow!AD155 -> 690,513
A156: 1918-04-30 | B156: =InterveningNaturalFlow!B156 -> 126,500 | C156: =InterveningNaturalFlow!C156+TotalNaturalFlow!B156 -> 217,023 | D156: =InterveningNaturalFlow!D156 -> 8,627 | E156: =InterveningNaturalFlow!E156+TotalNaturalFlow!D156 -> 62,000 | F156: =InterveningNaturalFlow!F156+TotalNaturalFlow!E156 -> 77,500 | G156: =InterveningNaturalFlow!G156+TotalNaturalFlow!F156 -> 163,547 | H156: =InterveningNaturalFlow!H156 -> 58,349 | I156: =InterveningNaturalFlow!I156+TotalNaturalFlow!H156+TotalNaturalFlow!G156+TotalNaturalFlow!C156 -> 413,740 | J156: =InterveningNaturalFlow!J156 -> 93,000 | K156: =InterveningNaturalFlow!K156+TotalNaturalFlow!J156 -> 107,200 | L156: =InterveningNaturalFlow!L156+TotalNaturalFlow!K156 -> 188,477 | M156: =InterveningNaturalFlow!M156 -> 139,055 | N156: =InterveningNaturalFlow!N156 -> 29,654 | O156: =InterveningNaturalFlow!O156 -> 35,567 | P156: =InterveningNaturalFlow!P156 -> 38,974 | Q156: =InterveningNaturalFlow!Q156+TotalNaturalFlow!P156+TotalNaturalFlow!O156+TotalNaturalFlow!N156+TotalNaturalFlow!M156+TotalNaturalFlow!L156 -> 397,007 | R156: =InterveningNaturalFlow!R156 -> 6,408 | S156: =InterveningNaturalFlow!S156 -> 74,984 | T156: =InterveningNaturalFlow!T156+TotalNaturalFlow!S156 -> 126,761 | U156: =InterveningNaturalFlow!U156+TotalNaturalFlow!T156+TotalNaturalFlow!R156+TotalNaturalFlow!Q156+TotalNaturalFlow!I156 -> 901,047 | W156: =InterveningNaturalFlow!W156 -> 1,685 | X156: =InterveningNaturalFlow!X156 -> 46,588 | Y156: =InterveningNaturalFlow!Y156+TotalNaturalFlow!X156+TotalNaturalFlow!W156+TotalNaturalFlow!U156 -> 991,643 | Z156: =InterveningNaturalFlow!Z156 -> 25,765 | AA156: =InterveningNaturalFlow!AA156+TotalNaturalFlow!Z156+Y156 -> 1,014,538 | AB156: =InterveningNaturalFlow!AB156+TotalNaturalFlow!AA156 -> 1,083,854 | AC156: =InterveningNaturalFlow!AC156 -> 6,200 | AD156: =InterveningNaturalFlow!AD156+TotalNaturalFlow!AC156+AB156 -> 1,067,268 | AE156: =InterveningNaturalFlow!AE156+TotalNaturalFlow!AD156 -> 1,026,113
A157: 1918-05-31 | B157: =InterveningNaturalFlow!B157 -> 570,986 | C157: =InterveningNaturalFlow!C157+TotalNaturalFlow!B157 -> 891,422 | D157: =InterveningNaturalFlow!D157 -> 34,589 | E157: =InterveningNaturalFlow!E157+TotalNaturalFlow!D157 -> 290,310 | F157: =InterveningNaturalFlow!F157+TotalNaturalFlow!E157 -> 353,710 | G157: =InterveningNaturalFlow!G157+TotalNaturalFlow!F157 -> 605,682 | H157: =InterveningNaturalFlow!H157 -> 84,929 | I157: =InterveningNaturalFlow!I157+TotalNaturalFlow!H157+TotalNaturalFlow!G157+TotalNaturalFlow!C157 -> 1,525,129 | J157: =InterveningNaturalFlow!J157 -> 204,900 | K157: =InterveningNaturalFlow!K157+TotalNaturalFlow!J157 -> 193,000 | L157: =InterveningNaturalFlow!L157+TotalNaturalFlow!K157 -> 364,573 | M157: =InterveningNaturalFlow!M157 -> 373,996 | N157: =InterveningNaturalFlow!N157 -> 89,849 | O157: =InterveningNaturalFlow!O157 -> 114,215 | P157: =InterveningNaturalFlow!P157 -> 92,549 | Q157: =InterveningNaturalFlow!Q157+TotalNaturalFlow!P157+TotalNaturalFlow!O157+TotalNaturalFlow!N157+TotalNaturalFlow!M157+TotalNaturalFlow!L157 -> 948,923 | R157: =InterveningNaturalFlow!R157 -> 16,394 | S157: =InterveningNaturalFlow!S157 -> 198,237 | T157: =InterveningNaturalFlow!T157+TotalNaturalFlow!S157 -> 334,423 | U157: =InterveningNaturalFlow!U157+TotalNaturalFlow!T157+TotalNaturalFlow!R157+TotalNaturalFlow!Q157+TotalNaturalFlow!I157 -> 2,760,606 | W157: =InterveningNaturalFlow!W157 -> 1,310 | X157: =InterveningNaturalFlow!X157 -> 824 | Y157: =InterveningNaturalFlow!Y157+TotalNaturalFlow!X157+TotalNaturalFlow!W157+TotalNaturalFlow!U157 -> 2,734,751 | Z157: =InterveningNaturalFlow!Z157 -> 21,234 | AA157: =InterveningNaturalFlow!AA157+TotalNaturalFlow!Z157+Y157 -> 2,723,245 | AB157: =InterveningNaturalFlow!AB157+TotalNaturalFlow!AA157 -> 2,744,330 | AC157: =InterveningNaturalFlow!AC157 -> 1,500 | AD157: =InterveningNaturalFlow!AD157+TotalNaturalFlow!AC157+AB157 -> 2,734,407 | AE157: =InterveningNaturalFlow!AE157+TotalNaturalFlow!AD157 -> 2,661,204
A158: 1918-06-30 | B158: =InterveningNaturalFlow!B158 -> 1,198,263 | C158: =InterveningNaturalFlow!C158+TotalNaturalFlow!B158 -> 1,747,443 | D158: =InterveningNaturalFlow!D158 -> 75,191 | E158: =InterveningNaturalFlow!E158+TotalNaturalFlow!D158 -> 496,428 | F158: =InterveningNaturalFlow!F158+TotalNaturalFlow!E158 -> 581,428 | G158: =InterveningNaturalFlow!G158+TotalNaturalFlow!F158 -> 798,609 | H158: =InterveningNaturalFlow!H158 -> 69,737 | I158: =InterveningNaturalFlow!I158+TotalNaturalFlow!H158+TotalNaturalFlow!G158+TotalNaturalFlow!C158 -> 2,640,352 | J158: =InterveningNaturalFlow!J158 -> 770,200 | K158: =InterveningNaturalFlow!K158+TotalNaturalFlow!J158 -> 835,400 | L158: =InterveningNaturalFlow!L158+TotalNaturalFlow!K158 -> 935,160 | M158: =InterveningNaturalFlow!M158 -> 466,880 | N158: =InterveningNaturalFlow!N158 -> 153,493 | O158: =InterveningNaturalFlow!O158 -> 279,503 | P158: =InterveningNaturalFlow!P158 -> 151,104 | Q158: =InterveningNaturalFlow!Q158+TotalNaturalFlow!P158+TotalNaturalFlow!O158+TotalNaturalFlow!N158+TotalNaturalFlow!M158+TotalNaturalFlow!L158 -> 1,971,963 | R158: =InterveningNaturalFlow!R158 -> 60,680 | S158: =InterveningNaturalFlow!S158 -> 230,106 | T158: =InterveningNaturalFlow!T158+TotalNaturalFlow!S158 -> 486,984 | U158: =InterveningNaturalFlow!U158+TotalNaturalFlow!T158+TotalNaturalFlow!R158+TotalNaturalFlow!Q158+TotalNaturalFlow!I158 -> 5,393,082 | W158: =InterveningNaturalFlow!W158 -> 810 | X158: =InterveningNaturalFlow!X158 -> 1,358 | Y158: =InterveningNaturalFlow!Y158+TotalNaturalFlow!X158+TotalNaturalFlow!W158+TotalNaturalFlow!U158 -> 5,413,688 | Z158: =InterveningNaturalFlow!Z158 -> 8,359 | AA158: =InterveningNaturalFlow!AA158+TotalNaturalFlow!Z158+Y158 -> 5,507,240 | AB158: =InterveningNaturalFlow!AB158+TotalNaturalFlow!AA158 -> 5,520,840 | AC158: =InterveningNaturalFlow!AC158 -> 1,100 | AD158: =InterveningNaturalFlow!AD158+TotalNaturalFlow!AC158+AB158 -> 5,486,337 | AE158: =InterveningNaturalFlow!AE158+TotalNaturalFlow!AD158 -> 5,315,233
